Workbook

Sheet Personalize (hidden)
D1: FORM RESULTS | F1: 0 | G1: MockDraftCentral | H1: RotoChamp | I1: CAIRO | J1: Teams | K1: Starters | L1: More Starters | N1: ADP | O1: =E2 -> TRUE | P1: =O1&"."&COUNTIF($O$1:$O1,O1) -> TRUE.1 | Q1: Runs | R1: Cairo | S1: 0 | T1: 0 | U1: LAA | V1: TRUE | W1: C
D2: R | E2: TRUE | F2: 1 | G2: Yahoo | H2: Yahoo Staff | I2: Steamer | J2: 6 | K2: 0 | L2: 0 | M2: ADP | O2: TRUE | P2: =O2&"."&COUNTIF($O$1:$O2,O2) -> TRUE.2 | Q2: HR | R2: Steamer | S2: 25 | T2: 25 | U2: ARI | V2: TRUE | W2: 1B
B3: Team 1 | D3: HR | E3: TRUE | F3: 2 | G3: CBS | H3: USA Today | J3: 7 | K3: 1 | L3: 1 | M3: By Position | O3: TRUE | P3: =O3&"."&COUNTIF($O$1:$O3,O3) -> TRUE.3 | Q3: AVG | R3: Fangraphs | S3: 25 | T3: 25 | U3: ATL | V3: TRUE | W3: 2B
B4: Team 2 | D4: AVG | E4: TRUE | F4: 3 | G4: ESPN | H4: ESPN Staff | I4: Fangraphs | J4: 8 | K4: 2 | L4: 2 | M4: By Team | O4: TRUE | P4: =O4&"."&COUNTIF($O$1:$O4,O4) -> TRUE.4 | Q4: RBI | R4: ZiPS | S4: 0 | T4: 0 | U4: BAL | V4: TRUE | W4: 3B
B5: Team 3 | D5: RBI | E5: TRUE | F5: 4 | G5: Avg of ADP Sources | H5: Fantasy Baseball Café | I5: ZiPS | J5: 9 | K5: 3 | L5: 3 | M5: Exp. Rank | O5: TRUE | P5: =O5&"."&COUNTIF($O$1:$O5,O5) -> TRUE.5 | Q5: SB | R5: Oliver | S5: 25 | T5: 25 | U5: BOS | V5: TRUE | W5: SS
B6: Team 4 | D6: SB | E6: TRUE | F6: 5 | G6: Fantasy Gameday | I6: Oliver | J6: 10 | K6: 4 | L6: 4 | M6: WERTH Rank | O6: FALSE | P6: =O6&"."&COUNTIF($O$1:$O6,O6) -> FALSE.1 | Q6: SLG | R6: Marcel | S6: 0 | T6: 0 | U6: CHC | V6: TRUE | W6: OF
B7: Team 5 | D7: SLG | E7: FALSE | F7: 6 | G7: Imported ADP | J7: 11 | K7: 5 | L7: 5 | M7: Pos WERTH | O7: =E8 -> FALSE | P7: =O7&"."&COUNTIF($O$1:$O7,O7) -> FALSE.2 | Q7: OBP | S7: 0 | T7: 0 | U7: CHW | V7: TRUE | W7: SP
B8: Team 6 | D8: OBP | E8: FALSE | F8: 7 | H8: Fantasy Pros Avg | I8: MORPS | J8: 12 | L8: 6 | M8: =IFERROR(VLOOKUP("TRUE."&ROW(A2),$P$1:$Q$20,2,FALSE),"") -> HR | O8: FALSE | P8: =O8&"."&COUNTIF($O$1:$O8,O8) -> FALSE.3 | Q8: OPS | R8: MORPS | S8: 0 | T8: 0 | U8: CIN | V8: TRUE | W8: RP
B9: Team 7 | D9: OPS | E9: FALSE | F9: 8 | H9: Mr. Cheatsheet | I9: Clay Davenport | J9: 13 | L9: 7 | M9: AVG | O9: TRUE | P9: =O9&"."&COUNTIF($O$1:$O9,O9) -> TRUE.6 | Q9: Wins | R9: Clay Davenport | S9: 25 | T9: 25 | U9: CLE | V9: TRUE
B10: Team 8 | D10: W | E10: TRUE | F10: 9 | I10: Weighted Projections | J10: 14 | L10: 8 | M10: RBI | O10: TRUE | P10: =O10&"."&COUNTIF($O$1:$O10,O10) -> TRUE.7 | Q10: K's | R10: Steamer (w/ Fangraphs PT) | S10: 0 | T10: 0 | U10: COL | V10: TRUE
B11: Team 9 | D11: K | E11: TRUE | F11: 10 | I11: Mr. Cheatsheet's Special Blend | J11: 15 | L11: 9 | M11: SB | O11: TRUE | P11: =O11&"."&COUNTIF($O$1:$O11,O11) -> TRUE.8 | Q11: Saves | U11: DET | V11: TRUE
B12: Team 10 | D12: S | E12: TRUE | F12: 11 | I12: Imported Projections | J12: 16 | M12: Wins | O12: TRUE | P12: =O12&"."&COUNTIF($O$1:$O12,O12) -> TRUE.9 | Q12: ERA | U12: HOU | V12: TRUE
B13: Team 11 | D13: ERA | E13: TRUE | F13: 12 | J13: 17 | M13: K's | O13: TRUE | P13: =O13&"."&COUNTIF($O$1:$O13,O13) -> TRUE.10 | Q13: WHIP | U13: KC | V13: TRUE
B14: Team 12 | D14: WHIP | E14: TRUE | F14: 13 | J14: 18 | M14: Saves | O14: FALSE | P14: =O14&"."&COUNTIF($O$1:$O14,O14) -> FALSE.4 | Q14: K/9 | U14: LAD | V14: TRUE
B15: Team 13 | D15: K/9 | E15: FALSE | F15: 14 | J15: 19 | M15: ERA | O15: FALSE | P15: =O15&"."&COUNTIF($O$1:$O15,O15) -> FALSE.5 | Q15: Losses | U15: MIA | V15: TRUE
B16: Team 14 | D16: L | E16: FALSE | F16: 15 | J16: 20 | M16: WHIP | O16: FALSE | P16: =O16&"."&COUNTIF($O$1:$O16,O16) -> FALSE.6 | Q16: QS | U16: MIL | V16: TRUE
B17: Team 15 | D17: QS | E17: FALSE | F17: 16 | J17: 21 | M17: =IFERROR(VLOOKUP("TRUE."&ROW(A12),$P$1:$Q$20,2,FALSE),"") ->  | O17: =E37 -> FALSE | P17: =O17&"."&COUNTIF($O$1:$O17,O17) -> FALSE.7 | Q17: Holds | U17: MIN | V17: TRUE
A18: =IF((Personalize!$E$18+1)<16,"","Team 16") ->  | B18: Team 16 | D18: # of Teams | E18: 12 | F18: 17 | J18: 22 | O18: =E38 -> FALSE | P18: =O18&"."&COUNTIF($O$1:$O18,O18) -> FALSE.8 | Q18: Saves + Holds | U18: NYM | V18: TRUE
B19: Team 17 | D19: C | E19: 1 | F19: 18 | J19: 23 | O19: =E39 -> FALSE | P19: =O19&"."&COUNTIF($O$1:$O19,O19) -> FALSE.9 | Q19: BB | U19: NYY | V19: TRUE
B20: Team 18 | D20: 1B | E20: 1 | F20: 19 | J20: 24 | O20: =E40 -> FALSE | P20: =O20&"."&COUNTIF($O$1:$O20,O20) -> FALSE.10 | Q20: Hits | U20: OAK | V20: TRUE
B21: Team 19 | D21: 2B | E21: 1 | F21: 20 | U21: PHI | V21: TRUE
B22: Team 20 | D22: 3B | E22: 1 | F22: 21 | U22: PIT | V22: TRUE
B23: Team 21 | D23: SS | E23: 1 | F23: 22 | U23: SD | V23: TRUE
B24: Team 22 | D24: CI | E24: 1 | F24: 23 | U24: SEA | V24: TRUE
B25: Team 23 | D25: MI | E25: 1 | F25: 24 | U25: SF | V25: TRUE
B26: Team 24 | D26: OF | E26: 5 | U26: STL | V26: TRUE
D27: DH | E27: 1 | U27: TB | V27: TRUE
B28: TRUE | D28: SP | E28: 5 | U28: TEX | V28: TRUE
B29: TRUE | D29: RP | E29: 2 | U29: TOR | V29: TRUE
B30: FALSE | D30: P | E30: 1 | U30: WAS | V30: TRUE
B31: FALSE | D31: ADP Site: | E31: =IF(F31=G1,1,IF(F31=G2,2,IF(F31=G3,3,IF(F31=G4,4,IF(F31=G5,5,IF(F31=G6,6,IF(F31=G7,7,IF(F31=G8,8,0)))))))) -> 6 | F31: Fantasy Gameday | U31: All Players
D32: Rankings: | E32: =IF(F32=H1,1,IF(F32=H2,2,IF(F32=H3,3,IF(F32=H4,4,IF(F32=H5,5,IF(F32=H6,6,IF(F32=H7,7,IF(F32=H8,8,IF(F32=H9,9,0))))))))) -> 9 | F32: Mr. Cheatsheet | U32: NL-Only
D33: Projections: | E33: =IF(F33=I1,1,IF(F33=I2,2,IF(F33=I3,10,IF(F33=I4,3,IF(F33=I5,4,IF(F33=I6,5,IF(F33=I7,6,IF(F33=I9,9,IF(F33=I10,7,IF(F33=I8,8,IF(F33=I11,11,IF(F33=I12,12,0)))))))))))) -> 11 | F33: Mr. Cheatsheet's Special Blend | U33: AL-Only
D34: LF | E34: 0 | U34: Custom
D35: CF | E35: 0
D36: RF | E36: 0
D37: Holds | E37: FALSE
D38: Saves + Holds | E38: FALSE
D39: BB | E39: FALSE
D40: Hits | E40: FALSE
D41: Total Bases | E41: FALSE
D42: Doubles | E42: FALSE
D43: Triples | E43: FALSE
D44: TB+BB | E44: FALSE
D45: IP | E45: FALSE
D46: K-BB | E46: FALSE
D47: BB-P | E47: FALSE
D48: H-P | E48: FALSE
D49: 2B+3B | E49: FALSE
D50: Rpro | E50: FALSE
D51: K-Batter | E51: FALSE
D52: HRA | E52: FALSE
D53: BAA | E53: FALSE
D54: K/BB | E54: FALSE

Sheet Draft Central
A1: Sort by:
G2: Draft Cheatsheet
B3: Player Info | G3: Draft Data | K3: WERTH Roto Value (Pitchers in Gray Rows) | AD3: Projected Base Stats | AN3: Draft Odds | AQ3: ="Current Pick: "&(COUNTA($A$7:$A$661)+1) -> Current Pick: 1 | AW3: Row | AX3: Col
M4: =IF(Personalize!E10=TRUE,"W","") -> W | N4: =IF(Personalize!E12=TRUE,"S","") -> S | O4: =IF(Personalize!E11=TRUE,"K","") -> K | P4: =IF(Personalize!E13=TRUE,"ERA","") -> ERA | Q4: =IF(Personalize!E14=TRUE,"WHIP","") -> WHIP | R4: =IF(Personalize!E16=TRUE,"L","") ->  | S4: =IF(Personalize!E15=TRUE,"K/9","") ->  | T4: =IF(Personalize!E17=TRUE,"QS","") ->  | U4: =IF(Personalize!E37=TRUE,"HLD","") ->  | V4: =IF(Personalize!E38=TRUE,"H+S","") ->  | W4: =IF(Personalize!E45=TRUE,"IP","") ->  | X4: =IF(Personalize!E46=TRUE,"K-BB","") ->  | Y4: =IF(Personalize!E47=TRUE,"BB","") ->  | Z4: =IF(Personalize!E48=TRUE,"H","") ->  | AA4: =IF(Personalize!E52=TRUE,"HRA","") ->  | AB4: =IF(Personalize!E53=TRUE,"BAA","") ->  | AC4: =IF(Personalize!E54=TRUE,"K/BB","") ->  | AW4: 5 | AX4: 1
A5: Drafted By (click in cell to select team) | B5: Name | C5: Pos | D5: OF Elig | E5: Tm | F5: Age | G5: ADP | H5: ADP Rd | I5: Exp Rank | J5: WERTH Rank | K5: Raw Tot WERTH | L5: Pos Adj WERTH | M5: =IF(Personalize!E4=TRUE,"AVG","") -> AVG | N5: =IF(Personalize!E3=TRUE,"HR","") -> HR | O5: =IF(Personalize!E2=TRUE,"R","") -> R | P5: =IF(Personalize!E5=TRUE,"RBI","") -> RBI | Q5: =IF(Personalize!E6=TRUE,"SB","") -> SB | R5: =IF(Personalize!E7=TRUE,"SLG","") ->  | S5: =IF(Personalize!E8=TRUE,"OBP","") ->  | T5: =IF(Personalize!E9=TRUE,"OPS","") ->  | U5: =IF(Personalize!E39=TRUE,"BB","") ->  | V5: =IF(Personalize!E40=TRUE,"H","") ->  | W5: =IF(Personalize!E41=TRUE,"TB","") ->  | X5: =IF(Personalize!E44=TRUE,"TB+BB","") ->  | Y5: =IF(Personalize!E42=TRUE,"2B","") ->  | Z5: =IF(Personalize!E43=TRUE,"3B","") ->  | AA5: =IF(Personalize!E49=TRUE,"2B+3B","") ->  | AB5: =IF(Personalize!E50=TRUE,"R+RBI-HR","") ->  | AC5: =IF(Personalize!E51=TRUE,"K's","") ->  | AD5: W | AE5: S | AF5: K | AG5: ERA | AH5: WHIP | AI5: AVG | AJ5: HR | AK5: RBI | AL5: R | AM5: SB | AN5: Odds Curr Avail | AO5: In One Round | AP5: In Two Rounds | AQ5: Your Player Notes: | AR5: Early | AS5: Late | AT5: Drafted | AU5: No Pro | AV5: Team | AW5: Pos Num | AX5: Starting
B7: Mike Trout | C7: OF | D7: =IFERROR(IF(VLOOKUP(B7,'Starter Calc'!$B$2:$E$700,4,FALSE)="","",VLOOKUP(B7,'Starter Calc'!$B$2:$E$700,4,FALSE)),"") -> LF,,CF | E7: =IFERROR(VLOOKUP($B7,'ADP-Rank'!$A$2:$D$650,3,FALSE),"") -> LAA | F7: =IFERROR(VLOOKUP($B7,'ADP-Rank'!$A$2:$W$650,23,FALSE),"") -> 22 | G7: =IFERROR((IF(Personalize!$E$31=1,VLOOKUP($B7,'ADP-Rank'!$A$2:$J$750,4,FALSE),(IF(Personalize!$E$31=2,VLOOKUP($B7,'ADP-Rank'!$A$2:$J$750,7,FALSE),(IF(Personalize!$E$31=3,VLOOKUP($B7,'ADP-Rank'!$A$2:$J$750,10,FALSE),(IF(Personalize!$E$31=4,VLOOKUP($B7,'ADP-Rank'!$A$2:$AN$750,24,FALSE),(IF(Personalize!$E$31=5,VLOOKUP($B7,'ADP-Rank'!$A$2:$AN$750,27,FALSE),(IF(Personalize!$E$31=6,VLOOKUP($B7,'ADP-Rank'!$A$2:$AN$750,31,FALSE),(IF(Personalize!$E$31=7,VLOOKUP($B7,'ADP-Rank'!$A$2:$AN$750,39,FALSE))))))))))))))),"") -> 1.113168724 | H7: =IFERROR(ROUNDDOWN(VLOOKUP($B7,'ADP-Rank'!$A$2:$AN$885,38,FALSE),0),"") -> 1 | I7: =VLOOKUP($B7,'ADP-Rank'!$A$2:$AJ$885,36,FALSE) -> 1 | J7: =IFERROR(RANK($K7,$K$7:$K$661,0),"") -> 2 | K7: =IF((SUM(M7:AC7)=0),"",SUM(M7:AC7)) -> 11.44622617 | L7: =IFERROR(IF(ISTEXT($A7),"",IF((OR($C7="RP",$C7="SP")),ABS(VLOOKUP(C7,'Filtered-P'!$AA$3:$AE$4,5,FALSE))+K7,ABS(VLOOKUP(C7,Filtered!$AG$3:$AK$14,5,FALSE))+K7)),"") -> 11.86185456 | M7: =IFERROR(IF((OR($C7="RP",$C7="SP")),IF(Personalize!$E$10=TRUE,(((VLOOKUP($B7,Pitcher!$A$1:$P$700,2,FALSE))-'Filtered-P'!$AB$8)/'Filtered-P'!$AC$8),""),IF(Personalize!$E$4=TRUE,(((VLOOKUP($B7,Hitter!$A$1:$X$628,21,FALSE))-Filtered!$AH$35)/Filtered!$AI$35),"")),"") -> 2.19753518 | N7: =IFERROR(IF((OR($C7="RP",$C7="SP")),IF(Personalize!$E$12=TRUE,(((VLOOKUP($B7,Pitcher!$A$1:$P$700,9,FALSE))-'Filtered-P'!$AB$15)/'Filtered-P'!$AC$15),""),IF(Personalize!$E$3=TRUE,(((VLOOKUP($B7,Hitter!$A$1:$AB$628,9,FALSE))-Filtered!$AH$25)/Filtered!$AI$25),"")),"") -> 1.105904361 | O7: =IFERROR(IF((OR($C7="RP",$C7="SP")),IF(Personalize!$E$11=TRUE,(((VLOOKUP($B7,Pitcher!$A$1:$P$700,7,FALSE))-'Filtered-P'!$AB$13)/'Filtered-P'!$AC$13),""),IF(Personalize!$E$2=TRUE,(((VLOOKUP($B7,Hitter!$A$1:$AB$628,4,FALSE))-Filtered!$AH$20)/Filtered!$AI$20),"")),"") -> 3.868852069 | P7: =IFERROR(IF((OR($C7="RP",$C7="SP")),IF(Personalize!$E$13=TRUE,(((VLOOKUP($B7,Pitcher!$A$1:$P$700,13,FALSE))-'Filtered-P'!$AB$19)/'Filtered-P'!$AC$19),""),IF(Personalize!$E$5=TRUE,(((VLOOKUP($B7,Hitter!$A$1:$AB$628,10,FALSE))-Filtered!$AH$26)/Filtered!$AI$26),"")),"") -> 1.411673148 | Q7: =IFERROR(IF((OR($C7="RP",$C7="SP")),IF(Personalize!$E$14=TRUE,(((VLOOKUP($B7,Pitcher!$A$1:$P$700,14,FALSE))-'Filtered-P'!$AB$20)/'Filtered-P'!$AC$20),""),IF(Personalize!$E$6=TRUE,(((VLOOKUP($B7,Hitter!$A$1:$AB$628,11,FALSE))-Filtered!$AH$27)/Filtered!$AI$27),"")),"") -> 2.862261408 | R7: =IFERROR(IF((OR($C7="RP",$C7="SP")),IF(Personalize!$E$16=TRUE,(((VLOOKUP($B7,Pitcher!$A$1:$P$700,3,FALSE))-'Filtered-P'!$AB$9)/'Filtered-P'!$AC$9),""),IF(Personalize!$E$7=TRUE,(((VLOOKUP($B7,Hitter!$A$1:$AZ$628,23,FALSE))-Filtered!$AH$37)/Filtered!$AI$37),"")),"") ->  | S7: =IFERROR(IF((OR($C7="RP",$C7="SP")),IF(Personalize!$E$15=TRUE,(((VLOOKUP($B7,Pitcher!$A$1:$P$700,15,FALSE))-'Filtered-P'!$AB$21)/'Filtered-P'!$AC$21),""),IF(Personalize!$E$8=TRUE,(((VLOOKUP($B7,Hitter!$A$1:$AZ$628,22,FALSE))-Filtered!$AH$36)/Filtered!$AI$36),"")),"") ->  | T7: =IFERROR(IF((OR($C7="RP",$C7="SP")),IF(Personalize!$E$17=TRUE,(((VLOOKUP($B7,Pitcher!$A$1:$P$700,16,FALSE))-'Filtered-P'!$AB$22)/'Filtered-P'!$AC$22),""),IF(Personalize!$E$9=TRUE,(((VLOOKUP($B7,Hitter!$A$1:$AZ$628,24,FALSE))-Filtered!$AH$38)/Filtered!$AI$38),"")),"") ->  | U7: =IFERROR(IF((OR($C7="RP",$C7="SP")),IF(Personalize!$E$37=TRUE,(((VLOOKUP($B7,Pitcher!$A$1:$Z$700,17,FALSE))-'Filtered-P'!$AB$25)/'Filtered-P'!$AC$25),""),IF(Personalize!$E$39=TRUE,(((VLOOKUP($B7,Hitter!$A$1:$X$628,5,FALSE))-Filtered!$AH$21)/Filtered!$AI$21),"")),"") ->  | V7: =IFERROR(IF((OR($C7="RP",$C7="SP")),IF(Personalize!$E$38=TRUE,(((VLOOKUP($B7,Pitcher!$A$1:$Z$700,18,FALSE))-'Filtered-P'!$AB$26)/'Filtered-P'!$AC$26),""),IF(Personalize!$E$40=TRUE,(((VLOOKUP($B7,Hitter!$A$1:$X$628,13,FALSE))-Filtered!$AH$29)/Filtered!$AI$29),"")),"") ->  | W7: =IFERROR(IF((OR($C7="RP",$C7="SP")),IF(Personalize!$E$45=TRUE,(((VLOOKUP($B7,Pitcher!$A$1:$Z$700,4,FALSE))-'Filtered-P'!$AB$10)/'Filtered-P'!$AC$10),""),IF(Personalize!$E$41=TRUE,(((VLOOKUP($B7,Hitter!$A$1:$AZ$628,19,FALSE))-Filtered!$AH$43)/Filtered!$AI$43),"")),"") ->  | X7: =IFERROR(IF((OR($C7="RP",$C7="SP")),IF(Personalize!$E$46=TRUE,(((VLOOKUP($B7,Pitcher!$A$1:$Z$700,19,FALSE))-'Filtered-P'!$AB$27)/'Filtered-P'!$AC$27),""),IF(Personalize!$E$44=TRUE,(((VLOOKUP($B7,Hitter!$A$1:$AZ$628,20,FALSE))-Filtered!$AH$44)/Filtered!$AI$44),"")),"") ->  | Y7: =IFERROR(IF((OR($C7="RP",$C7="SP")),IF(Personalize!$E$47=TRUE,(((VLOOKUP($B7,Pitcher!$A$1:$Z$700,6,FALSE))-'Filtered-P'!$AB$12)/'Filtered-P'!$AC$12),""),IF(Personalize!$E$42=TRUE,(((VLOOKUP($B7,Hitter!$A$1:$AZ$628,7,FALSE))-Filtered!$AH$23)/Filtered!$AI$23),"")),"") ->  | Z7: =IFERROR(IF((OR($C7="RP",$C7="SP")),IF(Personalize!$E$48=TRUE,(((VLOOKUP($B7,Pitcher!$A$1:$Z$700,5,FALSE))-'Filtered-P'!$AB$11)/'Filtered-P'!$AC$11),""),IF(Personalize!$E$43=TRUE,(((VLOOKUP($B7,Hitter!$A$1:$AZ$628,8,FALSE))-Filtered!$AH$24)/Filtered!$AI$24),"")),"") ->  | AA7: =IFERROR(IF((OR($C7="RP",$C7="SP")),IF(Personalize!$E$52=TRUE,(((VLOOKUP($B7,Pitcher!$A$1:$AA$700,21,FALSE))-'Filtered-P'!$AB$29)/(-1*'Filtered-P'!$AC$29)),""),IF(Personalize!$E$49=TRUE,(((VLOOKUP($B7,Hitter!$A$1:$AF$628,29,FALSE))-Filtered!$AH$45)/Filtered!$AI$45),"")),"") ->  | AB7: =IFERROR(IF((OR($C7="RP",$C7="SP")),IF(Personalize!$E$53=TRUE,(((VLOOKUP($B7,Pitcher!$A$1:$AA$700,23,FALSE))-'Filtered-P'!$AB$31)/(-1*'Filtered-P'!$AC$31)),""),IF(Personalize!$E$50=TRUE,(((VLOOKUP($B7,Hitter!$A$1:$AF$628,30,FALSE))-Filtered!$AH$46)/Filtered!$AI$46),"")),"") ->  | AC7: =IFERROR(IF((OR($C7="RP",$C7="SP")),IF(Personalize!$E$54=TRUE,(((VLOOKUP($B7,Pitcher!$A$1:$AA$700,24,FALSE))-'Filtered-P'!$AB$32)/'Filtered-P'!$AC$32),""),IF(Personalize!$E$51=TRUE,(((VLOOKUP($B7,Hitter!$A$1:$AF$628,14,FALSE))-Filtered!$AH$30)/(-1*Filtered!$AI$30)),"")),"") ->  | AD7: =IFERROR(IF((OR($C7="RP",$C7="SP")),VLOOKUP($B7,Pitcher!$A$1:$P$700,2,FALSE),""),"") ->  | AE7: =IFERROR(IF((OR($C7="RP",$C7="SP")),VLOOKUP($B7,Pitcher!$A$1:$P$700,9,FALSE),""),"") ->  | AF7: =IFERROR(IF((OR($C7="RP",$C7="SP")),VLOOKUP($B7,Pitcher!$A$1:$P$700,7,FALSE),""),"") ->  | AG7: =IFERROR(IF((OR($C7="RP",$C7="SP")),VLOOKUP($B7,Pitcher!$A$1:$P$700,10,FALSE),""),"") ->  | AH7: =IFERROR(IF((OR($C7="RP",$C7="SP")),VLOOKUP($B7,Pitcher!$A$1:$P$700,11,FALSE),""),"") ->  | AI7: =IFERROR(IF((OR($C7="RP",$C7="SP")),"",VLOOKUP($B7,Hitter!$A$1:$X$628,15,FALSE)),"") -> 0.3029002331 | AJ7: =IFERROR(IF((OR($C7="RP",$C7="SP")),"",VLOOKUP($B7,Hitter!$A$1:$X$628,9,FALSE)),"") -> 26.07117583 | AK7: =IFERROR(IF((OR($C7="RP",$C7="SP")),"",VLOOKUP($B7,Hitter!$A$1:$X$628,10,FALSE)),"") -> 88.64901796 | AL7: =IFERROR(IF((OR($C7="RP",$C7="SP")),"",VLOOKUP($B7,Hitter!$A$1:$X$628,4,FALSE)),"") -> 116.6392213 | AM7: =IFERROR(IF((OR($C7="RP",$C7="SP")),"",VLOOKUP($B7,Hitter!$A$1:$X$628,11,FALSE)),"") -> 37.53536845 | AN7: =IFERROR(IF(ISTEXT($A7),"",(1-NORMDIST((COUNTA($A$7:$A$661)),($G7),((AS7-AR7)/6),TRUE))),"") -> 1 | AO7: =IFERROR(IF(ISTEXT($A7),"",(1-NORMDIST((COUNTA($A$9:$A$661))+(Personalize!$E$18+1),$G7,((AS7-AR7)/6),TRUE))),"") -> 0 | AP7: =IFERROR(IF(ISTEXT($A7),"",(1-NORMDIST((COUNTA($A$9:$A$661))+((Personalize!$E$18+1)*2),$G7,((AS7-AR7)/6),TRUE))),"") -> 0 | AR7: =IF(Personalize!$E$31=1,VLOOKUP($B7,'ADP-Rank'!$A$2:$J$609,5,FALSE),(IF(Personalize!$E$31=2,VLOOKUP($B7,'ADP-Rank'!$A$2:$J$609,8,FALSE),(IF(Personalize!$E$31=3,VLOOKUP($B7,'ADP-Rank'!$A$2:$O$609,11,FALSE),(IF(Personalize!$E$31=4,VLOOKUP($B7,'ADP-Rank'!$A$2:$AN$609,25,FALSE),(IF(Personalize!$E$31=5,VLOOKUP($B7,'ADP-Rank'!$A$2:$AN$609,28,FALSE),(IF(Personalize!$E$31=6,VLOOKUP($B7,'ADP-Rank'!$A$2:$AN$609,32,FALSE),(IF(Personalize!$E$31=7,VLOOKUP($B7,'ADP-Rank'!$A$2:$AN$609,40,FALSE),""))))))))))))) -> 1 | AS7: =IF(Personalize!$E$31=1,VLOOKUP($B7,'ADP-Rank'!$A$2:$J$609,6,FALSE),(IF(Personalize!$E$31=2,VLOOKUP($B7,'ADP-Rank'!$A$2:$J$609,9,FALSE),(IF(Personalize!$E$31=3,VLOOKUP($B7,'ADP-Rank'!$A$2:$O$609,12,FALSE),(IF(Personalize!$E$31=4,VLOOKUP($B7,'ADP-Rank'!$A$2:$AN$609,26,FALSE),(IF(Personalize!$E$31=5,VLOOKUP($B7,'ADP-Rank'!$A$2:$AN$609,29,FALSE),(IF(Personalize!$E$31=6,VLOOKUP($B7,'ADP-Rank'!$A$2:$AN$609,33,FALSE),(IF(Personalize!$E$31=7,VLOOKUP($B7,'ADP-Rank'!$A$2:$AP$609,41,FALSE),""))))))))))))) -> 2 | AT7: =IF(ISBLANK(A7),0,1) -> 0 | AU7: =IF(K7="",0,1) -> 1 | AV7: =A7 -> 0 | AW7: =IF(C7="C",1,IF(C7="1B",2,IF(C7="2B",3,IF(C7="3B",4,IF(C7="SS",5,IF(C7="CI",6,IF(C7="MI",7,IF(C7="OF",11,IF(C7="LF",8,IF(C7="CF",9,IF(C7="RF",10,IF(C7="DH",12,IF(C7="SP",13,IF(C7="RP",14,IF(C7="P",15,16))))))))))))))) -> 11 | AX7: =VLOOKUP(B7,'Starter Calc'!$B$2:$BN$700,65,FALSE) -> Starter | AY7: =IFERROR(VLOOKUP($B7,'ADP-Rank'!$A$2:$AH$785,34,FALSE),TRUE) -> TRUE
B8: Miguel Cabrera | C8: 3B | D8: =IFERROR(IF(VLOOKUP(B8,'Starter Calc'!$B$2:$E$700,4,FALSE)="","",VLOOKUP(B8,'Starter Calc'!$B$2:$E$700,4,FALSE)),"") -> ,, | E8: =IFERROR(VLOOKUP($B8,'ADP-Rank'!$A$2:$D$650,3,FALSE),"") -> DET | F8: =IFERROR(VLOOKUP($B8,'ADP-Rank'!$A$2:$W$650,23,FALSE),"") -> 31 | G8: =IFERROR((IF(Personalize!$E$31=1,VLOOKUP($B8,'ADP-Rank'!$A$2:$J$750,4,FALSE),(IF(Personalize!$E$31=2,VLOOKUP($B8,'ADP-Rank'!$A$2:$J$750,7,FALSE),(IF(Personalize!$E$31=3,VLOOKUP($B8,'ADP-Rank'!$A$2:$J$750,10,FALSE),(IF(Personalize!$E$31=4,VLOOKUP($B8,'ADP-Rank'!$A$2:$AN$750,24,FALSE),(IF(Personalize!$E$31=5,VLOOKUP($B8,'ADP-Rank'!$A$2:$AN$750,27,FALSE),(IF(Personalize!$E$31=6,VLOOKUP($B8,'ADP-Rank'!$A$2:$AN$750,31,FALSE),(IF(Personalize!$E$31=7,VLOOKUP($B8,'ADP-Rank'!$A$2:$AN$750,39,FALSE))))))))))))))),"") -> 1.96090535 | H8: =IFERROR(ROUNDDOWN(VLOOKUP($B8,'ADP-Rank'!$A$2:$AN$885,38,FALSE),0),"") -> 1 | I8: =VLOOKUP($B8,'ADP-Rank'!$A$2:$AJ$885,36,FALSE) -> 2 | J8: =IFERROR(RANK($K8,$K$7:$K$661,0),"") -> 1 | K8: =IF((SUM(M8:AC8)=0),"",SUM(M8:AC8)) -> 11.82580803 | L8: =IFERROR(IF(ISTEXT($A8),"",IF((OR($C8="RP",$C8="SP")),ABS(VLOOKUP(C8,'Filtered-P'!$AA$3:$AE$4,5,FALSE))+K8,ABS(VLOOKUP(C8,Filtered!$AG$3:$AK$14,5,FALSE))+K8)),"") -> 15.24084892 | M8: =IFERROR(IF((OR($C8="RP",$C8="SP")),IF(Personalize!$E$10=TRUE,(((VLOOKUP($B8,Pitcher!$A$1:$P$700,2,FALSE))-'Filtered-P'!$AB$8)/'Filtered-P'!$AC$8),""),IF(Personalize!$E$4=TRUE,(((VLOOKUP($B8,Hitter!$A$1:$X$628,21,FALSE))-Filtered!$AH$35)/Filtered!$AI$35),"")),"") -> 3.616028007 | N8: =IFERROR(IF((OR($C8="RP",$C8="SP")),IF(Personalize!$E$12=TRUE,(((VLOOKUP($B8,Pitcher!$A$1:$P$700,9,FALSE))-'Filtered-P'!$AB$15)/'Filtered-P'!$AC$15),""),IF(Personalize!$E$3=TRUE,(((VLOOKUP($B8,Hitter!$A$1:$AB$628,9,FALSE))-Filtered!$AH$25)/Filtered!$AI$25),"")),"") -> 2.837884001 | O8: =IFERROR(IF((OR($C8="RP",$C8="SP")),IF(Personalize!$E$11=TRUE,(((VLOOKUP($B8,Pitcher!$A$1:$P$700,7,FALSE))-'Filtered-P'!$AB$13)/'Filtered-P'!$AC$13),""),IF(Personalize!$E$2=TRUE,(((VLOOKUP($B8,Hitter!$A$1:$AB$628,4,FALSE))-Filtered!$AH$20)/Filtered!$AI$20),"")),"") -> 2.781631581 | P8: =IFERROR(IF((OR($C8="RP",$C8="SP")),IF(Personalize!$E$13=TRUE,(((VLOOKUP($B8,Pitcher!$A$1:$P$700,13,FALSE))-'Filtered-P'!$AB$19)/'Filtered-P'!$AC$19),""),IF(Personalize!$E$5=TRUE,(((VLOOKUP($B8,Hitter!$A$1:$AB$628,10,FALSE))-Filtered!$AH$26)/Filtered!$AI$26),"")),"") -> 3.413405894 | Q8: =IFERROR(IF((OR($C8="RP",$C8="SP")),IF(Personalize!$E$14=TRUE,(((VLOOKUP($B8,Pitcher!$A$1:$P$700,14,FALSE))-'Filtered-P'!$AB$20)/'Filtered-P'!$AC$20),""),IF(Personalize!$E$6=TRUE,(((VLOOKUP($B8,Hitter!$A$1:$AB$628,11,FALSE))-Filtered!$AH$27)/Filtered!$AI$27),"")),"") -> -0.8231414506 | R8: =IFERROR(IF((OR($C8="RP",$C8="SP")),IF(Personalize!$E$16=TRUE,(((VLOOKUP($B8,Pitcher!$A$1:$P$700,3,FALSE))-'Filtered-P'!$AB$9)/'Filtered-P'!$AC$9),""),IF(Personalize!$E$7=TRUE,(((VLOOKUP($B8,Hitter!$A$1:$AZ$628,23,FALSE))-Filtered!$AH$37)/Filtered!$AI$37),"")),"") ->  | S8: =IFERROR(IF((OR($C8="RP",$C8="SP")),IF(Personalize!$E$15=TRUE,(((VLOOKUP($B8,Pitcher!$A$1:$P$700,15,FALSE))-'Filtered-P'!$AB$21)/'Filtered-P'!$AC$21),""),IF(Personalize!$E$8=TRUE,(((VLOOKUP($B8,Hitter!$A$1:$AZ$628,22,FALSE))-Filtered!$AH$36)/Filtered!$AI$36),"")),"") ->  | T8: =IFERROR(IF((OR($C8="RP",$C8="SP")),IF(Personalize!$E$17=TRUE,(((VLOOKUP($B8,Pitcher!$A$1:$P$700,16,FALSE))-'Filtered-P'!$AB$22)/'Filtered-P'!$AC$22),""),IF(Personalize!$E$9=TRUE,(((VLOOKUP($B8,Hitter!$A$1:$AZ$628,24,FALSE))-Filtered!$AH$38)/Filtered!$AI$38),"")),"") ->  | U8: =IFERROR(IF((OR($C8="RP",$C8="SP")),IF(Personalize!$E$37=TRUE,(((VLOOKUP($B8,Pitcher!$A$1:$Z$700,17,FALSE))-'Filtered-P'!$AB$25)/'Filtered-P'!$AC$25),""),IF(Personalize!$E$39=TRUE,(((VLOOKUP($B8,Hitter!$A$1:$X$628,5,FALSE))-Filtered!$AH$21)/Filtered!$AI$21),"")),"") ->  | V8: =IFERROR(IF((OR($C8="RP",$C8="SP")),IF(Personalize!$E$38=TRUE,(((VLOOKUP($B8,Pitcher!$A$1:$Z$700,18,FALSE))-'Filtered-P'!$AB$26)/'Filtered-P'!$AC$26),""),IF(Personalize!$E$40=TRUE,(((VLOOKUP($B8,Hitter!$A$1:$X$628,13,FALSE))-Filtered!$AH$29)/Filtered!$AI$29),"")),"") ->  | W8: =IFERROR(IF((OR($C8="RP",$C8="SP")),IF(Personalize!$E$45=TRUE,(((VLOOKUP($B8,Pitcher!$A$1:$Z$700,4,FALSE))-'Filtered-P'!$AB$10)/'Filtered-P'!$AC$10),""),IF(Personalize!$E$41=TRUE,(((VLOOKUP($B8,Hitter!$A$1:$AZ$628,19,FALSE))-Filtered!$AH$43)/Filtered!$AI$43),"")),"") ->  | X8: =IFERROR(IF((OR($C8="RP",$C8="SP")),IF(Personalize!$E$46=TRUE,(((VLOOKUP($B8,Pitcher!$A$1:$Z$700,19,FALSE))-'Filtered-P'!$AB$27)/'Filtered-P'!$AC$27),""),IF(Personalize!$E$44=TRUE,(((VLOOKUP($B8,Hitter!$A$1:$AZ$628,20,FALSE))-Filtered!$AH$44)/Filtered!$AI$44),"")),"") ->  | Y8: =IFERROR(IF((OR($C8="RP",$C8="SP")),IF(Personalize!$E$47=TRUE,(((VLOOKUP($B8,Pitcher!$A$1:$Z$700,6,FALSE))-'Filtered-P'!$AB$12)/'Filtered-P'!$AC$12),""),IF(Personalize!$E$42=TRUE,(((VLOOKUP($B8,Hitter!$A$1:$AZ$628,7,FALSE))-Filtered!$AH$23)/Filtered!$AI$23),"")),"") ->  | Z8: =IFERROR(IF((OR($C8="RP",$C8="SP")),IF(Personalize!$E$48=TRUE,(((VLOOKUP($B8,Pitcher!$A$1:$Z$700,5,FALSE))-'Filtered-P'!$AB$11)/'Filtered-P'!$AC$11),""),IF(Personalize!$E$43=TRUE,(((VLOOKUP($B8,Hitter!$A$1:$AZ$628,8,FALSE))-Filtered!$AH$24)/Filtered!$AI$24),"")),"") ->  | AA8: =IFERROR(IF((OR($C8="RP",$C8="SP")),IF(Personalize!$E$52=TRUE,(((VLOOKUP($B8,Pitcher!$A$1:$AA$700,21,FALSE))-'Filtered-P'!$AB$29)/(-1*'Filtered-P'!$AC$29)),""),IF(Personalize!$E$49=TRUE,(((VLOOKUP($B8,Hitter!$A$1:$AF$628,29,FALSE))-Filtered!$AH$45)/Filtered!$AI$45),"")),"") ->  | AB8: =IFERROR(IF((OR($C8="RP",$C8="SP")),IF(Personalize!$E$53=TRUE,(((VLOOKUP($B8,Pitcher!$A$1:$AA$700,23,FALSE))-'Filtered-P'!$AB$31)/(-1*'Filtered-P'!$AC$31)),""),IF(Personalize!$E$50=TRUE,(((VLOOKUP($B8,Hitter!$A$1:$AF$628,30,FALSE))-Filtered!$AH$46)/Filtered!$AI$46),"")),"") ->  | AC8: =IFERROR(IF((OR($C8="RP",$C8="SP")),IF(Personalize!$E$54=TRUE,(((VLOOKUP($B8,Pitcher!$A$1:$AA$700,24,FALSE))-'Filtered-P'!$AB$32)/'Filtered-P'!$AC$32),""),IF(Personalize!$E$51=TRUE,(((VLOOKUP($B8,Hitter!$A$1:$AF$628,14,FALSE))-Filtered!$AH$30)/(-1*Filtered!$AI$30)),"")),"") ->  | AD8: =IFERROR(IF((OR($C8="RP",$C8="SP")),VLOOKUP($B8,Pitcher!$A$1:$P$700,2,FALSE),""),"") ->  | AE8: =IFERROR(IF((OR($C8="RP",$C8="SP")),VLOOKUP($B8,Pitcher!$A$1:$P$700,9,FALSE),""),"") ->  | AF8: =IFERROR(IF((OR($C8="RP",$C8="SP")),VLOOKUP($B8,Pitcher!$A$1:$P$700,7,FALSE),""),"") ->  | AG8: =IFERROR(IF((OR($C8="RP",$C8="SP")),VLOOKUP($B8,Pitcher!$A$1:$P$700,10,FALSE),""),"") ->  | AH8: =IFERROR(IF((OR($C8="RP",$C8="SP")),VLOOKUP($B8,Pitcher!$A$1:$P$700,11,FALSE),""),"") ->  | AI8: =IFERROR(IF((OR($C8="RP",$C8="SP")),"",VLOOKUP($B8,Hitter!$A$1:$X$628,15,FALSE)),"") -> 0.3252034308 | AJ8: =IFERROR(IF((OR($C8="RP",$C8="SP")),"",VLOOKUP($B8,Hitter!$A$1:$X$628,9,FALSE)),"") -> 38.55693328 | AK8: =IFERROR(IF((OR($C8="RP",$C8="SP")),"",VLOOKUP($B8,Hitter!$A$1:$X$628,10,FALSE)),"") -> 116.2597899 | AL8: =IFERROR(IF((OR($C8="RP",$C8="SP")),"",VLOOKUP($B8,Hitter!$A$1:$X$628,4,FALSE)),"") -> 104.8809821 | AM8: =IFERROR(IF((OR($C8="RP",$C8="SP")),"",VLOOKUP($B8,Hitter!$A$1:$X$628,11,FALSE)),"") -> 3.312957072 | AN8: =IFERROR(IF(ISTEXT($A8),"",(1-NORMDIST((COUNTA($A$9:$A$661)),($G8),((AS8-AR8)/6),TRUE))),"") -> 0.999999998 | AO8: =IFERROR(IF(ISTEXT($A8),"",(1-NORMDIST((COUNTA($A$9:$A$661))+(Personalize!$E$18+1),$G8,((AS8-AR8)/6),TRUE))),"") -> 0 | AP8: =IFERROR(IF(ISTEXT($A8),"",(1-NORMDIST((COUNTA($A$9:$A$661))+((Personalize!$E$18+1)*2),$G8,((AS8-AR8)/6),TRUE))),"") -> 0 | AR8: =IF(Personalize!$E$31=1,VLOOKUP($B8,'ADP-Rank'!$A$2:$J$609,5,FALSE),(IF(Personalize!$E$31=2,VLOOKUP($B8,'ADP-Rank'!$A$2:$J$609,8,FALSE),(IF(Personalize!$E$31=3,VLOOKUP($B8,'ADP-Rank'!$A$2:$O$609,11,FALSE),(IF(Personalize!$E$31=4,VLOOKUP($B8,'ADP-Rank'!$A$2:$AN$609,25,FALSE),(IF(Personalize!$E$31=5,VLOOKUP($B8,'ADP-Rank'!$A$2:$AN$609,28,FALSE),(IF(Personalize!$E$31=6,VLOOKUP($B8,'ADP-Rank'!$A$2:$AN$609,32,FALSE),(IF(Personalize!$E$31=7,VLOOKUP($B8,'ADP-Rank'!$A$2:$AN$609,40,FALSE),""))))))))))))) -> 1 | AS8: =IF(Personalize!$E$31=1,VLOOKUP($B8,'ADP-Rank'!$A$2:$J$609,6,FALSE),(IF(Personalize!$E$31=2,VLOOKUP($B8,'ADP-Rank'!$A$2:$J$609,9,FALSE),(IF(Personalize!$E$31=3,VLOOKUP($B8,'ADP-Rank'!$A$2:$O$609,12,FALSE),(IF(Personalize!$E$31=4,VLOOKUP($B8,'ADP-Rank'!$A$2:$AN$609,26,FALSE),(IF(Personalize!$E$31=5,VLOOKUP($B8,'ADP-Rank'!$A$2:$AN$609,29,FALSE),(IF(Personalize!$E$31=6,VLOOKUP($B8,'ADP-Rank'!$A$2:$AN$609,33,FALSE),(IF(Personalize!$E$31=7,VLOOKUP($B8,'ADP-Rank'!$A$2:$AP$609,41,FALSE),""))))))))))))) -> 3 | AT8: =IF(ISBLANK(A8),0,1) -> 0 | AU8: =IF(K8="",0,1) -> 1 | AV8: =A8 -> 0 | AW8: =IF(C8="C",1,IF(C8="1B",2,IF(C8="2B",3,IF(C8="3B",4,IF(C8="SS",5,IF(C8="CI",6,IF(C8="MI",7,IF(C8="OF",11,IF(C8="LF",8,IF(C8="CF",9,IF(C8="RF",10,IF(C8="DH",12,IF(C8="SP",13,IF(C8="RP",14,IF(C8="P",15,16))))))))))))))) -> 4 | AX8: =VLOOKUP(B8,'Starter Calc'!$B$2:$BN$700,65,FALSE) -> Starter | AY8: =IFERROR(VLOOKUP($B8,'ADP-Rank'!$A$2:$AH$785,34,FALSE),TRUE) -> TRUE
B9: Paul Goldschmidt | C9: 1B | D9: =IFERROR(IF(VLOOKUP(B9,'Starter Calc'!$B$2:$E$700,4,FALSE)="","",VLOOKUP(B9,'Starter Calc'!$B$2:$E$700,4,FALSE)),"") -> ,, | E9: =IFERROR(VLOOKUP($B9,'ADP-Rank'!$A$2:$D$650,3,FALSE),"") -> ARI | F9: =IFERROR(VLOOKUP($B9,'ADP-Rank'!$A$2:$W$650,23,FALSE),"") -> 26 | G9: =IFERROR((IF(Personalize!$E$31=1,VLOOKUP($B9,'ADP-Rank'!$A$2:$J$750,4,FALSE),(IF(Personalize!$E$31=2,VLOOKUP($B9,'ADP-Rank'!$A$2:$J$750,7,FALSE),(IF(Personalize!$E$31=3,VLOOKUP($B9,'ADP-Rank'!$A$2:$J$750,10,FALSE),(IF(Personalize!$E$31=4,VLOOKUP($B9,'ADP-Rank'!$A$2:$AN$750,24,FALSE),(IF(Personalize!$E$31=5,VLOOKUP($B9,'ADP-Rank'!$A$2:$AN$750,27,FALSE),(IF(Personalize!$E$31=6,VLOOKUP($B9,'ADP-Rank'!$A$2:$AN$750,31,FALSE),(IF(Personalize!$E$31=7,VLOOKUP($B9,'ADP-Rank'!$A$2:$AN$750,39,FALSE))))))))))))))),"") -> 3.347736626 | H9: =IFERROR(ROUNDDOWN(VLOOKUP($B9,'ADP-Rank'!$A$2:$AN$885,38,FALSE),0),"") -> 1 | I9: =VLOOKUP($B9,'ADP-Rank'!$A$2:$AJ$885,36,FALSE) -> 6 | J9: =IFERROR(RANK($K9,$K$7:$K$661,0),"") -> 5 | K9: =IF((SUM(M9:AC9)=0),"",SUM(M9:AC9)) -> 7.006500602 | L9: =IFERROR(IF(ISTEXT($A9),"",IF((OR($C9="RP",$C9="SP")),ABS(VLOOKUP(C9,'Filtered-P'!$AA$3:$AE$4,5,FALSE))+K9,ABS(VLOOKUP(C9,Filtered!$AG$3:$AK$14,5,FALSE))+K9)),"") -> 8.343224196 | M9: =IFERROR(IF((OR($C9="RP",$C9="SP")),IF(Personalize!$E$10=TRUE,(((VLOOKUP($B9,Pitcher!$A$1:$P$700,2,FALSE))-'Filtered-P'!$AB$8)/'Filtered-P'!$AC$8),""),IF(Personalize!$E$4=TRUE,(((VLOOKUP($B9,Hitter!$A$1:$X$628,21,FALSE))-Filtered!$AH$35)/Filtered!$AI$35),"")),"") -> 0.7644834873 | N9: =IFERROR(IF((OR($C9="RP",$C9="SP")),IF(Personalize!$E$12=TRUE,(((VLOOKUP($B9,Pitcher!$A$1:$P$700,9,FALSE))-'Filtered-P'!$AB$15)/'Filtered-P'!$AC$15),""),IF(Personalize!$E$3=TRUE,(((VLOOKUP($B9,Hitter!$A$1:$AB$628,9,FALSE))-Filtered!$AH$25)/Filtered!$AI$25),"")),"") -> 1.932845523 | O9: =IFERROR(IF((OR($C9="RP",$C9="SP")),IF(Personalize!$E$11=TRUE,(((VLOOKUP($B9,Pitcher!$A$1:$P$700,7,FALSE))-'Filtered-P'!$AB$13)/'Filtered-P'!$AC$13),""),IF(Personalize!$E$2=TRUE,(((VLOOKUP($B9,Hitter!$A$1:$AB$628,4,FALSE))-Filtered!$AH$20)/Filtered!$AI$20),"")),"") -> 1.85459298 | P9: =IFERROR(IF((OR($C9="RP",$C9="SP")),IF(Personalize!$E$13=TRUE,(((VLOOKUP($B9,Pitcher!$A$1:$P$700,13,FALSE))-'Filtered-P'!$AB$19)/'Filtered-P'!$AC$19),""),IF(Personalize!$E$5=TRUE,(((VLOOKUP($B9,Hitter!$A$1:$AB$628,10,FALSE))-Filtered!$AH$26)/Filtered!$AI$26),"")),"") -> 2.205094662 | Q9: =IFERROR(IF((OR($C9="RP",$C9="SP")),IF(Personalize!$E$14=TRUE,(((VLOOKUP($B9,Pitcher!$A$1:$P$700,14,FALSE))-'Filtered-P'!$AB$20)/'Filtered-P'!$AC$20),""),IF(Personalize!$E$6=TRUE,(((VLOOKUP($B9,Hitter!$A$1:$AB$628,11,FALSE))-Filtered!$AH$27)/Filtered!$AI$27),"")),"") -> 0.2494839494 | R9: =IFERROR(IF((OR($C9="RP",$C9="SP")),IF(Personalize!$E$16=TRUE,(((VLOOKUP($B9,Pitcher!$A$1:$P$700,3,FALSE))-'Filtered-P'!$AB$9)/'Filtered-P'!$AC$9),""),IF(Personalize!$E$7=TRUE,(((VLOOKUP($B9,Hitter!$A$1:$AZ$628,23,FALSE))-Filtered!$AH$37)/Filtered!$AI$37),"")),"") ->  | S9: =IFERROR(IF((OR($C9="RP",$C9="SP")),IF(Personalize!$E$15=TRUE,(((VLOOKUP($B9,Pitcher!$A$1:$P$700,15,FALSE))-'Filtered-P'!$AB$21)/'Filtered-P'!$AC$21),""),IF(Personalize!$E$8=TRUE,(((VLOOKUP($B9,Hitter!$A$1:$AZ$628,22,FALSE))-Filtered!$AH$36)/Filtered!$AI$36),"")),"") ->  | T9: =IFERROR(IF((OR($C9="RP",$C9="SP")),IF(Personalize!$E$17=TRUE,(((VLOOKUP($B9,Pitcher!$A$1:$P$700,16,FALSE))-'Filtered-P'!$AB$22)/'Filtered-P'!$AC$22),""),IF(Personalize!$E$9=TRUE,(((VLOOKUP($B9,Hitter!$A$1:$AZ$628,24,FALSE))-Filtered!$AH$38)/Filtered!$AI$38),"")),"") ->  | U9: =IFERROR(IF((OR($C9="RP",$C9="SP")),IF(Personalize!$E$37=TRUE,(((VLOOKUP($B9,Pitcher!$A$1:$Z$700,17,FALSE))-'Filtered-P'!$AB$25)/'Filtered-P'!$AC$25),""),IF(Personalize!$E$39=TRUE,(((VLOOKUP($B9,Hitter!$A$1:$X$628,5,FALSE))-Filtered!$AH$21)/Filtered!$AI$21),"")),"") ->  | V9: =IFERROR(IF((OR($C9="RP",$C9="SP")),IF(Personalize!$E$38=TRUE,(((VLOOKUP($B9,Pitcher!$A$1:$Z$700,18,FALSE))-'Filtered-P'!$AB$26)/'Filtered-P'!$AC$26),""),IF(Personalize!$E$40=TRUE,(((VLOOKUP($B9,Hitter!$A$1:$X$628,13,FALSE))-Filtered!$AH$29)/Filtered!$AI$29),"")),"") ->  | W9: =IFERROR(IF((OR($C9="RP",$C9="SP")),IF(Personalize!$E$45=TRUE,(((VLOOKUP($B9,Pitcher!$A$1:$Z$700,4,FALSE))-'Filtered-P'!$AB$10)/'Filtered-P'!$AC$10),""),IF(Personalize!$E$41=TRUE,(((VLOOKUP($B9,Hitter!$A$1:$AZ$628,19,FALSE))-Filtered!$AH$43)/Filtered!$AI$43),"")),"") ->  | X9: =IFERROR(IF((OR($C9="RP",$C9="SP")),IF(Personalize!$E$46=TRUE,(((VLOOKUP($B9,Pitcher!$A$1:$Z$700,19,FALSE))-'Filtered-P'!$AB$27)/'Filtered-P'!$AC$27),""),IF(Personalize!$E$44=TRUE,(((VLOOKUP($B9,Hitter!$A$1:$AZ$628,20,FALSE))-Filtered!$AH$44)/Filtered!$AI$44),"")),"") ->  | Y9: =IFERROR(IF((OR($C9="RP",$C9="SP")),IF(Personalize!$E$47=TRUE,(((VLOOKUP($B9,Pitcher!$A$1:$Z$700,6,FALSE))-'Filtered-P'!$AB$12)/'Filtered-P'!$AC$12),""),IF(Personalize!$E$42=TRUE,(((VLOOKUP($B9,Hitter!$A$1:$AZ$628,7,FALSE))-Filtered!$AH$23)/Filtered!$AI$23),"")),"") ->  | Z9: =IFERROR(IF((OR($C9="RP",$C9="SP")),IF(Personalize!$E$48=TRUE,(((VLOOKUP($B9,Pitcher!$A$1:$Z$700,5,FALSE))-'Filtered-P'!$AB$11)/'Filtered-P'!$AC$11),""),IF(Personalize!$E$43=TRUE,(((VLOOKUP($B9,Hitter!$A$1:$AZ$628,8,FALSE))-Filtered!$AH$24)/Filtered!$AI$24),"")),"") ->  | AA9: =IFERROR(IF((OR($C9="RP",$C9="SP")),IF(Personalize!$E$52=TRUE,(((VLOOKUP($B9,Pitcher!$A$1:$AA$700,21,FALSE))-'Filtered-P'!$AB$29)/(-1*'Filtered-P'!$AC$29)),""),IF(Personalize!$E$49=TRUE,(((VLOOKUP($B9,Hitter!$A$1:$AF$628,29,FALSE))-Filtered!$AH$45)/Filtered!$AI$45),"")),"") ->  | AB9: =IFERROR(IF((OR($C9="RP",$C9="SP")),IF(Personalize!$E$53=TRUE,(((VLOOKUP($B9,Pitcher!$A$1:$AA$700,23,FALSE))-'Filtered-P'!$AB$31)/(-1*'Filtered-P'!$AC$31)),""),IF(Personalize!$E$50=TRUE,(((VLOOKUP($B9,Hitter!$A$1:$AF$628,30,FALSE))-Filtered!$AH$46)/Filtered!$AI$46),"")),"") ->  | AC9: =IFERROR(IF((OR($C9="RP",$C9="SP")),IF(Personalize!$E$54=TRUE,(((VLOOKUP($B9,Pitcher!$A$1:$AA$700,24,FALSE))-'Filtered-P'!$AB$32)/'Filtered-P'!$AC$32),""),IF(Personalize!$E$51=TRUE,(((VLOOKUP($B9,Hitter!$A$1:$AF$628,14,FALSE))-Filtered!$AH$30)/(-1*Filtered!$AI$30)),"")),"") ->  | AD9: =IFERROR(IF((OR($C9="RP",$C9="SP")),VLOOKUP($B9,Pitcher!$A$1:$P$700,2,FALSE),""),"") ->  | AE9: =IFERROR(IF((OR($C9="RP",$C9="SP")),VLOOKUP($B9,Pitcher!$A$1:$P$700,9,FALSE),""),"") ->  | AF9: =IFERROR(IF((OR($C9="RP",$C9="SP")),VLOOKUP($B9,Pitcher!$A$1:$P$700,7,FALSE),""),"") ->  | AG9: =IFERROR(IF((OR($C9="RP",$C9="SP")),VLOOKUP($B9,Pitcher!$A$1:$P$700,10,FALSE),""),"") ->  | AH9: =IFERROR(IF((OR($C9="RP",$C9="SP")),VLOOKUP($B9,Pitcher!$A$1:$P$700,11,FALSE),""),"") ->  | AI9: =IFERROR(IF((OR($C9="RP",$C9="SP")),"",VLOOKUP($B9,Hitter!$A$1:$X$628,15,FALSE)),"") -> 0.2817735379 | AJ9: =IFERROR(IF((OR($C9="RP",$C9="SP")),"",VLOOKUP($B9,Hitter!$A$1:$X$628,9,FALSE)),"") -> 32.03255467 | AK9: =IFERROR(IF((OR($C9="RP",$C9="SP")),"",VLOOKUP($B9,Hitter!$A$1:$X$628,10,FALSE)),"") -> 99.59302661 | AL9: =IFERROR(IF((OR($C9="RP",$C9="SP")),"",VLOOKUP($B9,Hitter!$A$1:$X$628,4,FALSE)),"") -> 94.85510252 | AM9: =IFERROR(IF((OR($C9="RP",$C9="SP")),"",VLOOKUP($B9,Hitter!$A$1:$X$628,11,FALSE)),"") -> 13.27328681 | AN9: =IFERROR(IF(ISTEXT($A9),"",(1-NORMDIST((COUNTA($A$9:$A$661)),($G9),((AS9-AR9)/6),TRUE))),"") -> 1 | AO9: =IFERROR(IF(ISTEXT($A9),"",(1-NORMDIST((COUNTA($A$9:$A$661))+(Personalize!$E$18+1),$G9,((AS9-AR9)/6),TRUE))),"") -> 0 | AP9: =IFERROR(IF(ISTEXT($A9),"",(1-NORMDIST((COUNTA($A$9:$A$661))+((Personalize!$E$18+1)*2),$G9,((AS9-AR9)/6),TRUE))),"") -> 0 | AR9: =IF(Personalize!$E$31=1,VLOOKUP($B9,'ADP-Rank'!$A$2:$J$609,5,FALSE),(IF(Personalize!$E$31=2,VLOOKUP($B9,'ADP-Rank'!$A$2:$J$609,8,FALSE),(IF(Personalize!$E$31=3,VLOOKUP($B9,'ADP-Rank'!$A$2:$O$609,11,FALSE),(IF(Personalize!$E$31=4,VLOOKUP($B9,'ADP-Rank'!$A$2:$AN$609,25,FALSE),(IF(Personalize!$E$31=5,VLOOKUP($B9,'ADP-Rank'!$A$2:$AN$609,28,FALSE),(IF(Personalize!$E$31=6,VLOOKUP($B9,'ADP-Rank'!$A$2:$AN$609,32,FALSE),(IF(Personalize!$E$31=7,VLOOKUP($B9,'ADP-Rank'!$A$2:$AN$609,40,FALSE),""))))))))))))) -> 2 | AS9: =IF(Personalize!$E$31=1,VLOOKUP($B9,'ADP-Rank'!$A$2:$J$609,6,FALSE),(IF(Personalize!$E$31=2,VLOOKUP($B9,'ADP-Rank'!$A$2:$J$609,9,FALSE),(IF(Personalize!$E$31=3,VLOOKUP($B9,'ADP-Rank'!$A$2:$O$609,12,FALSE),(IF(Personalize!$E$31=4,VLOOKUP($B9,'ADP-Rank'!$A$2:$AN$609,26,FALSE),(IF(Personalize!$E$31=5,VLOOKUP($B9,'ADP-Rank'!$A$2:$AN$609,29,FALSE),(IF(Personalize!$E$31=6,VLOOKUP($B9,'ADP-Rank'!$A$2:$AN$609,33,FALSE),(IF(Personalize!$E$31=7,VLOOKUP($B9,'ADP-Rank'!$A$2:$AP$609,41,FALSE),""))))))))))))) -> 4 | AT9: =IF(ISBLANK(A9),0,1) -> 0 | AU9: =IF(K9="",0,1) -> 1 | AV9: =A9 -> 0 | AW9: =IF(C9="C",1,IF(C9="1B",2,IF(C9="2B",3,IF(C9="3B",4,IF(C9="SS",5,IF(C9="CI",6,IF(C9="MI",7,IF(C9="OF",11,IF(C9="LF",8,IF(C9="CF",9,IF(C9="RF",10,IF(C9="DH",12,IF(C9="SP",13,IF(C9="RP",14,IF(C9="P",15,16))))))))))))))) -> 2 | AX9: =VLOOKUP(B9,'Starter Calc'!$B$2:$BN$700,65,FALSE) -> Starter | AY9: =IFERROR(VLOOKUP($B9,'ADP-Rank'!$A$2:$AH$785,34,FALSE),TRUE) -> TRUE
B10: Andrew McCutchen | C10: OF | D10: =IFERROR(IF(VLOOKUP(B10,'Starter Calc'!$B$2:$E$700,4,FALSE)="","",VLOOKUP(B10,'Starter Calc'!$B$2:$E$700,4,FALSE)),"") -> ,,CF | E10: =IFERROR(VLOOKUP($B10,'ADP-Rank'!$A$2:$D$650,3,FALSE),"") -> PIT | F10: =IFERROR(VLOOKUP($B10,'ADP-Rank'!$A$2:$W$650,23,FALSE),"") -> 27 | G10: =IFERROR((IF(Personalize!$E$31=1,VLOOKUP($B10,'ADP-Rank'!$A$2:$J$750,4,FALSE),(IF(Personalize!$E$31=2,VLOOKUP($B10,'ADP-Rank'!$A$2:$J$750,7,FALSE),(IF(Personalize!$E$31=3,VLOOKUP($B10,'ADP-Rank'!$A$2:$J$750,10,FALSE),(IF(Personalize!$E$31=4,VLOOKUP($B10,'ADP-Rank'!$A$2:$AN$750,24,FALSE),(IF(Personalize!$E$31=5,VLOOKUP($B10,'ADP-Rank'!$A$2:$AN$750,27,FALSE),(IF(Personalize!$E$31=6,VLOOKUP($B10,'ADP-Rank'!$A$2:$AN$750,31,FALSE),(IF(Personalize!$E$31=7,VLOOKUP($B10,'ADP-Rank'!$A$2:$AN$750,39,FALSE))))))))))))))),"") -> 3.884773663 | H10: =IFERROR(ROUNDDOWN(VLOOKUP($B10,'ADP-Rank'!$A$2:$AN$885,38,FALSE),0),"") -> 1 | I10: =VLOOKUP($B10,'ADP-Rank'!$A$2:$AJ$885,36,FALSE) -> 4 | J10: =IFERROR(RANK($K10,$K$7:$K$661,0),"") -> 4 | K10: =IF((SUM(M10:AC10)=0),"",SUM(M10:AC10)) -> 7.097786521 | L10: =IFERROR(IF(ISTEXT($A10),"",IF((OR($C10="RP",$C10="SP")),ABS(VLOOKUP(C10,'Filtered-P'!$AA$3:$AE$4,5,FALSE))+K10,ABS(VLOOKUP(C10,Filtered!$AG$3:$AK$14,5,FALSE))+K10)),"") -> 7.513414915 | M10: =IFERROR(IF((OR($C10="RP",$C10="SP")),IF(Personalize!$E$10=TRUE,(((VLOOKUP($B10,Pitcher!$A$1:$P$700,2,FALSE))-'Filtered-P'!$AB$8)/'Filtered-P'!$AC$8),""),IF(Personalize!$E$4=TRUE,(((VLOOKUP($B10,Hitter!$A$1:$X$628,21,FALSE))-Filtered!$AH$35)/Filtered!$AI$35),"")),"") -> 1.646101652 | N10: =IFERROR(IF((OR($C10="RP",$C10="SP")),IF(Personalize!$E$12=TRUE,(((VLOOKUP($B10,Pitcher!$A$1:$P$700,9,FALSE))-'Filtered-P'!$AB$15)/'Filtered-P'!$AC$15),""),IF(Personalize!$E$3=TRUE,(((VLOOKUP($B10,Hitter!$A$1:$AB$628,9,FALSE))-Filtered!$AH$25)/Filtered!$AI$25),"")),"") -> 0.7865378673 | O10: =IFERROR(IF((OR($C10="RP",$C10="SP")),IF(Personalize!$E$11=TRUE,(((VLOOKUP($B10,Pitcher!$A$1:$P$700,7,FALSE))-'Filtered-P'!$AB$13)/'Filtered-P'!$AC$13),""),IF(Personalize!$E$2=TRUE,(((VLOOKUP($B10,Hitter!$A$1:$AB$628,4,FALSE))-Filtered!$AH$20)/Filtered!$AI$20),"")),"") -> 2.135497661 | P10: =IFERROR(IF((OR($C10="RP",$C10="SP")),IF(Personalize!$E$13=TRUE,(((VLOOKUP($B10,Pitcher!$A$1:$P$700,13,FALSE))-'Filtered-P'!$AB$19)/'Filtered-P'!$AC$19),""),IF(Personalize!$E$5=TRUE,(((VLOOKUP($B10,Hitter!$A$1:$AB$628,10,FALSE))-Filtered!$AH$26)/Filtered!$AI$26),"")),"") -> 1.2308515 | Q10: =IFERROR(IF((OR($C10="RP",$C10="SP")),IF(Personalize!$E$14=TRUE,(((VLOOKUP($B10,Pitcher!$A$1:$P$700,14,FALSE))-'Filtered-P'!$AB$20)/'Filtered-P'!$AC$20),""),IF(Personalize!$E$6=TRUE,(((VLOOKUP($B10,Hitter!$A$1:$AB$628,11,FALSE))-Filtered!$AH$27)/Filtered!$AI$27),"")),"") -> 1.298797841 | R10: =IFERROR(IF((OR($C10="RP",$C10="SP")),IF(Personalize!$E$16=TRUE,(((VLOOKUP($B10,Pitcher!$A$1:$P$700,3,FALSE))-'Filtered-P'!$AB$9)/'Filtered-P'!$AC$9),""),IF(Personalize!$E$7=TRUE,(((VLOOKUP($B10,Hitter!$A$1:$AZ$628,23,FALSE))-Filtered!$AH$37)/Filtered!$AI$37),"")),"") ->  | S10: =IFERROR(IF((OR($C10="RP",$C10="SP")),IF(Personalize!$E$15=TRUE,(((VLOOKUP($B10,Pitcher!$A$1:$P$700,15,FALSE))-'Filtered-P'!$AB$21)/'Filtered-P'!$AC$21),""),IF(Personalize!$E$8=TRUE,(((VLOOKUP($B10,Hitter!$A$1:$AZ$628,22,FALSE))-Filtered!$AH$36)/Filtered!$AI$36),"")),"") ->  | T10: =IFERROR(IF((OR($C10="RP",$C10="SP")),IF(Personalize!$E$17=TRUE,(((VLOOKUP($B10,Pitcher!$A$1:$P$700,16,FALSE))-'Filtered-P'!$AB$22)/'Filtered-P'!$AC$22),""),IF(Personalize!$E$9=TRUE,(((VLOOKUP($B10,Hitter!$A$1:$AZ$628,24,FALSE))-Filtered!$AH$38)/Filtered!$AI$38),"")),"") ->  | U10: =IFERROR(IF((OR($C10="RP",$C10="SP")),IF(Personalize!$E$37=TRUE,(((VLOOKUP($B10,Pitcher!$A$1:$Z$700,17,FALSE))-'Filtered-P'!$AB$25)/'Filtered-P'!$AC$25),""),IF(Personalize!$E$39=TRUE,(((VLOOKUP($B10,Hitter!$A$1:$X$628,5,FALSE))-Filtered!$AH$21)/Filtered!$AI$21),"")),"") ->  | V10: =IFERROR(IF((OR($C10="RP",$C10="SP")),IF(Personalize!$E$38=TRUE,(((VLOOKUP($B10,Pitcher!$A$1:$Z$700,18,FALSE))-'Filtered-P'!$AB$26)/'Filtered-P'!$AC$26),""),IF(Personalize!$E$40=TRUE,(((VLOOKUP($B10,Hitter!$A$1:$X$628,13,FALSE))-Filtered!$AH$29)/Filtered!$AI$29),"")),"") ->  | W10: =IFERROR(IF((OR($C10="RP",$C10="SP")),IF(Personalize!$E$45=TRUE,(((VLOOKUP($B10,Pitcher!$A$1:$Z$700,4,FALSE))-'Filtered-P'!$AB$10)/'Filtered-P'!$AC$10),""),IF(Personalize!$E$41=TRUE,(((VLOOKUP($B10,Hitter!$A$1:$AZ$628,19,FALSE))-Filtered!$AH$43)/Filtered!$AI$43),"")),"") ->  | X10: =IFERROR(IF((OR($C10="RP",$C10="SP")),IF(Personalize!$E$46=TRUE,(((VLOOKUP($B10,Pitcher!$A$1:$Z$700,19,FALSE))-'Filtered-P'!$AB$27)/'Filtered-P'!$AC$27),""),IF(Personalize!$E$44=TRUE,(((VLOOKUP($B10,Hitter!$A$1:$AZ$628,20,FALSE))-Filtered!$AH$44)/Filtered!$AI$44),"")),"") ->  | Y10: =IFERROR(IF((OR($C10="RP",$C10="SP")),IF(Personalize!$E$47=TRUE,(((VLOOKUP($B10,Pitcher!$A$1:$Z$700,6,FALSE))-'Filtered-P'!$AB$12)/'Filtered-P'!$AC$12),""),IF(Personalize!$E$42=TRUE,(((VLOOKUP($B10,Hitter!$A$1:$AZ$628,7,FALSE))-Filtered!$AH$23)/Filtered!$AI$23),"")),"") ->  | Z10: =IFERROR(IF((OR($C10="RP",$C10="SP")),IF(Personalize!$E$48=TRUE,(((VLOOKUP($B10,Pitcher!$A$1:$Z$700,5,FALSE))-'Filtered-P'!$AB$11)/'Filtered-P'!$AC$11),""),IF(Personalize!$E$43=TRUE,(((VLOOKUP($B10,Hitter!$A$1:$AZ$628,8,FALSE))-Filtered!$AH$24)/Filtered!$AI$24),"")),"") ->  | AA10: =IFERROR(IF((OR($C10="RP",$C10="SP")),IF(Personalize!$E$52=TRUE,(((VLOOKUP($B10,Pitcher!$A$1:$AA$700,21,FALSE))-'Filtered-P'!$AB$29)/(-1*'Filtered-P'!$AC$29)),""),IF(Personalize!$E$49=TRUE,(((VLOOKUP($B10,Hitter!$A$1:$AF$628,29,FALSE))-Filtered!$AH$45)/Filtered!$AI$45),"")),"") ->  | AB10: =IFERROR(IF((OR($C10="RP",$C10="SP")),IF(Personalize!$E$53=TRUE,(((VLOOKUP($B10,Pitcher!$A$1:$AA$700,23,FALSE))-'Filtered-P'!$AB$31)/(-1*'Filtered-P'!$AC$31)),""),IF(Personalize!$E$50=TRUE,(((VLOOKUP($B10,Hitter!$A$1:$AF$628,30,FALSE))-Filtered!$AH$46)/Filtered!$AI$46),"")),"") ->  | AC10: =IFERROR(IF((OR($C10="RP",$C10="SP")),IF(Personalize!$E$54=TRUE,(((VLOOKUP($B10,Pitcher!$A$1:$AA$700,24,FALSE))-'Filtered-P'!$AB$32)/'Filtered-P'!$AC$32),""),IF(Personalize!$E$51=TRUE,(((VLOOKUP($B10,Hitter!$A$1:$AF$628,14,FALSE))-Filtered!$AH$30)/(-1*Filtered!$AI$30)),"")),"") ->  | AD10: =IFERROR(IF((OR($C10="RP",$C10="SP")),VLOOKUP($B10,Pitcher!$A$1:$P$700,2,FALSE),""),"") ->  | AE10: =IFERROR(IF((OR($C10="RP",$C10="SP")),VLOOKUP($B10,Pitcher!$A$1:$P$700,9,FALSE),""),"") ->  | AF10: =IFERROR(IF((OR($C10="RP",$C10="SP")),VLOOKUP($B10,Pitcher!$A$1:$P$700,7,FALSE),""),"") ->  | AG10: =IFERROR(IF((OR($C10="RP",$C10="SP")),VLOOKUP($B10,Pitcher!$A$1:$P$700,10,FALSE),""),"") ->  | AH10: =IFERROR(IF((OR($C10="RP",$C10="SP")),VLOOKUP($B10,Pitcher!$A$1:$P$700,11,FALSE),""),"") ->  | AI10: =IFERROR(IF((OR($C10="RP",$C10="SP")),"",VLOOKUP($B10,Hitter!$A$1:$X$628,15,FALSE)),"") -> 0.2948932058 | AJ10: =IFERROR(IF((OR($C10="RP",$C10="SP")),"",VLOOKUP($B10,Hitter!$A$1:$X$628,9,FALSE)),"") -> 23.76887822 | AK10: =IFERROR(IF((OR($C10="RP",$C10="SP")),"",VLOOKUP($B10,Hitter!$A$1:$X$628,10,FALSE)),"") -> 86.15486618 | AL10: =IFERROR(IF((OR($C10="RP",$C10="SP")),"",VLOOKUP($B10,Hitter!$A$1:$X$628,4,FALSE)),"") -> 97.89307364 | AM10: =IFERROR(IF((OR($C10="RP",$C10="SP")),"",VLOOKUP($B10,Hitter!$A$1:$X$628,11,FALSE)),"") -> 23.0171474 | AN10: =IFERROR(IF(ISTEXT($A10),"",(1-NORMDIST((COUNTA($A$9:$A$661)),($G10),((AS10-AR10)/6),TRUE))),"") -> 1 | AO10: =IFERROR(IF(ISTEXT($A10),"",(1-NORMDIST((COUNTA($A$9:$A$661))+(Personalize!$E$18+1),$G10,((AS10-AR10)/6),TRUE))),"") -> 0 | AP10: =IFERROR(IF(ISTEXT($A10),"",(1-NORMDIST((COUNTA($A$9:$A$661))+((Personalize!$E$18+1)*2),$G10,((AS10-AR10)/6),TRUE))),"") -> 0 | AR10: =IF(Personalize!$E$31=1,VLOOKUP($B10,'ADP-Rank'!$A$2:$J$609,5,FALSE),(IF(Personalize!$E$31=2,VLOOKUP($B10,'ADP-Rank'!$A$2:$J$609,8,FALSE),(IF(Personalize!$E$31=3,VLOOKUP($B10,'ADP-Rank'!$A$2:$O$609,11,FALSE),(IF(Personalize!$E$31=4,VLOOKUP($B10,'ADP-Rank'!$A$2:$AN$609,25,FALSE),(IF(Personalize!$E$31=5,VLOOKUP($B10,'ADP-Rank'!$A$2:$AN$609,28,FALSE),(IF(Personalize!$E$31=6,VLOOKUP($B10,'ADP-Rank'!$A$2:$AN$609,32,FALSE),(IF(Personalize!$E$31=7,VLOOKUP($B10,'ADP-Rank'!$A$2:$AN$609,40,FALSE),""))))))))))))) -> 3 | AS10: =IF(Personalize!$E$31=1,VLOOKUP($B10,'ADP-Rank'!$A$2:$J$609,6,FALSE),(IF(Personalize!$E$31=2,VLOOKUP($B10,'ADP-Rank'!$A$2:$J$609,9,FALSE),(IF(Personalize!$E$31=3,VLOOKUP($B10,'ADP-Rank'!$A$2:$O$609,12,FALSE),(IF(Personalize!$E$31=4,VLOOKUP($B10,'ADP-Rank'!$A$2:$AN$609,26,FALSE),(IF(Personalize!$E$31=5,VLOOKUP($B10,'ADP-Rank'!$A$2:$AN$609,29,FALSE),(IF(Personalize!$E$31=6,VLOOKUP($B10,'ADP-Rank'!$A$2:$AN$609,33,FALSE),(IF(Personalize!$E$31=7,VLOOKUP($B10,'ADP-Rank'!$A$2:$AP$609,41,FALSE),""))))))))))))) -> 6 | AT10: =IF(ISBLANK(A10),0,1) -> 0 | AU10: =IF(K10="",0,1) -> 1 | AV10: =A10 -> 0 | AW10: =IF(C10="C",1,IF(C10="1B",2,IF(C10="2B",3,IF(C10="3B",4,IF(C10="SS",5,IF(C10="CI",6,IF(C10="MI",7,IF(C10="OF",11,IF(C10="LF",8,IF(C10="CF",9,IF(C10="RF",10,IF(C10="DH",12,IF(C10="SP",13,IF(C10="RP",14,IF(C10="P",15,16))))))))))))))) -> 11 | AX10: =VLOOKUP(B10,'Starter Calc'!$B$2:$BN$700,65,FALSE) -> Starter | AY10: =IFERROR(VLOOKUP($B10,'ADP-Rank'!$A$2:$AH$785,34,FALSE),TRUE) -> TRUE
B11: Carlos Gonzalez | C11: OF | D11: =IFERROR(IF(VLOOKUP(B11,'Starter Calc'!$B$2:$E$700,4,FALSE)="","",VLOOKUP(B11,'Starter Calc'!$B$2:$E$700,4,FALSE)),"") -> LF,, | E11: =IFERROR(VLOOKUP($B11,'ADP-Rank'!$A$2:$D$650,3,FALSE),"") -> COL | F11: =IFERROR(VLOOKUP($B11,'ADP-Rank'!$A$2:$W$650,23,FALSE),"") -> 28 | G11: =IFERROR((IF(Personalize!$E$31=1,VLOOKUP($B11,'ADP-Rank'!$A$2:$J$750,4,FALSE),(IF(Personalize!$E$31=2,VLOOKUP($B11,'ADP-Rank'!$A$2:$J$750,7,FALSE),(IF(Personalize!$E$31=3,VLOOKUP($B11,'ADP-Rank'!$A$2:$J$750,10,FALSE),(IF(Personalize!$E$31=4,VLOOKUP($B11,'ADP-Rank'!$A$2:$AN$750,24,FALSE),(IF(Personalize!$E$31=5,VLOOKUP($B11,'ADP-Rank'!$A$2:$AN$750,27,FALSE),(IF(Personalize!$E$31=6,VLOOKUP($B11,'ADP-Rank'!$A$2:$AN$750,31,FALSE),(IF(Personalize!$E$31=7,VLOOKUP($B11,'ADP-Rank'!$A$2:$AN$750,39,FALSE))))))))))))))),"") -> 6.448559671 | H11: =IFERROR(ROUNDDOWN(VLOOKUP($B11,'ADP-Rank'!$A$2:$AN$885,38,FALSE),0),"") -> 1 | I11: =VLOOKUP($B11,'ADP-Rank'!$A$2:$AJ$885,36,FALSE) -> 5 | J11: =IFERROR(RANK($K11,$K$7:$K$661,0),"") -> 6 | K11: =IF((SUM(M11:AC11)=0),"",SUM(M11:AC11)) -> 6.635976543 | L11: =IFERROR(IF(ISTEXT($A11),"",IF((OR($C11="RP",$C11="SP")),ABS(VLOOKUP(C11,'Filtered-P'!$AA$3:$AE$4,5,FALSE))+K11,ABS(VLOOKUP(C11,Filtered!$AG$3:$AK$14,5,FALSE))+K11)),"") -> 7.051604938 | M11: =IFERROR(IF((OR($C11="RP",$C11="SP")),IF(Personalize!$E$10=TRUE,(((VLOOKUP($B11,Pitcher!$A$1:$P$700,2,FALSE))-'Filtered-P'!$AB$8)/'Filtered-P'!$AC$8),""),IF(Personalize!$E$4=TRUE,(((VLOOKUP($B11,Hitter!$A$1:$X$628,21,FALSE))-Filtered!$AH$35)/Filtered!$AI$35),"")),"") -> 1.362767835 | N11: =IFERROR(IF((OR($C11="RP",$C11="SP")),IF(Personalize!$E$12=TRUE,(((VLOOKUP($B11,Pitcher!$A$1:$P$700,9,FALSE))-'Filtered-P'!$AB$15)/'Filtered-P'!$AC$15),""),IF(Personalize!$E$3=TRUE,(((VLOOKUP($B11,Hitter!$A$1:$AB$628,9,FALSE))-Filtered!$AH$25)/Filtered!$AI$25),"")),"") -> 1.393952553 | O11: =IFERROR(IF((OR($C11="RP",$C11="SP")),IF(Personalize!$E$11=TRUE,(((VLOOKUP($B11,Pitcher!$A$1:$P$700,7,FALSE))-'Filtered-P'!$AB$13)/'Filtered-P'!$AC$13),""),IF(Personalize!$E$2=TRUE,(((VLOOKUP($B11,Hitter!$A$1:$AB$628,4,FALSE))-Filtered!$AH$20)/Filtered!$AI$20),"")),"") -> 1.374723929 | P11: =IFERROR(IF((OR($C11="RP",$C11="SP")),IF(Personalize!$E$13=TRUE,(((VLOOKUP($B11,Pitcher!$A$1:$P$700,13,FALSE))-'Filtered-P'!$AB$19)/'Filtered-P'!$AC$19),""),IF(Personalize!$E$5=TRUE,(((VLOOKUP($B11,Hitter!$A$1:$AB$628,10,FALSE))-Filtered!$AH$26)/Filtered!$AI$26),"")),"") -> 1.331149401 | Q11: =IFERROR(IF((OR($C11="RP",$C11="SP")),IF(Personalize!$E$14=TRUE,(((VLOOKUP($B11,Pitcher!$A$1:$P$700,14,FALSE))-'Filtered-P'!$AB$20)/'Filtered-P'!$AC$20),""),IF(Personalize!$E$6=TRUE,(((VLOOKUP($B11,Hitter!$A$1:$AB$628,11,FALSE))-Filtered!$AH$27)/Filtered!$AI$27),"")),"") -> 1.173382826 | R11: =IFERROR(IF((OR($C11="RP",$C11="SP")),IF(Personalize!$E$16=TRUE,(((VLOOKUP($B11,Pitcher!$A$1:$P$700,3,FALSE))-'Filtered-P'!$AB$9)/'Filtered-P'!$AC$9),""),IF(Personalize!$E$7=TRUE,(((VLOOKUP($B11,Hitter!$A$1:$AZ$628,23,FALSE))-Filtered!$AH$37)/Filtered!$AI$37),"")),"") ->  | S11: =IFERROR(IF((OR($C11="RP",$C11="SP")),IF(Personalize!$E$15=TRUE,(((VLOOKUP($B11,Pitcher!$A$1:$P$700,15,FALSE))-'Filtered-P'!$AB$21)/'Filtered-P'!$AC$21),""),IF(Personalize!$E$8=TRUE,(((VLOOKUP($B11,Hitter!$A$1:$AZ$628,22,FALSE))-Filtered!$AH$36)/Filtered!$AI$36),"")),"") ->  | T11: =IFERROR(IF((OR($C11="RP",$C11="SP")),IF(Personalize!$E$17=TRUE,(((VLOOKUP($B11,Pitcher!$A$1:$P$700,16,FALSE))-'Filtered-P'!$AB$22)/'Filtered-P'!$AC$22),""),IF(Personalize!$E$9=TRUE,(((VLOOKUP($B11,Hitter!$A$1:$AZ$628,24,FALSE))-Filtered!$AH$38)/Filtered!$AI$38),"")),"") ->  | U11: =IFERROR(IF((OR($C11="RP",$C11="SP")),IF(Personalize!$E$37=TRUE,(((VLOOKUP($B11,Pitcher!$A$1:$Z$700,17,FALSE))-'Filtered-P'!$AB$25)/'Filtered-P'!$AC$25),""),IF(Personalize!$E$39=TRUE,(((VLOOKUP($B11,Hitter!$A$1:$X$628,5,FALSE))-Filtered!$AH$21)/Filtered!$AI$21),"")),"") ->  | V11: =IFERROR(IF((OR($C11="RP",$C11="SP")),IF(Personalize!$E$38=TRUE,(((VLOOKUP($B11,Pitcher!$A$1:$Z$700,18,FALSE))-'Filtered-P'!$AB$26)/'Filtered-P'!$AC$26),""),IF(Personalize!$E$40=TRUE,(((VLOOKUP($B11,Hitter!$A$1:$X$628,13,FALSE))-Filtered!$AH$29)/Filtered!$AI$29),"")),"") ->  | W11: =IFERROR(IF((OR($C11="RP",$C11="SP")),IF(Personalize!$E$45=TRUE,(((VLOOKUP($B11,Pitcher!$A$1:$Z$700,4,FALSE))-'Filtered-P'!$AB$10)/'Filtered-P'!$AC$10),""),IF(Personalize!$E$41=TRUE,(((VLOOKUP($B11,Hitter!$A$1:$AZ$628,19,FALSE))-Filtered!$AH$43)/Filtered!$AI$43),"")),"") ->  | X11: =IFERROR(IF((OR($C11="RP",$C11="SP")),IF(Personalize!$E$46=TRUE,(((VLOOKUP($B11,Pitcher!$A$1:$Z$700,19,FALSE))-'Filtered-P'!$AB$27)/'Filtered-P'!$AC$27),""),IF(Personalize!$E$44=TRUE,(((VLOOKUP($B11,Hitter!$A$1:$AZ$628,20,FALSE))-Filtered!$AH$44)/Filtered!$AI$44),"")),"") ->  | Y11: =IFERROR(IF((OR($C11="RP",$C11="SP")),IF(Personalize!$E$47=TRUE,(((VLOOKUP($B11,Pitcher!$A$1:$Z$700,6,FALSE))-'Filtered-P'!$AB$12)/'Filtered-P'!$AC$12),""),IF(Personalize!$E$42=TRUE,(((VLOOKUP($B11,Hitter!$A$1:$AZ$628,7,FALSE))-Filtered!$AH$23)/Filtered!$AI$23),"")),"") ->  | Z11: =IFERROR(IF((OR($C11="RP",$C11="SP")),IF(Personalize!$E$48=TRUE,(((VLOOKUP($B11,Pitcher!$A$1:$Z$700,5,FALSE))-'Filtered-P'!$AB$11)/'Filtered-P'!$AC$11),""),IF(Personalize!$E$43=TRUE,(((VLOOKUP($B11,Hitter!$A$1:$AZ$628,8,FALSE))-Filtered!$AH$24)/Filtered!$AI$24),"")),"") ->  | AA11: =IFERROR(IF((OR($C11="RP",$C11="SP")),IF(Personalize!$E$52=TRUE,(((VLOOKUP($B11,Pitcher!$A$1:$AA$700,21,FALSE))-'Filtered-P'!$AB$29)/(-1*'Filtered-P'!$AC$29)),""),IF(Personalize!$E$49=TRUE,(((VLOOKUP($B11,Hitter!$A$1:$AF$628,29,FALSE))-Filtered!$AH$45)/Filtered!$AI$45),"")),"") ->  | AB11: =IFERROR(IF((OR($C11="RP",$C11="SP")),IF(Personalize!$E$53=TRUE,(((VLOOKUP($B11,Pitcher!$A$1:$AA$700,23,FALSE))-'Filtered-P'!$AB$31)/(-1*'Filtered-P'!$AC$31)),""),IF(Personalize!$E$50=TRUE,(((VLOOKUP($B11,Hitter!$A$1:$AF$628,30,FALSE))-Filtered!$AH$46)/Filtered!$AI$46),"")),"") ->  | AC11: =IFERROR(IF((OR($C11="RP",$C11="SP")),IF(Personalize!$E$54=TRUE,(((VLOOKUP($B11,Pitcher!$A$1:$AA$700,24,FALSE))-'Filtered-P'!$AB$32)/'Filtered-P'!$AC$32),""),IF(Personalize!$E$51=TRUE,(((VLOOKUP($B11,Hitter!$A$1:$AF$628,14,FALSE))-Filtered!$AH$30)/(-1*Filtered!$AI$30)),"")),"") ->  | AD11: =IFERROR(IF((OR($C11="RP",$C11="SP")),VLOOKUP($B11,Pitcher!$A$1:$P$700,2,FALSE),""),"") ->  | AE11: =IFERROR(IF((OR($C11="RP",$C11="SP")),VLOOKUP($B11,Pitcher!$A$1:$P$700,9,FALSE),""),"") ->  | AF11: =IFERROR(IF((OR($C11="RP",$C11="SP")),VLOOKUP($B11,Pitcher!$A$1:$P$700,7,FALSE),""),"") ->  | AG11: =IFERROR(IF((OR($C11="RP",$C11="SP")),VLOOKUP($B11,Pitcher!$A$1:$P$700,10,FALSE),""),"") ->  | AH11: =IFERROR(IF((OR($C11="RP",$C11="SP")),VLOOKUP($B11,Pitcher!$A$1:$P$700,11,FALSE),""),"") ->  | AI11: =IFERROR(IF((OR($C11="RP",$C11="SP")),"",VLOOKUP($B11,Hitter!$A$1:$X$628,15,FALSE)),"") -> 0.2926784172 | AJ11: =IFERROR(IF((OR($C11="RP",$C11="SP")),"",VLOOKUP($B11,Hitter!$A$1:$X$628,9,FALSE)),"") -> 28.14770131 | AK11: =IFERROR(IF((OR($C11="RP",$C11="SP")),"",VLOOKUP($B11,Hitter!$A$1:$X$628,10,FALSE)),"") -> 87.53831884 | AL11: =IFERROR(IF((OR($C11="RP",$C11="SP")),"",VLOOKUP($B11,Hitter!$A$1:$X$628,4,FALSE)),"") -> 89.66534094 | AM11: =IFERROR(IF((OR($C11="RP",$C11="SP")),"",VLOOKUP($B11,Hitter!$A$1:$X$628,11,FALSE)),"") -> 21.85255172 | AN11: =IFERROR(IF(ISTEXT($A11),"",(1-NORMDIST((COUNTA($A$9:$A$661)),($G11),((AS11-AR11)/6),TRUE))),"") -> 1 | AO11: =IFERROR(IF(ISTEXT($A11),"",(1-NORMDIST((COUNTA($A$9:$A$661))+(Personalize!$E$18+1),$G11,((AS11-AR11)/6),TRUE))),"") -> 1.887379142e-15 | AP11: =IFERROR(IF(ISTEXT($A11),"",(1-NORMDIST((COUNTA($A$9:$A$661))+((Personalize!$E$18+1)*2),$G11,((AS11-AR11)/6),TRUE))),"") -> 0 | AR11: =IF(Personalize!$E$31=1,VLOOKUP($B11,'ADP-Rank'!$A$2:$J$609,5,FALSE),(IF(Personalize!$E$31=2,VLOOKUP($B11,'ADP-Rank'!$A$2:$J$609,8,FALSE),(IF(Personalize!$E$31=3,VLOOKUP($B11,'ADP-Rank'!$A$2:$O$609,11,FALSE),(IF(Personalize!$E$31=4,VLOOKUP($B11,'ADP-Rank'!$A$2:$AN$609,25,FALSE),(IF(Personalize!$E$31=5,VLOOKUP($B11,'ADP-Rank'!$A$2:$AN$609,28,FALSE),(IF(Personalize!$E$31=6,VLOOKUP($B11,'ADP-Rank'!$A$2:$AN$609,32,FALSE),(IF(Personalize!$E$31=7,VLOOKUP($B11,'ADP-Rank'!$A$2:$AN$609,40,FALSE),""))))))))))))) -> 5 | AS11: =IF(Personalize!$E$31=1,VLOOKUP($B11,'ADP-Rank'!$A$2:$J$609,6,FALSE),(IF(Personalize!$E$31=2,VLOOKUP($B11,'ADP-Rank'!$A$2:$J$609,9,FALSE),(IF(Personalize!$E$31=3,VLOOKUP($B11,'ADP-Rank'!$A$2:$O$609,12,FALSE),(IF(Personalize!$E$31=4,VLOOKUP($B11,'ADP-Rank'!$A$2:$AN$609,26,FALSE),(IF(Personalize!$E$31=5,VLOOKUP($B11,'ADP-Rank'!$A$2:$AN$609,29,FALSE),(IF(Personalize!$E$31=6,VLOOKUP($B11,'ADP-Rank'!$A$2:$AN$609,33,FALSE),(IF(Personalize!$E$31=7,VLOOKUP($B11,'ADP-Rank'!$A$2:$AP$609,41,FALSE),""))))))))))))) -> 10 | AT11: =IF(ISBLANK(A11),0,1) -> 0 | AU11: =IF(K11="",0,1) -> 1 | AV11: =A11 -> 0 | AW11: =IF(C11="C",1,IF(C11="1B",2,IF(C11="2B",3,IF(C11="3B",4,IF(C11="SS",5,IF(C11="CI",6,IF(C11="MI",7,IF(C11="OF",11,IF(C11="LF",8,IF(C11="CF",9,IF(C11="RF",10,IF(C11="DH",12,IF(C11="SP",13,IF(C11="RP",14,IF(C11="P",15,16))))))))))))))) -> 11 | AX11: =VLOOKUP(B11,'Starter Calc'!$B$2:$BN$700,65,FALSE) -> Starter | AY11: =IFERROR(VLOOKUP($B11,'ADP-Rank'!$A$2:$AH$785,34,FALSE),TRUE) -> TRUE
B12: Clayton Kershaw | C12: SP | D12: =IFERROR(IF(VLOOKUP(B12,'Starter Calc'!$B$2:$E$700,4,FALSE)="","",VLOOKUP(B12,'Starter Calc'!$B$2:$E$700,4,FALSE)),"") -> ,, | E12: =IFERROR(VLOOKUP($B12,'ADP-Rank'!$A$2:$D$650,3,FALSE),"") -> LAD | F12: =IFERROR(VLOOKUP($B12,'ADP-Rank'!$A$2:$W$650,23,FALSE),"") -> 26 | G12: =IFERROR((IF(Personalize!$E$31=1,VLOOKUP($B12,'ADP-Rank'!$A$2:$J$750,4,FALSE),(IF(Personalize!$E$31=2,VLOOKUP($B12,'ADP-Rank'!$A$2:$J$750,7,FALSE),(IF(Personalize!$E$31=3,VLOOKUP($B12,'ADP-Rank'!$A$2:$J$750,10,FALSE),(IF(Personalize!$E$31=4,VLOOKUP($B12,'ADP-Rank'!$A$2:$AN$750,24,FALSE),(IF(Personalize!$E$31=5,VLOOKUP($B12,'ADP-Rank'!$A$2:$AN$750,27,FALSE),(IF(Personalize!$E$31=6,VLOOKUP($B12,'ADP-Rank'!$A$2:$AN$750,31,FALSE),(IF(Personalize!$E$31=7,VLOOKUP($B12,'ADP-Rank'!$A$2:$AN$750,39,FALSE))))))))))))))),"") -> 7.401234568 | H12: =IFERROR(ROUNDDOWN(VLOOKUP($B12,'ADP-Rank'!$A$2:$AN$885,38,FALSE),0),"") -> 1 | I12: =VLOOKUP($B12,'ADP-Rank'!$A$2:$AJ$885,36,FALSE) -> 3 | J12: =IFERROR(RANK($K12,$K$7:$K$661,0),"") -> 3 | K12: =IF((SUM(M12:AC12)=0),"",SUM(M12:AC12)) -> 9.148211751 | L12: =IFERROR(IF(ISTEXT($A12),"",IF((OR($C12="RP",$C12="SP")),ABS(VLOOKUP(C12,'Filtered-P'!$AA$3:$AE$4,5,FALSE))+K12,ABS(VLOOKUP(C12,Filtered!$AG$3:$AK$14,5,FALSE))+K12)),"") -> 12.18844212 | M12: =IFERROR(IF((OR($C12="RP",$C12="SP")),IF(Personalize!$E$10=TRUE,(((VLOOKUP($B12,Pitcher!$A$1:$P$700,2,FALSE))-'Filtered-P'!$AB$8)/'Filtered-P'!$AC$8),""),IF(Personalize!$E$4=TRUE,(((VLOOKUP($B12,Hitter!$A$1:$X$628,21,FALSE))-Filtered!$AH$35)/Filtered!$AI$35),"")),"") -> 1.447453362 | N12: =IFERROR(IF((OR($C12="RP",$C12="SP")),IF(Personalize!$E$12=TRUE,(((VLOOKUP($B12,Pitcher!$A$1:$P$700,9,FALSE))-'Filtered-P'!$AB$15)/'Filtered-P'!$AC$15),""),IF(Personalize!$E$3=TRUE,(((VLOOKUP($B12,Hitter!$A$1:$AB$628,9,FALSE))-Filtered!$AH$25)/Filtered!$AI$25),"")),"") -> -0.5466546098 | O12: =IFERROR(IF((OR($C12="RP",$C12="SP")),IF(Personalize!$E$11=TRUE,(((VLOOKUP($B12,Pitcher!$A$1:$P$700,7,FALSE))-'Filtered-P'!$AB$13)/'Filtered-P'!$AC$13),""),IF(Personalize!$E$2=TRUE,(((VLOOKUP($B12,Hitter!$A$1:$AB$628,4,FALSE))-Filtered!$AH$20)/Filtered!$AI$20),"")),"") -> 1.717570931 | P12: =IFERROR(IF((OR($C12="RP",$C12="SP")),IF(Personalize!$E$13=TRUE,(((VLOOKUP($B12,Pitcher!$A$1:$P$700,13,FALSE))-'Filtered-P'!$AB$19)/'Filtered-P'!$AC$19),""),IF(Personalize!$E$5=TRUE,(((VLOOKUP($B12,Hitter!$A$1:$AB$628,10,FALSE))-Filtered!$AH$26)/Filtered!$AI$26),"")),"") -> 3.567387112 | Q12: =IFERROR(IF((OR($C12="RP",$C12="SP")),IF(Personalize!$E$14=TRUE,(((VLOOKUP($B12,Pitcher!$A$1:$P$700,14,FALSE))-'Filtered-P'!$AB$20)/'Filtered-P'!$AC$20),""),IF(Personalize!$E$6=TRUE,(((VLOOKUP($B12,Hitter!$A$1:$AB$628,11,FALSE))-Filtered!$AH$27)/Filtered!$AI$27),"")),"") -> 2.962454956 | R12: =IFERROR(IF((OR($C12="RP",$C12="SP")),IF(Personalize!$E$16=TRUE,(((VLOOKUP($B12,Pitcher!$A$1:$P$700,3,FALSE))-'Filtered-P'!$AB$9)/'Filtered-P'!$AC$9),""),IF(Personalize!$E$7=TRUE,(((VLOOKUP($B12,Hitter!$A$1:$AZ$628,23,FALSE))-Filtered!$AH$37)/Filtered!$AI$37),"")),"") ->  | S12: =IFERROR(IF((OR($C12="RP",$C12="SP")),IF(Personalize!$E$15=TRUE,(((VLOOKUP($B12,Pitcher!$A$1:$P$700,15,FALSE))-'Filtered-P'!$AB$21)/'Filtered-P'!$AC$21),""),IF(Personalize!$E$8=TRUE,(((VLOOKUP($B12,Hitter!$A$1:$AZ$628,22,FALSE))-Filtered!$AH$36)/Filtered!$AI$36),"")),"") ->  | T12: =IFERROR(IF((OR($C12="RP",$C12="SP")),IF(Personalize!$E$17=TRUE,(((VLOOKUP($B12,Pitcher!$A$1:$P$700,16,FALSE))-'Filtered-P'!$AB$22)/'Filtered-P'!$AC$22),""),IF(Personalize!$E$9=TRUE,(((VLOOKUP($B12,Hitter!$A$1:$AZ$628,24,FALSE))-Filtered!$AH$38)/Filtered!$AI$38),"")),"") ->  | U12: =IFERROR(IF((OR($C12="RP",$C12="SP")),IF(Personalize!$E$37=TRUE,(((VLOOKUP($B12,Pitcher!$A$1:$Z$700,17,FALSE))-'Filtered-P'!$AB$25)/'Filtered-P'!$AC$25),""),IF(Personalize!$E$39=TRUE,(((VLOOKUP($B12,Hitter!$A$1:$X$628,5,FALSE))-Filtered!$AH$21)/Filtered!$AI$21),"")),"") ->  | V12: =IFERROR(IF((OR($C12="RP",$C12="SP")),IF(Personalize!$E$38=TRUE,(((VLOOKUP($B12,Pitcher!$A$1:$Z$700,18,FALSE))-'Filtered-P'!$AB$26)/'Filtered-P'!$AC$26),""),IF(Personalize!$E$40=TRUE,(((VLOOKUP($B12,Hitter!$A$1:$X$628,13,FALSE))-Filtered!$AH$29)/Filtered!$AI$29),"")),"") ->  | W12: =IFERROR(IF((OR($C12="RP",$C12="SP")),IF(Personalize!$E$45=TRUE,(((VLOOKUP($B12,Pitcher!$A$1:$Z$700,4,FALSE))-'Filtered-P'!$AB$10)/'Filtered-P'!$AC$10),""),IF(Personalize!$E$41=TRUE,(((VLOOKUP($B12,Hitter!$A$1:$AZ$628,19,FALSE))-Filtered!$AH$43)/Filtered!$AI$43),"")),"") ->  | X12: =IFERROR(IF((OR($C12="RP",$C12="SP")),IF(Personalize!$E$46=TRUE,(((VLOOKUP($B12,Pitcher!$A$1:$Z$700,19,FALSE))-'Filtered-P'!$AB$27)/'Filtered-P'!$AC$27),""),IF(Personalize!$E$44=TRUE,(((VLOOKUP($B12,Hitter!$A$1:$AZ$628,20,FALSE))-Filtered!$AH$44)/Filtered!$AI$44),"")),"") ->  | Y12: =IFERROR(IF((OR($C12="RP",$C12="SP")),IF(Personalize!$E$47=TRUE,(((VLOOKUP($B12,Pitcher!$A$1:$Z$700,6,FALSE))-'Filtered-P'!$AB$12)/'Filtered-P'!$AC$12),""),IF(Personalize!$E$42=TRUE,(((VLOOKUP($B12,Hitter!$A$1:$AZ$628,7,FALSE))-Filtered!$AH$23)/Filtered!$AI$23),"")),"") ->  | Z12: =IFERROR(IF((OR($C12="RP",$C12="SP")),IF(Personalize!$E$48=TRUE,(((VLOOKUP($B12,Pitcher!$A$1:$Z$700,5,FALSE))-'Filtered-P'!$AB$11)/'Filtered-P'!$AC$11),""),IF(Personalize!$E$43=TRUE,(((VLOOKUP($B12,Hitter!$A$1:$AZ$628,8,FALSE))-Filtered!$AH$24)/Filtered!$AI$24),"")),"") ->  | AA12: =IFERROR(IF((OR($C12="RP",$C12="SP")),IF(Personalize!$E$52=TRUE,(((VLOOKUP($B12,Pitcher!$A$1:$AA$700,21,FALSE))-'Filtered-P'!$AB$29)/(-1*'Filtered-P'!$AC$29)),""),IF(Personalize!$E$49=TRUE,(((VLOOKUP($B12,Hitter!$A$1:$AF$628,29,FALSE))-Filtered!$AH$45)/Filtered!$AI$45),"")),"") ->  | AB12: =IFERROR(IF((OR($C12="RP",$C12="SP")),IF(Personalize!$E$53=TRUE,(((VLOOKUP($B12,Pitcher!$A$1:$AA$700,23,FALSE))-'Filtered-P'!$AB$31)/(-1*'Filtered-P'!$AC$31)),""),IF(Personalize!$E$50=TRUE,(((VLOOKUP($B12,Hitter!$A$1:$AF$628,30,FALSE))-Filtered!$AH$46)/Filtered!$AI$46),"")),"") ->  | AC12: =IFERROR(IF((OR($C12="RP",$C12="SP")),IF(Personalize!$E$54=TRUE,(((VLOOKUP($B12,Pitcher!$A$1:$AA$700,24,FALSE))-'Filtered-P'!$AB$32)/'Filtered-P'!$AC$32),""),IF(Personalize!$E$51=TRUE,(((VLOOKUP($B12,Hitter!$A$1:$AF$628,14,FALSE))-Filtered!$AH$30)/(-1*Filtered!$AI$30)),"")),"") ->  | AD12: =IFERROR(IF((OR($C12="RP",$C12="SP")),VLOOKUP($B12,Pitcher!$A$1:$P$700,2,FALSE),""),"") -> 17.64774927 | AE12: =IFERROR(IF((OR($C12="RP",$C12="SP")),VLOOKUP($B12,Pitcher!$A$1:$P$700,9,FALSE),""),"") -> 0 | AF12: =IFERROR(IF((OR($C12="RP",$C12="SP")),VLOOKUP($B12,Pitcher!$A$1:$P$700,7,FALSE),""),"") -> 241.2081322 | AG12: =IFERROR(IF((OR($C12="RP",$C12="SP")),VLOOKUP($B12,Pitcher!$A$1:$P$700,10,FALSE),""),"") -> 2.768171942 | AH12: =IFERROR(IF((OR($C12="RP",$C12="SP")),VLOOKUP($B12,Pitcher!$A$1:$P$700,11,FALSE),""),"") -> 1.054370306 | AI12: =IFERROR(IF((OR($C12="RP",$C12="SP")),"",VLOOKUP($B12,Hitter!$A$1:$X$628,15,FALSE)),"") ->  | AJ12: =IFERROR(IF((OR($C12="RP",$C12="SP")),"",VLOOKUP($B12,Hitter!$A$1:$X$628,9,FALSE)),"") ->  | AK12: =IFERROR(IF((OR($C12="RP",$C12="SP")),"",VLOOKUP($B12,Hitter!$A$1:$X$628,10,FALSE)),"") ->  | AL12: =IFERROR(IF((OR($C12="RP",$C12="SP")),"",VLOOKUP($B12,Hitter!$A$1:$X$628,4,FALSE)),"") ->  | AM12: =IFERROR(IF((OR($C12="RP",$C12="SP")),"",VLOOKUP($B12,Hitter!$A$1:$X$628,11,FALSE)),"") ->  | AN12: =IFERROR(IF(ISTEXT($A12),"",(1-NORMDIST((COUNTA($A$9:$A$661)),($G12),((AS12-AR12)/6),TRUE))),"") -> 0.9902864371 | AO12: =IFERROR(IF(ISTEXT($A12),"",(1-NORMDIST((COUNTA($A$9:$A$661))+(Personalize!$E$18+1),$G12,((AS12-AR12)/6),TRUE))),"") -> 0.03852784486 | AP12: =IFERROR(IF(ISTEXT($A12),"",(1-NORMDIST((COUNTA($A$9:$A$661))+((Personalize!$E$18+1)*2),$G12,((AS12-AR12)/6),TRUE))),"") -> 2.136094635e-09 | AR12: =IF(Personalize!$E$31=1,VLOOKUP($B12,'ADP-Rank'!$A$2:$J$609,5,FALSE),(IF(Personalize!$E$31=2,VLOOKUP($B12,'ADP-Rank'!$A$2:$J$609,8,FALSE),(IF(Personalize!$E$31=3,VLOOKUP($B12,'ADP-Rank'!$A$2:$O$609,11,FALSE),(IF(Personalize!$E$31=4,VLOOKUP($B12,'ADP-Rank'!$A$2:$AN$609,25,FALSE),(IF(Personalize!$E$31=5,VLOOKUP($B12,'ADP-Rank'!$A$2:$AN$609,28,FALSE),(IF(Personalize!$E$31=6,VLOOKUP($B12,'ADP-Rank'!$A$2:$AN$609,32,FALSE),(IF(Personalize!$E$31=7,VLOOKUP($B12,'ADP-Rank'!$A$2:$AN$609,40,FALSE),""))))))))))))) -> 2 | AS12: =IF(Personalize!$E$31=1,VLOOKUP($B12,'ADP-Rank'!$A$2:$J$609,6,FALSE),(IF(Personalize!$E$31=2,VLOOKUP($B12,'ADP-Rank'!$A$2:$J$609,9,FALSE),(IF(Personalize!$E$31=3,VLOOKUP($B12,'ADP-Rank'!$A$2:$O$609,12,FALSE),(IF(Personalize!$E$31=4,VLOOKUP($B12,'ADP-Rank'!$A$2:$AN$609,26,FALSE),(IF(Personalize!$E$31=5,VLOOKUP($B12,'ADP-Rank'!$A$2:$AN$609,29,FALSE),(IF(Personalize!$E$31=6,VLOOKUP($B12,'ADP-Rank'!$A$2:$AN$609,33,FALSE),(IF(Personalize!$E$31=7,VLOOKUP($B12,'ADP-Rank'!$A$2:$AP$609,41,FALSE),""))))))))))))) -> 21 | AT12: =IF(ISBLANK(A12),0,1) -> 0 | AU12: =IF(K12="",0,1) -> 1 | AV12: =A12 -> 0 | AW12: =IF(C12="C",1,IF(C12="1B",2,IF(C12="2B",3,IF(C12="3B",4,IF(C12="SS",5,IF(C12="CI",6,IF(C12="MI",7,IF(C12="OF",11,IF(C12="LF",8,IF(C12="CF",9,IF(C12="RF",10,IF(C12="DH",12,IF(C12="SP",13,IF(C12="RP",14,IF(C12="P",15,16))))))))))))))) -> 13 | AX12: =VLOOKUP(B12,'Starter Calc'!$B$2:$BN$700,65,FALSE) -> Starter | AY12: =IFERROR(VLOOKUP($B12,'ADP-Rank'!$A$2:$AH$785,34,FALSE),TRUE) -> TRUE
B13: Robinson Cano | C13: 2B | D13: =IFERROR(IF(VLOOKUP(B13,'Starter Calc'!$B$2:$E$700,4,FALSE)="","",VLOOKUP(B13,'Starter Calc'!$B$2:$E$700,4,FALSE)),"") -> ,, | E13: =IFERROR(VLOOKUP($B13,'ADP-Rank'!$A$2:$D$650,3,FALSE),"") -> SEA | F13: =IFERROR(VLOOKUP($B13,'ADP-Rank'!$A$2:$W$650,23,FALSE),"") -> 31 | G13: =IFERROR((IF(Personalize!$E$31=1,VLOOKUP($B13,'ADP-Rank'!$A$2:$J$750,4,FALSE),(IF(Personalize!$E$31=2,VLOOKUP($B13,'ADP-Rank'!$A$2:$J$750,7,FALSE),(IF(Personalize!$E$31=3,VLOOKUP($B13,'ADP-Rank'!$A$2:$J$750,10,FALSE),(IF(Personalize!$E$31=4,VLOOKUP($B13,'ADP-Rank'!$A$2:$AN$750,24,FALSE),(IF(Personalize!$E$31=5,VLOOKUP($B13,'ADP-Rank'!$A$2:$AN$750,27,FALSE),(IF(Personalize!$E$31=6,VLOOKUP($B13,'ADP-Rank'!$A$2:$AN$750,31,FALSE),(IF(Personalize!$E$31=7,VLOOKUP($B13,'ADP-Rank'!$A$2:$AN$750,39,FALSE))))))))))))))),"") -> 8.664609053 | H13: =IFERROR(ROUNDDOWN(VLOOKUP($B13,'ADP-Rank'!$A$2:$AN$885,38,FALSE),0),"") -> 1 | I13: =VLOOKUP($B13,'ADP-Rank'!$A$2:$AJ$885,36,FALSE) -> 10 | J13: =IFERROR(RANK($K13,$K$7:$K$661,0),"") -> 22 | K13: =IF((SUM(M13:AC13)=0),"",SUM(M13:AC13)) -> 4.222808333 | L13: =IFERROR(IF(ISTEXT($A13),"",IF((OR($C13="RP",$C13="SP")),ABS(VLOOKUP(C13,'Filtered-P'!$AA$3:$AE$4,5,FALSE))+K13,ABS(VLOOKUP(C13,Filtered!$AG$3:$AK$14,5,FALSE))+K13)),"") -> 9.099137467 | M13: =IFERROR(IF((OR($C13="RP",$C13="SP")),IF(Personalize!$E$10=TRUE,(((VLOOKUP($B13,Pitcher!$A$1:$P$700,2,FALSE))-'Filtered-P'!$AB$8)/'Filtered-P'!$AC$8),""),IF(Personalize!$E$4=TRUE,(((VLOOKUP($B13,Hitter!$A$1:$X$628,21,FALSE))-Filtered!$AH$35)/Filtered!$AI$35),"")),"") -> 1.629993741 | N13: =IFERROR(IF((OR($C13="RP",$C13="SP")),IF(Personalize!$E$12=TRUE,(((VLOOKUP($B13,Pitcher!$A$1:$P$700,9,FALSE))-'Filtered-P'!$AB$15)/'Filtered-P'!$AC$15),""),IF(Personalize!$E$3=TRUE,(((VLOOKUP($B13,Hitter!$A$1:$AB$628,9,FALSE))-Filtered!$AH$25)/Filtered!$AI$25),"")),"") -> 0.6576825748 | O13: =IFERROR(IF((OR($C13="RP",$C13="SP")),IF(Personalize!$E$11=TRUE,(((VLOOKUP($B13,Pitcher!$A$1:$P$700,7,FALSE))-'Filtered-P'!$AB$13)/'Filtered-P'!$AC$13),""),IF(Personalize!$E$2=TRUE,(((VLOOKUP($B13,Hitter!$A$1:$AB$628,4,FALSE))-Filtered!$AH$20)/Filtered!$AI$20),"")),"") -> 1.174324437 | P13: =IFERROR(IF((OR($C13="RP",$C13="SP")),IF(Personalize!$E$13=TRUE,(((VLOOKUP($B13,Pitcher!$A$1:$P$700,13,FALSE))-'Filtered-P'!$AB$19)/'Filtered-P'!$AC$19),""),IF(Personalize!$E$5=TRUE,(((VLOOKUP($B13,Hitter!$A$1:$AB$628,10,FALSE))-Filtered!$AH$26)/Filtered!$AI$26),"")),"") -> 1.378018548 | Q13: =IFERROR(IF((OR($C13="RP",$C13="SP")),IF(Personalize!$E$14=TRUE,(((VLOOKUP($B13,Pitcher!$A$1:$P$700,14,FALSE))-'Filtered-P'!$AB$20)/'Filtered-P'!$AC$20),""),IF(Personalize!$E$6=TRUE,(((VLOOKUP($B13,Hitter!$A$1:$AB$628,11,FALSE))-Filtered!$AH$27)/Filtered!$AI$27),"")),"") -> -0.617210968 | R13: =IFERROR(IF((OR($C13="RP",$C13="SP")),IF(Personalize!$E$16=TRUE,(((VLOOKUP($B13,Pitcher!$A$1:$P$700,3,FALSE))-'Filtered-P'!$AB$9)/'Filtered-P'!$AC$9),""),IF(Personalize!$E$7=TRUE,(((VLOOKUP($B13,Hitter!$A$1:$AZ$628,23,FALSE))-Filtered!$AH$37)/Filtered!$AI$37),"")),"") ->  | S13: =IFERROR(IF((OR($C13="RP",$C13="SP")),IF(Personalize!$E$15=TRUE,(((VLOOKUP($B13,Pitcher!$A$1:$P$700,15,FALSE))-'Filtered-P'!$AB$21)/'Filtered-P'!$AC$21),""),IF(Personalize!$E$8=TRUE,(((VLOOKUP($B13,Hitter!$A$1:$AZ$628,22,FALSE))-Filtered!$AH$36)/Filtered!$AI$36),"")),"") ->  | T13: =IFERROR(IF((OR($C13="RP",$C13="SP")),IF(Personalize!$E$17=TRUE,(((VLOOKUP($B13,Pitcher!$A$1:$P$700,16,FALSE))-'Filtered-P'!$AB$22)/'Filtered-P'!$AC$22),""),IF(Personalize!$E$9=TRUE,(((VLOOKUP($B13,Hitter!$A$1:$AZ$628,24,FALSE))-Filtered!$AH$38)/Filtered!$AI$38),"")),"") ->  | U13: =IFERROR(IF((OR($C13="RP",$C13="SP")),IF(Personalize!$E$37=TRUE,(((VLOOKUP($B13,Pitcher!$A$1:$Z$700,17,FALSE))-'Filtered-P'!$AB$25)/'Filtered-P'!$AC$25),""),IF(Personalize!$E$39=TRUE,(((VLOOKUP($B13,Hitter!$A$1:$X$628,5,FALSE))-Filtered!$AH$21)/Filtered!$AI$21),"")),"") ->  | V13: =IFERROR(IF((OR($C13="RP",$C13="SP")),IF(Personalize!$E$38=TRUE,(((VLOOKUP($B13,Pitcher!$A$1:$Z$700,18,FALSE))-'Filtered-P'!$AB$26)/'Filtered-P'!$AC$26),""),IF(Personalize!$E$40=TRUE,(((VLOOKUP($B13,Hitter!$A$1:$X$628,13,FALSE))-Filtered!$AH$29)/Filtered!$AI$29),"")),"") ->  | W13: =IFERROR(IF((OR($C13="RP",$C13="SP")),IF(Personalize!$E$45=TRUE,(((VLOOKUP($B13,Pitcher!$A$1:$Z$700,4,FALSE))-'Filtered-P'!$AB$10)/'Filtered-P'!$AC$10),""),IF(Personalize!$E$41=TRUE,(((VLOOKUP($B13,Hitter!$A$1:$AZ$628,19,FALSE))-Filtered!$AH$43)/Filtered!$AI$43),"")),"") ->  | X13: =IFERROR(IF((OR($C13="RP",$C13="SP")),IF(Personalize!$E$46=TRUE,(((VLOOKUP($B13,Pitcher!$A$1:$Z$700,19,FALSE))-'Filtered-P'!$AB$27)/'Filtered-P'!$AC$27),""),IF(Personalize!$E$44=TRUE,(((VLOOKUP($B13,Hitter!$A$1:$AZ$628,20,FALSE))-Filtered!$AH$44)/Filtered!$AI$44),"")),"") ->  | Y13: =IFERROR(IF((OR($C13="RP",$C13="SP")),IF(Personalize!$E$47=TRUE,(((VLOOKUP($B13,Pitcher!$A$1:$Z$700,6,FALSE))-'Filtered-P'!$AB$12)/'Filtered-P'!$AC$12),""),IF(Personalize!$E$42=TRUE,(((VLOOKUP($B13,Hitter!$A$1:$AZ$628,7,FALSE))-Filtered!$AH$23)/Filtered!$AI$23),"")),"") ->  | Z13: =IFERROR(IF((OR($C13="RP",$C13="SP")),IF(Personalize!$E$48=TRUE,(((VLOOKUP($B13,Pitcher!$A$1:$Z$700,5,FALSE))-'Filtered-P'!$AB$11)/'Filtered-P'!$AC$11),""),IF(Personalize!$E$43=TRUE,(((VLOOKUP($B13,Hitter!$A$1:$AZ$628,8,FALSE))-Filtered!$AH$24)/Filtered!$AI$24),"")),"") ->  | AA13: =IFERROR(IF((OR($C13="RP",$C13="SP")),IF(Personalize!$E$52=TRUE,(((VLOOKUP($B13,Pitcher!$A$1:$AA$700,21,FALSE))-'Filtered-P'!$AB$29)/(-1*'Filtered-P'!$AC$29)),""),IF(Personalize!$E$49=TRUE,(((VLOOKUP($B13,Hitter!$A$1:$AF$628,29,FALSE))-Filtered!$AH$45)/Filtered!$AI$45),"")),"") ->  | AB13: =IFERROR(IF((OR($C13="RP",$C13="SP")),IF(Personalize!$E$53=TRUE,(((VLOOKUP($B13,Pitcher!$A$1:$AA$700,23,FALSE))-'Filtered-P'!$AB$31)/(-1*'Filtered-P'!$AC$31)),""),IF(Personalize!$E$50=TRUE,(((VLOOKUP($B13,Hitter!$A$1:$AF$628,30,FALSE))-Filtered!$AH$46)/Filtered!$AI$46),"")),"") ->  | AC13: =IFERROR(IF((OR($C13="RP",$C13="SP")),IF(Personalize!$E$54=TRUE,(((VLOOKUP($B13,Pitcher!$A$1:$AA$700,24,FALSE))-'Filtered-P'!$AB$32)/'Filtered-P'!$AC$32),""),IF(Personalize!$E$51=TRUE,(((VLOOKUP($B13,Hitter!$A$1:$AF$628,14,FALSE))-Filtered!$AH$30)/(-1*Filtered!$AI$30)),"")),"") ->  | AD13: =IFERROR(IF((OR($C13="RP",$C13="SP")),VLOOKUP($B13,Pitcher!$A$1:$P$700,2,FALSE),""),"") ->  | AE13: =IFERROR(IF((OR($C13="RP",$C13="SP")),VLOOKUP($B13,Pitcher!$A$1:$P$700,9,FALSE),""),"") ->  | AF13: =IFERROR(IF((OR($C13="RP",$C13="SP")),VLOOKUP($B13,Pitcher!$A$1:$P$700,7,FALSE),""),"") ->  | AG13: =IFERROR(IF((OR($C13="RP",$C13="SP")),VLOOKUP($B13,Pitcher!$A$1:$P$700,10,FALSE),""),"") ->  | AH13: =IFERROR(IF((OR($C13="RP",$C13="SP")),VLOOKUP($B13,Pitcher!$A$1:$P$700,11,FALSE),""),"") ->  | AI13: =IFERROR(IF((OR($C13="RP",$C13="SP")),"",VLOOKUP($B13,Hitter!$A$1:$X$628,15,FALSE)),"") -> 0.2938109428 | AJ13: =IFERROR(IF((OR($C13="RP",$C13="SP")),"",VLOOKUP($B13,Hitter!$A$1:$X$628,9,FALSE)),"") -> 22.83996665 | AK13: =IFERROR(IF((OR($C13="RP",$C13="SP")),"",VLOOKUP($B13,Hitter!$A$1:$X$628,10,FALSE)),"") -> 88.1848054 | AL13: =IFERROR(IF((OR($C13="RP",$C13="SP")),"",VLOOKUP($B13,Hitter!$A$1:$X$628,4,FALSE)),"") -> 87.49802971 | AM13: =IFERROR(IF((OR($C13="RP",$C13="SP")),"",VLOOKUP($B13,Hitter!$A$1:$X$628,11,FALSE)),"") -> 5.225214147 | AN13: =IFERROR(IF(ISTEXT($A13),"",(1-NORMDIST((COUNTA($A$9:$A$661)),($G13),((AS13-AR13)/6),TRUE))),"") -> 0.9999682014 | AO13: =IFERROR(IF(ISTEXT($A13),"",(1-NORMDIST((COUNTA($A$9:$A$661))+(Personalize!$E$18+1),$G13,((AS13-AR13)/6),TRUE))),"") -> 0.02269890715 | AP13: =IFERROR(IF(ISTEXT($A13),"",(1-NORMDIST((COUNTA($A$9:$A$661))+((Personalize!$E$18+1)*2),$G13,((AS13-AR13)/6),TRUE))),"") -> 6.661338148e-16 | AR13: =IF(Personalize!$E$31=1,VLOOKUP($B13,'ADP-Rank'!$A$2:$J$609,5,FALSE),(IF(Personalize!$E$31=2,VLOOKUP($B13,'ADP-Rank'!$A$2:$J$609,8,FALSE),(IF(Personalize!$E$31=3,VLOOKUP($B13,'ADP-Rank'!$A$2:$O$609,11,FALSE),(IF(Personalize!$E$31=4,VLOOKUP($B13,'ADP-Rank'!$A$2:$AN$609,25,FALSE),(IF(Personalize!$E$31=5,VLOOKUP($B13,'ADP-Rank'!$A$2:$AN$609,28,FALSE),(IF(Personalize!$E$31=6,VLOOKUP($B13,'ADP-Rank'!$A$2:$AN$609,32,FALSE),(IF(Personalize!$E$31=7,VLOOKUP($B13,'ADP-Rank'!$A$2:$AN$609,40,FALSE),""))))))))))))) -> 5 | AS13: =IF(Personalize!$E$31=1,VLOOKUP($B13,'ADP-Rank'!$A$2:$J$609,6,FALSE),(IF(Personalize!$E$31=2,VLOOKUP($B13,'ADP-Rank'!$A$2:$J$609,9,FALSE),(IF(Personalize!$E$31=3,VLOOKUP($B13,'ADP-Rank'!$A$2:$O$609,12,FALSE),(IF(Personalize!$E$31=4,VLOOKUP($B13,'ADP-Rank'!$A$2:$AN$609,26,FALSE),(IF(Personalize!$E$31=5,VLOOKUP($B13,'ADP-Rank'!$A$2:$AN$609,29,FALSE),(IF(Personalize!$E$31=6,VLOOKUP($B13,'ADP-Rank'!$A$2:$AN$609,33,FALSE),(IF(Personalize!$E$31=7,VLOOKUP($B13,'ADP-Rank'!$A$2:$AP$609,41,FALSE),""))))))))))))) -> 18 | AT13: =IF(ISBLANK(A13),0,1) -> 0 | AU13: =IF(K13="",0,1) -> 1 | AV13: =A13 -> 0 | AW13: =IF(C13="C",1,IF(C13="1B",2,IF(C13="2B",3,IF(C13="3B",4,IF(C13="SS",5,IF(C13="CI",6,IF(C13="MI",7,IF(C13="OF",11,IF(C13="LF",8,IF(C13="CF",9,IF(C13="RF",10,IF(C13="DH",12,IF(C13="SP",13,IF(C13="RP",14,IF(C13="P",15,16))))))))))))))) -> 3 | AX13: =VLOOKUP(B13,'Starter Calc'!$B$2:$BN$700,65,FALSE) -> Starter | AY13: =IFERROR(VLOOKUP($B13,'ADP-Rank'!$A$2:$AH$785,34,FALSE),TRUE) -> TRUE
B14: Chris Davis | C14: 1B | D14: =IFERROR(IF(VLOOKUP(B14,'Starter Calc'!$B$2:$E$700,4,FALSE)="","",VLOOKUP(B14,'Starter Calc'!$B$2:$E$700,4,FALSE)),"") -> ,, | E14: =IFERROR(VLOOKUP($B14,'ADP-Rank'!$A$2:$D$650,3,FALSE),"") -> BAL | F14: =IFERROR(VLOOKUP($B14,'ADP-Rank'!$A$2:$W$650,23,FALSE),"") -> 28 | G14: =IFERROR((IF(Personalize!$E$31=1,VLOOKUP($B14,'ADP-Rank'!$A$2:$J$750,4,FALSE),(IF(Personalize!$E$31=2,VLOOKUP($B14,'ADP-Rank'!$A$2:$J$750,7,FALSE),(IF(Personalize!$E$31=3,VLOOKUP($B14,'ADP-Rank'!$A$2:$J$750,10,FALSE),(IF(Personalize!$E$31=4,VLOOKUP($B14,'ADP-Rank'!$A$2:$AN$750,24,FALSE),(IF(Personalize!$E$31=5,VLOOKUP($B14,'ADP-Rank'!$A$2:$AN$750,27,FALSE),(IF(Personalize!$E$31=6,VLOOKUP($B14,'ADP-Rank'!$A$2:$AN$750,31,FALSE),(IF(Personalize!$E$31=7,VLOOKUP($B14,'ADP-Rank'!$A$2:$AN$750,39,FALSE))))))))))))))),"") -> 9.127572016 | H14: =IFERROR(ROUNDDOWN(VLOOKUP($B14,'ADP-Rank'!$A$2:$AN$885,38,FALSE),0),"") -> 1 | I14: =VLOOKUP($B14,'ADP-Rank'!$A$2:$AJ$885,36,FALSE) -> 12 | J14: =IFERROR(RANK($K14,$K$7:$K$661,0),"") -> 13 | K14: =IF((SUM(M14:AC14)=0),"",SUM(M14:AC14)) -> 5.048459798 | L14: =IFERROR(IF(ISTEXT($A14),"",IF((OR($C14="RP",$C14="SP")),ABS(VLOOKUP(C14,'Filtered-P'!$AA$3:$AE$4,5,FALSE))+K14,ABS(VLOOKUP(C14,Filtered!$AG$3:$AK$14,5,FALSE))+K14)),"") -> 6.385183392 | M14: =IFERROR(IF((OR($C14="RP",$C14="SP")),IF(Personalize!$E$10=TRUE,(((VLOOKUP($B14,Pitcher!$A$1:$P$700,2,FALSE))-'Filtered-P'!$AB$8)/'Filtered-P'!$AC$8),""),IF(Personalize!$E$4=TRUE,(((VLOOKUP($B14,Hitter!$A$1:$X$628,21,FALSE))-Filtered!$AH$35)/Filtered!$AI$35),"")),"") -> -0.1930227515 | N14: =IFERROR(IF((OR($C14="RP",$C14="SP")),IF(Personalize!$E$12=TRUE,(((VLOOKUP($B14,Pitcher!$A$1:$P$700,9,FALSE))-'Filtered-P'!$AB$15)/'Filtered-P'!$AC$15),""),IF(Personalize!$E$3=TRUE,(((VLOOKUP($B14,Hitter!$A$1:$AB$628,9,FALSE))-Filtered!$AH$25)/Filtered!$AI$25),"")),"") -> 2.680407083 | O14: =IFERROR(IF((OR($C14="RP",$C14="SP")),IF(Personalize!$E$11=TRUE,(((VLOOKUP($B14,Pitcher!$A$1:$P$700,7,FALSE))-'Filtered-P'!$AB$13)/'Filtered-P'!$AC$13),""),IF(Personalize!$E$2=TRUE,(((VLOOKUP($B14,Hitter!$A$1:$AB$628,4,FALSE))-Filtered!$AH$20)/Filtered!$AI$20),"")),"") -> 1.179054573 | P14: =IFERROR(IF((OR($C14="RP",$C14="SP")),IF(Personalize!$E$13=TRUE,(((VLOOKUP($B14,Pitcher!$A$1:$P$700,13,FALSE))-'Filtered-P'!$AB$19)/'Filtered-P'!$AC$19),""),IF(Personalize!$E$5=TRUE,(((VLOOKUP($B14,Hitter!$A$1:$AB$628,10,FALSE))-Filtered!$AH$26)/Filtered!$AI$26),"")),"") -> 2.187680085 | Q14: =IFERROR(IF((OR($C14="RP",$C14="SP")),IF(Personalize!$E$14=TRUE,(((VLOOKUP($B14,Pitcher!$A$1:$P$700,14,FALSE))-'Filtered-P'!$AB$20)/'Filtered-P'!$AC$20),""),IF(Personalize!$E$6=TRUE,(((VLOOKUP($B14,Hitter!$A$1:$AB$628,11,FALSE))-Filtered!$AH$27)/Filtered!$AI$27),"")),"") -> -0.8056591913 | R14: =IFERROR(IF((OR($C14="RP",$C14="SP")),IF(Personalize!$E$16=TRUE,(((VLOOKUP($B14,Pitcher!$A$1:$P$700,3,FALSE))-'Filtered-P'!$AB$9)/'Filtered-P'!$AC$9),""),IF(Personalize!$E$7=TRUE,(((VLOOKUP($B14,Hitter!$A$1:$AZ$628,23,FALSE))-Filtered!$AH$37)/Filtered!$AI$37),"")),"") ->  | S14: =IFERROR(IF((OR($C14="RP",$C14="SP")),IF(Personalize!$E$15=TRUE,(((VLOOKUP($B14,Pitcher!$A$1:$P$700,15,FALSE))-'Filtered-P'!$AB$21)/'Filtered-P'!$AC$21),""),IF(Personalize!$E$8=TRUE,(((VLOOKUP($B14,Hitter!$A$1:$AZ$628,22,FALSE))-Filtered!$AH$36)/Filtered!$AI$36),"")),"") ->  | T14: =IFERROR(IF((OR($C14="RP",$C14="SP")),IF(Personalize!$E$17=TRUE,(((VLOOKUP($B14,Pitcher!$A$1:$P$700,16,FALSE))-'Filtered-P'!$AB$22)/'Filtered-P'!$AC$22),""),IF(Personalize!$E$9=TRUE,(((VLOOKUP($B14,Hitter!$A$1:$AZ$628,24,FALSE))-Filtered!$AH$38)/Filtered!$AI$38),"")),"") ->  | U14: =IFERROR(IF((OR($C14="RP",$C14="SP")),IF(Personalize!$E$37=TRUE,(((VLOOKUP($B14,Pitcher!$A$1:$Z$700,17,FALSE))-'Filtered-P'!$AB$25)/'Filtered-P'!$AC$25),""),IF(Personalize!$E$39=TRUE,(((VLOOKUP($B14,Hitter!$A$1:$X$628,5,FALSE))-Filtered!$AH$21)/Filtered!$AI$21),"")),"") ->  | V14: =IFERROR(IF((OR($C14="RP",$C14="SP")),IF(Personalize!$E$38=TRUE,(((VLOOKUP($B14,Pitcher!$A$1:$Z$700,18,FALSE))-'Filtered-P'!$AB$26)/'Filtered-P'!$AC$26),""),IF(Personalize!$E$40=TRUE,(((VLOOKUP($B14,Hitter!$A$1:$X$628,13,FALSE))-Filtered!$AH$29)/Filtered!$AI$29),"")),"") ->  | W14: =IFERROR(IF((OR($C14="RP",$C14="SP")),IF(Personalize!$E$45=TRUE,(((VLOOKUP($B14,Pitcher!$A$1:$Z$700,4,FALSE))-'Filtered-P'!$AB$10)/'Filtered-P'!$AC$10),""),IF(Personalize!$E$41=TRUE,(((VLOOKUP($B14,Hitter!$A$1:$AZ$628,19,FALSE))-Filtered!$AH$43)/Filtered!$AI$43),"")),"") ->  | X14: =IFERROR(IF((OR($C14="RP",$C14="SP")),IF(Personalize!$E$46=TRUE,(((VLOOKUP($B14,Pitcher!$A$1:$Z$700,19,FALSE))-'Filtered-P'!$AB$27)/'Filtered-P'!$AC$27),""),IF(Personalize!$E$44=TRUE,(((VLOOKUP($B14,Hitter!$A$1:$AZ$628,20,FALSE))-Filtered!$AH$44)/Filtered!$AI$44),"")),"") ->  | Y14: =IFERROR(IF((OR($C14="RP",$C14="SP")),IF(Personalize!$E$47=TRUE,(((VLOOKUP($B14,Pitcher!$A$1:$Z$700,6,FALSE))-'Filtered-P'!$AB$12)/'Filtered-P'!$AC$12),""),IF(Personalize!$E$42=TRUE,(((VLOOKUP($B14,Hitter!$A$1:$AZ$628,7,FALSE))-Filtered!$AH$23)/Filtered!$AI$23),"")),"") ->  | Z14: =IFERROR(IF((OR($C14="RP",$C14="SP")),IF(Personalize!$E$48=TRUE,(((VLOOKUP($B14,Pitcher!$A$1:$Z$700,5,FALSE))-'Filtered-P'!$AB$11)/'Filtered-P'!$AC$11),""),IF(Personalize!$E$43=TRUE,(((VLOOKUP($B14,Hitter!$A$1:$AZ$628,8,FALSE))-Filtered!$AH$24)/Filtered!$AI$24),"")),"") ->  | AA14: =IFERROR(IF((OR($C14="RP",$C14="SP")),IF(Personalize!$E$52=TRUE,(((VLOOKUP($B14,Pitcher!$A$1:$AA$700,21,FALSE))-'Filtered-P'!$AB$29)/(-1*'Filtered-P'!$AC$29)),""),IF(Personalize!$E$49=TRUE,(((VLOOKUP($B14,Hitter!$A$1:$AF$628,29,FALSE))-Filtered!$AH$45)/Filtered!$AI$45),"")),"") ->  | AB14: =IFERROR(IF((OR($C14="RP",$C14="SP")),IF(Personalize!$E$53=TRUE,(((VLOOKUP($B14,Pitcher!$A$1:$AA$700,23,FALSE))-'Filtered-P'!$AB$31)/(-1*'Filtered-P'!$AC$31)),""),IF(Personalize!$E$50=TRUE,(((VLOOKUP($B14,Hitter!$A$1:$AF$628,30,FALSE))-Filtered!$AH$46)/Filtered!$AI$46),"")),"") ->  | AC14: =IFERROR(IF((OR($C14="RP",$C14="SP")),IF(Personalize!$E$54=TRUE,(((VLOOKUP($B14,Pitcher!$A$1:$AA$700,24,FALSE))-'Filtered-P'!$AB$32)/'Filtered-P'!$AC$32),""),IF(Personalize!$E$51=TRUE,(((VLOOKUP($B14,Hitter!$A$1:$AF$628,14,FALSE))-Filtered!$AH$30)/(-1*Filtered!$AI$30)),"")),"") ->  | AD14: =IFERROR(IF((OR($C14="RP",$C14="SP")),VLOOKUP($B14,Pitcher!$A$1:$P$700,2,FALSE),""),"") ->  | AE14: =IFERROR(IF((OR($C14="RP",$C14="SP")),VLOOKUP($B14,Pitcher!$A$1:$P$700,9,FALSE),""),"") ->  | AF14: =IFERROR(IF((OR($C14="RP",$C14="SP")),VLOOKUP($B14,Pitcher!$A$1:$P$700,7,FALSE),""),"") ->  | AG14: =IFERROR(IF((OR($C14="RP",$C14="SP")),VLOOKUP($B14,Pitcher!$A$1:$P$700,10,FALSE),""),"") ->  | AH14: =IFERROR(IF((OR($C14="RP",$C14="SP")),VLOOKUP($B14,Pitcher!$A$1:$P$700,11,FALSE),""),"") ->  | AI14: =IFERROR(IF((OR($C14="RP",$C14="SP")),"",VLOOKUP($B14,Hitter!$A$1:$X$628,15,FALSE)),"") -> 0.26705578 | AJ14: =IFERROR(IF((OR($C14="RP",$C14="SP")),"",VLOOKUP($B14,Hitter!$A$1:$X$628,9,FALSE)),"") -> 37.4216898 | AK14: =IFERROR(IF((OR($C14="RP",$C14="SP")),"",VLOOKUP($B14,Hitter!$A$1:$X$628,10,FALSE)),"") -> 99.35281976 | AL14: =IFERROR(IF((OR($C14="RP",$C14="SP")),"",VLOOKUP($B14,Hitter!$A$1:$X$628,4,FALSE)),"") -> 87.54918592 | AM14: =IFERROR(IF((OR($C14="RP",$C14="SP")),"",VLOOKUP($B14,Hitter!$A$1:$X$628,11,FALSE)),"") -> 3.475296195 | AN14: =IFERROR(IF(ISTEXT($A14),"",(1-NORMDIST((COUNTA($A$9:$A$661)),($G14),((AS14-AR14)/6),TRUE))),"") -> 0.9954447253 | AO14: =IFERROR(IF(ISTEXT($A14),"",(1-NORMDIST((COUNTA($A$9:$A$661))+(Personalize!$E$18+1),$G14,((AS14-AR14)/6),TRUE))),"") -> 0.1342749832 | AP14: =IFERROR(IF(ISTEXT($A14),"",(1-NORMDIST((COUNTA($A$9:$A$661))+((Personalize!$E$18+1)*2),$G14,((AS14-AR14)/6),TRUE))),"") -> 7.152993236e-07 | AR14: =IF(Personalize!$E$31=1,VLOOKUP($B14,'ADP-Rank'!$A$2:$J$609,5,FALSE),(IF(Personalize!$E$31=2,VLOOKUP($B14,'ADP-Rank'!$A$2:$J$609,8,FALSE),(IF(Personalize!$E$31=3,VLOOKUP($B14,'ADP-Rank'!$A$2:$O$609,11,FALSE),(IF(Personalize!$E$31=4,VLOOKUP($B14,'ADP-Rank'!$A$2:$AN$609,25,FALSE),(IF(Personalize!$E$31=5,VLOOKUP($B14,'ADP-Rank'!$A$2:$AN$609,28,FALSE),(IF(Personalize!$E$31=6,VLOOKUP($B14,'ADP-Rank'!$A$2:$AN$609,32,FALSE),(IF(Personalize!$E$31=7,VLOOKUP($B14,'ADP-Rank'!$A$2:$AN$609,40,FALSE),""))))))))))))) -> 4 | AS14: =IF(Personalize!$E$31=1,VLOOKUP($B14,'ADP-Rank'!$A$2:$J$609,6,FALSE),(IF(Personalize!$E$31=2,VLOOKUP($B14,'ADP-Rank'!$A$2:$J$609,9,FALSE),(IF(Personalize!$E$31=3,VLOOKUP($B14,'ADP-Rank'!$A$2:$O$609,12,FALSE),(IF(Personalize!$E$31=4,VLOOKUP($B14,'ADP-Rank'!$A$2:$AN$609,26,FALSE),(IF(Personalize!$E$31=5,VLOOKUP($B14,'ADP-Rank'!$A$2:$AN$609,29,FALSE),(IF(Personalize!$E$31=6,VLOOKUP($B14,'ADP-Rank'!$A$2:$AN$609,33,FALSE),(IF(Personalize!$E$31=7,VLOOKUP($B14,'ADP-Rank'!$A$2:$AP$609,41,FALSE),""))))))))))))) -> 25 | AT14: =IF(ISBLANK(A14),0,1) -> 0 | AU14: =IF(K14="",0,1) -> 1 | AV14: =A14 -> 0 | AW14: =IF(C14="C",1,IF(C14="1B",2,IF(C14="2B",3,IF(C14="3B",4,IF(C14="SS",5,IF(C14="CI",6,IF(C14="MI",7,IF(C14="OF",11,IF(C14="LF",8,IF(C14="CF",9,IF(C14="RF",10,IF(C14="DH",12,IF(C14="SP",13,IF(C14="RP",14,IF(C14="P",15,16))))))))))))))) -> 2 | AX14: =VLOOKUP(B14,'Starter Calc'!$B$2:$BN$700,65,FALSE) -> Bench | AY14: =IFERROR(VLOOKUP($B14,'ADP-Rank'!$A$2:$AH$785,34,FALSE),TRUE) -> TRUE
B15: Ryan Braun | C15: OF | D15: =IFERROR(IF(VLOOKUP(B15,'Starter Calc'!$B$2:$E$700,4,FALSE)="","",VLOOKUP(B15,'Starter Calc'!$B$2:$E$700,4,FALSE)),"") -> LF,, | E15: =IFERROR(VLOOKUP($B15,'ADP-Rank'!$A$2:$D$650,3,FALSE),"") -> MIL | F15: =IFERROR(VLOOKUP($B15,'ADP-Rank'!$A$2:$W$650,23,FALSE),"") -> 30 | G15: =IFERROR((IF(Personalize!$E$31=1,VLOOKUP($B15,'ADP-Rank'!$A$2:$J$750,4,FALSE),(IF(Personalize!$E$31=2,VLOOKUP($B15,'ADP-Rank'!$A$2:$J$750,7,FALSE),(IF(Personalize!$E$31=3,VLOOKUP($B15,'ADP-Rank'!$A$2:$J$750,10,FALSE),(IF(Personalize!$E$31=4,VLOOKUP($B15,'ADP-Rank'!$A$2:$AN$750,24,FALSE),(IF(Personalize!$E$31=5,VLOOKUP($B15,'ADP-Rank'!$A$2:$AN$750,27,FALSE),(IF(Personalize!$E$31=6,VLOOKUP($B15,'ADP-Rank'!$A$2:$AN$750,31,FALSE),(IF(Personalize!$E$31=7,VLOOKUP($B15,'ADP-Rank'!$A$2:$AN$750,39,FALSE))))))))))))))),"") -> 10.56995885 | H15: =IFERROR(ROUNDDOWN(VLOOKUP($B15,'ADP-Rank'!$A$2:$AN$885,38,FALSE),0),"") -> 1 | I15: =VLOOKUP($B15,'ADP-Rank'!$A$2:$AJ$885,36,FALSE) -> 8 | J15: =IFERROR(RANK($K15,$K$7:$K$661,0),"") -> 8 | K15: =IF((SUM(M15:AC15)=0),"",SUM(M15:AC15)) -> 5.941204159 | L15: =IFERROR(IF(ISTEXT($A15),"",IF((OR($C15="RP",$C15="SP")),ABS(VLOOKUP(C15,'Filtered-P'!$AA$3:$AE$4,5,FALSE))+K15,ABS(VLOOKUP(C15,Filtered!$AG$3:$AK$14,5,FALSE))+K15)),"") -> 6.356832553 | M15: =IFERROR(IF((OR($C15="RP",$C15="SP")),IF(Personalize!$E$10=TRUE,(((VLOOKUP($B15,Pitcher!$A$1:$P$700,2,FALSE))-'Filtered-P'!$AB$8)/'Filtered-P'!$AC$8),""),IF(Personalize!$E$4=TRUE,(((VLOOKUP($B15,Hitter!$A$1:$X$628,21,FALSE))-Filtered!$AH$35)/Filtered!$AI$35),"")),"") -> 1.333880991 | N15: =IFERROR(IF((OR($C15="RP",$C15="SP")),IF(Personalize!$E$12=TRUE,(((VLOOKUP($B15,Pitcher!$A$1:$P$700,9,FALSE))-'Filtered-P'!$AB$15)/'Filtered-P'!$AC$15),""),IF(Personalize!$E$3=TRUE,(((VLOOKUP($B15,Hitter!$A$1:$AB$628,9,FALSE))-Filtered!$AH$25)/Filtered!$AI$25),"")),"") -> 1.113768893 | O15: =IFERROR(IF((OR($C15="RP",$C15="SP")),IF(Personalize!$E$11=TRUE,(((VLOOKUP($B15,Pitcher!$A$1:$P$700,7,FALSE))-'Filtered-P'!$AB$13)/'Filtered-P'!$AC$13),""),IF(Personalize!$E$2=TRUE,(((VLOOKUP($B15,Hitter!$A$1:$AB$628,4,FALSE))-Filtered!$AH$20)/Filtered!$AI$20),"")),"") -> 1.246047395 | P15: =IFERROR(IF((OR($C15="RP",$C15="SP")),IF(Personalize!$E$13=TRUE,(((VLOOKUP($B15,Pitcher!$A$1:$P$700,13,FALSE))-'Filtered-P'!$AB$19)/'Filtered-P'!$AC$19),""),IF(Personalize!$E$5=TRUE,(((VLOOKUP($B15,Hitter!$A$1:$AB$628,10,FALSE))-Filtered!$AH$26)/Filtered!$AI$26),"")),"") -> 1.426885164 | Q15: =IFERROR(IF((OR($C15="RP",$C15="SP")),IF(Personalize!$E$14=TRUE,(((VLOOKUP($B15,Pitcher!$A$1:$P$700,14,FALSE))-'Filtered-P'!$AB$20)/'Filtered-P'!$AC$20),""),IF(Personalize!$E$6=TRUE,(((VLOOKUP($B15,Hitter!$A$1:$AB$628,11,FALSE))-Filtered!$AH$27)/Filtered!$AI$27),"")),"") -> 0.8206217161 | R15: =IFERROR(IF((OR($C15="RP",$C15="SP")),IF(Personalize!$E$16=TRUE,(((VLOOKUP($B15,Pitcher!$A$1:$P$700,3,FALSE))-'Filtered-P'!$AB$9)/'Filtered-P'!$AC$9),""),IF(Personalize!$E$7=TRUE,(((VLOOKUP($B15,Hitter!$A$1:$AZ$628,23,FALSE))-Filtered!$AH$37)/Filtered!$AI$37),"")),"") ->  | S15: =IFERROR(IF((OR($C15="RP",$C15="SP")),IF(Personalize!$E$15=TRUE,(((VLOOKUP($B15,Pitcher!$A$1:$P$700,15,FALSE))-'Filtered-P'!$AB$21)/'Filtered-P'!$AC$21),""),IF(Personalize!$E$8=TRUE,(((VLOOKUP($B15,Hitter!$A$1:$AZ$628,22,FALSE))-Filtered!$AH$36)/Filtered!$AI$36),"")),"") ->  | T15: =IFERROR(IF((OR($C15="RP",$C15="SP")),IF(Personalize!$E$17=TRUE,(((VLOOKUP($B15,Pitcher!$A$1:$P$700,16,FALSE))-'Filtered-P'!$AB$22)/'Filtered-P'!$AC$22),""),IF(Personalize!$E$9=TRUE,(((VLOOKUP($B15,Hitter!$A$1:$AZ$628,24,FALSE))-Filtered!$AH$38)/Filtered!$AI$38),"")),"") ->  | U15: =IFERROR(IF((OR($C15="RP",$C15="SP")),IF(Personalize!$E$37=TRUE,(((VLOOKUP($B15,Pitcher!$A$1:$Z$700,17,FALSE))-'Filtered-P'!$AB$25)/'Filtered-P'!$AC$25),""),IF(Personalize!$E$39=TRUE,(((VLOOKUP($B15,Hitter!$A$1:$X$628,5,FALSE))-Filtered!$AH$21)/Filtered!$AI$21),"")),"") ->  | V15: =IFERROR(IF((OR($C15="RP",$C15="SP")),IF(Personalize!$E$38=TRUE,(((VLOOKUP($B15,Pitcher!$A$1:$Z$700,18,FALSE))-'Filtered-P'!$AB$26)/'Filtered-P'!$AC$26),""),IF(Personalize!$E$40=TRUE,(((VLOOKUP($B15,Hitter!$A$1:$X$628,13,FALSE))-Filtered!$AH$29)/Filtered!$AI$29),"")),"") ->  | W15: =IFERROR(IF((OR($C15="RP",$C15="SP")),IF(Personalize!$E$45=TRUE,(((VLOOKUP($B15,Pitcher!$A$1:$Z$700,4,FALSE))-'Filtered-P'!$AB$10)/'Filtered-P'!$AC$10),""),IF(Personalize!$E$41=TRUE,(((VLOOKUP($B15,Hitter!$A$1:$AZ$628,19,FALSE))-Filtered!$AH$43)/Filtered!$AI$43),"")),"") ->  | X15: =IFERROR(IF((OR($C15="RP",$C15="SP")),IF(Personalize!$E$46=TRUE,(((VLOOKUP($B15,Pitcher!$A$1:$Z$700,19,FALSE))-'Filtered-P'!$AB$27)/'Filtered-P'!$AC$27),""),IF(Personalize!$E$44=TRUE,(((VLOOKUP($B15,Hitter!$A$1:$AZ$628,20,FALSE))-Filtered!$AH$44)/Filtered!$AI$44),"")),"") ->  | Y15: =IFERROR(IF((OR($C15="RP",$C15="SP")),IF(Personalize!$E$47=TRUE,(((VLOOKUP($B15,Pitcher!$A$1:$Z$700,6,FALSE))-'Filtered-P'!$AB$12)/'Filtered-P'!$AC$12),""),IF(Personalize!$E$42=TRUE,(((VLOOKUP($B15,Hitter!$A$1:$AZ$628,7,FALSE))-Filtered!$AH$23)/Filtered!$AI$23),"")),"") ->  | Z15: =IFERROR(IF((OR($C15="RP",$C15="SP")),IF(Personalize!$E$48=TRUE,(((VLOOKUP($B15,Pitcher!$A$1:$Z$700,5,FALSE))-'Filtered-P'!$AB$11)/'Filtered-P'!$AC$11),""),IF(Personalize!$E$43=TRUE,(((VLOOKUP($B15,Hitter!$A$1:$AZ$628,8,FALSE))-Filtered!$AH$24)/Filtered!$AI$24),"")),"") ->  | AA15: =IFERROR(IF((OR($C15="RP",$C15="SP")),IF(Personalize!$E$52=TRUE,(((VLOOKUP($B15,Pitcher!$A$1:$AA$700,21,FALSE))-'Filtered-P'!$AB$29)/(-1*'Filtered-P'!$AC$29)),""),IF(Personalize!$E$49=TRUE,(((VLOOKUP($B15,Hitter!$A$1:$AF$628,29,FALSE))-Filtered!$AH$45)/Filtered!$AI$45),"")),"") ->  | AB15: =IFERROR(IF((OR($C15="RP",$C15="SP")),IF(Personalize!$E$53=TRUE,(((VLOOKUP($B15,Pitcher!$A$1:$AA$700,23,FALSE))-'Filtered-P'!$AB$31)/(-1*'Filtered-P'!$AC$31)),""),IF(Personalize!$E$50=TRUE,(((VLOOKUP($B15,Hitter!$A$1:$AF$628,30,FALSE))-Filtered!$AH$46)/Filtered!$AI$46),"")),"") ->  | AC15: =IFERROR(IF((OR($C15="RP",$C15="SP")),IF(Personalize!$E$54=TRUE,(((VLOOKUP($B15,Pitcher!$A$1:$AA$700,24,FALSE))-'Filtered-P'!$AB$32)/'Filtered-P'!$AC$32),""),IF(Personalize!$E$51=TRUE,(((VLOOKUP($B15,Hitter!$A$1:$AF$628,14,FALSE))-Filtered!$AH$30)/(-1*Filtered!$AI$30)),"")),"") ->  | AD15: =IFERROR(IF((OR($C15="RP",$C15="SP")),VLOOKUP($B15,Pitcher!$A$1:$P$700,2,FALSE),""),"") ->  | AE15: =IFERROR(IF((OR($C15="RP",$C15="SP")),VLOOKUP($B15,Pitcher!$A$1:$P$700,9,FALSE),""),"") ->  | AF15: =IFERROR(IF((OR($C15="RP",$C15="SP")),VLOOKUP($B15,Pitcher!$A$1:$P$700,7,FALSE),""),"") ->  | AG15: =IFERROR(IF((OR($C15="RP",$C15="SP")),VLOOKUP($B15,Pitcher!$A$1:$P$700,10,FALSE),""),"") ->  | AH15: =IFERROR(IF((OR($C15="RP",$C15="SP")),VLOOKUP($B15,Pitcher!$A$1:$P$700,11,FALSE),""),"") ->  | AI15: =IFERROR(IF((OR($C15="RP",$C15="SP")),"",VLOOKUP($B15,Hitter!$A$1:$X$628,15,FALSE)),"") -> 0.2918663916 | AJ15: =IFERROR(IF((OR($C15="RP",$C15="SP")),"",VLOOKUP($B15,Hitter!$A$1:$X$628,9,FALSE)),"") -> 26.12787086 | AK15: =IFERROR(IF((OR($C15="RP",$C15="SP")),"",VLOOKUP($B15,Hitter!$A$1:$X$628,10,FALSE)),"") -> 88.85884392 | AL15: =IFERROR(IF((OR($C15="RP",$C15="SP")),"",VLOOKUP($B15,Hitter!$A$1:$X$628,4,FALSE)),"") -> 88.27371018 | AM15: =IFERROR(IF((OR($C15="RP",$C15="SP")),"",VLOOKUP($B15,Hitter!$A$1:$X$628,11,FALSE)),"") -> 18.57683498 | AN15: =IFERROR(IF(ISTEXT($A15),"",(1-NORMDIST((COUNTA($A$9:$A$661)),($G15),((AS15-AR15)/6),TRUE))),"") -> 0.9999994654 | AO15: =IFERROR(IF(ISTEXT($A15),"",(1-NORMDIST((COUNTA($A$9:$A$661))+(Personalize!$E$18+1),$G15,((AS15-AR15)/6),TRUE))),"") -> 0.1310253249 | AP15: =IFERROR(IF(ISTEXT($A15),"",(1-NORMDIST((COUNTA($A$9:$A$661))+((Personalize!$E$18+1)*2),$G15,((AS15-AR15)/6),TRUE))),"") -> 5.335731856e-13 | AR15: =IF(Personalize!$E$31=1,VLOOKUP($B15,'ADP-Rank'!$A$2:$J$609,5,FALSE),(IF(Personalize!$E$31=2,VLOOKUP($B15,'ADP-Rank'!$A$2:$J$609,8,FALSE),(IF(Personalize!$E$31=3,VLOOKUP($B15,'ADP-Rank'!$A$2:$O$609,11,FALSE),(IF(Personalize!$E$31=4,VLOOKUP($B15,'ADP-Rank'!$A$2:$AN$609,25,FALSE),(IF(Personalize!$E$31=5,VLOOKUP($B15,'ADP-Rank'!$A$2:$AN$609,28,FALSE),(IF(Personalize!$E$31=6,VLOOKUP($B15,'ADP-Rank'!$A$2:$AN$609,32,FALSE),(IF(Personalize!$E$31=7,VLOOKUP($B15,'ADP-Rank'!$A$2:$AN$609,40,FALSE),""))))))))))))) -> 4 | AS15: =IF(Personalize!$E$31=1,VLOOKUP($B15,'ADP-Rank'!$A$2:$J$609,6,FALSE),(IF(Personalize!$E$31=2,VLOOKUP($B15,'ADP-Rank'!$A$2:$J$609,9,FALSE),(IF(Personalize!$E$31=3,VLOOKUP($B15,'ADP-Rank'!$A$2:$O$609,12,FALSE),(IF(Personalize!$E$31=4,VLOOKUP($B15,'ADP-Rank'!$A$2:$AN$609,26,FALSE),(IF(Personalize!$E$31=5,VLOOKUP($B15,'ADP-Rank'!$A$2:$AN$609,29,FALSE),(IF(Personalize!$E$31=6,VLOOKUP($B15,'ADP-Rank'!$A$2:$AN$609,33,FALSE),(IF(Personalize!$E$31=7,VLOOKUP($B15,'ADP-Rank'!$A$2:$AP$609,41,FALSE),""))))))))))))) -> 17 | AT15: =IF(ISBLANK(A15),0,1) -> 0 | AU15: =IF(K15="",0,1) -> 1 | AV15: =A15 -> 0 | AW15: =IF(C15="C",1,IF(C15="1B",2,IF(C15="2B",3,IF(C15="3B",4,IF(C15="SS",5,IF(C15="CI",6,IF(C15="MI",7,IF(C15="OF",11,IF(C15="LF",8,IF(C15="CF",9,IF(C15="RF",10,IF(C15="DH",12,IF(C15="SP",13,IF(C15="RP",14,IF(C15="P",15,16))))))))))))))) -> 11 | AX15: =VLOOKUP(B15,'Starter Calc'!$B$2:$BN$700,65,FALSE) -> Starter | AY15: =IFERROR(VLOOKUP($B15,'ADP-Rank'!$A$2:$AH$785,34,FALSE),TRUE) -> TRUE
B16: Hanley Ramirez | C16: SS | D16: =IFERROR(IF(VLOOKUP(B16,'Starter Calc'!$B$2:$E$700,4,FALSE)="","",VLOOKUP(B16,'Starter Calc'!$B$2:$E$700,4,FALSE)),"") -> ,, | E16: =IFERROR(VLOOKUP($B16,'ADP-Rank'!$A$2:$D$650,3,FALSE),"") -> LAD | F16: =IFERROR(VLOOKUP($B16,'ADP-Rank'!$A$2:$W$650,23,FALSE),"") -> 30 | G16: =IFERROR((IF(Personalize!$E$31=1,VLOOKUP($B16,'ADP-Rank'!$A$2:$J$750,4,FALSE),(IF(Personalize!$E$31=2,VLOOKUP($B16,'ADP-Rank'!$A$2:$J$750,7,FALSE),(IF(Personalize!$E$31=3,VLOOKUP($B16,'ADP-Rank'!$A$2:$J$750,10,FALSE),(IF(Personalize!$E$31=4,VLOOKUP($B16,'ADP-Rank'!$A$2:$AN$750,24,FALSE),(IF(Personalize!$E$31=5,VLOOKUP($B16,'ADP-Rank'!$A$2:$AN$750,27,FALSE),(IF(Personalize!$E$31=6,VLOOKUP($B16,'ADP-Rank'!$A$2:$AN$750,31,FALSE),(IF(Personalize!$E$31=7,VLOOKUP($B16,'ADP-Rank'!$A$2:$AN$750,39,FALSE))))))))))))))),"") -> 10.88065844 | H16: =IFERROR(ROUNDDOWN(VLOOKUP($B16,'ADP-Rank'!$A$2:$AN$885,38,FALSE),0),"") -> 1 | I16: =VLOOKUP($B16,'ADP-Rank'!$A$2:$AJ$885,36,FALSE) -> 24 | J16: =IFERROR(RANK($K16,$K$7:$K$661,0),"") -> 68 | K16: =IF((SUM(M16:AC16)=0),"",SUM(M16:AC16)) -> 1.390421409 | L16: =IFERROR(IF(ISTEXT($A16),"",IF((OR($C16="RP",$C16="SP")),ABS(VLOOKUP(C16,'Filtered-P'!$AA$3:$AE$4,5,FALSE))+K16,ABS(VLOOKUP(C16,Filtered!$AG$3:$AK$14,5,FALSE))+K16)),"") -> 5.67213434 | M16: =IFERROR(IF((OR($C16="RP",$C16="SP")),IF(Personalize!$E$10=TRUE,(((VLOOKUP($B16,Pitcher!$A$1:$P$700,2,FALSE))-'Filtered-P'!$AB$8)/'Filtered-P'!$AC$8),""),IF(Personalize!$E$4=TRUE,(((VLOOKUP($B16,Hitter!$A$1:$X$628,21,FALSE))-Filtered!$AH$35)/Filtered!$AI$35),"")),"") -> 0.2702721812 | N16: =IFERROR(IF((OR($C16="RP",$C16="SP")),IF(Personalize!$E$12=TRUE,(((VLOOKUP($B16,Pitcher!$A$1:$P$700,9,FALSE))-'Filtered-P'!$AB$15)/'Filtered-P'!$AC$15),""),IF(Personalize!$E$3=TRUE,(((VLOOKUP($B16,Hitter!$A$1:$AB$628,9,FALSE))-Filtered!$AH$25)/Filtered!$AI$25),"")),"") -> 0.2642326854 | O16: =IFERROR(IF((OR($C16="RP",$C16="SP")),IF(Personalize!$E$11=TRUE,(((VLOOKUP($B16,Pitcher!$A$1:$P$700,7,FALSE))-'Filtered-P'!$AB$13)/'Filtered-P'!$AC$13),""),IF(Personalize!$E$2=TRUE,(((VLOOKUP($B16,Hitter!$A$1:$AB$628,4,FALSE))-Filtered!$AH$20)/Filtered!$AI$20),"")),"") -> -0.04370787409 | P16: =IFERROR(IF((OR($C16="RP",$C16="SP")),IF(Personalize!$E$13=TRUE,(((VLOOKUP($B16,Pitcher!$A$1:$P$700,13,FALSE))-'Filtered-P'!$AB$19)/'Filtered-P'!$AC$19),""),IF(Personalize!$E$5=TRUE,(((VLOOKUP($B16,Hitter!$A$1:$AB$628,10,FALSE))-Filtered!$AH$26)/Filtered!$AI$26),"")),"") -> 0.2473805079 | Q16: =IFERROR(IF((OR($C16="RP",$C16="SP")),IF(Personalize!$E$14=TRUE,(((VLOOKUP($B16,Pitcher!$A$1:$P$700,14,FALSE))-'Filtered-P'!$AB$20)/'Filtered-P'!$AC$20),""),IF(Personalize!$E$6=TRUE,(((VLOOKUP($B16,Hitter!$A$1:$AB$628,11,FALSE))-Filtered!$AH$27)/Filtered!$AI$27),"")),"") -> 0.6522439085 | R16: =IFERROR(IF((OR($C16="RP",$C16="SP")),IF(Personalize!$E$16=TRUE,(((VLOOKUP($B16,Pitcher!$A$1:$P$700,3,FALSE))-'Filtered-P'!$AB$9)/'Filtered-P'!$AC$9),""),IF(Personalize!$E$7=TRUE,(((VLOOKUP($B16,Hitter!$A$1:$AZ$628,23,FALSE))-Filtered!$AH$37)/Filtered!$AI$37),"")),"") ->  | S16: =IFERROR(IF((OR($C16="RP",$C16="SP")),IF(Personalize!$E$15=TRUE,(((VLOOKUP($B16,Pitcher!$A$1:$P$700,15,FALSE))-'Filtered-P'!$AB$21)/'Filtered-P'!$AC$21),""),IF(Personalize!$E$8=TRUE,(((VLOOKUP($B16,Hitter!$A$1:$AZ$628,22,FALSE))-Filtered!$AH$36)/Filtered!$AI$36),"")),"") ->  | T16: =IFERROR(IF((OR($C16="RP",$C16="SP")),IF(Personalize!$E$17=TRUE,(((VLOOKUP($B16,Pitcher!$A$1:$P$700,16,FALSE))-'Filtered-P'!$AB$22)/'Filtered-P'!$AC$22),""),IF(Personalize!$E$9=TRUE,(((VLOOKUP($B16,Hitter!$A$1:$AZ$628,24,FALSE))-Filtered!$AH$38)/Filtered!$AI$38),"")),"") ->  | U16: =IFERROR(IF((OR($C16="RP",$C16="SP")),IF(Personalize!$E$37=TRUE,(((VLOOKUP($B16,Pitcher!$A$1:$Z$700,17,FALSE))-'Filtered-P'!$AB$25)/'Filtered-P'!$AC$25),""),IF(Personalize!$E$39=TRUE,(((VLOOKUP($B16,Hitter!$A$1:$X$628,5,FALSE))-Filtered!$AH$21)/Filtered!$AI$21),"")),"") ->  | V16: =IFERROR(IF((OR($C16="RP",$C16="SP")),IF(Personalize!$E$38=TRUE,(((VLOOKUP($B16,Pitcher!$A$1:$Z$700,18,FALSE))-'Filtered-P'!$AB$26)/'Filtered-P'!$AC$26),""),IF(Personalize!$E$40=TRUE,(((VLOOKUP($B16,Hitter!$A$1:$X$628,13,FALSE))-Filtered!$AH$29)/Filtered!$AI$29),"")),"") ->  | W16: =IFERROR(IF((OR($C16="RP",$C16="SP")),IF(Personalize!$E$45=TRUE,(((VLOOKUP($B16,Pitcher!$A$1:$Z$700,4,FALSE))-'Filtered-P'!$AB$10)/'Filtered-P'!$AC$10),""),IF(Personalize!$E$41=TRUE,(((VLOOKUP($B16,Hitter!$A$1:$AZ$628,19,FALSE))-Filtered!$AH$43)/Filtered!$AI$43),"")),"") ->  | X16: =IFERROR(IF((OR($C16="RP",$C16="SP")),IF(Personalize!$E$46=TRUE,(((VLOOKUP($B16,Pitcher!$A$1:$Z$700,19,FALSE))-'Filtered-P'!$AB$27)/'Filtered-P'!$AC$27),""),IF(Personalize!$E$44=TRUE,(((VLOOKUP($B16,Hitter!$A$1:$AZ$628,20,FALSE))-Filtered!$AH$44)/Filtered!$AI$44),"")),"") ->  | Y16: =IFERROR(IF((OR($C16="RP",$C16="SP")),IF(Personalize!$E$47=TRUE,(((VLOOKUP($B16,Pitcher!$A$1:$Z$700,6,FALSE))-'Filtered-P'!$AB$12)/'Filtered-P'!$AC$12),""),IF(Personalize!$E$42=TRUE,(((VLOOKUP($B16,Hitter!$A$1:$AZ$628,7,FALSE))-Filtered!$AH$23)/Filtered!$AI$23),"")),"") ->  | Z16: =IFERROR(IF((OR($C16="RP",$C16="SP")),IF(Personalize!$E$48=TRUE,(((VLOOKUP($B16,Pitcher!$A$1:$Z$700,5,FALSE))-'Filtered-P'!$AB$11)/'Filtered-P'!$AC$11),""),IF(Personalize!$E$43=TRUE,(((VLOOKUP($B16,Hitter!$A$1:$AZ$628,8,FALSE))-Filtered!$AH$24)/Filtered!$AI$24),"")),"") ->  | AA16: =IFERROR(IF((OR($C16="RP",$C16="SP")),IF(Personalize!$E$52=TRUE,(((VLOOKUP($B16,Pitcher!$A$1:$AA$700,21,FALSE))-'Filtered-P'!$AB$29)/(-1*'Filtered-P'!$AC$29)),""),IF(Personalize!$E$49=TRUE,(((VLOOKUP($B16,Hitter!$A$1:$AF$628,29,FALSE))-Filtered!$AH$45)/Filtered!$AI$45),"")),"") ->  | AB16: =IFERROR(IF((OR($C16="RP",$C16="SP")),IF(Personalize!$E$53=TRUE,(((VLOOKUP($B16,Pitcher!$A$1:$AA$700,23,FALSE))-'Filtered-P'!$AB$31)/(-1*'Filtered-P'!$AC$31)),""),IF(Personalize!$E$50=TRUE,(((VLOOKUP($B16,Hitter!$A$1:$AF$628,30,FALSE))-Filtered!$AH$46)/Filtered!$AI$46),"")),"") ->  | AC16: =IFERROR(IF((OR($C16="RP",$C16="SP")),IF(Personalize!$E$54=TRUE,(((VLOOKUP($B16,Pitcher!$A$1:$AA$700,24,FALSE))-'Filtered-P'!$AB$32)/'Filtered-P'!$AC$32),""),IF(Personalize!$E$51=TRUE,(((VLOOKUP($B16,Hitter!$A$1:$AF$628,14,FALSE))-Filtered!$AH$30)/(-1*Filtered!$AI$30)),"")),"") ->  | AD16: =IFERROR(IF((OR($C16="RP",$C16="SP")),VLOOKUP($B16,Pitcher!$A$1:$P$700,2,FALSE),""),"") ->  | AE16: =IFERROR(IF((OR($C16="RP",$C16="SP")),VLOOKUP($B16,Pitcher!$A$1:$P$700,9,FALSE),""),"") ->  | AF16: =IFERROR(IF((OR($C16="RP",$C16="SP")),VLOOKUP($B16,Pitcher!$A$1:$P$700,7,FALSE),""),"") ->  | AG16: =IFERROR(IF((OR($C16="RP",$C16="SP")),VLOOKUP($B16,Pitcher!$A$1:$P$700,10,FALSE),""),"") ->  | AH16: =IFERROR(IF((OR($C16="RP",$C16="SP")),VLOOKUP($B16,Pitcher!$A$1:$P$700,11,FALSE),""),"") ->  | AI16: =IFERROR(IF((OR($C16="RP",$C16="SP")),"",VLOOKUP($B16,Hitter!$A$1:$X$628,15,FALSE)),"") -> 0.2749963329 | AJ16: =IFERROR(IF((OR($C16="RP",$C16="SP")),"",VLOOKUP($B16,Hitter!$A$1:$X$628,9,FALSE)),"") -> 20.00360543 | AK16: =IFERROR(IF((OR($C16="RP",$C16="SP")),"",VLOOKUP($B16,Hitter!$A$1:$X$628,10,FALSE)),"") -> 72.58942228 | AL16: =IFERROR(IF((OR($C16="RP",$C16="SP")),"",VLOOKUP($B16,Hitter!$A$1:$X$628,4,FALSE)),"") -> 74.32506665 | AM16: =IFERROR(IF((OR($C16="RP",$C16="SP")),"",VLOOKUP($B16,Hitter!$A$1:$X$628,11,FALSE)),"") -> 17.01328961 | AN16: =IFERROR(IF(ISTEXT($A16),"",(1-NORMDIST((COUNTA($A$9:$A$661)),($G16),((AS16-AR16)/6),TRUE))),"") -> 0.9999999734 | AO16: =IFERROR(IF(ISTEXT($A16),"",(1-NORMDIST((COUNTA($A$9:$A$661))+(Personalize!$E$18+1),$G16,((AS16-AR16)/6),TRUE))),"") -> 0.1446471999 | AP16: =IFERROR(IF(ISTEXT($A16),"",(1-NORMDIST((COUNTA($A$9:$A$661))+((Personalize!$E$18+1)*2),$G16,((AS16-AR16)/6),TRUE))),"") -> 2.020605905e-14 | AR16: =IF(Personalize!$E$31=1,VLOOKUP($B16,'ADP-Rank'!$A$2:$J$609,5,FALSE),(IF(Personalize!$E$31=2,VLOOKUP($B16,'ADP-Rank'!$A$2:$J$609,8,FALSE),(IF(Personalize!$E$31=3,VLOOKUP($B16,'ADP-Rank'!$A$2:$O$609,11,FALSE),(IF(Personalize!$E$31=4,VLOOKUP($B16,'ADP-Rank'!$A$2:$AN$609,25,FALSE),(IF(Personalize!$E$31=5,VLOOKUP($B16,'ADP-Rank'!$A$2:$AN$609,28,FALSE),(IF(Personalize!$E$31=6,VLOOKUP($B16,'ADP-Rank'!$A$2:$AN$609,32,FALSE),(IF(Personalize!$E$31=7,VLOOKUP($B16,'ADP-Rank'!$A$2:$AN$609,40,FALSE),""))))))))))))) -> 6 | AS16: =IF(Personalize!$E$31=1,VLOOKUP($B16,'ADP-Rank'!$A$2:$J$609,6,FALSE),(IF(Personalize!$E$31=2,VLOOKUP($B16,'ADP-Rank'!$A$2:$J$609,9,FALSE),(IF(Personalize!$E$31=3,VLOOKUP($B16,'ADP-Rank'!$A$2:$O$609,12,FALSE),(IF(Personalize!$E$31=4,VLOOKUP($B16,'ADP-Rank'!$A$2:$AN$609,26,FALSE),(IF(Personalize!$E$31=5,VLOOKUP($B16,'ADP-Rank'!$A$2:$AN$609,29,FALSE),(IF(Personalize!$E$31=6,VLOOKUP($B16,'ADP-Rank'!$A$2:$AN$609,33,FALSE),(IF(Personalize!$E$31=7,VLOOKUP($B16,'ADP-Rank'!$A$2:$AP$609,41,FALSE),""))))))))))))) -> 18 | AT16: =IF(ISBLANK(A16),0,1) -> 0 | AU16: =IF(K16="",0,1) -> 1 | AV16: =A16 -> 0 | AW16: =IF(C16="C",1,IF(C16="1B",2,IF(C16="2B",3,IF(C16="3B",4,IF(C16="SS",5,IF(C16="CI",6,IF(C16="MI",7,IF(C16="OF",11,IF(C16="LF",8,IF(C16="CF",9,IF(C16="RF",10,IF(C16="DH",12,IF(C16="SP",13,IF(C16="RP",14,IF(C16="P",15,16))))))))))))))) -> 5 | AX16: =VLOOKUP(B16,'Starter Calc'!$B$2:$BN$700,65,FALSE) -> Starter | AY16: =IFERROR(VLOOKUP($B16,'ADP-Rank'!$A$2:$AH$785,34,FALSE),TRUE) -> TRUE
B17: Adam Jones | C17: OF | D17: =IFERROR(IF(VLOOKUP(B17,'Starter Calc'!$B$2:$E$700,4,FALSE)="","",VLOOKUP(B17,'Starter Calc'!$B$2:$E$700,4,FALSE)),"") -> ,,CF | E17: =IFERROR(VLOOKUP($B17,'ADP-Rank'!$A$2:$D$650,3,FALSE),"") -> BAL | F17: =IFERROR(VLOOKUP($B17,'ADP-Rank'!$A$2:$W$650,23,FALSE),"") -> 28 | G17: =IFERROR((IF(Personalize!$E$31=1,VLOOKUP($B17,'ADP-Rank'!$A$2:$J$750,4,FALSE),(IF(Personalize!$E$31=2,VLOOKUP($B17,'ADP-Rank'!$A$2:$J$750,7,FALSE),(IF(Personalize!$E$31=3,VLOOKUP($B17,'ADP-Rank'!$A$2:$J$750,10,FALSE),(IF(Personalize!$E$31=4,VLOOKUP($B17,'ADP-Rank'!$A$2:$AN$750,24,FALSE),(IF(Personalize!$E$31=5,VLOOKUP($B17,'ADP-Rank'!$A$2:$AN$750,27,FALSE),(IF(Personalize!$E$31=6,VLOOKUP($B17,'ADP-Rank'!$A$2:$AN$750,31,FALSE),(IF(Personalize!$E$31=7,VLOOKUP($B17,'ADP-Rank'!$A$2:$AN$750,39,FALSE))))))))))))))),"") -> 11.38271605 | H17: =IFERROR(ROUNDDOWN(VLOOKUP($B17,'ADP-Rank'!$A$2:$AN$885,38,FALSE),0),"") -> 1 | I17: =VLOOKUP($B17,'ADP-Rank'!$A$2:$AJ$885,36,FALSE) -> 13 | J17: =IFERROR(RANK($K17,$K$7:$K$661,0),"") -> 19 | K17: =IF((SUM(M17:AC17)=0),"",SUM(M17:AC17)) -> 4.608124267 | L17: =IFERROR(IF(ISTEXT($A17),"",IF((OR($C17="RP",$C17="SP")),ABS(VLOOKUP(C17,'Filtered-P'!$AA$3:$AE$4,5,FALSE))+K17,ABS(VLOOKUP(C17,Filtered!$AG$3:$AK$14,5,FALSE))+K17)),"") -> 5.023752661 | M17: =IFERROR(IF((OR($C17="RP",$C17="SP")),IF(Personalize!$E$10=TRUE,(((VLOOKUP($B17,Pitcher!$A$1:$P$700,2,FALSE))-'Filtered-P'!$AB$8)/'Filtered-P'!$AC$8),""),IF(Personalize!$E$4=TRUE,(((VLOOKUP($B17,Hitter!$A$1:$X$628,21,FALSE))-Filtered!$AH$35)/Filtered!$AI$35),"")),"") -> 0.6127226144 | N17: =IFERROR(IF((OR($C17="RP",$C17="SP")),IF(Personalize!$E$12=TRUE,(((VLOOKUP($B17,Pitcher!$A$1:$P$700,9,FALSE))-'Filtered-P'!$AB$15)/'Filtered-P'!$AC$15),""),IF(Personalize!$E$3=TRUE,(((VLOOKUP($B17,Hitter!$A$1:$AB$628,9,FALSE))-Filtered!$AH$25)/Filtered!$AI$25),"")),"") -> 1.408789405 | O17: =IFERROR(IF((OR($C17="RP",$C17="SP")),IF(Personalize!$E$11=TRUE,(((VLOOKUP($B17,Pitcher!$A$1:$P$700,7,FALSE))-'Filtered-P'!$AB$13)/'Filtered-P'!$AC$13),""),IF(Personalize!$E$2=TRUE,(((VLOOKUP($B17,Hitter!$A$1:$AB$628,4,FALSE))-Filtered!$AH$20)/Filtered!$AI$20),"")),"") -> 0.9693404029 | P17: =IFERROR(IF((OR($C17="RP",$C17="SP")),IF(Personalize!$E$13=TRUE,(((VLOOKUP($B17,Pitcher!$A$1:$P$700,13,FALSE))-'Filtered-P'!$AB$19)/'Filtered-P'!$AC$19),""),IF(Personalize!$E$5=TRUE,(((VLOOKUP($B17,Hitter!$A$1:$AB$628,10,FALSE))-Filtered!$AH$26)/Filtered!$AI$26),"")),"") -> 1.459871479 | Q17: =IFERROR(IF((OR($C17="RP",$C17="SP")),IF(Personalize!$E$14=TRUE,(((VLOOKUP($B17,Pitcher!$A$1:$P$700,14,FALSE))-'Filtered-P'!$AB$20)/'Filtered-P'!$AC$20),""),IF(Personalize!$E$6=TRUE,(((VLOOKUP($B17,Hitter!$A$1:$AB$628,11,FALSE))-Filtered!$AH$27)/Filtered!$AI$27),"")),"") -> 0.1574003665 | R17: =IFERROR(IF((OR($C17="RP",$C17="SP")),IF(Personalize!$E$16=TRUE,(((VLOOKUP($B17,Pitcher!$A$1:$P$700,3,FALSE))-'Filtered-P'!$AB$9)/'Filtered-P'!$AC$9),""),IF(Personalize!$E$7=TRUE,(((VLOOKUP($B17,Hitter!$A$1:$AZ$628,23,FALSE))-Filtered!$AH$37)/Filtered!$AI$37),"")),"") ->  | S17: =IFERROR(IF((OR($C17="RP",$C17="SP")),IF(Personalize!$E$15=TRUE,(((VLOOKUP($B17,Pitcher!$A$1:$P$700,15,FALSE))-'Filtered-P'!$AB$21)/'Filtered-P'!$AC$21),""),IF(Personalize!$E$8=TRUE,(((VLOOKUP($B17,Hitter!$A$1:$AZ$628,22,FALSE))-Filtered!$AH$36)/Filtered!$AI$36),"")),"") ->  | T17: =IFERROR(IF((OR($C17="RP",$C17="SP")),IF(Personalize!$E$17=TRUE,(((VLOOKUP($B17,Pitcher!$A$1:$P$700,16,FALSE))-'Filtered-P'!$AB$22)/'Filtered-P'!$AC$22),""),IF(Personalize!$E$9=TRUE,(((VLOOKUP($B17,Hitter!$A$1:$AZ$628,24,FALSE))-Filtered!$AH$38)/Filtered!$AI$38),"")),"") ->  | U17: =IFERROR(IF((OR($C17="RP",$C17="SP")),IF(Personalize!$E$37=TRUE,(((VLOOKUP($B17,Pitcher!$A$1:$Z$700,17,FALSE))-'Filtered-P'!$AB$25)/'Filtered-P'!$AC$25),""),IF(Personalize!$E$39=TRUE,(((VLOOKUP($B17,Hitter!$A$1:$X$628,5,FALSE))-Filtered!$AH$21)/Filtered!$AI$21),"")),"") ->  | V17: =IFERROR(IF((OR($C17="RP",$C17="SP")),IF(Personalize!$E$38=TRUE,(((VLOOKUP($B17,Pitcher!$A$1:$Z$700,18,FALSE))-'Filtered-P'!$AB$26)/'Filtered-P'!$AC$26),""),IF(Personalize!$E$40=TRUE,(((VLOOKUP($B17,Hitter!$A$1:$X$628,13,FALSE))-Filtered!$AH$29)/Filtered!$AI$29),"")),"") ->  | W17: =IFERROR(IF((OR($C17="RP",$C17="SP")),IF(Personalize!$E$45=TRUE,(((VLOOKUP($B17,Pitcher!$A$1:$Z$700,4,FALSE))-'Filtered-P'!$AB$10)/'Filtered-P'!$AC$10),""),IF(Personalize!$E$41=TRUE,(((VLOOKUP($B17,Hitter!$A$1:$AZ$628,19,FALSE))-Filtered!$AH$43)/Filtered!$AI$43),"")),"") ->  | X17: =IFERROR(IF((OR($C17="RP",$C17="SP")),IF(Personalize!$E$46=TRUE,(((VLOOKUP($B17,Pitcher!$A$1:$Z$700,19,FALSE))-'Filtered-P'!$AB$27)/'Filtered-P'!$AC$27),""),IF(Personalize!$E$44=TRUE,(((VLOOKUP($B17,Hitter!$A$1:$AZ$628,20,FALSE))-Filtered!$AH$44)/Filtered!$AI$44),"")),"") ->  | Y17: =IFERROR(IF((OR($C17="RP",$C17="SP")),IF(Personalize!$E$47=TRUE,(((VLOOKUP($B17,Pitcher!$A$1:$Z$700,6,FALSE))-'Filtered-P'!$AB$12)/'Filtered-P'!$AC$12),""),IF(Personalize!$E$42=TRUE,(((VLOOKUP($B17,Hitter!$A$1:$AZ$628,7,FALSE))-Filtered!$AH$23)/Filtered!$AI$23),"")),"") ->  | Z17: =IFERROR(IF((OR($C17="RP",$C17="SP")),IF(Personalize!$E$48=TRUE,(((VLOOKUP($B17,Pitcher!$A$1:$Z$700,5,FALSE))-'Filtered-P'!$AB$11)/'Filtered-P'!$AC$11),""),IF(Personalize!$E$43=TRUE,(((VLOOKUP($B17,Hitter!$A$1:$AZ$628,8,FALSE))-Filtered!$AH$24)/Filtered!$AI$24),"")),"") ->  | AA17: =IFERROR(IF((OR($C17="RP",$C17="SP")),IF(Personalize!$E$52=TRUE,(((VLOOKUP($B17,Pitcher!$A$1:$AA$700,21,FALSE))-'Filtered-P'!$AB$29)/(-1*'Filtered-P'!$AC$29)),""),IF(Personalize!$E$49=TRUE,(((VLOOKUP($B17,Hitter!$A$1:$AF$628,29,FALSE))-Filtered!$AH$45)/Filtered!$AI$45),"")),"") ->  | AB17: =IFERROR(IF((OR($C17="RP",$C17="SP")),IF(Personalize!$E$53=TRUE,(((VLOOKUP($B17,Pitcher!$A$1:$AA$700,23,FALSE))-'Filtered-P'!$AB$31)/(-1*'Filtered-P'!$AC$31)),""),IF(Personalize!$E$50=TRUE,(((VLOOKUP($B17,Hitter!$A$1:$AF$628,30,FALSE))-Filtered!$AH$46)/Filtered!$AI$46),"")),"") ->  | AC17: =IFERROR(IF((OR($C17="RP",$C17="SP")),IF(Personalize!$E$54=TRUE,(((VLOOKUP($B17,Pitcher!$A$1:$AA$700,24,FALSE))-'Filtered-P'!$AB$32)/'Filtered-P'!$AC$32),""),IF(Personalize!$E$51=TRUE,(((VLOOKUP($B17,Hitter!$A$1:$AF$628,14,FALSE))-Filtered!$AH$30)/(-1*Filtered!$AI$30)),"")),"") ->  | AD17: =IFERROR(IF((OR($C17="RP",$C17="SP")),VLOOKUP($B17,Pitcher!$A$1:$P$700,2,FALSE),""),"") ->  | AE17: =IFERROR(IF((OR($C17="RP",$C17="SP")),VLOOKUP($B17,Pitcher!$A$1:$P$700,9,FALSE),""),"") ->  | AF17: =IFERROR(IF((OR($C17="RP",$C17="SP")),VLOOKUP($B17,Pitcher!$A$1:$P$700,7,FALSE),""),"") ->  | AG17: =IFERROR(IF((OR($C17="RP",$C17="SP")),VLOOKUP($B17,Pitcher!$A$1:$P$700,10,FALSE),""),"") ->  | AH17: =IFERROR(IF((OR($C17="RP",$C17="SP")),VLOOKUP($B17,Pitcher!$A$1:$P$700,11,FALSE),""),"") ->  | AI17: =IFERROR(IF((OR($C17="RP",$C17="SP")),"",VLOOKUP($B17,Hitter!$A$1:$X$628,15,FALSE)),"") -> 0.279042518 | AJ17: =IFERROR(IF((OR($C17="RP",$C17="SP")),"",VLOOKUP($B17,Hitter!$A$1:$X$628,9,FALSE)),"") -> 28.25465946 | AK17: =IFERROR(IF((OR($C17="RP",$C17="SP")),"",VLOOKUP($B17,Hitter!$A$1:$X$628,10,FALSE)),"") -> 89.31383854 | AL17: =IFERROR(IF((OR($C17="RP",$C17="SP")),"",VLOOKUP($B17,Hitter!$A$1:$X$628,4,FALSE)),"") -> 85.28113687 | AM17: =IFERROR(IF((OR($C17="RP",$C17="SP")),"",VLOOKUP($B17,Hitter!$A$1:$X$628,11,FALSE)),"") -> 12.41820465 | AN17: =IFERROR(IF(ISTEXT($A17),"",(1-NORMDIST((COUNTA($A$9:$A$661)),($G17),((AS17-AR17)/6),TRUE))),"") -> 0.9956901558 | AO17: =IFERROR(IF(ISTEXT($A17),"",(1-NORMDIST((COUNTA($A$9:$A$661))+(Personalize!$E$18+1),$G17,((AS17-AR17)/6),TRUE))),"") -> 0.3544925892 | AP17: =IFERROR(IF(ISTEXT($A17),"",(1-NORMDIST((COUNTA($A$9:$A$661))+((Personalize!$E$18+1)*2),$G17,((AS17-AR17)/6),TRUE))),"") -> 0.0003714736752 | AR17: =IF(Personalize!$E$31=1,VLOOKUP($B17,'ADP-Rank'!$A$2:$J$609,5,FALSE),(IF(Personalize!$E$31=2,VLOOKUP($B17,'ADP-Rank'!$A$2:$J$609,8,FALSE),(IF(Personalize!$E$31=3,VLOOKUP($B17,'ADP-Rank'!$A$2:$O$609,11,FALSE),(IF(Personalize!$E$31=4,VLOOKUP($B17,'ADP-Rank'!$A$2:$AN$609,25,FALSE),(IF(Personalize!$E$31=5,VLOOKUP($B17,'ADP-Rank'!$A$2:$AN$609,28,FALSE),(IF(Personalize!$E$31=6,VLOOKUP($B17,'ADP-Rank'!$A$2:$AN$609,32,FALSE),(IF(Personalize!$E$31=7,VLOOKUP($B17,'ADP-Rank'!$A$2:$AN$609,40,FALSE),""))))))))))))) -> 5 | AS17: =IF(Personalize!$E$31=1,VLOOKUP($B17,'ADP-Rank'!$A$2:$J$609,6,FALSE),(IF(Personalize!$E$31=2,VLOOKUP($B17,'ADP-Rank'!$A$2:$J$609,9,FALSE),(IF(Personalize!$E$31=3,VLOOKUP($B17,'ADP-Rank'!$A$2:$O$609,12,FALSE),(IF(Personalize!$E$31=4,VLOOKUP($B17,'ADP-Rank'!$A$2:$AN$609,26,FALSE),(IF(Personalize!$E$31=5,VLOOKUP($B17,'ADP-Rank'!$A$2:$AN$609,29,FALSE),(IF(Personalize!$E$31=6,VLOOKUP($B17,'ADP-Rank'!$A$2:$AN$609,33,FALSE),(IF(Personalize!$E$31=7,VLOOKUP($B17,'ADP-Rank'!$A$2:$AP$609,41,FALSE),""))))))))))))) -> 31 | AT17: =IF(ISBLANK(A17),0,1) -> 0 | AU17: =IF(K17="",0,1) -> 1 | AV17: =A17 -> 0 | AW17: =IF(C17="C",1,IF(C17="1B",2,IF(C17="2B",3,IF(C17="3B",4,IF(C17="SS",5,IF(C17="CI",6,IF(C17="MI",7,IF(C17="OF",11,IF(C17="LF",8,IF(C17="CF",9,IF(C17="RF",10,IF(C17="DH",12,IF(C17="SP",13,IF(C17="RP",14,IF(C17="P",15,16))))))))))))))) -> 11 | AX17: =VLOOKUP(B17,'Starter Calc'!$B$2:$BN$700,65,FALSE) -> Starter | AY17: =IFERROR(VLOOKUP($B17,'ADP-Rank'!$A$2:$AH$785,34,FALSE),TRUE) -> TRUE
B18: Prince Fielder | C18: 1B | D18: =IFERROR(IF(VLOOKUP(B18,'Starter Calc'!$B$2:$E$700,4,FALSE)="","",VLOOKUP(B18,'Starter Calc'!$B$2:$E$700,4,FALSE)),"") -> ,, | E18: =IFERROR(VLOOKUP($B18,'ADP-Rank'!$A$2:$D$650,3,FALSE),"") -> TEX | F18: =IFERROR(VLOOKUP($B18,'ADP-Rank'!$A$2:$W$650,23,FALSE),"") -> 30 | G18: =IFERROR((IF(Personalize!$E$31=1,VLOOKUP($B18,'ADP-Rank'!$A$2:$J$750,4,FALSE),(IF(Personalize!$E$31=2,VLOOKUP($B18,'ADP-Rank'!$A$2:$J$750,7,FALSE),(IF(Personalize!$E$31=3,VLOOKUP($B18,'ADP-Rank'!$A$2:$J$750,10,FALSE),(IF(Personalize!$E$31=4,VLOOKUP($B18,'ADP-Rank'!$A$2:$AN$750,24,FALSE),(IF(Personalize!$E$31=5,VLOOKUP($B18,'ADP-Rank'!$A$2:$AN$750,27,FALSE),(IF(Personalize!$E$31=6,VLOOKUP($B18,'ADP-Rank'!$A$2:$AN$750,31,FALSE),(IF(Personalize!$E$31=7,VLOOKUP($B18,'ADP-Rank'!$A$2:$AN$750,39,FALSE))))))))))))))),"") -> 14.01028807 | H18: =IFERROR(ROUNDDOWN(VLOOKUP($B18,'ADP-Rank'!$A$2:$AN$885,38,FALSE),0),"") -> 1 | I18: =VLOOKUP($B18,'ADP-Rank'!$A$2:$AJ$885,36,FALSE) -> 20 | J18: =IFERROR(RANK($K18,$K$7:$K$661,0),"") -> 9 | K18: =IF((SUM(M18:AC18)=0),"",SUM(M18:AC18)) -> 5.928955147 | L18: =IFERROR(IF(ISTEXT($A18),"",IF((OR($C18="RP",$C18="SP")),ABS(VLOOKUP(C18,'Filtered-P'!$AA$3:$AE$4,5,FALSE))+K18,ABS(VLOOKUP(C18,Filtered!$AG$3:$AK$14,5,FALSE))+K18)),"") -> 7.265678741 | M18: =IFERROR(IF((OR($C18="RP",$C18="SP")),IF(Personalize!$E$10=TRUE,(((VLOOKUP($B18,Pitcher!$A$1:$P$700,2,FALSE))-'Filtered-P'!$AB$8)/'Filtered-P'!$AC$8),""),IF(Personalize!$E$4=TRUE,(((VLOOKUP($B18,Hitter!$A$1:$X$628,21,FALSE))-Filtered!$AH$35)/Filtered!$AI$35),"")),"") -> 1.309798518 | N18: =IFERROR(IF((OR($C18="RP",$C18="SP")),IF(Personalize!$E$12=TRUE,(((VLOOKUP($B18,Pitcher!$A$1:$P$700,9,FALSE))-'Filtered-P'!$AB$15)/'Filtered-P'!$AC$15),""),IF(Personalize!$E$3=TRUE,(((VLOOKUP($B18,Hitter!$A$1:$AB$628,9,FALSE))-Filtered!$AH$25)/Filtered!$AI$25),"")),"") -> 1.898681546 | O18: =IFERROR(IF((OR($C18="RP",$C18="SP")),IF(Personalize!$E$11=TRUE,(((VLOOKUP($B18,Pitcher!$A$1:$P$700,7,FALSE))-'Filtered-P'!$AB$13)/'Filtered-P'!$AC$13),""),IF(Personalize!$E$2=TRUE,(((VLOOKUP($B18,Hitter!$A$1:$AB$628,4,FALSE))-Filtered!$AH$20)/Filtered!$AI$20),"")),"") -> 1.527835226 | P18: =IFERROR(IF((OR($C18="RP",$C18="SP")),IF(Personalize!$E$13=TRUE,(((VLOOKUP($B18,Pitcher!$A$1:$P$700,13,FALSE))-'Filtered-P'!$AB$19)/'Filtered-P'!$AC$19),""),IF(Personalize!$E$5=TRUE,(((VLOOKUP($B18,Hitter!$A$1:$AB$628,10,FALSE))-Filtered!$AH$26)/Filtered!$AI$26),"")),"") -> 2.263109854 | Q18: =IFERROR(IF((OR($C18="RP",$C18="SP")),IF(Personalize!$E$14=TRUE,(((VLOOKUP($B18,Pitcher!$A$1:$P$700,14,FALSE))-'Filtered-P'!$AB$20)/'Filtered-P'!$AC$20),""),IF(Personalize!$E$6=TRUE,(((VLOOKUP($B18,Hitter!$A$1:$AB$628,11,FALSE))-Filtered!$AH$27)/Filtered!$AI$27),"")),"") -> -1.070469996 | R18: =IFERROR(IF((OR($C18="RP",$C18="SP")),IF(Personalize!$E$16=TRUE,(((VLOOKUP($B18,Pitcher!$A$1:$P$700,3,FALSE))-'Filtered-P'!$AB$9)/'Filtered-P'!$AC$9),""),IF(Personalize!$E$7=TRUE,(((VLOOKUP($B18,Hitter!$A$1:$AZ$628,23,FALSE))-Filtered!$AH$37)/Filtered!$AI$37),"")),"") ->  | S18: =IFERROR(IF((OR($C18="RP",$C18="SP")),IF(Personalize!$E$15=TRUE,(((VLOOKUP($B18,Pitcher!$A$1:$P$700,15,FALSE))-'Filtered-P'!$AB$21)/'Filtered-P'!$AC$21),""),IF(Personalize!$E$8=TRUE,(((VLOOKUP($B18,Hitter!$A$1:$AZ$628,22,FALSE))-Filtered!$AH$36)/Filtered!$AI$36),"")),"") ->  | T18: =IFERROR(IF((OR($C18="RP",$C18="SP")),IF(Personalize!$E$17=TRUE,(((VLOOKUP($B18,Pitcher!$A$1:$P$700,16,FALSE))-'Filtered-P'!$AB$22)/'Filtered-P'!$AC$22),""),IF(Personalize!$E$9=TRUE,(((VLOOKUP($B18,Hitter!$A$1:$AZ$628,24,FALSE))-Filtered!$AH$38)/Filtered!$AI$38),"")),"") ->  | U18: =IFERROR(IF((OR($C18="RP",$C18="SP")),IF(Personalize!$E$37=TRUE,(((VLOOKUP($B18,Pitcher!$A$1:$Z$700,17,FALSE))-'Filtered-P'!$AB$25)/'Filtered-P'!$AC$25),""),IF(Personalize!$E$39=TRUE,(((VLOOKUP($B18,Hitter!$A$1:$X$628,5,FALSE))-Filtered!$AH$21)/Filtered!$AI$21),"")),"") ->  | V18: =IFERROR(IF((OR($C18="RP",$C18="SP")),IF(Personalize!$E$38=TRUE,(((VLOOKUP($B18,Pitcher!$A$1:$Z$700,18,FALSE))-'Filtered-P'!$AB$26)/'Filtered-P'!$AC$26),""),IF(Personalize!$E$40=TRUE,(((VLOOKUP($B18,Hitter!$A$1:$X$628,13,FALSE))-Filtered!$AH$29)/Filtered!$AI$29),"")),"") ->  | W18: =IFERROR(IF((OR($C18="RP",$C18="SP")),IF(Personalize!$E$45=TRUE,(((VLOOKUP($B18,Pitcher!$A$1:$Z$700,4,FALSE))-'Filtered-P'!$AB$10)/'Filtered-P'!$AC$10),""),IF(Personalize!$E$41=TRUE,(((VLOOKUP($B18,Hitter!$A$1:$AZ$628,19,FALSE))-Filtered!$AH$43)/Filtered!$AI$43),"")),"") ->  | X18: =IFERROR(IF((OR($C18="RP",$C18="SP")),IF(Personalize!$E$46=TRUE,(((VLOOKUP($B18,Pitcher!$A$1:$Z$700,19,FALSE))-'Filtered-P'!$AB$27)/'Filtered-P'!$AC$27),""),IF(Personalize!$E$44=TRUE,(((VLOOKUP($B18,Hitter!$A$1:$AZ$628,20,FALSE))-Filtered!$AH$44)/Filtered!$AI$44),"")),"") ->  | Y18: =IFERROR(IF((OR($C18="RP",$C18="SP")),IF(Personalize!$E$47=TRUE,(((VLOOKUP($B18,Pitcher!$A$1:$Z$700,6,FALSE))-'Filtered-P'!$AB$12)/'Filtered-P'!$AC$12),""),IF(Personalize!$E$42=TRUE,(((VLOOKUP($B18,Hitter!$A$1:$AZ$628,7,FALSE))-Filtered!$AH$23)/Filtered!$AI$23),"")),"") ->  | Z18: =IFERROR(IF((OR($C18="RP",$C18="SP")),IF(Personalize!$E$48=TRUE,(((VLOOKUP($B18,Pitcher!$A$1:$Z$700,5,FALSE))-'Filtered-P'!$AB$11)/'Filtered-P'!$AC$11),""),IF(Personalize!$E$43=TRUE,(((VLOOKUP($B18,Hitter!$A$1:$AZ$628,8,FALSE))-Filtered!$AH$24)/Filtered!$AI$24),"")),"") ->  | AA18: =IFERROR(IF((OR($C18="RP",$C18="SP")),IF(Personalize!$E$52=TRUE,(((VLOOKUP($B18,Pitcher!$A$1:$AA$700,21,FALSE))-'Filtered-P'!$AB$29)/(-1*'Filtered-P'!$AC$29)),""),IF(Personalize!$E$49=TRUE,(((VLOOKUP($B18,Hitter!$A$1:$AF$628,29,FALSE))-Filtered!$AH$45)/Filtered!$AI$45),"")),"") ->  | AB18: =IFERROR(IF((OR($C18="RP",$C18="SP")),IF(Personalize!$E$53=TRUE,(((VLOOKUP($B18,Pitcher!$A$1:$AA$700,23,FALSE))-'Filtered-P'!$AB$31)/(-1*'Filtered-P'!$AC$31)),""),IF(Personalize!$E$50=TRUE,(((VLOOKUP($B18,Hitter!$A$1:$AF$628,30,FALSE))-Filtered!$AH$46)/Filtered!$AI$46),"")),"") ->  | AC18: =IFERROR(IF((OR($C18="RP",$C18="SP")),IF(Personalize!$E$54=TRUE,(((VLOOKUP($B18,Pitcher!$A$1:$AA$700,24,FALSE))-'Filtered-P'!$AB$32)/'Filtered-P'!$AC$32),""),IF(Personalize!$E$51=TRUE,(((VLOOKUP($B18,Hitter!$A$1:$AF$628,14,FALSE))-Filtered!$AH$30)/(-1*Filtered!$AI$30)),"")),"") ->  | AD18: =IFERROR(IF((OR($C18="RP",$C18="SP")),VLOOKUP($B18,Pitcher!$A$1:$P$700,2,FALSE),""),"") ->  | AE18: =IFERROR(IF((OR($C18="RP",$C18="SP")),VLOOKUP($B18,Pitcher!$A$1:$P$700,9,FALSE),""),"") ->  | AF18: =IFERROR(IF((OR($C18="RP",$C18="SP")),VLOOKUP($B18,Pitcher!$A$1:$P$700,7,FALSE),""),"") ->  | AG18: =IFERROR(IF((OR($C18="RP",$C18="SP")),VLOOKUP($B18,Pitcher!$A$1:$P$700,10,FALSE),""),"") ->  | AH18: =IFERROR(IF((OR($C18="RP",$C18="SP")),VLOOKUP($B18,Pitcher!$A$1:$P$700,11,FALSE),""),"") ->  | AI18: =IFERROR(IF((OR($C18="RP",$C18="SP")),"",VLOOKUP($B18,Hitter!$A$1:$X$628,15,FALSE)),"") -> 0.2903198466 | AJ18: =IFERROR(IF((OR($C18="RP",$C18="SP")),"",VLOOKUP($B18,Hitter!$A$1:$X$628,9,FALSE)),"") -> 31.78626821 | AK18: =IFERROR(IF((OR($C18="RP",$C18="SP")),"",VLOOKUP($B18,Hitter!$A$1:$X$628,10,FALSE)),"") -> 100.3932554 | AL18: =IFERROR(IF((OR($C18="RP",$C18="SP")),"",VLOOKUP($B18,Hitter!$A$1:$X$628,4,FALSE)),"") -> 91.32123253 | AM18: =IFERROR(IF((OR($C18="RP",$C18="SP")),"",VLOOKUP($B18,Hitter!$A$1:$X$628,11,FALSE)),"") -> 1.016280279 | AN18: =IFERROR(IF(ISTEXT($A18),"",(1-NORMDIST((COUNTA($A$9:$A$661)),($G18),((AS18-AR18)/6),TRUE))),"") -> 1 | AO18: =IFERROR(IF(ISTEXT($A18),"",(1-NORMDIST((COUNTA($A$9:$A$661))+(Personalize!$E$18+1),$G18,((AS18-AR18)/6),TRUE))),"") -> 0.7278000068 | AP18: =IFERROR(IF(ISTEXT($A18),"",(1-NORMDIST((COUNTA($A$9:$A$661))+((Personalize!$E$18+1)*2),$G18,((AS18-AR18)/6),TRUE))),"") -> 3.149702721e-13 | AR18: =IF(Personalize!$E$31=1,VLOOKUP($B18,'ADP-Rank'!$A$2:$J$609,5,FALSE),(IF(Personalize!$E$31=2,VLOOKUP($B18,'ADP-Rank'!$A$2:$J$609,8,FALSE),(IF(Personalize!$E$31=3,VLOOKUP($B18,'ADP-Rank'!$A$2:$O$609,11,FALSE),(IF(Personalize!$E$31=4,VLOOKUP($B18,'ADP-Rank'!$A$2:$AN$609,25,FALSE),(IF(Personalize!$E$31=5,VLOOKUP($B18,'ADP-Rank'!$A$2:$AN$609,28,FALSE),(IF(Personalize!$E$31=6,VLOOKUP($B18,'ADP-Rank'!$A$2:$AN$609,32,FALSE),(IF(Personalize!$E$31=7,VLOOKUP($B18,'ADP-Rank'!$A$2:$AN$609,40,FALSE),""))))))))))))) -> 7 | AS18: =IF(Personalize!$E$31=1,VLOOKUP($B18,'ADP-Rank'!$A$2:$J$609,6,FALSE),(IF(Personalize!$E$31=2,VLOOKUP($B18,'ADP-Rank'!$A$2:$J$609,9,FALSE),(IF(Personalize!$E$31=3,VLOOKUP($B18,'ADP-Rank'!$A$2:$O$609,12,FALSE),(IF(Personalize!$E$31=4,VLOOKUP($B18,'ADP-Rank'!$A$2:$AN$609,26,FALSE),(IF(Personalize!$E$31=5,VLOOKUP($B18,'ADP-Rank'!$A$2:$AN$609,29,FALSE),(IF(Personalize!$E$31=6,VLOOKUP($B18,'ADP-Rank'!$A$2:$AN$609,33,FALSE),(IF(Personalize!$E$31=7,VLOOKUP($B18,'ADP-Rank'!$A$2:$AP$609,41,FALSE),""))))))))))))) -> 17 | AT18: =IF(ISBLANK(A18),0,1) -> 0 | AU18: =IF(K18="",0,1) -> 1 | AV18: =A18 -> 0 | AW18: =IF(C18="C",1,IF(C18="1B",2,IF(C18="2B",3,IF(C18="3B",4,IF(C18="SS",5,IF(C18="CI",6,IF(C18="MI",7,IF(C18="OF",11,IF(C18="LF",8,IF(C18="CF",9,IF(C18="RF",10,IF(C18="DH",12,IF(C18="SP",13,IF(C18="RP",14,IF(C18="P",15,16))))))))))))))) -> 2 | AX18: =VLOOKUP(B18,'Starter Calc'!$B$2:$BN$700,65,FALSE) -> Bench | AY18: =IFERROR(VLOOKUP($B18,'ADP-Rank'!$A$2:$AH$785,34,FALSE),TRUE) -> TRUE
B19: Bryce Harper | C19: OF | D19: =IFERROR(IF(VLOOKUP(B19,'Starter Calc'!$B$2:$E$700,4,FALSE)="","",VLOOKUP(B19,'Starter Calc'!$B$2:$E$700,4,FALSE)),"") -> LF,RF,CF | E19: =IFERROR(VLOOKUP($B19,'ADP-Rank'!$A$2:$D$650,3,FALSE),"") -> WAS | F19: =IFERROR(VLOOKUP($B19,'ADP-Rank'!$A$2:$W$650,23,FALSE),"") -> 21 | G19: =IFERROR((IF(Personalize!$E$31=1,VLOOKUP($B19,'ADP-Rank'!$A$2:$J$750,4,FALSE),(IF(Personalize!$E$31=2,VLOOKUP($B19,'ADP-Rank'!$A$2:$J$750,7,FALSE),(IF(Personalize!$E$31=3,VLOOKUP($B19,'ADP-Rank'!$A$2:$J$750,10,FALSE),(IF(Personalize!$E$31=4,VLOOKUP($B19,'ADP-Rank'!$A$2:$AN$750,24,FALSE),(IF(Personalize!$E$31=5,VLOOKUP($B19,'ADP-Rank'!$A$2:$AN$750,27,FALSE),(IF(Personalize!$E$31=6,VLOOKUP($B19,'ADP-Rank'!$A$2:$AN$750,31,FALSE),(IF(Personalize!$E$31=7,VLOOKUP($B19,'ADP-Rank'!$A$2:$AN$750,39,FALSE))))))))))))))),"") -> 14.24074074 | H19: =IFERROR(ROUNDDOWN(VLOOKUP($B19,'ADP-Rank'!$A$2:$AN$885,38,FALSE),0),"") -> 2 | I19: =VLOOKUP($B19,'ADP-Rank'!$A$2:$AJ$885,36,FALSE) -> 9 | J19: =IFERROR(RANK($K19,$K$7:$K$661,0),"") -> 31 | K19: =IF((SUM(M19:AC19)=0),"",SUM(M19:AC19)) -> 3.464803463 | L19: =IFERROR(IF(ISTEXT($A19),"",IF((OR($C19="RP",$C19="SP")),ABS(VLOOKUP(C19,'Filtered-P'!$AA$3:$AE$4,5,FALSE))+K19,ABS(VLOOKUP(C19,Filtered!$AG$3:$AK$14,5,FALSE))+K19)),"") -> 3.880431857 | M19: =IFERROR(IF((OR($C19="RP",$C19="SP")),IF(Personalize!$E$10=TRUE,(((VLOOKUP($B19,Pitcher!$A$1:$P$700,2,FALSE))-'Filtered-P'!$AB$8)/'Filtered-P'!$AC$8),""),IF(Personalize!$E$4=TRUE,(((VLOOKUP($B19,Hitter!$A$1:$X$628,21,FALSE))-Filtered!$AH$35)/Filtered!$AI$35),"")),"") -> 0.4913289259 | N19: =IFERROR(IF((OR($C19="RP",$C19="SP")),IF(Personalize!$E$12=TRUE,(((VLOOKUP($B19,Pitcher!$A$1:$P$700,9,FALSE))-'Filtered-P'!$AB$15)/'Filtered-P'!$AC$15),""),IF(Personalize!$E$3=TRUE,(((VLOOKUP($B19,Hitter!$A$1:$AB$628,9,FALSE))-Filtered!$AH$25)/Filtered!$AI$25),"")),"") -> 1.033444623 | O19: =IFERROR(IF((OR($C19="RP",$C19="SP")),IF(Personalize!$E$11=TRUE,(((VLOOKUP($B19,Pitcher!$A$1:$P$700,7,FALSE))-'Filtered-P'!$AB$13)/'Filtered-P'!$AC$13),""),IF(Personalize!$E$2=TRUE,(((VLOOKUP($B19,Hitter!$A$1:$AB$628,4,FALSE))-Filtered!$AH$20)/Filtered!$AI$20),"")),"") -> 1.344785554 | P19: =IFERROR(IF((OR($C19="RP",$C19="SP")),IF(Personalize!$E$13=TRUE,(((VLOOKUP($B19,Pitcher!$A$1:$P$700,13,FALSE))-'Filtered-P'!$AB$19)/'Filtered-P'!$AC$19),""),IF(Personalize!$E$5=TRUE,(((VLOOKUP($B19,Hitter!$A$1:$AB$628,10,FALSE))-Filtered!$AH$26)/Filtered!$AI$26),"")),"") -> 0.2274105803 | Q19: =IFERROR(IF((OR($C19="RP",$C19="SP")),IF(Personalize!$E$14=TRUE,(((VLOOKUP($B19,Pitcher!$A$1:$P$700,14,FALSE))-'Filtered-P'!$AB$20)/'Filtered-P'!$AC$20),""),IF(Personalize!$E$6=TRUE,(((VLOOKUP($B19,Hitter!$A$1:$AB$628,11,FALSE))-Filtered!$AH$27)/Filtered!$AI$27),"")),"") -> 0.367833779 | R19: =IFERROR(IF((OR($C19="RP",$C19="SP")),IF(Personalize!$E$16=TRUE,(((VLOOKUP($B19,Pitcher!$A$1:$P$700,3,FALSE))-'Filtered-P'!$AB$9)/'Filtered-P'!$AC$9),""),IF(Personalize!$E$7=TRUE,(((VLOOKUP($B19,Hitter!$A$1:$AZ$628,23,FALSE))-Filtered!$AH$37)/Filtered!$AI$37),"")),"") ->  | S19: =IFERROR(IF((OR($C19="RP",$C19="SP")),IF(Personalize!$E$15=TRUE,(((VLOOKUP($B19,Pitcher!$A$1:$P$700,15,FALSE))-'Filtered-P'!$AB$21)/'Filtered-P'!$AC$21),""),IF(Personalize!$E$8=TRUE,(((VLOOKUP($B19,Hitter!$A$1:$AZ$628,22,FALSE))-Filtered!$AH$36)/Filtered!$AI$36),"")),"") ->  | T19: =IFERROR(IF((OR($C19="RP",$C19="SP")),IF(Personalize!$E$17=TRUE,(((VLOOKUP($B19,Pitcher!$A$1:$P$700,16,FALSE))-'Filtered-P'!$AB$22)/'Filtered-P'!$AC$22),""),IF(Personalize!$E$9=TRUE,(((VLOOKUP($B19,Hitter!$A$1:$AZ$628,24,FALSE))-Filtered!$AH$38)/Filtered!$AI$38),"")),"") ->  | U19: =IFERROR(IF((OR($C19="RP",$C19="SP")),IF(Personalize!$E$37=TRUE,(((VLOOKUP($B19,Pitcher!$A$1:$Z$700,17,FALSE))-'Filtered-P'!$AB$25)/'Filtered-P'!$AC$25),""),IF(Personalize!$E$39=TRUE,(((VLOOKUP($B19,Hitter!$A$1:$X$628,5,FALSE))-Filtered!$AH$21)/Filtered!$AI$21),"")),"") ->  | V19: =IFERROR(IF((OR($C19="RP",$C19="SP")),IF(Personalize!$E$38=TRUE,(((VLOOKUP($B19,Pitcher!$A$1:$Z$700,18,FALSE))-'Filtered-P'!$AB$26)/'Filtered-P'!$AC$26),""),IF(Personalize!$E$40=TRUE,(((VLOOKUP($B19,Hitter!$A$1:$X$628,13,FALSE))-Filtered!$AH$29)/Filtered!$AI$29),"")),"") ->  | W19: =IFERROR(IF((OR($C19="RP",$C19="SP")),IF(Personalize!$E$45=TRUE,(((VLOOKUP($B19,Pitcher!$A$1:$Z$700,4,FALSE))-'Filtered-P'!$AB$10)/'Filtered-P'!$AC$10),""),IF(Personalize!$E$41=TRUE,(((VLOOKUP($B19,Hitter!$A$1:$AZ$628,19,FALSE))-Filtered!$AH$43)/Filtered!$AI$43),"")),"") ->  | X19: =IFERROR(IF((OR($C19="RP",$C19="SP")),IF(Personalize!$E$46=TRUE,(((VLOOKUP($B19,Pitcher!$A$1:$Z$700,19,FALSE))-'Filtered-P'!$AB$27)/'Filtered-P'!$AC$27),""),IF(Personalize!$E$44=TRUE,(((VLOOKUP($B19,Hitter!$A$1:$AZ$628,20,FALSE))-Filtered!$AH$44)/Filtered!$AI$44),"")),"") ->  | Y19: =IFERROR(IF((OR($C19="RP",$C19="SP")),IF(Personalize!$E$47=TRUE,(((VLOOKUP($B19,Pitcher!$A$1:$Z$700,6,FALSE))-'Filtered-P'!$AB$12)/'Filtered-P'!$AC$12),""),IF(Personalize!$E$42=TRUE,(((VLOOKUP($B19,Hitter!$A$1:$AZ$628,7,FALSE))-Filtered!$AH$23)/Filtered!$AI$23),"")),"") ->  | Z19: =IFERROR(IF((OR($C19="RP",$C19="SP")),IF(Personalize!$E$48=TRUE,(((VLOOKUP($B19,Pitcher!$A$1:$Z$700,5,FALSE))-'Filtered-P'!$AB$11)/'Filtered-P'!$AC$11),""),IF(Personalize!$E$43=TRUE,(((VLOOKUP($B19,Hitter!$A$1:$AZ$628,8,FALSE))-Filtered!$AH$24)/Filtered!$AI$24),"")),"") ->  | AA19: =IFERROR(IF((OR($C19="RP",$C19="SP")),IF(Personalize!$E$52=TRUE,(((VLOOKUP($B19,Pitcher!$A$1:$AA$700,21,FALSE))-'Filtered-P'!$AB$29)/(-1*'Filtered-P'!$AC$29)),""),IF(Personalize!$E$49=TRUE,(((VLOOKUP($B19,Hitter!$A$1:$AF$628,29,FALSE))-Filtered!$AH$45)/Filtered!$AI$45),"")),"") ->  | AB19: =IFERROR(IF((OR($C19="RP",$C19="SP")),IF(Personalize!$E$53=TRUE,(((VLOOKUP($B19,Pitcher!$A$1:$AA$700,23,FALSE))-'Filtered-P'!$AB$31)/(-1*'Filtered-P'!$AC$31)),""),IF(Personalize!$E$50=TRUE,(((VLOOKUP($B19,Hitter!$A$1:$AF$628,30,FALSE))-Filtered!$AH$46)/Filtered!$AI$46),"")),"") ->  | AC19: =IFERROR(IF((OR($C19="RP",$C19="SP")),IF(Personalize!$E$54=TRUE,(((VLOOKUP($B19,Pitcher!$A$1:$AA$700,24,FALSE))-'Filtered-P'!$AB$32)/'Filtered-P'!$AC$32),""),IF(Personalize!$E$51=TRUE,(((VLOOKUP($B19,Hitter!$A$1:$AF$628,14,FALSE))-Filtered!$AH$30)/(-1*Filtered!$AI$30)),"")),"") ->  | AD19: =IFERROR(IF((OR($C19="RP",$C19="SP")),VLOOKUP($B19,Pitcher!$A$1:$P$700,2,FALSE),""),"") ->  | AE19: =IFERROR(IF((OR($C19="RP",$C19="SP")),VLOOKUP($B19,Pitcher!$A$1:$P$700,9,FALSE),""),"") ->  | AF19: =IFERROR(IF((OR($C19="RP",$C19="SP")),VLOOKUP($B19,Pitcher!$A$1:$P$700,7,FALSE),""),"") ->  | AG19: =IFERROR(IF((OR($C19="RP",$C19="SP")),VLOOKUP($B19,Pitcher!$A$1:$P$700,10,FALSE),""),"") ->  | AH19: =IFERROR(IF((OR($C19="RP",$C19="SP")),VLOOKUP($B19,Pitcher!$A$1:$P$700,11,FALSE),""),"") ->  | AI19: =IFERROR(IF((OR($C19="RP",$C19="SP")),"",VLOOKUP($B19,Hitter!$A$1:$X$628,15,FALSE)),"") -> 0.2784090794 | AJ19: =IFERROR(IF((OR($C19="RP",$C19="SP")),"",VLOOKUP($B19,Hitter!$A$1:$X$628,9,FALSE)),"") -> 25.54881709 | AK19: =IFERROR(IF((OR($C19="RP",$C19="SP")),"",VLOOKUP($B19,Hitter!$A$1:$X$628,10,FALSE)),"") -> 72.31396836 | AL19: =IFERROR(IF((OR($C19="RP",$C19="SP")),"",VLOOKUP($B19,Hitter!$A$1:$X$628,4,FALSE)),"") -> 89.3415588 | AM19: =IFERROR(IF((OR($C19="RP",$C19="SP")),"",VLOOKUP($B19,Hitter!$A$1:$X$628,11,FALSE)),"") -> 14.37227563 | AN19: =IFERROR(IF(ISTEXT($A19),"",(1-NORMDIST((COUNTA($A$9:$A$661)),($G19),((AS19-AR19)/6),TRUE))),"") -> 0.9999485899 | AO19: =IFERROR(IF(ISTEXT($A19),"",(1-NORMDIST((COUNTA($A$9:$A$661))+(Personalize!$E$18+1),$G19,((AS19-AR19)/6),TRUE))),"") -> 0.6324630242 | AP19: =IFERROR(IF(ISTEXT($A19),"",(1-NORMDIST((COUNTA($A$9:$A$661))+((Personalize!$E$18+1)*2),$G19,((AS19-AR19)/6),TRUE))),"") -> 0.0006704701641 | AR19: =IF(Personalize!$E$31=1,VLOOKUP($B19,'ADP-Rank'!$A$2:$J$609,5,FALSE),(IF(Personalize!$E$31=2,VLOOKUP($B19,'ADP-Rank'!$A$2:$J$609,8,FALSE),(IF(Personalize!$E$31=3,VLOOKUP($B19,'ADP-Rank'!$A$2:$O$609,11,FALSE),(IF(Personalize!$E$31=4,VLOOKUP($B19,'ADP-Rank'!$A$2:$AN$609,25,FALSE),(IF(Personalize!$E$31=5,VLOOKUP($B19,'ADP-Rank'!$A$2:$AN$609,28,FALSE),(IF(Personalize!$E$31=6,VLOOKUP($B19,'ADP-Rank'!$A$2:$AN$609,32,FALSE),(IF(Personalize!$E$31=7,VLOOKUP($B19,'ADP-Rank'!$A$2:$AN$609,40,FALSE),""))))))))))))) -> 8 | AS19: =IF(Personalize!$E$31=1,VLOOKUP($B19,'ADP-Rank'!$A$2:$J$609,6,FALSE),(IF(Personalize!$E$31=2,VLOOKUP($B19,'ADP-Rank'!$A$2:$J$609,9,FALSE),(IF(Personalize!$E$31=3,VLOOKUP($B19,'ADP-Rank'!$A$2:$O$609,12,FALSE),(IF(Personalize!$E$31=4,VLOOKUP($B19,'ADP-Rank'!$A$2:$AN$609,26,FALSE),(IF(Personalize!$E$31=5,VLOOKUP($B19,'ADP-Rank'!$A$2:$AN$609,29,FALSE),(IF(Personalize!$E$31=6,VLOOKUP($B19,'ADP-Rank'!$A$2:$AN$609,33,FALSE),(IF(Personalize!$E$31=7,VLOOKUP($B19,'ADP-Rank'!$A$2:$AP$609,41,FALSE),""))))))))))))) -> 30 | AT19: =IF(ISBLANK(A19),0,1) -> 0 | AU19: =IF(K19="",0,1) -> 1 | AV19: =A19 -> 0 | AW19: =IF(C19="C",1,IF(C19="1B",2,IF(C19="2B",3,IF(C19="3B",4,IF(C19="SS",5,IF(C19="CI",6,IF(C19="MI",7,IF(C19="OF",11,IF(C19="LF",8,IF(C19="CF",9,IF(C19="RF",10,IF(C19="DH",12,IF(C19="SP",13,IF(C19="RP",14,IF(C19="P",15,16))))))))))))))) -> 11 | AX19: =VLOOKUP(B19,'Starter Calc'!$B$2:$BN$700,65,FALSE) -> Bench | AY19: =IFERROR(VLOOKUP($B19,'ADP-Rank'!$A$2:$AH$785,34,FALSE),TRUE) -> TRUE
B20: Adrian Beltre | C20: 3B | D20: =IFERROR(IF(VLOOKUP(B20,'Starter Calc'!$B$2:$E$700,4,FALSE)="","",VLOOKUP(B20,'Starter Calc'!$B$2:$E$700,4,FALSE)),"") -> ,, | E20: =IFERROR(VLOOKUP($B20,'ADP-Rank'!$A$2:$D$650,3,FALSE),"") -> TEX | F20: =IFERROR(VLOOKUP($B20,'ADP-Rank'!$A$2:$W$650,23,FALSE),"") -> 35 | G20: =IFERROR((IF(Personalize!$E$31=1,VLOOKUP($B20,'ADP-Rank'!$A$2:$J$750,4,FALSE),(IF(Personalize!$E$31=2,VLOOKUP($B20,'ADP-Rank'!$A$2:$J$750,7,FALSE),(IF(Personalize!$E$31=3,VLOOKUP($B20,'ADP-Rank'!$A$2:$J$750,10,FALSE),(IF(Personalize!$E$31=4,VLOOKUP($B20,'ADP-Rank'!$A$2:$AN$750,24,FALSE),(IF(Personalize!$E$31=5,VLOOKUP($B20,'ADP-Rank'!$A$2:$AN$750,27,FALSE),(IF(Personalize!$E$31=6,VLOOKUP($B20,'ADP-Rank'!$A$2:$AN$750,31,FALSE),(IF(Personalize!$E$31=7,VLOOKUP($B20,'ADP-Rank'!$A$2:$AN$750,39,FALSE))))))))))))))),"") -> 14.98148148 | H20: =IFERROR(ROUNDDOWN(VLOOKUP($B20,'ADP-Rank'!$A$2:$AN$885,38,FALSE),0),"") -> 2 | I20: =VLOOKUP($B20,'ADP-Rank'!$A$2:$AJ$885,36,FALSE) -> 15 | J20: =IFERROR(RANK($K20,$K$7:$K$661,0),"") -> 16 | K20: =IF((SUM(M20:AC20)=0),"",SUM(M20:AC20)) -> 4.955954475 | L20: =IFERROR(IF(ISTEXT($A20),"",IF((OR($C20="RP",$C20="SP")),ABS(VLOOKUP(C20,'Filtered-P'!$AA$3:$AE$4,5,FALSE))+K20,ABS(VLOOKUP(C20,Filtered!$AG$3:$AK$14,5,FALSE))+K20)),"") -> 8.370995367 | M20: =IFERROR(IF((OR($C20="RP",$C20="SP")),IF(Personalize!$E$10=TRUE,(((VLOOKUP($B20,Pitcher!$A$1:$P$700,2,FALSE))-'Filtered-P'!$AB$8)/'Filtered-P'!$AC$8),""),IF(Personalize!$E$4=TRUE,(((VLOOKUP($B20,Hitter!$A$1:$X$628,21,FALSE))-Filtered!$AH$35)/Filtered!$AI$35),"")),"") -> 1.816813384 | N20: =IFERROR(IF((OR($C20="RP",$C20="SP")),IF(Personalize!$E$12=TRUE,(((VLOOKUP($B20,Pitcher!$A$1:$P$700,9,FALSE))-'Filtered-P'!$AB$15)/'Filtered-P'!$AC$15),""),IF(Personalize!$E$3=TRUE,(((VLOOKUP($B20,Hitter!$A$1:$AB$628,9,FALSE))-Filtered!$AH$25)/Filtered!$AI$25),"")),"") -> 1.373684637 | O20: =IFERROR(IF((OR($C20="RP",$C20="SP")),IF(Personalize!$E$11=TRUE,(((VLOOKUP($B20,Pitcher!$A$1:$P$700,7,FALSE))-'Filtered-P'!$AB$13)/'Filtered-P'!$AC$13),""),IF(Personalize!$E$2=TRUE,(((VLOOKUP($B20,Hitter!$A$1:$AB$628,4,FALSE))-Filtered!$AH$20)/Filtered!$AI$20),"")),"") -> 0.9538972179 | P20: =IFERROR(IF((OR($C20="RP",$C20="SP")),IF(Personalize!$E$13=TRUE,(((VLOOKUP($B20,Pitcher!$A$1:$P$700,13,FALSE))-'Filtered-P'!$AB$19)/'Filtered-P'!$AC$19),""),IF(Personalize!$E$5=TRUE,(((VLOOKUP($B20,Hitter!$A$1:$AB$628,10,FALSE))-Filtered!$AH$26)/Filtered!$AI$26),"")),"") -> 1.87891881 | Q20: =IFERROR(IF((OR($C20="RP",$C20="SP")),IF(Personalize!$E$14=TRUE,(((VLOOKUP($B20,Pitcher!$A$1:$P$700,14,FALSE))-'Filtered-P'!$AB$20)/'Filtered-P'!$AC$20),""),IF(Personalize!$E$6=TRUE,(((VLOOKUP($B20,Hitter!$A$1:$AB$628,11,FALSE))-Filtered!$AH$27)/Filtered!$AI$27),"")),"") -> -1.067359574 | R20: =IFERROR(IF((OR($C20="RP",$C20="SP")),IF(Personalize!$E$16=TRUE,(((VLOOKUP($B20,Pitcher!$A$1:$P$700,3,FALSE))-'Filtered-P'!$AB$9)/'Filtered-P'!$AC$9),""),IF(Personalize!$E$7=TRUE,(((VLOOKUP($B20,Hitter!$A$1:$AZ$628,23,FALSE))-Filtered!$AH$37)/Filtered!$AI$37),"")),"") ->  | S20: =IFERROR(IF((OR($C20="RP",$C20="SP")),IF(Personalize!$E$15=TRUE,(((VLOOKUP($B20,Pitcher!$A$1:$P$700,15,FALSE))-'Filtered-P'!$AB$21)/'Filtered-P'!$AC$21),""),IF(Personalize!$E$8=TRUE,(((VLOOKUP($B20,Hitter!$A$1:$AZ$628,22,FALSE))-Filtered!$AH$36)/Filtered!$AI$36),"")),"") ->  | T20: =IFERROR(IF((OR($C20="RP",$C20="SP")),IF(Personalize!$E$17=TRUE,(((VLOOKUP($B20,Pitcher!$A$1:$P$700,16,FALSE))-'Filtered-P'!$AB$22)/'Filtered-P'!$AC$22),""),IF(Personalize!$E$9=TRUE,(((VLOOKUP($B20,Hitter!$A$1:$AZ$628,24,FALSE))-Filtered!$AH$38)/Filtered!$AI$38),"")),"") ->  | U20: =IFERROR(IF((OR($C20="RP",$C20="SP")),IF(Personalize!$E$37=TRUE,(((VLOOKUP($B20,Pitcher!$A$1:$Z$700,17,FALSE))-'Filtered-P'!$AB$25)/'Filtered-P'!$AC$25),""),IF(Personalize!$E$39=TRUE,(((VLOOKUP($B20,Hitter!$A$1:$X$628,5,FALSE))-Filtered!$AH$21)/Filtered!$AI$21),"")),"") ->  | V20: =IFERROR(IF((OR($C20="RP",$C20="SP")),IF(Personalize!$E$38=TRUE,(((VLOOKUP($B20,Pitcher!$A$1:$Z$700,18,FALSE))-'Filtered-P'!$AB$26)/'Filtered-P'!$AC$26),""),IF(Personalize!$E$40=TRUE,(((VLOOKUP($B20,Hitter!$A$1:$X$628,13,FALSE))-Filtered!$AH$29)/Filtered!$AI$29),"")),"") ->  | W20: =IFERROR(IF((OR($C20="RP",$C20="SP")),IF(Personalize!$E$45=TRUE,(((VLOOKUP($B20,Pitcher!$A$1:$Z$700,4,FALSE))-'Filtered-P'!$AB$10)/'Filtered-P'!$AC$10),""),IF(Personalize!$E$41=TRUE,(((VLOOKUP($B20,Hitter!$A$1:$AZ$628,19,FALSE))-Filtered!$AH$43)/Filtered!$AI$43),"")),"") ->  | X20: =IFERROR(IF((OR($C20="RP",$C20="SP")),IF(Personalize!$E$46=TRUE,(((VLOOKUP($B20,Pitcher!$A$1:$Z$700,19,FALSE))-'Filtered-P'!$AB$27)/'Filtered-P'!$AC$27),""),IF(Personalize!$E$44=TRUE,(((VLOOKUP($B20,Hitter!$A$1:$AZ$628,20,FALSE))-Filtered!$AH$44)/Filtered!$AI$44),"")),"") ->  | Y20: =IFERROR(IF((OR($C20="RP",$C20="SP")),IF(Personalize!$E$47=TRUE,(((VLOOKUP($B20,Pitcher!$A$1:$Z$700,6,FALSE))-'Filtered-P'!$AB$12)/'Filtered-P'!$AC$12),""),IF(Personalize!$E$42=TRUE,(((VLOOKUP($B20,Hitter!$A$1:$AZ$628,7,FALSE))-Filtered!$AH$23)/Filtered!$AI$23),"")),"") ->  | Z20: =IFERROR(IF((OR($C20="RP",$C20="SP")),IF(Personalize!$E$48=TRUE,(((VLOOKUP($B20,Pitcher!$A$1:$Z$700,5,FALSE))-'Filtered-P'!$AB$11)/'Filtered-P'!$AC$11),""),IF(Personalize!$E$43=TRUE,(((VLOOKUP($B20,Hitter!$A$1:$AZ$628,8,FALSE))-Filtered!$AH$24)/Filtered!$AI$24),"")),"") ->  | AA20: =IFERROR(IF((OR($C20="RP",$C20="SP")),IF(Personalize!$E$52=TRUE,(((VLOOKUP($B20,Pitcher!$A$1:$AA$700,21,FALSE))-'Filtered-P'!$AB$29)/(-1*'Filtered-P'!$AC$29)),""),IF(Personalize!$E$49=TRUE,(((VLOOKUP($B20,Hitter!$A$1:$AF$628,29,FALSE))-Filtered!$AH$45)/Filtered!$AI$45),"")),"") ->  | AB20: =IFERROR(IF((OR($C20="RP",$C20="SP")),IF(Personalize!$E$53=TRUE,(((VLOOKUP($B20,Pitcher!$A$1:$AA$700,23,FALSE))-'Filtered-P'!$AB$31)/(-1*'Filtered-P'!$AC$31)),""),IF(Personalize!$E$50=TRUE,(((VLOOKUP($B20,Hitter!$A$1:$AF$628,30,FALSE))-Filtered!$AH$46)/Filtered!$AI$46),"")),"") ->  | AC20: =IFERROR(IF((OR($C20="RP",$C20="SP")),IF(Personalize!$E$54=TRUE,(((VLOOKUP($B20,Pitcher!$A$1:$AA$700,24,FALSE))-'Filtered-P'!$AB$32)/'Filtered-P'!$AC$32),""),IF(Personalize!$E$51=TRUE,(((VLOOKUP($B20,Hitter!$A$1:$AF$628,14,FALSE))-Filtered!$AH$30)/(-1*Filtered!$AI$30)),"")),"") ->  | AD20: =IFERROR(IF((OR($C20="RP",$C20="SP")),VLOOKUP($B20,Pitcher!$A$1:$P$700,2,FALSE),""),"") ->  | AE20: =IFERROR(IF((OR($C20="RP",$C20="SP")),VLOOKUP($B20,Pitcher!$A$1:$P$700,9,FALSE),""),"") ->  | AF20: =IFERROR(IF((OR($C20="RP",$C20="SP")),VLOOKUP($B20,Pitcher!$A$1:$P$700,7,FALSE),""),"") ->  | AG20: =IFERROR(IF((OR($C20="RP",$C20="SP")),VLOOKUP($B20,Pitcher!$A$1:$P$700,10,FALSE),""),"") ->  | AH20: =IFERROR(IF((OR($C20="RP",$C20="SP")),VLOOKUP($B20,Pitcher!$A$1:$P$700,11,FALSE),""),"") ->  | AI20: =IFERROR(IF((OR($C20="RP",$C20="SP")),"",VLOOKUP($B20,Hitter!$A$1:$X$628,15,FALSE)),"") -> 0.2971970005 | AJ20: =IFERROR(IF((OR($C20="RP",$C20="SP")),"",VLOOKUP($B20,Hitter!$A$1:$X$628,9,FALSE)),"") -> 28.00159089 | AK20: =IFERROR(IF((OR($C20="RP",$C20="SP")),"",VLOOKUP($B20,Hitter!$A$1:$X$628,10,FALSE)),"") -> 95.09394095 | AL20: =IFERROR(IF((OR($C20="RP",$C20="SP")),"",VLOOKUP($B20,Hitter!$A$1:$X$628,4,FALSE)),"") -> 85.11411954 | AM20: =IFERROR(IF((OR($C20="RP",$C20="SP")),"",VLOOKUP($B20,Hitter!$A$1:$X$628,11,FALSE)),"") -> 1.045163451 | AN20: =IFERROR(IF(ISTEXT($A20),"",(1-NORMDIST((COUNTA($A$9:$A$661)),($G20),((AS20-AR20)/6),TRUE))),"") -> 0.9999906731 | AO20: =IFERROR(IF(ISTEXT($A20),"",(1-NORMDIST((COUNTA($A$9:$A$661))+(Personalize!$E$18+1),$G20,((AS20-AR20)/6),TRUE))),"") -> 0.7143498661 | AP20: =IFERROR(IF(ISTEXT($A20),"",(1-NORMDIST((COUNTA($A$9:$A$661))+((Personalize!$E$18+1)*2),$G20,((AS20-AR20)/6),TRUE))),"") -> 0.0008215419843 | AR20: =IF(Personalize!$E$31=1,VLOOKUP($B20,'ADP-Rank'!$A$2:$J$609,5,FALSE),(IF(Personalize!$E$31=2,VLOOKUP($B20,'ADP-Rank'!$A$2:$J$609,8,FALSE),(IF(Personalize!$E$31=3,VLOOKUP($B20,'ADP-Rank'!$A$2:$O$609,11,FALSE),(IF(Personalize!$E$31=4,VLOOKUP($B20,'ADP-Rank'!$A$2:$AN$609,25,FALSE),(IF(Personalize!$E$31=5,VLOOKUP($B20,'ADP-Rank'!$A$2:$AN$609,28,FALSE),(IF(Personalize!$E$31=6,VLOOKUP($B20,'ADP-Rank'!$A$2:$AN$609,32,FALSE),(IF(Personalize!$E$31=7,VLOOKUP($B20,'ADP-Rank'!$A$2:$AN$609,40,FALSE),""))))))))))))) -> 7 | AS20: =IF(Personalize!$E$31=1,VLOOKUP($B20,'ADP-Rank'!$A$2:$J$609,6,FALSE),(IF(Personalize!$E$31=2,VLOOKUP($B20,'ADP-Rank'!$A$2:$J$609,9,FALSE),(IF(Personalize!$E$31=3,VLOOKUP($B20,'ADP-Rank'!$A$2:$O$609,12,FALSE),(IF(Personalize!$E$31=4,VLOOKUP($B20,'ADP-Rank'!$A$2:$AN$609,26,FALSE),(IF(Personalize!$E$31=5,VLOOKUP($B20,'ADP-Rank'!$A$2:$AN$609,29,FALSE),(IF(Personalize!$E$31=6,VLOOKUP($B20,'ADP-Rank'!$A$2:$AN$609,33,FALSE),(IF(Personalize!$E$31=7,VLOOKUP($B20,'ADP-Rank'!$A$2:$AP$609,41,FALSE),""))))))))))))) -> 28 | AT20: =IF(ISBLANK(A20),0,1) -> 0 | AU20: =IF(K20="",0,1) -> 1 | AV20: =A20 -> 0 | AW20: =IF(C20="C",1,IF(C20="1B",2,IF(C20="2B",3,IF(C20="3B",4,IF(C20="SS",5,IF(C20="CI",6,IF(C20="MI",7,IF(C20="OF",11,IF(C20="LF",8,IF(C20="CF",9,IF(C20="RF",10,IF(C20="DH",12,IF(C20="SP",13,IF(C20="RP",14,IF(C20="P",15,16))))))))))))))) -> 4 | AX20: =VLOOKUP(B20,'Starter Calc'!$B$2:$BN$700,65,FALSE) -> Bench | AY20: =IFERROR(VLOOKUP($B20,'ADP-Rank'!$A$2:$AH$785,34,FALSE),TRUE) -> TRUE
B21: Troy Tulowitzki | C21: SS | D21: =IFERROR(IF(VLOOKUP(B21,'Starter Calc'!$B$2:$E$700,4,FALSE)="","",VLOOKUP(B21,'Starter Calc'!$B$2:$E$700,4,FALSE)),"") -> ,, | E21: =IFERROR(VLOOKUP($B21,'ADP-Rank'!$A$2:$D$650,3,FALSE),"") -> COL | F21: =IFERROR(VLOOKUP($B21,'ADP-Rank'!$A$2:$W$650,23,FALSE),"") -> 29 | G21: =IFERROR((IF(Personalize!$E$31=1,VLOOKUP($B21,'ADP-Rank'!$A$2:$J$750,4,FALSE),(IF(Personalize!$E$31=2,VLOOKUP($B21,'ADP-Rank'!$A$2:$J$750,7,FALSE),(IF(Personalize!$E$31=3,VLOOKUP($B21,'ADP-Rank'!$A$2:$J$750,10,FALSE),(IF(Personalize!$E$31=4,VLOOKUP($B21,'ADP-Rank'!$A$2:$AN$750,24,FALSE),(IF(Personalize!$E$31=5,VLOOKUP($B21,'ADP-Rank'!$A$2:$AN$750,27,FALSE),(IF(Personalize!$E$31=6,VLOOKUP($B21,'ADP-Rank'!$A$2:$AN$750,31,FALSE),(IF(Personalize!$E$31=7,VLOOKUP($B21,'ADP-Rank'!$A$2:$AN$750,39,FALSE))))))))))))))),"") -> 15.12962963 | H21: =IFERROR(ROUNDDOWN(VLOOKUP($B21,'ADP-Rank'!$A$2:$AN$885,38,FALSE),0),"") -> 2 | I21: =VLOOKUP($B21,'ADP-Rank'!$A$2:$AJ$885,36,FALSE) -> 7 | J21: =IFERROR(RANK($K21,$K$7:$K$661,0),"") -> 24 | K21: =IF((SUM(M21:AC21)=0),"",SUM(M21:AC21)) -> 3.970628279 | L21: =IFERROR(IF(ISTEXT($A21),"",IF((OR($C21="RP",$C21="SP")),ABS(VLOOKUP(C21,'Filtered-P'!$AA$3:$AE$4,5,FALSE))+K21,ABS(VLOOKUP(C21,Filtered!$AG$3:$AK$14,5,FALSE))+K21)),"") -> 8.25234121 | M21: =IFERROR(IF((OR($C21="RP",$C21="SP")),IF(Personalize!$E$10=TRUE,(((VLOOKUP($B21,Pitcher!$A$1:$P$700,2,FALSE))-'Filtered-P'!$AB$8)/'Filtered-P'!$AC$8),""),IF(Personalize!$E$4=TRUE,(((VLOOKUP($B21,Hitter!$A$1:$X$628,21,FALSE))-Filtered!$AH$35)/Filtered!$AI$35),"")),"") -> 1.82865611 | N21: =IFERROR(IF((OR($C21="RP",$C21="SP")),IF(Personalize!$E$12=TRUE,(((VLOOKUP($B21,Pitcher!$A$1:$P$700,9,FALSE))-'Filtered-P'!$AB$15)/'Filtered-P'!$AC$15),""),IF(Personalize!$E$3=TRUE,(((VLOOKUP($B21,Hitter!$A$1:$AB$628,9,FALSE))-Filtered!$AH$25)/Filtered!$AI$25),"")),"") -> 1.080965144 | O21: =IFERROR(IF((OR($C21="RP",$C21="SP")),IF(Personalize!$E$11=TRUE,(((VLOOKUP($B21,Pitcher!$A$1:$P$700,7,FALSE))-'Filtered-P'!$AB$13)/'Filtered-P'!$AC$13),""),IF(Personalize!$E$2=TRUE,(((VLOOKUP($B21,Hitter!$A$1:$AB$628,4,FALSE))-Filtered!$AH$20)/Filtered!$AI$20),"")),"") -> 0.5125867902 | P21: =IFERROR(IF((OR($C21="RP",$C21="SP")),IF(Personalize!$E$13=TRUE,(((VLOOKUP($B21,Pitcher!$A$1:$P$700,13,FALSE))-'Filtered-P'!$AB$19)/'Filtered-P'!$AC$19),""),IF(Personalize!$E$5=TRUE,(((VLOOKUP($B21,Hitter!$A$1:$AB$628,10,FALSE))-Filtered!$AH$26)/Filtered!$AI$26),"")),"") -> 1.231153071 | Q21: =IFERROR(IF((OR($C21="RP",$C21="SP")),IF(Personalize!$E$14=TRUE,(((VLOOKUP($B21,Pitcher!$A$1:$P$700,14,FALSE))-'Filtered-P'!$AB$20)/'Filtered-P'!$AC$20),""),IF(Personalize!$E$6=TRUE,(((VLOOKUP($B21,Hitter!$A$1:$AB$628,11,FALSE))-Filtered!$AH$27)/Filtered!$AI$27),"")),"") -> -0.682732837 | R21: =IFERROR(IF((OR($C21="RP",$C21="SP")),IF(Personalize!$E$16=TRUE,(((VLOOKUP($B21,Pitcher!$A$1:$P$700,3,FALSE))-'Filtered-P'!$AB$9)/'Filtered-P'!$AC$9),""),IF(Personalize!$E$7=TRUE,(((VLOOKUP($B21,Hitter!$A$1:$AZ$628,23,FALSE))-Filtered!$AH$37)/Filtered!$AI$37),"")),"") ->  | S21: =IFERROR(IF((OR($C21="RP",$C21="SP")),IF(Personalize!$E$15=TRUE,(((VLOOKUP($B21,Pitcher!$A$1:$P$700,15,FALSE))-'Filtered-P'!$AB$21)/'Filtered-P'!$AC$21),""),IF(Personalize!$E$8=TRUE,(((VLOOKUP($B21,Hitter!$A$1:$AZ$628,22,FALSE))-Filtered!$AH$36)/Filtered!$AI$36),"")),"") ->  | T21: =IFERROR(IF((OR($C21="RP",$C21="SP")),IF(Personalize!$E$17=TRUE,(((VLOOKUP($B21,Pitcher!$A$1:$P$700,16,FALSE))-'Filtered-P'!$AB$22)/'Filtered-P'!$AC$22),""),IF(Personalize!$E$9=TRUE,(((VLOOKUP($B21,Hitter!$A$1:$AZ$628,24,FALSE))-Filtered!$AH$38)/Filtered!$AI$38),"")),"") ->  | U21: =IFERROR(IF((OR($C21="RP",$C21="SP")),IF(Personalize!$E$37=TRUE,(((VLOOKUP($B21,Pitcher!$A$1:$Z$700,17,FALSE))-'Filtered-P'!$AB$25)/'Filtered-P'!$AC$25),""),IF(Personalize!$E$39=TRUE,(((VLOOKUP($B21,Hitter!$A$1:$X$628,5,FALSE))-Filtered!$AH$21)/Filtered!$AI$21),"")),"") ->  | V21: =IFERROR(IF((OR($C21="RP",$C21="SP")),IF(Personalize!$E$38=TRUE,(((VLOOKUP($B21,Pitcher!$A$1:$Z$700,18,FALSE))-'Filtered-P'!$AB$26)/'Filtered-P'!$AC$26),""),IF(Personalize!$E$40=TRUE,(((VLOOKUP($B21,Hitter!$A$1:$X$628,13,FALSE))-Filtered!$AH$29)/Filtered!$AI$29),"")),"") ->  | W21: =IFERROR(IF((OR($C21="RP",$C21="SP")),IF(Personalize!$E$45=TRUE,(((VLOOKUP($B21,Pitcher!$A$1:$Z$700,4,FALSE))-'Filtered-P'!$AB$10)/'Filtered-P'!$AC$10),""),IF(Personalize!$E$41=TRUE,(((VLOOKUP($B21,Hitter!$A$1:$AZ$628,19,FALSE))-Filtered!$AH$43)/Filtered!$AI$43),"")),"") ->  | X21: =IFERROR(IF((OR($C21="RP",$C21="SP")),IF(Personalize!$E$46=TRUE,(((VLOOKUP($B21,Pitcher!$A$1:$Z$700,19,FALSE))-'Filtered-P'!$AB$27)/'Filtered-P'!$AC$27),""),IF(Personalize!$E$44=TRUE,(((VLOOKUP($B21,Hitter!$A$1:$AZ$628,20,FALSE))-Filtered!$AH$44)/Filtered!$AI$44),"")),"") ->  | Y21: =IFERROR(IF((OR($C21="RP",$C21="SP")),IF(Personalize!$E$47=TRUE,(((VLOOKUP($B21,Pitcher!$A$1:$Z$700,6,FALSE))-'Filtered-P'!$AB$12)/'Filtered-P'!$AC$12),""),IF(Personalize!$E$42=TRUE,(((VLOOKUP($B21,Hitter!$A$1:$AZ$628,7,FALSE))-Filtered!$AH$23)/Filtered!$AI$23),"")),"") ->  | Z21: =IFERROR(IF((OR($C21="RP",$C21="SP")),IF(Personalize!$E$48=TRUE,(((VLOOKUP($B21,Pitcher!$A$1:$Z$700,5,FALSE))-'Filtered-P'!$AB$11)/'Filtered-P'!$AC$11),""),IF(Personalize!$E$43=TRUE,(((VLOOKUP($B21,Hitter!$A$1:$AZ$628,8,FALSE))-Filtered!$AH$24)/Filtered!$AI$24),"")),"") ->  | AA21: =IFERROR(IF((OR($C21="RP",$C21="SP")),IF(Personalize!$E$52=TRUE,(((VLOOKUP($B21,Pitcher!$A$1:$AA$700,21,FALSE))-'Filtered-P'!$AB$29)/(-1*'Filtered-P'!$AC$29)),""),IF(Personalize!$E$49=TRUE,(((VLOOKUP($B21,Hitter!$A$1:$AF$628,29,FALSE))-Filtered!$AH$45)/Filtered!$AI$45),"")),"") ->  | AB21: =IFERROR(IF((OR($C21="RP",$C21="SP")),IF(Personalize!$E$53=TRUE,(((VLOOKUP($B21,Pitcher!$A$1:$AA$700,23,FALSE))-'Filtered-P'!$AB$31)/(-1*'Filtered-P'!$AC$31)),""),IF(Personalize!$E$50=TRUE,(((VLOOKUP($B21,Hitter!$A$1:$AF$628,30,FALSE))-Filtered!$AH$46)/Filtered!$AI$46),"")),"") ->  | AC21: =IFERROR(IF((OR($C21="RP",$C21="SP")),IF(Personalize!$E$54=TRUE,(((VLOOKUP($B21,Pitcher!$A$1:$AA$700,24,FALSE))-'Filtered-P'!$AB$32)/'Filtered-P'!$AC$32),""),IF(Personalize!$E$51=TRUE,(((VLOOKUP($B21,Hitter!$A$1:$AF$628,14,FALSE))-Filtered!$AH$30)/(-1*Filtered!$AI$30)),"")),"") ->  | AD21: =IFERROR(IF((OR($C21="RP",$C21="SP")),VLOOKUP($B21,Pitcher!$A$1:$P$700,2,FALSE),""),"") ->  | AE21: =IFERROR(IF((OR($C21="RP",$C21="SP")),VLOOKUP($B21,Pitcher!$A$1:$P$700,9,FALSE),""),"") ->  | AF21: =IFERROR(IF((OR($C21="RP",$C21="SP")),VLOOKUP($B21,Pitcher!$A$1:$P$700,7,FALSE),""),"") ->  | AG21: =IFERROR(IF((OR($C21="RP",$C21="SP")),VLOOKUP($B21,Pitcher!$A$1:$P$700,10,FALSE),""),"") ->  | AH21: =IFERROR(IF((OR($C21="RP",$C21="SP")),VLOOKUP($B21,Pitcher!$A$1:$P$700,11,FALSE),""),"") ->  | AI21: =IFERROR(IF((OR($C21="RP",$C21="SP")),"",VLOOKUP($B21,Hitter!$A$1:$X$628,15,FALSE)),"") -> 0.3017508065 | AJ21: =IFERROR(IF((OR($C21="RP",$C21="SP")),"",VLOOKUP($B21,Hitter!$A$1:$X$628,9,FALSE)),"") -> 25.89139022 | AK21: =IFERROR(IF((OR($C21="RP",$C21="SP")),"",VLOOKUP($B21,Hitter!$A$1:$X$628,10,FALSE)),"") -> 86.15902589 | AL21: =IFERROR(IF((OR($C21="RP",$C21="SP")),"",VLOOKUP($B21,Hitter!$A$1:$X$628,4,FALSE)),"") -> 80.34136769 | AM21: =IFERROR(IF((OR($C21="RP",$C21="SP")),"",VLOOKUP($B21,Hitter!$A$1:$X$628,11,FALSE)),"") -> 4.61678233 | AN21: =IFERROR(IF(ISTEXT($A21),"",(1-NORMDIST((COUNTA($A$9:$A$661)),($G21),((AS21-AR21)/6),TRUE))),"") -> 0.9999991138 | AO21: =IFERROR(IF(ISTEXT($A21),"",(1-NORMDIST((COUNTA($A$9:$A$661))+(Personalize!$E$18+1),$G21,((AS21-AR21)/6),TRUE))),"") -> 0.749371932 | AP21: =IFERROR(IF(ISTEXT($A21),"",(1-NORMDIST((COUNTA($A$9:$A$661))+((Personalize!$E$18+1)*2),$G21,((AS21-AR21)/6),TRUE))),"") -> 0.0002987479876 | AR21: =IF(Personalize!$E$31=1,VLOOKUP($B21,'ADP-Rank'!$A$2:$J$609,5,FALSE),(IF(Personalize!$E$31=2,VLOOKUP($B21,'ADP-Rank'!$A$2:$J$609,8,FALSE),(IF(Personalize!$E$31=3,VLOOKUP($B21,'ADP-Rank'!$A$2:$O$609,11,FALSE),(IF(Personalize!$E$31=4,VLOOKUP($B21,'ADP-Rank'!$A$2:$AN$609,25,FALSE),(IF(Personalize!$E$31=5,VLOOKUP($B21,'ADP-Rank'!$A$2:$AN$609,28,FALSE),(IF(Personalize!$E$31=6,VLOOKUP($B21,'ADP-Rank'!$A$2:$AN$609,32,FALSE),(IF(Personalize!$E$31=7,VLOOKUP($B21,'ADP-Rank'!$A$2:$AN$609,40,FALSE),""))))))))))))) -> 6 | AS21: =IF(Personalize!$E$31=1,VLOOKUP($B21,'ADP-Rank'!$A$2:$J$609,6,FALSE),(IF(Personalize!$E$31=2,VLOOKUP($B21,'ADP-Rank'!$A$2:$J$609,9,FALSE),(IF(Personalize!$E$31=3,VLOOKUP($B21,'ADP-Rank'!$A$2:$O$609,12,FALSE),(IF(Personalize!$E$31=4,VLOOKUP($B21,'ADP-Rank'!$A$2:$AN$609,26,FALSE),(IF(Personalize!$E$31=5,VLOOKUP($B21,'ADP-Rank'!$A$2:$AN$609,29,FALSE),(IF(Personalize!$E$31=6,VLOOKUP($B21,'ADP-Rank'!$A$2:$AN$609,33,FALSE),(IF(Personalize!$E$31=7,VLOOKUP($B21,'ADP-Rank'!$A$2:$AP$609,41,FALSE),""))))))))))))) -> 25 | AT21: =IF(ISBLANK(A21),0,1) -> 0 | AU21: =IF(K21="",0,1) -> 1 | AV21: =A21 -> 0 | AW21: =IF(C21="C",1,IF(C21="1B",2,IF(C21="2B",3,IF(C21="3B",4,IF(C21="SS",5,IF(C21="CI",6,IF(C21="MI",7,IF(C21="OF",11,IF(C21="LF",8,IF(C21="CF",9,IF(C21="RF",10,IF(C21="DH",12,IF(C21="SP",13,IF(C21="RP",14,IF(C21="P",15,16))))))))))))))) -> 5 | AX21: =VLOOKUP(B21,'Starter Calc'!$B$2:$BN$700,65,FALSE) -> Starter | AY21: =IFERROR(VLOOKUP($B21,'ADP-Rank'!$A$2:$AH$785,34,FALSE),TRUE) -> TRUE
B22: Jacoby Ellsbury | C22: OF | D22: =IFERROR(IF(VLOOKUP(B22,'Starter Calc'!$B$2:$E$700,4,FALSE)="","",VLOOKUP(B22,'Starter Calc'!$B$2:$E$700,4,FALSE)),"") -> ,,CF | E22: =IFERROR(VLOOKUP($B22,'ADP-Rank'!$A$2:$D$650,3,FALSE),"") -> NYY | F22: =IFERROR(VLOOKUP($B22,'ADP-Rank'!$A$2:$W$650,23,FALSE),"") -> 30 | G22: =IFERROR((IF(Personalize!$E$31=1,VLOOKUP($B22,'ADP-Rank'!$A$2:$J$750,4,FALSE),(IF(Personalize!$E$31=2,VLOOKUP($B22,'ADP-Rank'!$A$2:$J$750,7,FALSE),(IF(Personalize!$E$31=3,VLOOKUP($B22,'ADP-Rank'!$A$2:$J$750,10,FALSE),(IF(Personalize!$E$31=4,VLOOKUP($B22,'ADP-Rank'!$A$2:$AN$750,24,FALSE),(IF(Personalize!$E$31=5,VLOOKUP($B22,'ADP-Rank'!$A$2:$AN$750,27,FALSE),(IF(Personalize!$E$31=6,VLOOKUP($B22,'ADP-Rank'!$A$2:$AN$750,31,FALSE),(IF(Personalize!$E$31=7,VLOOKUP($B22,'ADP-Rank'!$A$2:$AN$750,39,FALSE))))))))))))))),"") -> 15.25308642 | H22: =IFERROR(ROUNDDOWN(VLOOKUP($B22,'ADP-Rank'!$A$2:$AN$885,38,FALSE),0),"") -> 2 | I22: =VLOOKUP($B22,'ADP-Rank'!$A$2:$AJ$885,36,FALSE) -> 37 | J22: =IFERROR(RANK($K22,$K$7:$K$661,0),"") -> 33 | K22: =IF((SUM(M22:AC22)=0),"",SUM(M22:AC22)) -> 3.328590256 | L22: =IFERROR(IF(ISTEXT($A22),"",IF((OR($C22="RP",$C22="SP")),ABS(VLOOKUP(C22,'Filtered-P'!$AA$3:$AE$4,5,FALSE))+K22,ABS(VLOOKUP(C22,Filtered!$AG$3:$AK$14,5,FALSE))+K22)),"") -> 3.74421865 | M22: =IFERROR(IF((OR($C22="RP",$C22="SP")),IF(Personalize!$E$10=TRUE,(((VLOOKUP($B22,Pitcher!$A$1:$P$700,2,FALSE))-'Filtered-P'!$AB$8)/'Filtered-P'!$AC$8),""),IF(Personalize!$E$4=TRUE,(((VLOOKUP($B22,Hitter!$A$1:$X$628,21,FALSE))-Filtered!$AH$35)/Filtered!$AI$35),"")),"") -> 0.7734025021 | N22: =IFERROR(IF((OR($C22="RP",$C22="SP")),IF(Personalize!$E$12=TRUE,(((VLOOKUP($B22,Pitcher!$A$1:$P$700,9,FALSE))-'Filtered-P'!$AB$15)/'Filtered-P'!$AC$15),""),IF(Personalize!$E$3=TRUE,(((VLOOKUP($B22,Hitter!$A$1:$AB$628,9,FALSE))-Filtered!$AH$25)/Filtered!$AI$25),"")),"") -> -0.562485729 | O22: =IFERROR(IF((OR($C22="RP",$C22="SP")),IF(Personalize!$E$11=TRUE,(((VLOOKUP($B22,Pitcher!$A$1:$P$700,7,FALSE))-'Filtered-P'!$AB$13)/'Filtered-P'!$AC$13),""),IF(Personalize!$E$2=TRUE,(((VLOOKUP($B22,Hitter!$A$1:$AB$628,4,FALSE))-Filtered!$AH$20)/Filtered!$AI$20),"")),"") -> 1.106771006 | P22: =IFERROR(IF((OR($C22="RP",$C22="SP")),IF(Personalize!$E$13=TRUE,(((VLOOKUP($B22,Pitcher!$A$1:$P$700,13,FALSE))-'Filtered-P'!$AB$19)/'Filtered-P'!$AC$19),""),IF(Personalize!$E$5=TRUE,(((VLOOKUP($B22,Hitter!$A$1:$AB$628,10,FALSE))-Filtered!$AH$26)/Filtered!$AI$26),"")),"") -> -0.7632684557 | Q22: =IFERROR(IF((OR($C22="RP",$C22="SP")),IF(Personalize!$E$14=TRUE,(((VLOOKUP($B22,Pitcher!$A$1:$P$700,14,FALSE))-'Filtered-P'!$AB$20)/'Filtered-P'!$AC$20),""),IF(Personalize!$E$6=TRUE,(((VLOOKUP($B22,Hitter!$A$1:$AB$628,11,FALSE))-Filtered!$AH$27)/Filtered!$AI$27),"")),"") -> 2.774170932 | R22: =IFERROR(IF((OR($C22="RP",$C22="SP")),IF(Personalize!$E$16=TRUE,(((VLOOKUP($B22,Pitcher!$A$1:$P$700,3,FALSE))-'Filtered-P'!$AB$9)/'Filtered-P'!$AC$9),""),IF(Personalize!$E$7=TRUE,(((VLOOKUP($B22,Hitter!$A$1:$AZ$628,23,FALSE))-Filtered!$AH$37)/Filtered!$AI$37),"")),"") ->  | S22: =IFERROR(IF((OR($C22="RP",$C22="SP")),IF(Personalize!$E$15=TRUE,(((VLOOKUP($B22,Pitcher!$A$1:$P$700,15,FALSE))-'Filtered-P'!$AB$21)/'Filtered-P'!$AC$21),""),IF(Personalize!$E$8=TRUE,(((VLOOKUP($B22,Hitter!$A$1:$AZ$628,22,FALSE))-Filtered!$AH$36)/Filtered!$AI$36),"")),"") ->  | T22: =IFERROR(IF((OR($C22="RP",$C22="SP")),IF(Personalize!$E$17=TRUE,(((VLOOKUP($B22,Pitcher!$A$1:$P$700,16,FALSE))-'Filtered-P'!$AB$22)/'Filtered-P'!$AC$22),""),IF(Personalize!$E$9=TRUE,(((VLOOKUP($B22,Hitter!$A$1:$AZ$628,24,FALSE))-Filtered!$AH$38)/Filtered!$AI$38),"")),"") ->  | U22: =IFERROR(IF((OR($C22="RP",$C22="SP")),IF(Personalize!$E$37=TRUE,(((VLOOKUP($B22,Pitcher!$A$1:$Z$700,17,FALSE))-'Filtered-P'!$AB$25)/'Filtered-P'!$AC$25),""),IF(Personalize!$E$39=TRUE,(((VLOOKUP($B22,Hitter!$A$1:$X$628,5,FALSE))-Filtered!$AH$21)/Filtered!$AI$21),"")),"") ->  | V22: =IFERROR(IF((OR($C22="RP",$C22="SP")),IF(Personalize!$E$38=TRUE,(((VLOOKUP($B22,Pitcher!$A$1:$Z$700,18,FALSE))-'Filtered-P'!$AB$26)/'Filtered-P'!$AC$26),""),IF(Personalize!$E$40=TRUE,(((VLOOKUP($B22,Hitter!$A$1:$X$628,13,FALSE))-Filtered!$AH$29)/Filtered!$AI$29),"")),"") ->  | W22: =IFERROR(IF((OR($C22="RP",$C22="SP")),IF(Personalize!$E$45=TRUE,(((VLOOKUP($B22,Pitcher!$A$1:$Z$700,4,FALSE))-'Filtered-P'!$AB$10)/'Filtered-P'!$AC$10),""),IF(Personalize!$E$41=TRUE,(((VLOOKUP($B22,Hitter!$A$1:$AZ$628,19,FALSE))-Filtered!$AH$43)/Filtered!$AI$43),"")),"") ->  | X22: =IFERROR(IF((OR($C22="RP",$C22="SP")),IF(Personalize!$E$46=TRUE,(((VLOOKUP($B22,Pitcher!$A$1:$Z$700,19,FALSE))-'Filtered-P'!$AB$27)/'Filtered-P'!$AC$27),""),IF(Personalize!$E$44=TRUE,(((VLOOKUP($B22,Hitter!$A$1:$AZ$628,20,FALSE))-Filtered!$AH$44)/Filtered!$AI$44),"")),"") ->  | Y22: =IFERROR(IF((OR($C22="RP",$C22="SP")),IF(Personalize!$E$47=TRUE,(((VLOOKUP($B22,Pitcher!$A$1:$Z$700,6,FALSE))-'Filtered-P'!$AB$12)/'Filtered-P'!$AC$12),""),IF(Personalize!$E$42=TRUE,(((VLOOKUP($B22,Hitter!$A$1:$AZ$628,7,FALSE))-Filtered!$AH$23)/Filtered!$AI$23),"")),"") ->  | Z22: =IFERROR(IF((OR($C22="RP",$C22="SP")),IF(Personalize!$E$48=TRUE,(((VLOOKUP($B22,Pitcher!$A$1:$Z$700,5,FALSE))-'Filtered-P'!$AB$11)/'Filtered-P'!$AC$11),""),IF(Personalize!$E$43=TRUE,(((VLOOKUP($B22,Hitter!$A$1:$AZ$628,8,FALSE))-Filtered!$AH$24)/Filtered!$AI$24),"")),"") ->  | AA22: =IFERROR(IF((OR($C22="RP",$C22="SP")),IF(Personalize!$E$52=TRUE,(((VLOOKUP($B22,Pitcher!$A$1:$AA$700,21,FALSE))-'Filtered-P'!$AB$29)/(-1*'Filtered-P'!$AC$29)),""),IF(Personalize!$E$49=TRUE,(((VLOOKUP($B22,Hitter!$A$1:$AF$628,29,FALSE))-Filtered!$AH$45)/Filtered!$AI$45),"")),"") ->  | AB22: =IFERROR(IF((OR($C22="RP",$C22="SP")),IF(Personalize!$E$53=TRUE,(((VLOOKUP($B22,Pitcher!$A$1:$AA$700,23,FALSE))-'Filtered-P'!$AB$31)/(-1*'Filtered-P'!$AC$31)),""),IF(Personalize!$E$50=TRUE,(((VLOOKUP($B22,Hitter!$A$1:$AF$628,30,FALSE))-Filtered!$AH$46)/Filtered!$AI$46),"")),"") ->  | AC22: =IFERROR(IF((OR($C22="RP",$C22="SP")),IF(Personalize!$E$54=TRUE,(((VLOOKUP($B22,Pitcher!$A$1:$AA$700,24,FALSE))-'Filtered-P'!$AB$32)/'Filtered-P'!$AC$32),""),IF(Personalize!$E$51=TRUE,(((VLOOKUP($B22,Hitter!$A$1:$AF$628,14,FALSE))-Filtered!$AH$30)/(-1*Filtered!$AI$30)),"")),"") ->  | AD22: =IFERROR(IF((OR($C22="RP",$C22="SP")),VLOOKUP($B22,Pitcher!$A$1:$P$700,2,FALSE),""),"") ->  | AE22: =IFERROR(IF((OR($C22="RP",$C22="SP")),VLOOKUP($B22,Pitcher!$A$1:$P$700,9,FALSE),""),"") ->  | AF22: =IFERROR(IF((OR($C22="RP",$C22="SP")),VLOOKUP($B22,Pitcher!$A$1:$P$700,7,FALSE),""),"") ->  | AG22: =IFERROR(IF((OR($C22="RP",$C22="SP")),VLOOKUP($B22,Pitcher!$A$1:$P$700,10,FALSE),""),"") ->  | AH22: =IFERROR(IF((OR($C22="RP",$C22="SP")),VLOOKUP($B22,Pitcher!$A$1:$P$700,11,FALSE),""),"") ->  | AI22: =IFERROR(IF((OR($C22="RP",$C22="SP")),"",VLOOKUP($B22,Hitter!$A$1:$X$628,15,FALSE)),"") -> 0.2819990645 | AJ22: =IFERROR(IF((OR($C22="RP",$C22="SP")),"",VLOOKUP($B22,Hitter!$A$1:$X$628,9,FALSE)),"") -> 14.04383237 | AK22: =IFERROR(IF((OR($C22="RP",$C22="SP")),"",VLOOKUP($B22,Hitter!$A$1:$X$628,10,FALSE)),"") -> 58.64910077 | AL22: =IFERROR(IF((OR($C22="RP",$C22="SP")),"",VLOOKUP($B22,Hitter!$A$1:$X$628,4,FALSE)),"") -> 86.76744249 | AM22: =IFERROR(IF((OR($C22="RP",$C22="SP")),"",VLOOKUP($B22,Hitter!$A$1:$X$628,11,FALSE)),"") -> 36.71736601 | AN22: =IFERROR(IF(ISTEXT($A22),"",(1-NORMDIST((COUNTA($A$9:$A$661)),($G22),((AS22-AR22)/6),TRUE))),"") -> 0.9999654067 | AO22: =IFERROR(IF(ISTEXT($A22),"",(1-NORMDIST((COUNTA($A$9:$A$661))+(Personalize!$E$18+1),$G22,((AS22-AR22)/6),TRUE))),"") -> 0.721653864 | AP22: =IFERROR(IF(ISTEXT($A22),"",(1-NORMDIST((COUNTA($A$9:$A$661))+((Personalize!$E$18+1)*2),$G22,((AS22-AR22)/6),TRUE))),"") -> 0.002527227153 | AR22: =IF(Personalize!$E$31=1,VLOOKUP($B22,'ADP-Rank'!$A$2:$J$609,5,FALSE),(IF(Personalize!$E$31=2,VLOOKUP($B22,'ADP-Rank'!$A$2:$J$609,8,FALSE),(IF(Personalize!$E$31=3,VLOOKUP($B22,'ADP-Rank'!$A$2:$O$609,11,FALSE),(IF(Personalize!$E$31=4,VLOOKUP($B22,'ADP-Rank'!$A$2:$AN$609,25,FALSE),(IF(Personalize!$E$31=5,VLOOKUP($B22,'ADP-Rank'!$A$2:$AN$609,28,FALSE),(IF(Personalize!$E$31=6,VLOOKUP($B22,'ADP-Rank'!$A$2:$AN$609,32,FALSE),(IF(Personalize!$E$31=7,VLOOKUP($B22,'ADP-Rank'!$A$2:$AN$609,40,FALSE),""))))))))))))) -> 7 | AS22: =IF(Personalize!$E$31=1,VLOOKUP($B22,'ADP-Rank'!$A$2:$J$609,6,FALSE),(IF(Personalize!$E$31=2,VLOOKUP($B22,'ADP-Rank'!$A$2:$J$609,9,FALSE),(IF(Personalize!$E$31=3,VLOOKUP($B22,'ADP-Rank'!$A$2:$O$609,12,FALSE),(IF(Personalize!$E$31=4,VLOOKUP($B22,'ADP-Rank'!$A$2:$AN$609,26,FALSE),(IF(Personalize!$E$31=5,VLOOKUP($B22,'ADP-Rank'!$A$2:$AN$609,29,FALSE),(IF(Personalize!$E$31=6,VLOOKUP($B22,'ADP-Rank'!$A$2:$AN$609,33,FALSE),(IF(Personalize!$E$31=7,VLOOKUP($B22,'ADP-Rank'!$A$2:$AP$609,41,FALSE),""))))))))))))) -> 30 | AT22: =IF(ISBLANK(A22),0,1) -> 0 | AU22: =IF(K22="",0,1) -> 1 | AV22: =A22 -> 0 | AW22: =IF(C22="C",1,IF(C22="1B",2,IF(C22="2B",3,IF(C22="3B",4,IF(C22="SS",5,IF(C22="CI",6,IF(C22="MI",7,IF(C22="OF",11,IF(C22="LF",8,IF(C22="CF",9,IF(C22="RF",10,IF(C22="DH",12,IF(C22="SP",13,IF(C22="RP",14,IF(C22="P",15,16))))))))))))))) -> 11 | AX22: =VLOOKUP(B22,'Starter Calc'!$B$2:$BN$700,65,FALSE) -> Bench | AY22: =IFERROR(VLOOKUP($B22,'ADP-Rank'!$A$2:$AH$785,34,FALSE),TRUE) -> TRUE
B23: Joey Votto | C23: 1B | D23: =IFERROR(IF(VLOOKUP(B23,'Starter Calc'!$B$2:$E$700,4,FALSE)="","",VLOOKUP(B23,'Starter Calc'!$B$2:$E$700,4,FALSE)),"") -> ,, | E23: =IFERROR(VLOOKUP($B23,'ADP-Rank'!$A$2:$D$650,3,FALSE),"") -> CIN | F23: =IFERROR(VLOOKUP($B23,'ADP-Rank'!$A$2:$W$650,23,FALSE),"") -> 30 | G23: =IFERROR((IF(Personalize!$E$31=1,VLOOKUP($B23,'ADP-Rank'!$A$2:$J$750,4,FALSE),(IF(Personalize!$E$31=2,VLOOKUP($B23,'ADP-Rank'!$A$2:$J$750,7,FALSE),(IF(Personalize!$E$31=3,VLOOKUP($B23,'ADP-Rank'!$A$2:$J$750,10,FALSE),(IF(Personalize!$E$31=4,VLOOKUP($B23,'ADP-Rank'!$A$2:$AN$750,24,FALSE),(IF(Personalize!$E$31=5,VLOOKUP($B23,'ADP-Rank'!$A$2:$AN$750,27,FALSE),(IF(Personalize!$E$31=6,VLOOKUP($B23,'ADP-Rank'!$A$2:$AN$750,31,FALSE),(IF(Personalize!$E$31=7,VLOOKUP($B23,'ADP-Rank'!$A$2:$AN$750,39,FALSE))))))))))))))),"") -> 15.81687243 | H23: =IFERROR(ROUNDDOWN(VLOOKUP($B23,'ADP-Rank'!$A$2:$AN$885,38,FALSE),0),"") -> 2 | I23: =VLOOKUP($B23,'ADP-Rank'!$A$2:$AJ$885,36,FALSE) -> 19 | J23: =IFERROR(RANK($K23,$K$7:$K$661,0),"") -> 32 | K23: =IF((SUM(M23:AC23)=0),"",SUM(M23:AC23)) -> 3.359093112 | L23: =IFERROR(IF(ISTEXT($A23),"",IF((OR($C23="RP",$C23="SP")),ABS(VLOOKUP(C23,'Filtered-P'!$AA$3:$AE$4,5,FALSE))+K23,ABS(VLOOKUP(C23,Filtered!$AG$3:$AK$14,5,FALSE))+K23)),"") -> 4.695816706 | M23: =IFERROR(IF((OR($C23="RP",$C23="SP")),IF(Personalize!$E$10=TRUE,(((VLOOKUP($B23,Pitcher!$A$1:$P$700,2,FALSE))-'Filtered-P'!$AB$8)/'Filtered-P'!$AC$8),""),IF(Personalize!$E$4=TRUE,(((VLOOKUP($B23,Hitter!$A$1:$X$628,21,FALSE))-Filtered!$AH$35)/Filtered!$AI$35),"")),"") -> 1.244471945 | N23: =IFERROR(IF((OR($C23="RP",$C23="SP")),IF(Personalize!$E$12=TRUE,(((VLOOKUP($B23,Pitcher!$A$1:$P$700,9,FALSE))-'Filtered-P'!$AB$15)/'Filtered-P'!$AC$15),""),IF(Personalize!$E$3=TRUE,(((VLOOKUP($B23,Hitter!$A$1:$AB$628,9,FALSE))-Filtered!$AH$25)/Filtered!$AI$25),"")),"") -> 0.6888416835 | O23: =IFERROR(IF((OR($C23="RP",$C23="SP")),IF(Personalize!$E$11=TRUE,(((VLOOKUP($B23,Pitcher!$A$1:$P$700,7,FALSE))-'Filtered-P'!$AB$13)/'Filtered-P'!$AC$13),""),IF(Personalize!$E$2=TRUE,(((VLOOKUP($B23,Hitter!$A$1:$AB$628,4,FALSE))-Filtered!$AH$20)/Filtered!$AI$20),"")),"") -> 1.309494551 | P23: =IFERROR(IF((OR($C23="RP",$C23="SP")),IF(Personalize!$E$13=TRUE,(((VLOOKUP($B23,Pitcher!$A$1:$P$700,13,FALSE))-'Filtered-P'!$AB$19)/'Filtered-P'!$AC$19),""),IF(Personalize!$E$5=TRUE,(((VLOOKUP($B23,Hitter!$A$1:$AB$628,10,FALSE))-Filtered!$AH$26)/Filtered!$AI$26),"")),"") -> 0.6664318498 | Q23: =IFERROR(IF((OR($C23="RP",$C23="SP")),IF(Personalize!$E$14=TRUE,(((VLOOKUP($B23,Pitcher!$A$1:$P$700,14,FALSE))-'Filtered-P'!$AB$20)/'Filtered-P'!$AC$20),""),IF(Personalize!$E$6=TRUE,(((VLOOKUP($B23,Hitter!$A$1:$AB$628,11,FALSE))-Filtered!$AH$27)/Filtered!$AI$27),"")),"") -> -0.5501469175 | R23: =IFERROR(IF((OR($C23="RP",$C23="SP")),IF(Personalize!$E$16=TRUE,(((VLOOKUP($B23,Pitcher!$A$1:$P$700,3,FALSE))-'Filtered-P'!$AB$9)/'Filtered-P'!$AC$9),""),IF(Personalize!$E$7=TRUE,(((VLOOKUP($B23,Hitter!$A$1:$AZ$628,23,FALSE))-Filtered!$AH$37)/Filtered!$AI$37),"")),"") ->  | S23: =IFERROR(IF((OR($C23="RP",$C23="SP")),IF(Personalize!$E$15=TRUE,(((VLOOKUP($B23,Pitcher!$A$1:$P$700,15,FALSE))-'Filtered-P'!$AB$21)/'Filtered-P'!$AC$21),""),IF(Personalize!$E$8=TRUE,(((VLOOKUP($B23,Hitter!$A$1:$AZ$628,22,FALSE))-Filtered!$AH$36)/Filtered!$AI$36),"")),"") ->  | T23: =IFERROR(IF((OR($C23="RP",$C23="SP")),IF(Personalize!$E$17=TRUE,(((VLOOKUP($B23,Pitcher!$A$1:$P$700,16,FALSE))-'Filtered-P'!$AB$22)/'Filtered-P'!$AC$22),""),IF(Personalize!$E$9=TRUE,(((VLOOKUP($B23,Hitter!$A$1:$AZ$628,24,FALSE))-Filtered!$AH$38)/Filtered!$AI$38),"")),"") ->  | U23: =IFERROR(IF((OR($C23="RP",$C23="SP")),IF(Personalize!$E$37=TRUE,(((VLOOKUP($B23,Pitcher!$A$1:$Z$700,17,FALSE))-'Filtered-P'!$AB$25)/'Filtered-P'!$AC$25),""),IF(Personalize!$E$39=TRUE,(((VLOOKUP($B23,Hitter!$A$1:$X$628,5,FALSE))-Filtered!$AH$21)/Filtered!$AI$21),"")),"") ->  | V23: =IFERROR(IF((OR($C23="RP",$C23="SP")),IF(Personalize!$E$38=TRUE,(((VLOOKUP($B23,Pitcher!$A$1:$Z$700,18,FALSE))-'Filtered-P'!$AB$26)/'Filtered-P'!$AC$26),""),IF(Personalize!$E$40=TRUE,(((VLOOKUP($B23,Hitter!$A$1:$X$628,13,FALSE))-Filtered!$AH$29)/Filtered!$AI$29),"")),"") ->  | W23: =IFERROR(IF((OR($C23="RP",$C23="SP")),IF(Personalize!$E$45=TRUE,(((VLOOKUP($B23,Pitcher!$A$1:$Z$700,4,FALSE))-'Filtered-P'!$AB$10)/'Filtered-P'!$AC$10),""),IF(Personalize!$E$41=TRUE,(((VLOOKUP($B23,Hitter!$A$1:$AZ$628,19,FALSE))-Filtered!$AH$43)/Filtered!$AI$43),"")),"") ->  | X23: =IFERROR(IF((OR($C23="RP",$C23="SP")),IF(Personalize!$E$46=TRUE,(((VLOOKUP($B23,Pitcher!$A$1:$Z$700,19,FALSE))-'Filtered-P'!$AB$27)/'Filtered-P'!$AC$27),""),IF(Personalize!$E$44=TRUE,(((VLOOKUP($B23,Hitter!$A$1:$AZ$628,20,FALSE))-Filtered!$AH$44)/Filtered!$AI$44),"")),"") ->  | Y23: =IFERROR(IF((OR($C23="RP",$C23="SP")),IF(Personalize!$E$47=TRUE,(((VLOOKUP($B23,Pitcher!$A$1:$Z$700,6,FALSE))-'Filtered-P'!$AB$12)/'Filtered-P'!$AC$12),""),IF(Personalize!$E$42=TRUE,(((VLOOKUP($B23,Hitter!$A$1:$AZ$628,7,FALSE))-Filtered!$AH$23)/Filtered!$AI$23),"")),"") ->  | Z23: =IFERROR(IF((OR($C23="RP",$C23="SP")),IF(Personalize!$E$48=TRUE,(((VLOOKUP($B23,Pitcher!$A$1:$Z$700,5,FALSE))-'Filtered-P'!$AB$11)/'Filtered-P'!$AC$11),""),IF(Personalize!$E$43=TRUE,(((VLOOKUP($B23,Hitter!$A$1:$AZ$628,8,FALSE))-Filtered!$AH$24)/Filtered!$AI$24),"")),"") ->  | AA23: =IFERROR(IF((OR($C23="RP",$C23="SP")),IF(Personalize!$E$52=TRUE,(((VLOOKUP($B23,Pitcher!$A$1:$AA$700,21,FALSE))-'Filtered-P'!$AB$29)/(-1*'Filtered-P'!$AC$29)),""),IF(Personalize!$E$49=TRUE,(((VLOOKUP($B23,Hitter!$A$1:$AF$628,29,FALSE))-Filtered!$AH$45)/Filtered!$AI$45),"")),"") ->  | AB23: =IFERROR(IF((OR($C23="RP",$C23="SP")),IF(Personalize!$E$53=TRUE,(((VLOOKUP($B23,Pitcher!$A$1:$AA$700,23,FALSE))-'Filtered-P'!$AB$31)/(-1*'Filtered-P'!$AC$31)),""),IF(Personalize!$E$50=TRUE,(((VLOOKUP($B23,Hitter!$A$1:$AF$628,30,FALSE))-Filtered!$AH$46)/Filtered!$AI$46),"")),"") ->  | AC23: =IFERROR(IF((OR($C23="RP",$C23="SP")),IF(Personalize!$E$54=TRUE,(((VLOOKUP($B23,Pitcher!$A$1:$AA$700,24,FALSE))-'Filtered-P'!$AB$32)/'Filtered-P'!$AC$32),""),IF(Personalize!$E$51=TRUE,(((VLOOKUP($B23,Hitter!$A$1:$AF$628,14,FALSE))-Filtered!$AH$30)/(-1*Filtered!$AI$30)),"")),"") ->  | AD23: =IFERROR(IF((OR($C23="RP",$C23="SP")),VLOOKUP($B23,Pitcher!$A$1:$P$700,2,FALSE),""),"") ->  | AE23: =IFERROR(IF((OR($C23="RP",$C23="SP")),VLOOKUP($B23,Pitcher!$A$1:$P$700,9,FALSE),""),"") ->  | AF23: =IFERROR(IF((OR($C23="RP",$C23="SP")),VLOOKUP($B23,Pitcher!$A$1:$P$700,7,FALSE),""),"") ->  | AG23: =IFERROR(IF((OR($C23="RP",$C23="SP")),VLOOKUP($B23,Pitcher!$A$1:$P$700,10,FALSE),""),"") ->  | AH23: =IFERROR(IF((OR($C23="RP",$C23="SP")),VLOOKUP($B23,Pitcher!$A$1:$P$700,11,FALSE),""),"") ->  | AI23: =IFERROR(IF((OR($C23="RP",$C23="SP")),"",VLOOKUP($B23,Hitter!$A$1:$X$628,15,FALSE)),"") -> 0.291202027 | AJ23: =IFERROR(IF((OR($C23="RP",$C23="SP")),"",VLOOKUP($B23,Hitter!$A$1:$X$628,9,FALSE)),"") -> 23.06459116 | AK23: =IFERROR(IF((OR($C23="RP",$C23="SP")),"",VLOOKUP($B23,Hitter!$A$1:$X$628,10,FALSE)),"") -> 78.36958002 | AL23: =IFERROR(IF((OR($C23="RP",$C23="SP")),"",VLOOKUP($B23,Hitter!$A$1:$X$628,4,FALSE)),"") -> 88.95988824 | AM23: =IFERROR(IF((OR($C23="RP",$C23="SP")),"",VLOOKUP($B23,Hitter!$A$1:$X$628,11,FALSE)),"") -> 5.84796656 | AN23: =IFERROR(IF(ISTEXT($A23),"",(1-NORMDIST((COUNTA($A$9:$A$661)),($G23),((AS23-AR23)/6),TRUE))),"") -> 1 | AO23: =IFERROR(IF(ISTEXT($A23),"",(1-NORMDIST((COUNTA($A$9:$A$661))+(Personalize!$E$18+1),$G23,((AS23-AR23)/6),TRUE))),"") -> 0.8863284103 | AP23: =IFERROR(IF(ISTEXT($A23),"",(1-NORMDIST((COUNTA($A$9:$A$661))+((Personalize!$E$18+1)*2),$G23,((AS23-AR23)/6),TRUE))),"") -> 6.379512516e-06 | AR23: =IF(Personalize!$E$31=1,VLOOKUP($B23,'ADP-Rank'!$A$2:$J$609,5,FALSE),(IF(Personalize!$E$31=2,VLOOKUP($B23,'ADP-Rank'!$A$2:$J$609,8,FALSE),(IF(Personalize!$E$31=3,VLOOKUP($B23,'ADP-Rank'!$A$2:$O$609,11,FALSE),(IF(Personalize!$E$31=4,VLOOKUP($B23,'ADP-Rank'!$A$2:$AN$609,25,FALSE),(IF(Personalize!$E$31=5,VLOOKUP($B23,'ADP-Rank'!$A$2:$AN$609,28,FALSE),(IF(Personalize!$E$31=6,VLOOKUP($B23,'ADP-Rank'!$A$2:$AN$609,32,FALSE),(IF(Personalize!$E$31=7,VLOOKUP($B23,'ADP-Rank'!$A$2:$AN$609,40,FALSE),""))))))))))))) -> 9 | AS23: =IF(Personalize!$E$31=1,VLOOKUP($B23,'ADP-Rank'!$A$2:$J$609,6,FALSE),(IF(Personalize!$E$31=2,VLOOKUP($B23,'ADP-Rank'!$A$2:$J$609,9,FALSE),(IF(Personalize!$E$31=3,VLOOKUP($B23,'ADP-Rank'!$A$2:$O$609,12,FALSE),(IF(Personalize!$E$31=4,VLOOKUP($B23,'ADP-Rank'!$A$2:$AN$609,26,FALSE),(IF(Personalize!$E$31=5,VLOOKUP($B23,'ADP-Rank'!$A$2:$AN$609,29,FALSE),(IF(Personalize!$E$31=6,VLOOKUP($B23,'ADP-Rank'!$A$2:$AN$609,33,FALSE),(IF(Personalize!$E$31=7,VLOOKUP($B23,'ADP-Rank'!$A$2:$AP$609,41,FALSE),""))))))))))))) -> 23 | AT23: =IF(ISBLANK(A23),0,1) -> 0 | AU23: =IF(K23="",0,1) -> 1 | AV23: =A23 -> 0 | AW23: =IF(C23="C",1,IF(C23="1B",2,IF(C23="2B",3,IF(C23="3B",4,IF(C23="SS",5,IF(C23="CI",6,IF(C23="MI",7,IF(C23="OF",11,IF(C23="LF",8,IF(C23="CF",9,IF(C23="RF",10,IF(C23="DH",12,IF(C23="SP",13,IF(C23="RP",14,IF(C23="P",15,16))))))))))))))) -> 2 | AX23: =VLOOKUP(B23,'Starter Calc'!$B$2:$BN$700,65,FALSE) -> Bench | AY23: =IFERROR(VLOOKUP($B23,'ADP-Rank'!$A$2:$AH$785,34,FALSE),TRUE) -> TRUE
B24: Edwin Encarnacion | C24: 1B | D24: =IFERROR(IF(VLOOKUP(B24,'Starter Calc'!$B$2:$E$700,4,FALSE)="","",VLOOKUP(B24,'Starter Calc'!$B$2:$E$700,4,FALSE)),"") -> ,, | E24: =IFERROR(VLOOKUP($B24,'ADP-Rank'!$A$2:$D$650,3,FALSE),"") -> TOR | F24: =IFERROR(VLOOKUP($B24,'ADP-Rank'!$A$2:$W$650,23,FALSE),"") -> 31 | G24: =IFERROR((IF(Personalize!$E$31=1,VLOOKUP($B24,'ADP-Rank'!$A$2:$J$750,4,FALSE),(IF(Personalize!$E$31=2,VLOOKUP($B24,'ADP-Rank'!$A$2:$J$750,7,FALSE),(IF(Personalize!$E$31=3,VLOOKUP($B24,'ADP-Rank'!$A$2:$J$750,10,FALSE),(IF(Personalize!$E$31=4,VLOOKUP($B24,'ADP-Rank'!$A$2:$AN$750,24,FALSE),(IF(Personalize!$E$31=5,VLOOKUP($B24,'ADP-Rank'!$A$2:$AN$750,27,FALSE),(IF(Personalize!$E$31=6,VLOOKUP($B24,'ADP-Rank'!$A$2:$AN$750,31,FALSE),(IF(Personalize!$E$31=7,VLOOKUP($B24,'ADP-Rank'!$A$2:$AN$750,39,FALSE))))))))))))))),"") -> 16.65432099 | H24: =IFERROR(ROUNDDOWN(VLOOKUP($B24,'ADP-Rank'!$A$2:$AN$885,38,FALSE),0),"") -> 2 | I24: =VLOOKUP($B24,'ADP-Rank'!$A$2:$AJ$885,36,FALSE) -> 16 | J24: =IFERROR(RANK($K24,$K$7:$K$661,0),"") -> 14 | K24: =IF((SUM(M24:AC24)=0),"",SUM(M24:AC24)) -> 5.016371381 | L24: =IFERROR(IF(ISTEXT($A24),"",IF((OR($C24="RP",$C24="SP")),ABS(VLOOKUP(C24,'Filtered-P'!$AA$3:$AE$4,5,FALSE))+K24,ABS(VLOOKUP(C24,Filtered!$AG$3:$AK$14,5,FALSE))+K24)),"") -> 6.353094975 | M24: =IFERROR(IF((OR($C24="RP",$C24="SP")),IF(Personalize!$E$10=TRUE,(((VLOOKUP($B24,Pitcher!$A$1:$P$700,2,FALSE))-'Filtered-P'!$AB$8)/'Filtered-P'!$AC$8),""),IF(Personalize!$E$4=TRUE,(((VLOOKUP($B24,Hitter!$A$1:$X$628,21,FALSE))-Filtered!$AH$35)/Filtered!$AI$35),"")),"") -> 0.2079788877 | N24: =IFERROR(IF((OR($C24="RP",$C24="SP")),IF(Personalize!$E$12=TRUE,(((VLOOKUP($B24,Pitcher!$A$1:$P$700,9,FALSE))-'Filtered-P'!$AB$15)/'Filtered-P'!$AC$15),""),IF(Personalize!$E$3=TRUE,(((VLOOKUP($B24,Hitter!$A$1:$AB$628,9,FALSE))-Filtered!$AH$25)/Filtered!$AI$25),"")),"") -> 2.098572324 | O24: =IFERROR(IF((OR($C24="RP",$C24="SP")),IF(Personalize!$E$11=TRUE,(((VLOOKUP($B24,Pitcher!$A$1:$P$700,7,FALSE))-'Filtered-P'!$AB$13)/'Filtered-P'!$AC$13),""),IF(Personalize!$E$2=TRUE,(((VLOOKUP($B24,Hitter!$A$1:$AB$628,4,FALSE))-Filtered!$AH$20)/Filtered!$AI$20),"")),"") -> 1.366215321 | P24: =IFERROR(IF((OR($C24="RP",$C24="SP")),IF(Personalize!$E$13=TRUE,(((VLOOKUP($B24,Pitcher!$A$1:$P$700,13,FALSE))-'Filtered-P'!$AB$19)/'Filtered-P'!$AC$19),""),IF(Personalize!$E$5=TRUE,(((VLOOKUP($B24,Hitter!$A$1:$AB$628,10,FALSE))-Filtered!$AH$26)/Filtered!$AI$26),"")),"") -> 1.778212189 | Q24: =IFERROR(IF((OR($C24="RP",$C24="SP")),IF(Personalize!$E$14=TRUE,(((VLOOKUP($B24,Pitcher!$A$1:$P$700,14,FALSE))-'Filtered-P'!$AB$20)/'Filtered-P'!$AC$20),""),IF(Personalize!$E$6=TRUE,(((VLOOKUP($B24,Hitter!$A$1:$AB$628,11,FALSE))-Filtered!$AH$27)/Filtered!$AI$27),"")),"") -> -0.4346073405 | R24: =IFERROR(IF((OR($C24="RP",$C24="SP")),IF(Personalize!$E$16=TRUE,(((VLOOKUP($B24,Pitcher!$A$1:$P$700,3,FALSE))-'Filtered-P'!$AB$9)/'Filtered-P'!$AC$9),""),IF(Personalize!$E$7=TRUE,(((VLOOKUP($B24,Hitter!$A$1:$AZ$628,23,FALSE))-Filtered!$AH$37)/Filtered!$AI$37),"")),"") ->  | S24: =IFERROR(IF((OR($C24="RP",$C24="SP")),IF(Personalize!$E$15=TRUE,(((VLOOKUP($B24,Pitcher!$A$1:$P$700,15,FALSE))-'Filtered-P'!$AB$21)/'Filtered-P'!$AC$21),""),IF(Personalize!$E$8=TRUE,(((VLOOKUP($B24,Hitter!$A$1:$AZ$628,22,FALSE))-Filtered!$AH$36)/Filtered!$AI$36),"")),"") ->  | T24: =IFERROR(IF((OR($C24="RP",$C24="SP")),IF(Personalize!$E$17=TRUE,(((VLOOKUP($B24,Pitcher!$A$1:$P$700,16,FALSE))-'Filtered-P'!$AB$22)/'Filtered-P'!$AC$22),""),IF(Personalize!$E$9=TRUE,(((VLOOKUP($B24,Hitter!$A$1:$AZ$628,24,FALSE))-Filtered!$AH$38)/Filtered!$AI$38),"")),"") ->  | U24: =IFERROR(IF((OR($C24="RP",$C24="SP")),IF(Personalize!$E$37=TRUE,(((VLOOKUP($B24,Pitcher!$A$1:$Z$700,17,FALSE))-'Filtered-P'!$AB$25)/'Filtered-P'!$AC$25),""),IF(Personalize!$E$39=TRUE,(((VLOOKUP($B24,Hitter!$A$1:$X$628,5,FALSE))-Filtered!$AH$21)/Filtered!$AI$21),"")),"") ->  | V24: =IFERROR(IF((OR($C24="RP",$C24="SP")),IF(Personalize!$E$38=TRUE,(((VLOOKUP($B24,Pitcher!$A$1:$Z$700,18,FALSE))-'Filtered-P'!$AB$26)/'Filtered-P'!$AC$26),""),IF(Personalize!$E$40=TRUE,(((VLOOKUP($B24,Hitter!$A$1:$X$628,13,FALSE))-Filtered!$AH$29)/Filtered!$AI$29),"")),"") ->  | W24: =IFERROR(IF((OR($C24="RP",$C24="SP")),IF(Personalize!$E$45=TRUE,(((VLOOKUP($B24,Pitcher!$A$1:$Z$700,4,FALSE))-'Filtered-P'!$AB$10)/'Filtered-P'!$AC$10),""),IF(Personalize!$E$41=TRUE,(((VLOOKUP($B24,Hitter!$A$1:$AZ$628,19,FALSE))-Filtered!$AH$43)/Filtered!$AI$43),"")),"") ->  | X24: =IFERROR(IF((OR($C24="RP",$C24="SP")),IF(Personalize!$E$46=TRUE,(((VLOOKUP($B24,Pitcher!$A$1:$Z$700,19,FALSE))-'Filtered-P'!$AB$27)/'Filtered-P'!$AC$27),""),IF(Personalize!$E$44=TRUE,(((VLOOKUP($B24,Hitter!$A$1:$AZ$628,20,FALSE))-Filtered!$AH$44)/Filtered!$AI$44),"")),"") ->  | Y24: =IFERROR(IF((OR($C24="RP",$C24="SP")),IF(Personalize!$E$47=TRUE,(((VLOOKUP($B24,Pitcher!$A$1:$Z$700,6,FALSE))-'Filtered-P'!$AB$12)/'Filtered-P'!$AC$12),""),IF(Personalize!$E$42=TRUE,(((VLOOKUP($B24,Hitter!$A$1:$AZ$628,7,FALSE))-Filtered!$AH$23)/Filtered!$AI$23),"")),"") ->  | Z24: =IFERROR(IF((OR($C24="RP",$C24="SP")),IF(Personalize!$E$48=TRUE,(((VLOOKUP($B24,Pitcher!$A$1:$Z$700,5,FALSE))-'Filtered-P'!$AB$11)/'Filtered-P'!$AC$11),""),IF(Personalize!$E$43=TRUE,(((VLOOKUP($B24,Hitter!$A$1:$AZ$628,8,FALSE))-Filtered!$AH$24)/Filtered!$AI$24),"")),"") ->  | AA24: =IFERROR(IF((OR($C24="RP",$C24="SP")),IF(Personalize!$E$52=TRUE,(((VLOOKUP($B24,Pitcher!$A$1:$AA$700,21,FALSE))-'Filtered-P'!$AB$29)/(-1*'Filtered-P'!$AC$29)),""),IF(Personalize!$E$49=TRUE,(((VLOOKUP($B24,Hitter!$A$1:$AF$628,29,FALSE))-Filtered!$AH$45)/Filtered!$AI$45),"")),"") ->  | AB24: =IFERROR(IF((OR($C24="RP",$C24="SP")),IF(Personalize!$E$53=TRUE,(((VLOOKUP($B24,Pitcher!$A$1:$AA$700,23,FALSE))-'Filtered-P'!$AB$31)/(-1*'Filtered-P'!$AC$31)),""),IF(Personalize!$E$50=TRUE,(((VLOOKUP($B24,Hitter!$A$1:$AF$628,30,FALSE))-Filtered!$AH$46)/Filtered!$AI$46),"")),"") ->  | AC24: =IFERROR(IF((OR($C24="RP",$C24="SP")),IF(Personalize!$E$54=TRUE,(((VLOOKUP($B24,Pitcher!$A$1:$AA$700,24,FALSE))-'Filtered-P'!$AB$32)/'Filtered-P'!$AC$32),""),IF(Personalize!$E$51=TRUE,(((VLOOKUP($B24,Hitter!$A$1:$AF$628,14,FALSE))-Filtered!$AH$30)/(-1*Filtered!$AI$30)),"")),"") ->  | AD24: =IFERROR(IF((OR($C24="RP",$C24="SP")),VLOOKUP($B24,Pitcher!$A$1:$P$700,2,FALSE),""),"") ->  | AE24: =IFERROR(IF((OR($C24="RP",$C24="SP")),VLOOKUP($B24,Pitcher!$A$1:$P$700,9,FALSE),""),"") ->  | AF24: =IFERROR(IF((OR($C24="RP",$C24="SP")),VLOOKUP($B24,Pitcher!$A$1:$P$700,7,FALSE),""),"") ->  | AG24: =IFERROR(IF((OR($C24="RP",$C24="SP")),VLOOKUP($B24,Pitcher!$A$1:$P$700,10,FALSE),""),"") ->  | AH24: =IFERROR(IF((OR($C24="RP",$C24="SP")),VLOOKUP($B24,Pitcher!$A$1:$P$700,11,FALSE),""),"") ->  | AI24: =IFERROR(IF((OR($C24="RP",$C24="SP")),"",VLOOKUP($B24,Hitter!$A$1:$X$628,15,FALSE)),"") -> 0.2734996048 | AJ24: =IFERROR(IF((OR($C24="RP",$C24="SP")),"",VLOOKUP($B24,Hitter!$A$1:$X$628,9,FALSE)),"") -> 33.22727116 | AK24: =IFERROR(IF((OR($C24="RP",$C24="SP")),"",VLOOKUP($B24,Hitter!$A$1:$X$628,10,FALSE)),"") -> 93.70485066 | AL24: =IFERROR(IF((OR($C24="RP",$C24="SP")),"",VLOOKUP($B24,Hitter!$A$1:$X$628,4,FALSE)),"") -> 89.57332074 | AM24: =IFERROR(IF((OR($C24="RP",$C24="SP")),"",VLOOKUP($B24,Hitter!$A$1:$X$628,11,FALSE)),"") -> 6.920859561 | AN24: =IFERROR(IF(ISTEXT($A24),"",(1-NORMDIST((COUNTA($A$9:$A$661)),($G24),((AS24-AR24)/6),TRUE))),"") -> 0.9999999277 | AO24: =IFERROR(IF(ISTEXT($A24),"",(1-NORMDIST((COUNTA($A$9:$A$661))+(Personalize!$E$18+1),$G24,((AS24-AR24)/6),TRUE))),"") -> 0.8757491164 | AP24: =IFERROR(IF(ISTEXT($A24),"",(1-NORMDIST((COUNTA($A$9:$A$661))+((Personalize!$E$18+1)*2),$G24,((AS24-AR24)/6),TRUE))),"") -> 0.001582365795 | AR24: =IF(Personalize!$E$31=1,VLOOKUP($B24,'ADP-Rank'!$A$2:$J$609,5,FALSE),(IF(Personalize!$E$31=2,VLOOKUP($B24,'ADP-Rank'!$A$2:$J$609,8,FALSE),(IF(Personalize!$E$31=3,VLOOKUP($B24,'ADP-Rank'!$A$2:$O$609,11,FALSE),(IF(Personalize!$E$31=4,VLOOKUP($B24,'ADP-Rank'!$A$2:$AN$609,25,FALSE),(IF(Personalize!$E$31=5,VLOOKUP($B24,'ADP-Rank'!$A$2:$AN$609,28,FALSE),(IF(Personalize!$E$31=6,VLOOKUP($B24,'ADP-Rank'!$A$2:$AN$609,32,FALSE),(IF(Personalize!$E$31=7,VLOOKUP($B24,'ADP-Rank'!$A$2:$AN$609,40,FALSE),""))))))))))))) -> 8 | AS24: =IF(Personalize!$E$31=1,VLOOKUP($B24,'ADP-Rank'!$A$2:$J$609,6,FALSE),(IF(Personalize!$E$31=2,VLOOKUP($B24,'ADP-Rank'!$A$2:$J$609,9,FALSE),(IF(Personalize!$E$31=3,VLOOKUP($B24,'ADP-Rank'!$A$2:$O$609,12,FALSE),(IF(Personalize!$E$31=4,VLOOKUP($B24,'ADP-Rank'!$A$2:$AN$609,26,FALSE),(IF(Personalize!$E$31=5,VLOOKUP($B24,'ADP-Rank'!$A$2:$AN$609,29,FALSE),(IF(Personalize!$E$31=6,VLOOKUP($B24,'ADP-Rank'!$A$2:$AN$609,33,FALSE),(IF(Personalize!$E$31=7,VLOOKUP($B24,'ADP-Rank'!$A$2:$AP$609,41,FALSE),""))))))))))))) -> 27 | AT24: =IF(ISBLANK(A24),0,1) -> 0 | AU24: =IF(K24="",0,1) -> 1 | AV24: =A24 -> 0 | AW24: =IF(C24="C",1,IF(C24="1B",2,IF(C24="2B",3,IF(C24="3B",4,IF(C24="SS",5,IF(C24="CI",6,IF(C24="MI",7,IF(C24="OF",11,IF(C24="LF",8,IF(C24="CF",9,IF(C24="RF",10,IF(C24="DH",12,IF(C24="SP",13,IF(C24="RP",14,IF(C24="P",15,16))))))))))))))) -> 2 | AX24: =VLOOKUP(B24,'Starter Calc'!$B$2:$BN$700,65,FALSE) -> Bench | AY24: =IFERROR(VLOOKUP($B24,'ADP-Rank'!$A$2:$AH$785,34,FALSE),TRUE) -> TRUE
B25: Yu Darvish | C25: SP | D25: =IFERROR(IF(VLOOKUP(B25,'Starter Calc'!$B$2:$E$700,4,FALSE)="","",VLOOKUP(B25,'Starter Calc'!$B$2:$E$700,4,FALSE)),"") -> ,, | E25: =IFERROR(VLOOKUP($B25,'ADP-Rank'!$A$2:$D$650,3,FALSE),"") -> TEX | F25: =IFERROR(VLOOKUP($B25,'ADP-Rank'!$A$2:$W$650,23,FALSE),"") -> 27 | G25: =IFERROR((IF(Personalize!$E$31=1,VLOOKUP($B25,'ADP-Rank'!$A$2:$J$750,4,FALSE),(IF(Personalize!$E$31=2,VLOOKUP($B25,'ADP-Rank'!$A$2:$J$750,7,FALSE),(IF(Personalize!$E$31=3,VLOOKUP($B25,'ADP-Rank'!$A$2:$J$750,10,FALSE),(IF(Personalize!$E$31=4,VLOOKUP($B25,'ADP-Rank'!$A$2:$AN$750,24,FALSE),(IF(Personalize!$E$31=5,VLOOKUP($B25,'ADP-Rank'!$A$2:$AN$750,27,FALSE),(IF(Personalize!$E$31=6,VLOOKUP($B25,'ADP-Rank'!$A$2:$AN$750,31,FALSE),(IF(Personalize!$E$31=7,VLOOKUP($B25,'ADP-Rank'!$A$2:$AN$750,39,FALSE))))))))))))))),"") -> 19.75514403 | H25: =IFERROR(ROUNDDOWN(VLOOKUP($B25,'ADP-Rank'!$A$2:$AN$885,38,FALSE),0),"") -> 2 | I25: =VLOOKUP($B25,'ADP-Rank'!$A$2:$AJ$885,36,FALSE) -> 14 | J25: =IFERROR(RANK($K25,$K$7:$K$661,0),"") -> 10 | K25: =IF((SUM(M25:AC25)=0),"",SUM(M25:AC25)) -> 5.51694656 | L25: =IFERROR(IF(ISTEXT($A25),"",IF((OR($C25="RP",$C25="SP")),ABS(VLOOKUP(C25,'Filtered-P'!$AA$3:$AE$4,5,FALSE))+K25,ABS(VLOOKUP(C25,Filtered!$AG$3:$AK$14,5,FALSE))+K25)),"") -> 8.557176933 | M25: =IFERROR(IF((OR($C25="RP",$C25="SP")),IF(Personalize!$E$10=TRUE,(((VLOOKUP($B25,Pitcher!$A$1:$P$700,2,FALSE))-'Filtered-P'!$AB$8)/'Filtered-P'!$AC$8),""),IF(Personalize!$E$4=TRUE,(((VLOOKUP($B25,Hitter!$A$1:$X$628,21,FALSE))-Filtered!$AH$35)/Filtered!$AI$35),"")),"") -> 1.345247111 | N25: =IFERROR(IF((OR($C25="RP",$C25="SP")),IF(Personalize!$E$12=TRUE,(((VLOOKUP($B25,Pitcher!$A$1:$P$700,9,FALSE))-'Filtered-P'!$AB$15)/'Filtered-P'!$AC$15),""),IF(Personalize!$E$3=TRUE,(((VLOOKUP($B25,Hitter!$A$1:$AB$628,9,FALSE))-Filtered!$AH$25)/Filtered!$AI$25),"")),"") -> -0.5466546098 | O25: =IFERROR(IF((OR($C25="RP",$C25="SP")),IF(Personalize!$E$11=TRUE,(((VLOOKUP($B25,Pitcher!$A$1:$P$700,7,FALSE))-'Filtered-P'!$AB$13)/'Filtered-P'!$AC$13),""),IF(Personalize!$E$2=TRUE,(((VLOOKUP($B25,Hitter!$A$1:$AB$628,4,FALSE))-Filtered!$AH$20)/Filtered!$AI$20),"")),"") -> 2.260766138 | P25: =IFERROR(IF((OR($C25="RP",$C25="SP")),IF(Personalize!$E$13=TRUE,(((VLOOKUP($B25,Pitcher!$A$1:$P$700,13,FALSE))-'Filtered-P'!$AB$19)/'Filtered-P'!$AC$19),""),IF(Personalize!$E$5=TRUE,(((VLOOKUP($B25,Hitter!$A$1:$AB$628,10,FALSE))-Filtered!$AH$26)/Filtered!$AI$26),"")),"") -> 1.645225446 | Q25: =IFERROR(IF((OR($C25="RP",$C25="SP")),IF(Personalize!$E$14=TRUE,(((VLOOKUP($B25,Pitcher!$A$1:$P$700,14,FALSE))-'Filtered-P'!$AB$20)/'Filtered-P'!$AC$20),""),IF(Personalize!$E$6=TRUE,(((VLOOKUP($B25,Hitter!$A$1:$AB$628,11,FALSE))-Filtered!$AH$27)/Filtered!$AI$27),"")),"") -> 0.8123624748 | R25: =IFERROR(IF((OR($C25="RP",$C25="SP")),IF(Personalize!$E$16=TRUE,(((VLOOKUP($B25,Pitcher!$A$1:$P$700,3,FALSE))-'Filtered-P'!$AB$9)/'Filtered-P'!$AC$9),""),IF(Personalize!$E$7=TRUE,(((VLOOKUP($B25,Hitter!$A$1:$AZ$628,23,FALSE))-Filtered!$AH$37)/Filtered!$AI$37),"")),"") ->  | S25: =IFERROR(IF((OR($C25="RP",$C25="SP")),IF(Personalize!$E$15=TRUE,(((VLOOKUP($B25,Pitcher!$A$1:$P$700,15,FALSE))-'Filtered-P'!$AB$21)/'Filtered-P'!$AC$21),""),IF(Personalize!$E$8=TRUE,(((VLOOKUP($B25,Hitter!$A$1:$AZ$628,22,FALSE))-Filtered!$AH$36)/Filtered!$AI$36),"")),"") ->  | T25: =IFERROR(IF((OR($C25="RP",$C25="SP")),IF(Personalize!$E$17=TRUE,(((VLOOKUP($B25,Pitcher!$A$1:$P$700,16,FALSE))-'Filtered-P'!$AB$22)/'Filtered-P'!$AC$22),""),IF(Personalize!$E$9=TRUE,(((VLOOKUP($B25,Hitter!$A$1:$AZ$628,24,FALSE))-Filtered!$AH$38)/Filtered!$AI$38),"")),"") ->  | U25: =IFERROR(IF((OR($C25="RP",$C25="SP")),IF(Personalize!$E$37=TRUE,(((VLOOKUP($B25,Pitcher!$A$1:$Z$700,17,FALSE))-'Filtered-P'!$AB$25)/'Filtered-P'!$AC$25),""),IF(Personalize!$E$39=TRUE,(((VLOOKUP($B25,Hitter!$A$1:$X$628,5,FALSE))-Filtered!$AH$21)/Filtered!$AI$21),"")),"") ->  | V25: =IFERROR(IF((OR($C25="RP",$C25="SP")),IF(Personalize!$E$38=TRUE,(((VLOOKUP($B25,Pitcher!$A$1:$Z$700,18,FALSE))-'Filtered-P'!$AB$26)/'Filtered-P'!$AC$26),""),IF(Personalize!$E$40=TRUE,(((VLOOKUP($B25,Hitter!$A$1:$X$628,13,FALSE))-Filtered!$AH$29)/Filtered!$AI$29),"")),"") ->  | W25: =IFERROR(IF((OR($C25="RP",$C25="SP")),IF(Personalize!$E$45=TRUE,(((VLOOKUP($B25,Pitcher!$A$1:$Z$700,4,FALSE))-'Filtered-P'!$AB$10)/'Filtered-P'!$AC$10),""),IF(Personalize!$E$41=TRUE,(((VLOOKUP($B25,Hitter!$A$1:$AZ$628,19,FALSE))-Filtered!$AH$43)/Filtered!$AI$43),"")),"") ->  | X25: =IFERROR(IF((OR($C25="RP",$C25="SP")),IF(Personalize!$E$46=TRUE,(((VLOOKUP($B25,Pitcher!$A$1:$Z$700,19,FALSE))-'Filtered-P'!$AB$27)/'Filtered-P'!$AC$27),""),IF(Personalize!$E$44=TRUE,(((VLOOKUP($B25,Hitter!$A$1:$AZ$628,20,FALSE))-Filtered!$AH$44)/Filtered!$AI$44),"")),"") ->  | Y25: =IFERROR(IF((OR($C25="RP",$C25="SP")),IF(Personalize!$E$47=TRUE,(((VLOOKUP($B25,Pitcher!$A$1:$Z$700,6,FALSE))-'Filtered-P'!$AB$12)/'Filtered-P'!$AC$12),""),IF(Personalize!$E$42=TRUE,(((VLOOKUP($B25,Hitter!$A$1:$AZ$628,7,FALSE))-Filtered!$AH$23)/Filtered!$AI$23),"")),"") ->  | Z25: =IFERROR(IF((OR($C25="RP",$C25="SP")),IF(Personalize!$E$48=TRUE,(((VLOOKUP($B25,Pitcher!$A$1:$Z$700,5,FALSE))-'Filtered-P'!$AB$11)/'Filtered-P'!$AC$11),""),IF(Personalize!$E$43=TRUE,(((VLOOKUP($B25,Hitter!$A$1:$AZ$628,8,FALSE))-Filtered!$AH$24)/Filtered!$AI$24),"")),"") ->  | AA25: =IFERROR(IF((OR($C25="RP",$C25="SP")),IF(Personalize!$E$52=TRUE,(((VLOOKUP($B25,Pitcher!$A$1:$AA$700,21,FALSE))-'Filtered-P'!$AB$29)/(-1*'Filtered-P'!$AC$29)),""),IF(Personalize!$E$49=TRUE,(((VLOOKUP($B25,Hitter!$A$1:$AF$628,29,FALSE))-Filtered!$AH$45)/Filtered!$AI$45),"")),"") ->  | AB25: =IFERROR(IF((OR($C25="RP",$C25="SP")),IF(Personalize!$E$53=TRUE,(((VLOOKUP($B25,Pitcher!$A$1:$AA$700,23,FALSE))-'Filtered-P'!$AB$31)/(-1*'Filtered-P'!$AC$31)),""),IF(Personalize!$E$50=TRUE,(((VLOOKUP($B25,Hitter!$A$1:$AF$628,30,FALSE))-Filtered!$AH$46)/Filtered!$AI$46),"")),"") ->  | AC25: =IFERROR(IF((OR($C25="RP",$C25="SP")),IF(Personalize!$E$54=TRUE,(((VLOOKUP($B25,Pitcher!$A$1:$AA$700,24,FALSE))-'Filtered-P'!$AB$32)/'Filtered-P'!$AC$32),""),IF(Personalize!$E$51=TRUE,(((VLOOKUP($B25,Hitter!$A$1:$AF$628,14,FALSE))-Filtered!$AH$30)/(-1*Filtered!$AI$30)),"")),"") ->  | AD25: =IFERROR(IF((OR($C25="RP",$C25="SP")),VLOOKUP($B25,Pitcher!$A$1:$P$700,2,FALSE),""),"") -> 17.19697864 | AE25: =IFERROR(IF((OR($C25="RP",$C25="SP")),VLOOKUP($B25,Pitcher!$A$1:$P$700,9,FALSE),""),"") -> 0 | AF25: =IFERROR(IF((OR($C25="RP",$C25="SP")),VLOOKUP($B25,Pitcher!$A$1:$P$700,7,FALSE),""),"") -> 270.5913079 | AG25: =IFERROR(IF((OR($C25="RP",$C25="SP")),VLOOKUP($B25,Pitcher!$A$1:$P$700,10,FALSE),""),"") -> 3.186734518 | AH25: =IFERROR(IF((OR($C25="RP",$C25="SP")),VLOOKUP($B25,Pitcher!$A$1:$P$700,11,FALSE),""),"") -> 1.1545862 | AI25: =IFERROR(IF((OR($C25="RP",$C25="SP")),"",VLOOKUP($B25,Hitter!$A$1:$X$628,15,FALSE)),"") ->  | AJ25: =IFERROR(IF((OR($C25="RP",$C25="SP")),"",VLOOKUP($B25,Hitter!$A$1:$X$628,9,FALSE)),"") ->  | AK25: =IFERROR(IF((OR($C25="RP",$C25="SP")),"",VLOOKUP($B25,Hitter!$A$1:$X$628,10,FALSE)),"") ->  | AL25: =IFERROR(IF((OR($C25="RP",$C25="SP")),"",VLOOKUP($B25,Hitter!$A$1:$X$628,4,FALSE)),"") ->  | AM25: =IFERROR(IF((OR($C25="RP",$C25="SP")),"",VLOOKUP($B25,Hitter!$A$1:$X$628,11,FALSE)),"") ->  | AN25: =IFERROR(IF(ISTEXT($A25),"",(1-NORMDIST((COUNTA($A$9:$A$661)),($G25),((AS25-AR25)/6),TRUE))),"") -> 0.9999996069 | AO25: =IFERROR(IF(ISTEXT($A25),"",(1-NORMDIST((COUNTA($A$9:$A$661))+(Personalize!$E$18+1),$G25,((AS25-AR25)/6),TRUE))),"") -> 0.9543697769 | AP25: =IFERROR(IF(ISTEXT($A25),"",(1-NORMDIST((COUNTA($A$9:$A$661))+((Personalize!$E$18+1)*2),$G25,((AS25-AR25)/6),TRUE))),"") -> 0.05923663439 | AR25: =IF(Personalize!$E$31=1,VLOOKUP($B25,'ADP-Rank'!$A$2:$J$609,5,FALSE),(IF(Personalize!$E$31=2,VLOOKUP($B25,'ADP-Rank'!$A$2:$J$609,8,FALSE),(IF(Personalize!$E$31=3,VLOOKUP($B25,'ADP-Rank'!$A$2:$O$609,11,FALSE),(IF(Personalize!$E$31=4,VLOOKUP($B25,'ADP-Rank'!$A$2:$AN$609,25,FALSE),(IF(Personalize!$E$31=5,VLOOKUP($B25,'ADP-Rank'!$A$2:$AN$609,28,FALSE),(IF(Personalize!$E$31=6,VLOOKUP($B25,'ADP-Rank'!$A$2:$AN$609,32,FALSE),(IF(Personalize!$E$31=7,VLOOKUP($B25,'ADP-Rank'!$A$2:$AN$609,40,FALSE),""))))))))))))) -> 12 | AS25: =IF(Personalize!$E$31=1,VLOOKUP($B25,'ADP-Rank'!$A$2:$J$609,6,FALSE),(IF(Personalize!$E$31=2,VLOOKUP($B25,'ADP-Rank'!$A$2:$J$609,9,FALSE),(IF(Personalize!$E$31=3,VLOOKUP($B25,'ADP-Rank'!$A$2:$O$609,12,FALSE),(IF(Personalize!$E$31=4,VLOOKUP($B25,'ADP-Rank'!$A$2:$AN$609,26,FALSE),(IF(Personalize!$E$31=5,VLOOKUP($B25,'ADP-Rank'!$A$2:$AN$609,29,FALSE),(IF(Personalize!$E$31=6,VLOOKUP($B25,'ADP-Rank'!$A$2:$AN$609,33,FALSE),(IF(Personalize!$E$31=7,VLOOKUP($B25,'ADP-Rank'!$A$2:$AP$609,41,FALSE),""))))))))))))) -> 36 | AT25: =IF(ISBLANK(A25),0,1) -> 0 | AU25: =IF(K25="",0,1) -> 1 | AV25: =A25 -> 0 | AW25: =IF(C25="C",1,IF(C25="1B",2,IF(C25="2B",3,IF(C25="3B",4,IF(C25="SS",5,IF(C25="CI",6,IF(C25="MI",7,IF(C25="OF",11,IF(C25="LF",8,IF(C25="CF",9,IF(C25="RF",10,IF(C25="DH",12,IF(C25="SP",13,IF(C25="RP",14,IF(C25="P",15,16))))))))))))))) -> 13 | AX25: =VLOOKUP(B25,'Starter Calc'!$B$2:$BN$700,65,FALSE) -> Bench | AY25: =IFERROR(VLOOKUP($B25,'ADP-Rank'!$A$2:$AH$785,34,FALSE),TRUE) -> TRUE
B26: Evan Longoria | C26: 3B | D26: =IFERROR(IF(VLOOKUP(B26,'Starter Calc'!$B$2:$E$700,4,FALSE)="","",VLOOKUP(B26,'Starter Calc'!$B$2:$E$700,4,FALSE)),"") -> ,, | E26: =IFERROR(VLOOKUP($B26,'ADP-Rank'!$A$2:$D$650,3,FALSE),"") -> TB | F26: =IFERROR(VLOOKUP($B26,'ADP-Rank'!$A$2:$W$650,23,FALSE),"") -> 28 | G26: =IFERROR((IF(Personalize!$E$31=1,VLOOKUP($B26,'ADP-Rank'!$A$2:$J$750,4,FALSE),(IF(Personalize!$E$31=2,VLOOKUP($B26,'ADP-Rank'!$A$2:$J$750,7,FALSE),(IF(Personalize!$E$31=3,VLOOKUP($B26,'ADP-Rank'!$A$2:$J$750,10,FALSE),(IF(Personalize!$E$31=4,VLOOKUP($B26,'ADP-Rank'!$A$2:$AN$750,24,FALSE),(IF(Personalize!$E$31=5,VLOOKUP($B26,'ADP-Rank'!$A$2:$AN$750,27,FALSE),(IF(Personalize!$E$31=6,VLOOKUP($B26,'ADP-Rank'!$A$2:$AN$750,31,FALSE),(IF(Personalize!$E$31=7,VLOOKUP($B26,'ADP-Rank'!$A$2:$AN$750,39,FALSE))))))))))))))),"") -> 20.81893004 | H26: =IFERROR(ROUNDDOWN(VLOOKUP($B26,'ADP-Rank'!$A$2:$AN$885,38,FALSE),0),"") -> 2 | I26: =VLOOKUP($B26,'ADP-Rank'!$A$2:$AJ$885,36,FALSE) -> 17 | J26: =IFERROR(RANK($K26,$K$7:$K$661,0),"") -> 39 | K26: =IF((SUM(M26:AC26)=0),"",SUM(M26:AC26)) -> 2.826021336 | L26: =IFERROR(IF(ISTEXT($A26),"",IF((OR($C26="RP",$C26="SP")),ABS(VLOOKUP(C26,'Filtered-P'!$AA$3:$AE$4,5,FALSE))+K26,ABS(VLOOKUP(C26,Filtered!$AG$3:$AK$14,5,FALSE))+K26)),"") -> 6.241062228 | M26: =IFERROR(IF((OR($C26="RP",$C26="SP")),IF(Personalize!$E$10=TRUE,(((VLOOKUP($B26,Pitcher!$A$1:$P$700,2,FALSE))-'Filtered-P'!$AB$8)/'Filtered-P'!$AC$8),""),IF(Personalize!$E$4=TRUE,(((VLOOKUP($B26,Hitter!$A$1:$X$628,21,FALSE))-Filtered!$AH$35)/Filtered!$AI$35),"")),"") -> -0.3797999311 | N26: =IFERROR(IF((OR($C26="RP",$C26="SP")),IF(Personalize!$E$12=TRUE,(((VLOOKUP($B26,Pitcher!$A$1:$P$700,9,FALSE))-'Filtered-P'!$AB$15)/'Filtered-P'!$AC$15),""),IF(Personalize!$E$3=TRUE,(((VLOOKUP($B26,Hitter!$A$1:$AB$628,9,FALSE))-Filtered!$AH$25)/Filtered!$AI$25),"")),"") -> 1.5255429 | O26: =IFERROR(IF((OR($C26="RP",$C26="SP")),IF(Personalize!$E$11=TRUE,(((VLOOKUP($B26,Pitcher!$A$1:$P$700,7,FALSE))-'Filtered-P'!$AB$13)/'Filtered-P'!$AC$13),""),IF(Personalize!$E$2=TRUE,(((VLOOKUP($B26,Hitter!$A$1:$AB$628,4,FALSE))-Filtered!$AH$20)/Filtered!$AI$20),"")),"") -> 0.9497218229 | P26: =IFERROR(IF((OR($C26="RP",$C26="SP")),IF(Personalize!$E$13=TRUE,(((VLOOKUP($B26,Pitcher!$A$1:$P$700,13,FALSE))-'Filtered-P'!$AB$19)/'Filtered-P'!$AC$19),""),IF(Personalize!$E$5=TRUE,(((VLOOKUP($B26,Hitter!$A$1:$AB$628,10,FALSE))-Filtered!$AH$26)/Filtered!$AI$26),"")),"") -> 1.519865182 | Q26: =IFERROR(IF((OR($C26="RP",$C26="SP")),IF(Personalize!$E$14=TRUE,(((VLOOKUP($B26,Pitcher!$A$1:$P$700,14,FALSE))-'Filtered-P'!$AB$20)/'Filtered-P'!$AC$20),""),IF(Personalize!$E$6=TRUE,(((VLOOKUP($B26,Hitter!$A$1:$AB$628,11,FALSE))-Filtered!$AH$27)/Filtered!$AI$27),"")),"") -> -0.7893086385 | R26: =IFERROR(IF((OR($C26="RP",$C26="SP")),IF(Personalize!$E$16=TRUE,(((VLOOKUP($B26,Pitcher!$A$1:$P$700,3,FALSE))-'Filtered-P'!$AB$9)/'Filtered-P'!$AC$9),""),IF(Personalize!$E$7=TRUE,(((VLOOKUP($B26,Hitter!$A$1:$AZ$628,23,FALSE))-Filtered!$AH$37)/Filtered!$AI$37),"")),"") ->  | S26: =IFERROR(IF((OR($C26="RP",$C26="SP")),IF(Personalize!$E$15=TRUE,(((VLOOKUP($B26,Pitcher!$A$1:$P$700,15,FALSE))-'Filtered-P'!$AB$21)/'Filtered-P'!$AC$21),""),IF(Personalize!$E$8=TRUE,(((VLOOKUP($B26,Hitter!$A$1:$AZ$628,22,FALSE))-Filtered!$AH$36)/Filtered!$AI$36),"")),"") ->  | T26: =IFERROR(IF((OR($C26="RP",$C26="SP")),IF(Personalize!$E$17=TRUE,(((VLOOKUP($B26,Pitcher!$A$1:$P$700,16,FALSE))-'Filtered-P'!$AB$22)/'Filtered-P'!$AC$22),""),IF(Personalize!$E$9=TRUE,(((VLOOKUP($B26,Hitter!$A$1:$AZ$628,24,FALSE))-Filtered!$AH$38)/Filtered!$AI$38),"")),"") ->  | U26: =IFERROR(IF((OR($C26="RP",$C26="SP")),IF(Personalize!$E$37=TRUE,(((VLOOKUP($B26,Pitcher!$A$1:$Z$700,17,FALSE))-'Filtered-P'!$AB$25)/'Filtered-P'!$AC$25),""),IF(Personalize!$E$39=TRUE,(((VLOOKUP($B26,Hitter!$A$1:$X$628,5,FALSE))-Filtered!$AH$21)/Filtered!$AI$21),"")),"") ->  | V26: =IFERROR(IF((OR($C26="RP",$C26="SP")),IF(Personalize!$E$38=TRUE,(((VLOOKUP($B26,Pitcher!$A$1:$Z$700,18,FALSE))-'Filtered-P'!$AB$26)/'Filtered-P'!$AC$26),""),IF(Personalize!$E$40=TRUE,(((VLOOKUP($B26,Hitter!$A$1:$X$628,13,FALSE))-Filtered!$AH$29)/Filtered!$AI$29),"")),"") ->  | W26: =IFERROR(IF((OR($C26="RP",$C26="SP")),IF(Personalize!$E$45=TRUE,(((VLOOKUP($B26,Pitcher!$A$1:$Z$700,4,FALSE))-'Filtered-P'!$AB$10)/'Filtered-P'!$AC$10),""),IF(Personalize!$E$41=TRUE,(((VLOOKUP($B26,Hitter!$A$1:$AZ$628,19,FALSE))-Filtered!$AH$43)/Filtered!$AI$43),"")),"") ->  | X26: =IFERROR(IF((OR($C26="RP",$C26="SP")),IF(Personalize!$E$46=TRUE,(((VLOOKUP($B26,Pitcher!$A$1:$Z$700,19,FALSE))-'Filtered-P'!$AB$27)/'Filtered-P'!$AC$27),""),IF(Personalize!$E$44=TRUE,(((VLOOKUP($B26,Hitter!$A$1:$AZ$628,20,FALSE))-Filtered!$AH$44)/Filtered!$AI$44),"")),"") ->  | Y26: =IFERROR(IF((OR($C26="RP",$C26="SP")),IF(Personalize!$E$47=TRUE,(((VLOOKUP($B26,Pitcher!$A$1:$Z$700,6,FALSE))-'Filtered-P'!$AB$12)/'Filtered-P'!$AC$12),""),IF(Personalize!$E$42=TRUE,(((VLOOKUP($B26,Hitter!$A$1:$AZ$628,7,FALSE))-Filtered!$AH$23)/Filtered!$AI$23),"")),"") ->  | Z26: =IFERROR(IF((OR($C26="RP",$C26="SP")),IF(Personalize!$E$48=TRUE,(((VLOOKUP($B26,Pitcher!$A$1:$Z$700,5,FALSE))-'Filtered-P'!$AB$11)/'Filtered-P'!$AC$11),""),IF(Personalize!$E$43=TRUE,(((VLOOKUP($B26,Hitter!$A$1:$AZ$628,8,FALSE))-Filtered!$AH$24)/Filtered!$AI$24),"")),"") ->  | AA26: =IFERROR(IF((OR($C26="RP",$C26="SP")),IF(Personalize!$E$52=TRUE,(((VLOOKUP($B26,Pitcher!$A$1:$AA$700,21,FALSE))-'Filtered-P'!$AB$29)/(-1*'Filtered-P'!$AC$29)),""),IF(Personalize!$E$49=TRUE,(((VLOOKUP($B26,Hitter!$A$1:$AF$628,29,FALSE))-Filtered!$AH$45)/Filtered!$AI$45),"")),"") ->  | AB26: =IFERROR(IF((OR($C26="RP",$C26="SP")),IF(Personalize!$E$53=TRUE,(((VLOOKUP($B26,Pitcher!$A$1:$AA$700,23,FALSE))-'Filtered-P'!$AB$31)/(-1*'Filtered-P'!$AC$31)),""),IF(Personalize!$E$50=TRUE,(((VLOOKUP($B26,Hitter!$A$1:$AF$628,30,FALSE))-Filtered!$AH$46)/Filtered!$AI$46),"")),"") ->  | AC26: =IFERROR(IF((OR($C26="RP",$C26="SP")),IF(Personalize!$E$54=TRUE,(((VLOOKUP($B26,Pitcher!$A$1:$AA$700,24,FALSE))-'Filtered-P'!$AB$32)/'Filtered-P'!$AC$32),""),IF(Personalize!$E$51=TRUE,(((VLOOKUP($B26,Hitter!$A$1:$AF$628,14,FALSE))-Filtered!$AH$30)/(-1*Filtered!$AI$30)),"")),"") ->  | AD26: =IFERROR(IF((OR($C26="RP",$C26="SP")),VLOOKUP($B26,Pitcher!$A$1:$P$700,2,FALSE),""),"") ->  | AE26: =IFERROR(IF((OR($C26="RP",$C26="SP")),VLOOKUP($B26,Pitcher!$A$1:$P$700,9,FALSE),""),"") ->  | AF26: =IFERROR(IF((OR($C26="RP",$C26="SP")),VLOOKUP($B26,Pitcher!$A$1:$P$700,7,FALSE),""),"") ->  | AG26: =IFERROR(IF((OR($C26="RP",$C26="SP")),VLOOKUP($B26,Pitcher!$A$1:$P$700,10,FALSE),""),"") ->  | AH26: =IFERROR(IF((OR($C26="RP",$C26="SP")),VLOOKUP($B26,Pitcher!$A$1:$P$700,11,FALSE),""),"") ->  | AI26: =IFERROR(IF((OR($C26="RP",$C26="SP")),"",VLOOKUP($B26,Hitter!$A$1:$X$628,15,FALSE)),"") -> 0.2640785093 | AJ26: =IFERROR(IF((OR($C26="RP",$C26="SP")),"",VLOOKUP($B26,Hitter!$A$1:$X$628,9,FALSE)),"") -> 29.09632976 | AK26: =IFERROR(IF((OR($C26="RP",$C26="SP")),"",VLOOKUP($B26,Hitter!$A$1:$X$628,10,FALSE)),"") -> 90.14135783 | AL26: =IFERROR(IF((OR($C26="RP",$C26="SP")),"",VLOOKUP($B26,Hitter!$A$1:$X$628,4,FALSE)),"") -> 85.06896284 | AM26: =IFERROR(IF((OR($C26="RP",$C26="SP")),"",VLOOKUP($B26,Hitter!$A$1:$X$628,11,FALSE)),"") -> 3.627126366 | AN26: =IFERROR(IF(ISTEXT($A26),"",(1-NORMDIST((COUNTA($A$9:$A$661)),($G26),((AS26-AR26)/6),TRUE))),"") -> 1 | AO26: =IFERROR(IF(ISTEXT($A26),"",(1-NORMDIST((COUNTA($A$9:$A$661))+(Personalize!$E$18+1),$G26,((AS26-AR26)/6),TRUE))),"") -> 0.9990472375 | AP26: =IFERROR(IF(ISTEXT($A26),"",(1-NORMDIST((COUNTA($A$9:$A$661))+((Personalize!$E$18+1)*2),$G26,((AS26-AR26)/6),TRUE))),"") -> 0.01983399854 | AR26: =IF(Personalize!$E$31=1,VLOOKUP($B26,'ADP-Rank'!$A$2:$J$609,5,FALSE),(IF(Personalize!$E$31=2,VLOOKUP($B26,'ADP-Rank'!$A$2:$J$609,8,FALSE),(IF(Personalize!$E$31=3,VLOOKUP($B26,'ADP-Rank'!$A$2:$O$609,11,FALSE),(IF(Personalize!$E$31=4,VLOOKUP($B26,'ADP-Rank'!$A$2:$AN$609,25,FALSE),(IF(Personalize!$E$31=5,VLOOKUP($B26,'ADP-Rank'!$A$2:$AN$609,28,FALSE),(IF(Personalize!$E$31=6,VLOOKUP($B26,'ADP-Rank'!$A$2:$AN$609,32,FALSE),(IF(Personalize!$E$31=7,VLOOKUP($B26,'ADP-Rank'!$A$2:$AN$609,40,FALSE),""))))))))))))) -> 11 | AS26: =IF(Personalize!$E$31=1,VLOOKUP($B26,'ADP-Rank'!$A$2:$J$609,6,FALSE),(IF(Personalize!$E$31=2,VLOOKUP($B26,'ADP-Rank'!$A$2:$J$609,9,FALSE),(IF(Personalize!$E$31=3,VLOOKUP($B26,'ADP-Rank'!$A$2:$O$609,12,FALSE),(IF(Personalize!$E$31=4,VLOOKUP($B26,'ADP-Rank'!$A$2:$AN$609,26,FALSE),(IF(Personalize!$E$31=5,VLOOKUP($B26,'ADP-Rank'!$A$2:$AN$609,29,FALSE),(IF(Personalize!$E$31=6,VLOOKUP($B26,'ADP-Rank'!$A$2:$AN$609,33,FALSE),(IF(Personalize!$E$31=7,VLOOKUP($B26,'ADP-Rank'!$A$2:$AP$609,41,FALSE),""))))))))))))) -> 26.11111111 | AT26: =IF(ISBLANK(A26),0,1) -> 0 | AU26: =IF(K26="",0,1) -> 1 | AV26: =A26 -> 0 | AW26: =IF(C26="C",1,IF(C26="1B",2,IF(C26="2B",3,IF(C26="3B",4,IF(C26="SS",5,IF(C26="CI",6,IF(C26="MI",7,IF(C26="OF",11,IF(C26="LF",8,IF(C26="CF",9,IF(C26="RF",10,IF(C26="DH",12,IF(C26="SP",13,IF(C26="RP",14,IF(C26="P",15,16))))))))))))))) -> 4 | AX26: =VLOOKUP(B26,'Starter Calc'!$B$2:$BN$700,65,FALSE) -> Bench | AY26: =IFERROR(VLOOKUP($B26,'ADP-Rank'!$A$2:$AH$785,34,FALSE),TRUE) -> TRUE
B27: David Wright | C27: 3B | D27: =IFERROR(IF(VLOOKUP(B27,'Starter Calc'!$B$2:$E$700,4,FALSE)="","",VLOOKUP(B27,'Starter Calc'!$B$2:$E$700,4,FALSE)),"") -> ,, | E27: =IFERROR(VLOOKUP($B27,'ADP-Rank'!$A$2:$D$650,3,FALSE),"") -> NYM | F27: =IFERROR(VLOOKUP($B27,'ADP-Rank'!$A$2:$W$650,23,FALSE),"") -> 31 | G27: =IFERROR((IF(Personalize!$E$31=1,VLOOKUP($B27,'ADP-Rank'!$A$2:$J$750,4,FALSE),(IF(Personalize!$E$31=2,VLOOKUP($B27,'ADP-Rank'!$A$2:$J$750,7,FALSE),(IF(Personalize!$E$31=3,VLOOKUP($B27,'ADP-Rank'!$A$2:$J$750,10,FALSE),(IF(Personalize!$E$31=4,VLOOKUP($B27,'ADP-Rank'!$A$2:$AN$750,24,FALSE),(IF(Personalize!$E$31=5,VLOOKUP($B27,'ADP-Rank'!$A$2:$AN$750,27,FALSE),(IF(Personalize!$E$31=6,VLOOKUP($B27,'ADP-Rank'!$A$2:$AN$750,31,FALSE),(IF(Personalize!$E$31=7,VLOOKUP($B27,'ADP-Rank'!$A$2:$AN$750,39,FALSE))))))))))))))),"") -> 22.04938272 | H27: =IFERROR(ROUNDDOWN(VLOOKUP($B27,'ADP-Rank'!$A$2:$AN$885,38,FALSE),0),"") -> 2 | I27: =VLOOKUP($B27,'ADP-Rank'!$A$2:$AJ$885,36,FALSE) -> 27 | J27: =IFERROR(RANK($K27,$K$7:$K$661,0),"") -> 49 | K27: =IF((SUM(M27:AC27)=0),"",SUM(M27:AC27)) -> 2.225784559 | L27: =IFERROR(IF(ISTEXT($A27),"",IF((OR($C27="RP",$C27="SP")),ABS(VLOOKUP(C27,'Filtered-P'!$AA$3:$AE$4,5,FALSE))+K27,ABS(VLOOKUP(C27,Filtered!$AG$3:$AK$14,5,FALSE))+K27)),"") -> 5.640825451 | M27: =IFERROR(IF((OR($C27="RP",$C27="SP")),IF(Personalize!$E$10=TRUE,(((VLOOKUP($B27,Pitcher!$A$1:$P$700,2,FALSE))-'Filtered-P'!$AB$8)/'Filtered-P'!$AC$8),""),IF(Personalize!$E$4=TRUE,(((VLOOKUP($B27,Hitter!$A$1:$X$628,21,FALSE))-Filtered!$AH$35)/Filtered!$AI$35),"")),"") -> 0.6704689998 | N27: =IFERROR(IF((OR($C27="RP",$C27="SP")),IF(Personalize!$E$12=TRUE,(((VLOOKUP($B27,Pitcher!$A$1:$P$700,9,FALSE))-'Filtered-P'!$AB$15)/'Filtered-P'!$AC$15),""),IF(Personalize!$E$3=TRUE,(((VLOOKUP($B27,Hitter!$A$1:$AB$628,9,FALSE))-Filtered!$AH$25)/Filtered!$AI$25),"")),"") -> 0.2600862762 | O27: =IFERROR(IF((OR($C27="RP",$C27="SP")),IF(Personalize!$E$11=TRUE,(((VLOOKUP($B27,Pitcher!$A$1:$P$700,7,FALSE))-'Filtered-P'!$AB$13)/'Filtered-P'!$AC$13),""),IF(Personalize!$E$2=TRUE,(((VLOOKUP($B27,Hitter!$A$1:$AB$628,4,FALSE))-Filtered!$AH$20)/Filtered!$AI$20),"")),"") -> 0.2919474695 | P27: =IFERROR(IF((OR($C27="RP",$C27="SP")),IF(Personalize!$E$13=TRUE,(((VLOOKUP($B27,Pitcher!$A$1:$P$700,13,FALSE))-'Filtered-P'!$AB$19)/'Filtered-P'!$AC$19),""),IF(Personalize!$E$5=TRUE,(((VLOOKUP($B27,Hitter!$A$1:$AB$628,10,FALSE))-Filtered!$AH$26)/Filtered!$AI$26),"")),"") -> 0.4139961392 | Q27: =IFERROR(IF((OR($C27="RP",$C27="SP")),IF(Personalize!$E$14=TRUE,(((VLOOKUP($B27,Pitcher!$A$1:$P$700,14,FALSE))-'Filtered-P'!$AB$20)/'Filtered-P'!$AC$20),""),IF(Personalize!$E$6=TRUE,(((VLOOKUP($B27,Hitter!$A$1:$AB$628,11,FALSE))-Filtered!$AH$27)/Filtered!$AI$27),"")),"") -> 0.5892856745 | R27: =IFERROR(IF((OR($C27="RP",$C27="SP")),IF(Personalize!$E$16=TRUE,(((VLOOKUP($B27,Pitcher!$A$1:$P$700,3,FALSE))-'Filtered-P'!$AB$9)/'Filtered-P'!$AC$9),""),IF(Personalize!$E$7=TRUE,(((VLOOKUP($B27,Hitter!$A$1:$AZ$628,23,FALSE))-Filtered!$AH$37)/Filtered!$AI$37),"")),"") ->  | S27: =IFERROR(IF((OR($C27="RP",$C27="SP")),IF(Personalize!$E$15=TRUE,(((VLOOKUP($B27,Pitcher!$A$1:$P$700,15,FALSE))-'Filtered-P'!$AB$21)/'Filtered-P'!$AC$21),""),IF(Personalize!$E$8=TRUE,(((VLOOKUP($B27,Hitter!$A$1:$AZ$628,22,FALSE))-Filtered!$AH$36)/Filtered!$AI$36),"")),"") ->  | T27: =IFERROR(IF((OR($C27="RP",$C27="SP")),IF(Personalize!$E$17=TRUE,(((VLOOKUP($B27,Pitcher!$A$1:$P$700,16,FALSE))-'Filtered-P'!$AB$22)/'Filtered-P'!$AC$22),""),IF(Personalize!$E$9=TRUE,(((VLOOKUP($B27,Hitter!$A$1:$AZ$628,24,FALSE))-Filtered!$AH$38)/Filtered!$AI$38),"")),"") ->  | U27: =IFERROR(IF((OR($C27="RP",$C27="SP")),IF(Personalize!$E$37=TRUE,(((VLOOKUP($B27,Pitcher!$A$1:$Z$700,17,FALSE))-'Filtered-P'!$AB$25)/'Filtered-P'!$AC$25),""),IF(Personalize!$E$39=TRUE,(((VLOOKUP($B27,Hitter!$A$1:$X$628,5,FALSE))-Filtered!$AH$21)/Filtered!$AI$21),"")),"") ->  | V27: =IFERROR(IF((OR($C27="RP",$C27="SP")),IF(Personalize!$E$38=TRUE,(((VLOOKUP($B27,Pitcher!$A$1:$Z$700,18,FALSE))-'Filtered-P'!$AB$26)/'Filtered-P'!$AC$26),""),IF(Personalize!$E$40=TRUE,(((VLOOKUP($B27,Hitter!$A$1:$X$628,13,FALSE))-Filtered!$AH$29)/Filtered!$AI$29),"")),"") ->  | W27: =IFERROR(IF((OR($C27="RP",$C27="SP")),IF(Personalize!$E$45=TRUE,(((VLOOKUP($B27,Pitcher!$A$1:$Z$700,4,FALSE))-'Filtered-P'!$AB$10)/'Filtered-P'!$AC$10),""),IF(Personalize!$E$41=TRUE,(((VLOOKUP($B27,Hitter!$A$1:$AZ$628,19,FALSE))-Filtered!$AH$43)/Filtered!$AI$43),"")),"") ->  | X27: =IFERROR(IF((OR($C27="RP",$C27="SP")),IF(Personalize!$E$46=TRUE,(((VLOOKUP($B27,Pitcher!$A$1:$Z$700,19,FALSE))-'Filtered-P'!$AB$27)/'Filtered-P'!$AC$27),""),IF(Personalize!$E$44=TRUE,(((VLOOKUP($B27,Hitter!$A$1:$AZ$628,20,FALSE))-Filtered!$AH$44)/Filtered!$AI$44),"")),"") ->  | Y27: =IFERROR(IF((OR($C27="RP",$C27="SP")),IF(Personalize!$E$47=TRUE,(((VLOOKUP($B27,Pitcher!$A$1:$Z$700,6,FALSE))-'Filtered-P'!$AB$12)/'Filtered-P'!$AC$12),""),IF(Personalize!$E$42=TRUE,(((VLOOKUP($B27,Hitter!$A$1:$AZ$628,7,FALSE))-Filtered!$AH$23)/Filtered!$AI$23),"")),"") ->  | Z27: =IFERROR(IF((OR($C27="RP",$C27="SP")),IF(Personalize!$E$48=TRUE,(((VLOOKUP($B27,Pitcher!$A$1:$Z$700,5,FALSE))-'Filtered-P'!$AB$11)/'Filtered-P'!$AC$11),""),IF(Personalize!$E$43=TRUE,(((VLOOKUP($B27,Hitter!$A$1:$AZ$628,8,FALSE))-Filtered!$AH$24)/Filtered!$AI$24),"")),"") ->  | AA27: =IFERROR(IF((OR($C27="RP",$C27="SP")),IF(Personalize!$E$52=TRUE,(((VLOOKUP($B27,Pitcher!$A$1:$AA$700,21,FALSE))-'Filtered-P'!$AB$29)/(-1*'Filtered-P'!$AC$29)),""),IF(Personalize!$E$49=TRUE,(((VLOOKUP($B27,Hitter!$A$1:$AF$628,29,FALSE))-Filtered!$AH$45)/Filtered!$AI$45),"")),"") ->  | AB27: =IFERROR(IF((OR($C27="RP",$C27="SP")),IF(Personalize!$E$53=TRUE,(((VLOOKUP($B27,Pitcher!$A$1:$AA$700,23,FALSE))-'Filtered-P'!$AB$31)/(-1*'Filtered-P'!$AC$31)),""),IF(Personalize!$E$50=TRUE,(((VLOOKUP($B27,Hitter!$A$1:$AF$628,30,FALSE))-Filtered!$AH$46)/Filtered!$AI$46),"")),"") ->  | AC27: =IFERROR(IF((OR($C27="RP",$C27="SP")),IF(Personalize!$E$54=TRUE,(((VLOOKUP($B27,Pitcher!$A$1:$AA$700,24,FALSE))-'Filtered-P'!$AB$32)/'Filtered-P'!$AC$32),""),IF(Personalize!$E$51=TRUE,(((VLOOKUP($B27,Hitter!$A$1:$AF$628,14,FALSE))-Filtered!$AH$30)/(-1*Filtered!$AI$30)),"")),"") ->  | AD27: =IFERROR(IF((OR($C27="RP",$C27="SP")),VLOOKUP($B27,Pitcher!$A$1:$P$700,2,FALSE),""),"") ->  | AE27: =IFERROR(IF((OR($C27="RP",$C27="SP")),VLOOKUP($B27,Pitcher!$A$1:$P$700,9,FALSE),""),"") ->  | AF27: =IFERROR(IF((OR($C27="RP",$C27="SP")),VLOOKUP($B27,Pitcher!$A$1:$P$700,7,FALSE),""),"") ->  | AG27: =IFERROR(IF((OR($C27="RP",$C27="SP")),VLOOKUP($B27,Pitcher!$A$1:$P$700,10,FALSE),""),"") ->  | AH27: =IFERROR(IF((OR($C27="RP",$C27="SP")),VLOOKUP($B27,Pitcher!$A$1:$P$700,11,FALSE),""),"") ->  | AI27: =IFERROR(IF((OR($C27="RP",$C27="SP")),"",VLOOKUP($B27,Hitter!$A$1:$X$628,15,FALSE)),"") -> 0.2813839405 | AJ27: =IFERROR(IF((OR($C27="RP",$C27="SP")),"",VLOOKUP($B27,Hitter!$A$1:$X$628,9,FALSE)),"") -> 19.97371417 | AK27: =IFERROR(IF((OR($C27="RP",$C27="SP")),"",VLOOKUP($B27,Hitter!$A$1:$X$628,10,FALSE)),"") -> 74.88762428 | AL27: =IFERROR(IF((OR($C27="RP",$C27="SP")),"",VLOOKUP($B27,Hitter!$A$1:$X$628,4,FALSE)),"") -> 77.95516365 | AM27: =IFERROR(IF((OR($C27="RP",$C27="SP")),"",VLOOKUP($B27,Hitter!$A$1:$X$628,11,FALSE)),"") -> 16.42866354 | AN27: =IFERROR(IF(ISTEXT($A27),"",(1-NORMDIST((COUNTA($A$9:$A$661)),($G27),((AS27-AR27)/6),TRUE))),"") -> 1 | AO27: =IFERROR(IF(ISTEXT($A27),"",(1-NORMDIST((COUNTA($A$9:$A$661))+(Personalize!$E$18+1),$G27,((AS27-AR27)/6),TRUE))),"") -> 0.9978663806 | AP27: =IFERROR(IF(ISTEXT($A27),"",(1-NORMDIST((COUNTA($A$9:$A$661))+((Personalize!$E$18+1)*2),$G27,((AS27-AR27)/6),TRUE))),"") -> 0.1060955031 | AR27: =IF(Personalize!$E$31=1,VLOOKUP($B27,'ADP-Rank'!$A$2:$J$609,5,FALSE),(IF(Personalize!$E$31=2,VLOOKUP($B27,'ADP-Rank'!$A$2:$J$609,8,FALSE),(IF(Personalize!$E$31=3,VLOOKUP($B27,'ADP-Rank'!$A$2:$O$609,11,FALSE),(IF(Personalize!$E$31=4,VLOOKUP($B27,'ADP-Rank'!$A$2:$AN$609,25,FALSE),(IF(Personalize!$E$31=5,VLOOKUP($B27,'ADP-Rank'!$A$2:$AN$609,28,FALSE),(IF(Personalize!$E$31=6,VLOOKUP($B27,'ADP-Rank'!$A$2:$AN$609,32,FALSE),(IF(Personalize!$E$31=7,VLOOKUP($B27,'ADP-Rank'!$A$2:$AN$609,40,FALSE),""))))))))))))) -> 17 | AS27: =IF(Personalize!$E$31=1,VLOOKUP($B27,'ADP-Rank'!$A$2:$J$609,6,FALSE),(IF(Personalize!$E$31=2,VLOOKUP($B27,'ADP-Rank'!$A$2:$J$609,9,FALSE),(IF(Personalize!$E$31=3,VLOOKUP($B27,'ADP-Rank'!$A$2:$O$609,12,FALSE),(IF(Personalize!$E$31=4,VLOOKUP($B27,'ADP-Rank'!$A$2:$AN$609,26,FALSE),(IF(Personalize!$E$31=5,VLOOKUP($B27,'ADP-Rank'!$A$2:$AN$609,29,FALSE),(IF(Personalize!$E$31=6,VLOOKUP($B27,'ADP-Rank'!$A$2:$AN$609,33,FALSE),(IF(Personalize!$E$31=7,VLOOKUP($B27,'ADP-Rank'!$A$2:$AP$609,41,FALSE),""))))))))))))) -> 36 | AT27: =IF(ISBLANK(A27),0,1) -> 0 | AU27: =IF(K27="",0,1) -> 1 | AV27: =A27 -> 0 | AW27: =IF(C27="C",1,IF(C27="1B",2,IF(C27="2B",3,IF(C27="3B",4,IF(C27="SS",5,IF(C27="CI",6,IF(C27="MI",7,IF(C27="OF",11,IF(C27="LF",8,IF(C27="CF",9,IF(C27="RF",10,IF(C27="DH",12,IF(C27="SP",13,IF(C27="RP",14,IF(C27="P",15,16))))))))))))))) -> 4 | AX27: =VLOOKUP(B27,'Starter Calc'!$B$2:$BN$700,65,FALSE) -> Bench | AY27: =IFERROR(VLOOKUP($B27,'ADP-Rank'!$A$2:$AH$785,34,FALSE),TRUE) -> TRUE
B28: Jason Kipnis | C28: 2B | D28: =IFERROR(IF(VLOOKUP(B28,'Starter Calc'!$B$2:$E$700,4,FALSE)="","",VLOOKUP(B28,'Starter Calc'!$B$2:$E$700,4,FALSE)),"") -> ,, | E28: =IFERROR(VLOOKUP($B28,'ADP-Rank'!$A$2:$D$650,3,FALSE),"") -> CLE | F28: =IFERROR(VLOOKUP($B28,'ADP-Rank'!$A$2:$W$650,23,FALSE),"") -> 27 | G28: =IFERROR((IF(Personalize!$E$31=1,VLOOKUP($B28,'ADP-Rank'!$A$2:$J$750,4,FALSE),(IF(Personalize!$E$31=2,VLOOKUP($B28,'ADP-Rank'!$A$2:$J$750,7,FALSE),(IF(Personalize!$E$31=3,VLOOKUP($B28,'ADP-Rank'!$A$2:$J$750,10,FALSE),(IF(Personalize!$E$31=4,VLOOKUP($B28,'ADP-Rank'!$A$2:$AN$750,24,FALSE),(IF(Personalize!$E$31=5,VLOOKUP($B28,'ADP-Rank'!$A$2:$AN$750,27,FALSE),(IF(Personalize!$E$31=6,VLOOKUP($B28,'ADP-Rank'!$A$2:$AN$750,31,FALSE),(IF(Personalize!$E$31=7,VLOOKUP($B28,'ADP-Rank'!$A$2:$AN$750,39,FALSE))))))))))))))),"") -> 24.01234568 | H28: =IFERROR(ROUNDDOWN(VLOOKUP($B28,'ADP-Rank'!$A$2:$AN$885,38,FALSE),0),"") -> 2 | I28: =VLOOKUP($B28,'ADP-Rank'!$A$2:$AJ$885,36,FALSE) -> 28 | J28: =IFERROR(RANK($K28,$K$7:$K$661,0),"") -> 53 | K28: =IF((SUM(M28:AC28)=0),"",SUM(M28:AC28)) -> 2.096549106 | L28: =IFERROR(IF(ISTEXT($A28),"",IF((OR($C28="RP",$C28="SP")),ABS(VLOOKUP(C28,'Filtered-P'!$AA$3:$AE$4,5,FALSE))+K28,ABS(VLOOKUP(C28,Filtered!$AG$3:$AK$14,5,FALSE))+K28)),"") -> 6.972878241 | M28: =IFERROR(IF((OR($C28="RP",$C28="SP")),IF(Personalize!$E$10=TRUE,(((VLOOKUP($B28,Pitcher!$A$1:$P$700,2,FALSE))-'Filtered-P'!$AB$8)/'Filtered-P'!$AC$8),""),IF(Personalize!$E$4=TRUE,(((VLOOKUP($B28,Hitter!$A$1:$X$628,21,FALSE))-Filtered!$AH$35)/Filtered!$AI$35),"")),"") -> -0.4440202679 | N28: =IFERROR(IF((OR($C28="RP",$C28="SP")),IF(Personalize!$E$12=TRUE,(((VLOOKUP($B28,Pitcher!$A$1:$P$700,9,FALSE))-'Filtered-P'!$AB$15)/'Filtered-P'!$AC$15),""),IF(Personalize!$E$3=TRUE,(((VLOOKUP($B28,Hitter!$A$1:$AB$628,9,FALSE))-Filtered!$AH$25)/Filtered!$AI$25),"")),"") -> -0.1849357829 | O28: =IFERROR(IF((OR($C28="RP",$C28="SP")),IF(Personalize!$E$11=TRUE,(((VLOOKUP($B28,Pitcher!$A$1:$P$700,7,FALSE))-'Filtered-P'!$AB$13)/'Filtered-P'!$AC$13),""),IF(Personalize!$E$2=TRUE,(((VLOOKUP($B28,Hitter!$A$1:$AB$628,4,FALSE))-Filtered!$AH$20)/Filtered!$AI$20),"")),"") -> 0.9271997999 | P28: =IFERROR(IF((OR($C28="RP",$C28="SP")),IF(Personalize!$E$13=TRUE,(((VLOOKUP($B28,Pitcher!$A$1:$P$700,13,FALSE))-'Filtered-P'!$AB$19)/'Filtered-P'!$AC$19),""),IF(Personalize!$E$5=TRUE,(((VLOOKUP($B28,Hitter!$A$1:$AB$628,10,FALSE))-Filtered!$AH$26)/Filtered!$AI$26),"")),"") -> 0.2704158035 | Q28: =IFERROR(IF((OR($C28="RP",$C28="SP")),IF(Personalize!$E$14=TRUE,(((VLOOKUP($B28,Pitcher!$A$1:$P$700,14,FALSE))-'Filtered-P'!$AB$20)/'Filtered-P'!$AC$20),""),IF(Personalize!$E$6=TRUE,(((VLOOKUP($B28,Hitter!$A$1:$AB$628,11,FALSE))-Filtered!$AH$27)/Filtered!$AI$27),"")),"") -> 1.527889554 | R28: =IFERROR(IF((OR($C28="RP",$C28="SP")),IF(Personalize!$E$16=TRUE,(((VLOOKUP($B28,Pitcher!$A$1:$P$700,3,FALSE))-'Filtered-P'!$AB$9)/'Filtered-P'!$AC$9),""),IF(Personalize!$E$7=TRUE,(((VLOOKUP($B28,Hitter!$A$1:$AZ$628,23,FALSE))-Filtered!$AH$37)/Filtered!$AI$37),"")),"") ->  | S28: =IFERROR(IF((OR($C28="RP",$C28="SP")),IF(Personalize!$E$15=TRUE,(((VLOOKUP($B28,Pitcher!$A$1:$P$700,15,FALSE))-'Filtered-P'!$AB$21)/'Filtered-P'!$AC$21),""),IF(Personalize!$E$8=TRUE,(((VLOOKUP($B28,Hitter!$A$1:$AZ$628,22,FALSE))-Filtered!$AH$36)/Filtered!$AI$36),"")),"") ->  | T28: =IFERROR(IF((OR($C28="RP",$C28="SP")),IF(Personalize!$E$17=TRUE,(((VLOOKUP($B28,Pitcher!$A$1:$P$700,16,FALSE))-'Filtered-P'!$AB$22)/'Filtered-P'!$AC$22),""),IF(Personalize!$E$9=TRUE,(((VLOOKUP($B28,Hitter!$A$1:$AZ$628,24,FALSE))-Filtered!$AH$38)/Filtered!$AI$38),"")),"") ->  | U28: =IFERROR(IF((OR($C28="RP",$C28="SP")),IF(Personalize!$E$37=TRUE,(((VLOOKUP($B28,Pitcher!$A$1:$Z$700,17,FALSE))-'Filtered-P'!$AB$25)/'Filtered-P'!$AC$25),""),IF(Personalize!$E$39=TRUE,(((VLOOKUP($B28,Hitter!$A$1:$X$628,5,FALSE))-Filtered!$AH$21)/Filtered!$AI$21),"")),"") ->  | V28: =IFERROR(IF((OR($C28="RP",$C28="SP")),IF(Personalize!$E$38=TRUE,(((VLOOKUP($B28,Pitcher!$A$1:$Z$700,18,FALSE))-'Filtered-P'!$AB$26)/'Filtered-P'!$AC$26),""),IF(Personalize!$E$40=TRUE,(((VLOOKUP($B28,Hitter!$A$1:$X$628,13,FALSE))-Filtered!$AH$29)/Filtered!$AI$29),"")),"") ->  | W28: =IFERROR(IF((OR($C28="RP",$C28="SP")),IF(Personalize!$E$45=TRUE,(((VLOOKUP($B28,Pitcher!$A$1:$Z$700,4,FALSE))-'Filtered-P'!$AB$10)/'Filtered-P'!$AC$10),""),IF(Personalize!$E$41=TRUE,(((VLOOKUP($B28,Hitter!$A$1:$AZ$628,19,FALSE))-Filtered!$AH$43)/Filtered!$AI$43),"")),"") ->  | X28: =IFERROR(IF((OR($C28="RP",$C28="SP")),IF(Personalize!$E$46=TRUE,(((VLOOKUP($B28,Pitcher!$A$1:$Z$700,19,FALSE))-'Filtered-P'!$AB$27)/'Filtered-P'!$AC$27),""),IF(Personalize!$E$44=TRUE,(((VLOOKUP($B28,Hitter!$A$1:$AZ$628,20,FALSE))-Filtered!$AH$44)/Filtered!$AI$44),"")),"") ->  | Y28: =IFERROR(IF((OR($C28="RP",$C28="SP")),IF(Personalize!$E$47=TRUE,(((VLOOKUP($B28,Pitcher!$A$1:$Z$700,6,FALSE))-'Filtered-P'!$AB$12)/'Filtered-P'!$AC$12),""),IF(Personalize!$E$42=TRUE,(((VLOOKUP($B28,Hitter!$A$1:$AZ$628,7,FALSE))-Filtered!$AH$23)/Filtered!$AI$23),"")),"") ->  | Z28: =IFERROR(IF((OR($C28="RP",$C28="SP")),IF(Personalize!$E$48=TRUE,(((VLOOKUP($B28,Pitcher!$A$1:$Z$700,5,FALSE))-'Filtered-P'!$AB$11)/'Filtered-P'!$AC$11),""),IF(Personalize!$E$43=TRUE,(((VLOOKUP($B28,Hitter!$A$1:$AZ$628,8,FALSE))-Filtered!$AH$24)/Filtered!$AI$24),"")),"") ->  | AA28: =IFERROR(IF((OR($C28="RP",$C28="SP")),IF(Personalize!$E$52=TRUE,(((VLOOKUP($B28,Pitcher!$A$1:$AA$700,21,FALSE))-'Filtered-P'!$AB$29)/(-1*'Filtered-P'!$AC$29)),""),IF(Personalize!$E$49=TRUE,(((VLOOKUP($B28,Hitter!$A$1:$AF$628,29,FALSE))-Filtered!$AH$45)/Filtered!$AI$45),"")),"") ->  | AB28: =IFERROR(IF((OR($C28="RP",$C28="SP")),IF(Personalize!$E$53=TRUE,(((VLOOKUP($B28,Pitcher!$A$1:$AA$700,23,FALSE))-'Filtered-P'!$AB$31)/(-1*'Filtered-P'!$AC$31)),""),IF(Personalize!$E$50=TRUE,(((VLOOKUP($B28,Hitter!$A$1:$AF$628,30,FALSE))-Filtered!$AH$46)/Filtered!$AI$46),"")),"") ->  | AC28: =IFERROR(IF((OR($C28="RP",$C28="SP")),IF(Personalize!$E$54=TRUE,(((VLOOKUP($B28,Pitcher!$A$1:$AA$700,24,FALSE))-'Filtered-P'!$AB$32)/'Filtered-P'!$AC$32),""),IF(Personalize!$E$51=TRUE,(((VLOOKUP($B28,Hitter!$A$1:$AF$628,14,FALSE))-Filtered!$AH$30)/(-1*Filtered!$AI$30)),"")),"") ->  | AD28: =IFERROR(IF((OR($C28="RP",$C28="SP")),VLOOKUP($B28,Pitcher!$A$1:$P$700,2,FALSE),""),"") ->  | AE28: =IFERROR(IF((OR($C28="RP",$C28="SP")),VLOOKUP($B28,Pitcher!$A$1:$P$700,9,FALSE),""),"") ->  | AF28: =IFERROR(IF((OR($C28="RP",$C28="SP")),VLOOKUP($B28,Pitcher!$A$1:$P$700,7,FALSE),""),"") ->  | AG28: =IFERROR(IF((OR($C28="RP",$C28="SP")),VLOOKUP($B28,Pitcher!$A$1:$P$700,10,FALSE),""),"") ->  | AH28: =IFERROR(IF((OR($C28="RP",$C28="SP")),VLOOKUP($B28,Pitcher!$A$1:$P$700,11,FALSE),""),"") ->  | AI28: =IFERROR(IF((OR($C28="RP",$C28="SP")),"",VLOOKUP($B28,Hitter!$A$1:$X$628,15,FALSE)),"") -> 0.263276393 | AJ28: =IFERROR(IF((OR($C28="RP",$C28="SP")),"",VLOOKUP($B28,Hitter!$A$1:$X$628,9,FALSE)),"") -> 16.76557167 | AK28: =IFERROR(IF((OR($C28="RP",$C28="SP")),"",VLOOKUP($B28,Hitter!$A$1:$X$628,10,FALSE)),"") -> 72.90715815 | AL28: =IFERROR(IF((OR($C28="RP",$C28="SP")),"",VLOOKUP($B28,Hitter!$A$1:$X$628,4,FALSE)),"") -> 84.8253882 | AM28: =IFERROR(IF((OR($C28="RP",$C28="SP")),"",VLOOKUP($B28,Hitter!$A$1:$X$628,11,FALSE)),"") -> 25.14447815 | AN28: =IFERROR(IF(ISTEXT($A28),"",(1-NORMDIST((COUNTA($A$9:$A$661)),($G28),((AS28-AR28)/6),TRUE))),"") -> 0.9994705871 | AO28: =IFERROR(IF(ISTEXT($A28),"",(1-NORMDIST((COUNTA($A$9:$A$661))+(Personalize!$E$18+1),$G28,((AS28-AR28)/6),TRUE))),"") -> 0.9334105666 | AP28: =IFERROR(IF(ISTEXT($A28),"",(1-NORMDIST((COUNTA($A$9:$A$661))+((Personalize!$E$18+1)*2),$G28,((AS28-AR28)/6),TRUE))),"") -> 0.3931786837 | AR28: =IF(Personalize!$E$31=1,VLOOKUP($B28,'ADP-Rank'!$A$2:$J$609,5,FALSE),(IF(Personalize!$E$31=2,VLOOKUP($B28,'ADP-Rank'!$A$2:$J$609,8,FALSE),(IF(Personalize!$E$31=3,VLOOKUP($B28,'ADP-Rank'!$A$2:$O$609,11,FALSE),(IF(Personalize!$E$31=4,VLOOKUP($B28,'ADP-Rank'!$A$2:$AN$609,25,FALSE),(IF(Personalize!$E$31=5,VLOOKUP($B28,'ADP-Rank'!$A$2:$AN$609,28,FALSE),(IF(Personalize!$E$31=6,VLOOKUP($B28,'ADP-Rank'!$A$2:$AN$609,32,FALSE),(IF(Personalize!$E$31=7,VLOOKUP($B28,'ADP-Rank'!$A$2:$AN$609,40,FALSE),""))))))))))))) -> 13 | AS28: =IF(Personalize!$E$31=1,VLOOKUP($B28,'ADP-Rank'!$A$2:$J$609,6,FALSE),(IF(Personalize!$E$31=2,VLOOKUP($B28,'ADP-Rank'!$A$2:$J$609,9,FALSE),(IF(Personalize!$E$31=3,VLOOKUP($B28,'ADP-Rank'!$A$2:$O$609,12,FALSE),(IF(Personalize!$E$31=4,VLOOKUP($B28,'ADP-Rank'!$A$2:$AN$609,26,FALSE),(IF(Personalize!$E$31=5,VLOOKUP($B28,'ADP-Rank'!$A$2:$AN$609,29,FALSE),(IF(Personalize!$E$31=6,VLOOKUP($B28,'ADP-Rank'!$A$2:$AN$609,33,FALSE),(IF(Personalize!$E$31=7,VLOOKUP($B28,'ADP-Rank'!$A$2:$AP$609,41,FALSE),""))))))))))))) -> 57 | AT28: =IF(ISBLANK(A28),0,1) -> 0 | AU28: =IF(K28="",0,1) -> 1 | AV28: =A28 -> 0 | AW28: =IF(C28="C",1,IF(C28="1B",2,IF(C28="2B",3,IF(C28="3B",4,IF(C28="SS",5,IF(C28="CI",6,IF(C28="MI",7,IF(C28="OF",11,IF(C28="LF",8,IF(C28="CF",9,IF(C28="RF",10,IF(C28="DH",12,IF(C28="SP",13,IF(C28="RP",14,IF(C28="P",15,16))))))))))))))) -> 3 | AX28: =VLOOKUP(B28,'Starter Calc'!$B$2:$BN$700,65,FALSE) -> Bench | AY28: =IFERROR(VLOOKUP($B28,'ADP-Rank'!$A$2:$AH$785,34,FALSE),TRUE) -> TRUE
B29: Yasiel Puig | C29: OF | D29: =IFERROR(IF(VLOOKUP(B29,'Starter Calc'!$B$2:$E$700,4,FALSE)="","",VLOOKUP(B29,'Starter Calc'!$B$2:$E$700,4,FALSE)),"") -> ,RF, | E29: =IFERROR(VLOOKUP($B29,'ADP-Rank'!$A$2:$D$650,3,FALSE),"") -> LAD | F29: =IFERROR(VLOOKUP($B29,'ADP-Rank'!$A$2:$W$650,23,FALSE),"") -> 23 | G29: =IFERROR((IF(Personalize!$E$31=1,VLOOKUP($B29,'ADP-Rank'!$A$2:$J$750,4,FALSE),(IF(Personalize!$E$31=2,VLOOKUP($B29,'ADP-Rank'!$A$2:$J$750,7,FALSE),(IF(Personalize!$E$31=3,VLOOKUP($B29,'ADP-Rank'!$A$2:$J$750,10,FALSE),(IF(Personalize!$E$31=4,VLOOKUP($B29,'ADP-Rank'!$A$2:$AN$750,24,FALSE),(IF(Personalize!$E$31=5,VLOOKUP($B29,'ADP-Rank'!$A$2:$AN$750,27,FALSE),(IF(Personalize!$E$31=6,VLOOKUP($B29,'ADP-Rank'!$A$2:$AN$750,31,FALSE),(IF(Personalize!$E$31=7,VLOOKUP($B29,'ADP-Rank'!$A$2:$AN$750,39,FALSE))))))))))))))),"") -> 27.03703704 | H29: =IFERROR(ROUNDDOWN(VLOOKUP($B29,'ADP-Rank'!$A$2:$AN$885,38,FALSE),0),"") -> 2 | I29: =VLOOKUP($B29,'ADP-Rank'!$A$2:$AJ$885,36,FALSE) -> 26 | J29: =IFERROR(RANK($K29,$K$7:$K$661,0),"") -> 18 | K29: =IF((SUM(M29:AC29)=0),"",SUM(M29:AC29)) -> 4.715985421 | L29: =IFERROR(IF(ISTEXT($A29),"",IF((OR($C29="RP",$C29="SP")),ABS(VLOOKUP(C29,'Filtered-P'!$AA$3:$AE$4,5,FALSE))+K29,ABS(VLOOKUP(C29,Filtered!$AG$3:$AK$14,5,FALSE))+K29)),"") -> 5.131613815 | M29: =IFERROR(IF((OR($C29="RP",$C29="SP")),IF(Personalize!$E$10=TRUE,(((VLOOKUP($B29,Pitcher!$A$1:$P$700,2,FALSE))-'Filtered-P'!$AB$8)/'Filtered-P'!$AC$8),""),IF(Personalize!$E$4=TRUE,(((VLOOKUP($B29,Hitter!$A$1:$X$628,21,FALSE))-Filtered!$AH$35)/Filtered!$AI$35),"")),"") -> 0.9872909325 | N29: =IFERROR(IF((OR($C29="RP",$C29="SP")),IF(Personalize!$E$12=TRUE,(((VLOOKUP($B29,Pitcher!$A$1:$P$700,9,FALSE))-'Filtered-P'!$AB$15)/'Filtered-P'!$AC$15),""),IF(Personalize!$E$3=TRUE,(((VLOOKUP($B29,Hitter!$A$1:$AB$628,9,FALSE))-Filtered!$AH$25)/Filtered!$AI$25),"")),"") -> 0.8296839688 | O29: =IFERROR(IF((OR($C29="RP",$C29="SP")),IF(Personalize!$E$11=TRUE,(((VLOOKUP($B29,Pitcher!$A$1:$P$700,7,FALSE))-'Filtered-P'!$AB$13)/'Filtered-P'!$AC$13),""),IF(Personalize!$E$2=TRUE,(((VLOOKUP($B29,Hitter!$A$1:$AB$628,4,FALSE))-Filtered!$AH$20)/Filtered!$AI$20),"")),"") -> 1.714301255 | P29: =IFERROR(IF((OR($C29="RP",$C29="SP")),IF(Personalize!$E$13=TRUE,(((VLOOKUP($B29,Pitcher!$A$1:$P$700,13,FALSE))-'Filtered-P'!$AB$19)/'Filtered-P'!$AC$19),""),IF(Personalize!$E$5=TRUE,(((VLOOKUP($B29,Hitter!$A$1:$AB$628,10,FALSE))-Filtered!$AH$26)/Filtered!$AI$26),"")),"") -> 0.4139834995 | Q29: =IFERROR(IF((OR($C29="RP",$C29="SP")),IF(Personalize!$E$14=TRUE,(((VLOOKUP($B29,Pitcher!$A$1:$P$700,14,FALSE))-'Filtered-P'!$AB$20)/'Filtered-P'!$AC$20),""),IF(Personalize!$E$6=TRUE,(((VLOOKUP($B29,Hitter!$A$1:$AB$628,11,FALSE))-Filtered!$AH$27)/Filtered!$AI$27),"")),"") -> 0.7707257659 | R29: =IFERROR(IF((OR($C29="RP",$C29="SP")),IF(Personalize!$E$16=TRUE,(((VLOOKUP($B29,Pitcher!$A$1:$P$700,3,FALSE))-'Filtered-P'!$AB$9)/'Filtered-P'!$AC$9),""),IF(Personalize!$E$7=TRUE,(((VLOOKUP($B29,Hitter!$A$1:$AZ$628,23,FALSE))-Filtered!$AH$37)/Filtered!$AI$37),"")),"") ->  | S29: =IFERROR(IF((OR($C29="RP",$C29="SP")),IF(Personalize!$E$15=TRUE,(((VLOOKUP($B29,Pitcher!$A$1:$P$700,15,FALSE))-'Filtered-P'!$AB$21)/'Filtered-P'!$AC$21),""),IF(Personalize!$E$8=TRUE,(((VLOOKUP($B29,Hitter!$A$1:$AZ$628,22,FALSE))-Filtered!$AH$36)/Filtered!$AI$36),"")),"") ->  | T29: =IFERROR(IF((OR($C29="RP",$C29="SP")),IF(Personalize!$E$17=TRUE,(((VLOOKUP($B29,Pitcher!$A$1:$P$700,16,FALSE))-'Filtered-P'!$AB$22)/'Filtered-P'!$AC$22),""),IF(Personalize!$E$9=TRUE,(((VLOOKUP($B29,Hitter!$A$1:$AZ$628,24,FALSE))-Filtered!$AH$38)/Filtered!$AI$38),"")),"") ->  | U29: =IFERROR(IF((OR($C29="RP",$C29="SP")),IF(Personalize!$E$37=TRUE,(((VLOOKUP($B29,Pitcher!$A$1:$Z$700,17,FALSE))-'Filtered-P'!$AB$25)/'Filtered-P'!$AC$25),""),IF(Personalize!$E$39=TRUE,(((VLOOKUP($B29,Hitter!$A$1:$X$628,5,FALSE))-Filtered!$AH$21)/Filtered!$AI$21),"")),"") ->  | V29: =IFERROR(IF((OR($C29="RP",$C29="SP")),IF(Personalize!$E$38=TRUE,(((VLOOKUP($B29,Pitcher!$A$1:$Z$700,18,FALSE))-'Filtered-P'!$AB$26)/'Filtered-P'!$AC$26),""),IF(Personalize!$E$40=TRUE,(((VLOOKUP($B29,Hitter!$A$1:$X$628,13,FALSE))-Filtered!$AH$29)/Filtered!$AI$29),"")),"") ->  | W29: =IFERROR(IF((OR($C29="RP",$C29="SP")),IF(Personalize!$E$45=TRUE,(((VLOOKUP($B29,Pitcher!$A$1:$Z$700,4,FALSE))-'Filtered-P'!$AB$10)/'Filtered-P'!$AC$10),""),IF(Personalize!$E$41=TRUE,(((VLOOKUP($B29,Hitter!$A$1:$AZ$628,19,FALSE))-Filtered!$AH$43)/Filtered!$AI$43),"")),"") ->  | X29: =IFERROR(IF((OR($C29="RP",$C29="SP")),IF(Personalize!$E$46=TRUE,(((VLOOKUP($B29,Pitcher!$A$1:$Z$700,19,FALSE))-'Filtered-P'!$AB$27)/'Filtered-P'!$AC$27),""),IF(Personalize!$E$44=TRUE,(((VLOOKUP($B29,Hitter!$A$1:$AZ$628,20,FALSE))-Filtered!$AH$44)/Filtered!$AI$44),"")),"") ->  | Y29: =IFERROR(IF((OR($C29="RP",$C29="SP")),IF(Personalize!$E$47=TRUE,(((VLOOKUP($B29,Pitcher!$A$1:$Z$700,6,FALSE))-'Filtered-P'!$AB$12)/'Filtered-P'!$AC$12),""),IF(Personalize!$E$42=TRUE,(((VLOOKUP($B29,Hitter!$A$1:$AZ$628,7,FALSE))-Filtered!$AH$23)/Filtered!$AI$23),"")),"") ->  | Z29: =IFERROR(IF((OR($C29="RP",$C29="SP")),IF(Personalize!$E$48=TRUE,(((VLOOKUP($B29,Pitcher!$A$1:$Z$700,5,FALSE))-'Filtered-P'!$AB$11)/'Filtered-P'!$AC$11),""),IF(Personalize!$E$43=TRUE,(((VLOOKUP($B29,Hitter!$A$1:$AZ$628,8,FALSE))-Filtered!$AH$24)/Filtered!$AI$24),"")),"") ->  | AA29: =IFERROR(IF((OR($C29="RP",$C29="SP")),IF(Personalize!$E$52=TRUE,(((VLOOKUP($B29,Pitcher!$A$1:$AA$700,21,FALSE))-'Filtered-P'!$AB$29)/(-1*'Filtered-P'!$AC$29)),""),IF(Personalize!$E$49=TRUE,(((VLOOKUP($B29,Hitter!$A$1:$AF$628,29,FALSE))-Filtered!$AH$45)/Filtered!$AI$45),"")),"") ->  | AB29: =IFERROR(IF((OR($C29="RP",$C29="SP")),IF(Personalize!$E$53=TRUE,(((VLOOKUP($B29,Pitcher!$A$1:$AA$700,23,FALSE))-'Filtered-P'!$AB$31)/(-1*'Filtered-P'!$AC$31)),""),IF(Personalize!$E$50=TRUE,(((VLOOKUP($B29,Hitter!$A$1:$AF$628,30,FALSE))-Filtered!$AH$46)/Filtered!$AI$46),"")),"") ->  | AC29: =IFERROR(IF((OR($C29="RP",$C29="SP")),IF(Personalize!$E$54=TRUE,(((VLOOKUP($B29,Pitcher!$A$1:$AA$700,24,FALSE))-'Filtered-P'!$AB$32)/'Filtered-P'!$AC$32),""),IF(Personalize!$E$51=TRUE,(((VLOOKUP($B29,Hitter!$A$1:$AF$628,14,FALSE))-Filtered!$AH$30)/(-1*Filtered!$AI$30)),"")),"") ->  | AD29: =IFERROR(IF((OR($C29="RP",$C29="SP")),VLOOKUP($B29,Pitcher!$A$1:$P$700,2,FALSE),""),"") ->  | AE29: =IFERROR(IF((OR($C29="RP",$C29="SP")),VLOOKUP($B29,Pitcher!$A$1:$P$700,9,FALSE),""),"") ->  | AF29: =IFERROR(IF((OR($C29="RP",$C29="SP")),VLOOKUP($B29,Pitcher!$A$1:$P$700,7,FALSE),""),"") ->  | AG29: =IFERROR(IF((OR($C29="RP",$C29="SP")),VLOOKUP($B29,Pitcher!$A$1:$P$700,10,FALSE),""),"") ->  | AH29: =IFERROR(IF((OR($C29="RP",$C29="SP")),VLOOKUP($B29,Pitcher!$A$1:$P$700,11,FALSE),""),"") ->  | AI29: =IFERROR(IF((OR($C29="RP",$C29="SP")),"",VLOOKUP($B29,Hitter!$A$1:$X$628,15,FALSE)),"") -> 0.2858039436 | AJ29: =IFERROR(IF((OR($C29="RP",$C29="SP")),"",VLOOKUP($B29,Hitter!$A$1:$X$628,9,FALSE)),"") -> 24.07991638 | AK29: =IFERROR(IF((OR($C29="RP",$C29="SP")),"",VLOOKUP($B29,Hitter!$A$1:$X$628,10,FALSE)),"") -> 74.88744993 | AL29: =IFERROR(IF((OR($C29="RP",$C29="SP")),"",VLOOKUP($B29,Hitter!$A$1:$X$628,4,FALSE)),"") -> 93.337854 | AM29: =IFERROR(IF((OR($C29="RP",$C29="SP")),"",VLOOKUP($B29,Hitter!$A$1:$X$628,11,FALSE)),"") -> 18.11350443 | AN29: =IFERROR(IF(ISTEXT($A29),"",(1-NORMDIST((COUNTA($A$9:$A$661)),($G29),((AS29-AR29)/6),TRUE))),"") -> 0.9999998005 | AO29: =IFERROR(IF(ISTEXT($A29),"",(1-NORMDIST((COUNTA($A$9:$A$661))+(Personalize!$E$18+1),$G29,((AS29-AR29)/6),TRUE))),"") -> 0.9957551128 | AP29: =IFERROR(IF(ISTEXT($A29),"",(1-NORMDIST((COUNTA($A$9:$A$661))+((Personalize!$E$18+1)*2),$G29,((AS29-AR29)/6),TRUE))),"") -> 0.5770860538 | AR29: =IF(Personalize!$E$31=1,VLOOKUP($B29,'ADP-Rank'!$A$2:$J$609,5,FALSE),(IF(Personalize!$E$31=2,VLOOKUP($B29,'ADP-Rank'!$A$2:$J$609,8,FALSE),(IF(Personalize!$E$31=3,VLOOKUP($B29,'ADP-Rank'!$A$2:$O$609,11,FALSE),(IF(Personalize!$E$31=4,VLOOKUP($B29,'ADP-Rank'!$A$2:$AN$609,25,FALSE),(IF(Personalize!$E$31=5,VLOOKUP($B29,'ADP-Rank'!$A$2:$AN$609,28,FALSE),(IF(Personalize!$E$31=6,VLOOKUP($B29,'ADP-Rank'!$A$2:$AN$609,32,FALSE),(IF(Personalize!$E$31=7,VLOOKUP($B29,'ADP-Rank'!$A$2:$AN$609,40,FALSE),""))))))))))))) -> 16 | AS29: =IF(Personalize!$E$31=1,VLOOKUP($B29,'ADP-Rank'!$A$2:$J$609,6,FALSE),(IF(Personalize!$E$31=2,VLOOKUP($B29,'ADP-Rank'!$A$2:$J$609,9,FALSE),(IF(Personalize!$E$31=3,VLOOKUP($B29,'ADP-Rank'!$A$2:$O$609,12,FALSE),(IF(Personalize!$E$31=4,VLOOKUP($B29,'ADP-Rank'!$A$2:$AN$609,26,FALSE),(IF(Personalize!$E$31=5,VLOOKUP($B29,'ADP-Rank'!$A$2:$AN$609,29,FALSE),(IF(Personalize!$E$31=6,VLOOKUP($B29,'ADP-Rank'!$A$2:$AN$609,33,FALSE),(IF(Personalize!$E$31=7,VLOOKUP($B29,'ADP-Rank'!$A$2:$AP$609,41,FALSE),""))))))))))))) -> 48 | AT29: =IF(ISBLANK(A29),0,1) -> 0 | AU29: =IF(K29="",0,1) -> 1 | AV29: =A29 -> 0 | AW29: =IF(C29="C",1,IF(C29="1B",2,IF(C29="2B",3,IF(C29="3B",4,IF(C29="SS",5,IF(C29="CI",6,IF(C29="MI",7,IF(C29="OF",11,IF(C29="LF",8,IF(C29="CF",9,IF(C29="RF",10,IF(C29="DH",12,IF(C29="SP",13,IF(C29="RP",14,IF(C29="P",15,16))))))))))))))) -> 11 | AX29: =VLOOKUP(B29,'Starter Calc'!$B$2:$BN$700,65,FALSE) -> Starter | AY29: =IFERROR(VLOOKUP($B29,'ADP-Rank'!$A$2:$AH$785,34,FALSE),TRUE) -> TRUE
B30: Giancarlo Stanton | C30: OF | D30: =IFERROR(IF(VLOOKUP(B30,'Starter Calc'!$B$2:$E$700,4,FALSE)="","",VLOOKUP(B30,'Starter Calc'!$B$2:$E$700,4,FALSE)),"") -> ,RF, | E30: =IFERROR(VLOOKUP($B30,'ADP-Rank'!$A$2:$D$650,3,FALSE),"") -> MIA | F30: =IFERROR(VLOOKUP($B30,'ADP-Rank'!$A$2:$W$650,23,FALSE),"") -> 24 | G30: =IFERROR((IF(Personalize!$E$31=1,VLOOKUP($B30,'ADP-Rank'!$A$2:$J$750,4,FALSE),(IF(Personalize!$E$31=2,VLOOKUP($B30,'ADP-Rank'!$A$2:$J$750,7,FALSE),(IF(Personalize!$E$31=3,VLOOKUP($B30,'ADP-Rank'!$A$2:$J$750,10,FALSE),(IF(Personalize!$E$31=4,VLOOKUP($B30,'ADP-Rank'!$A$2:$AN$750,24,FALSE),(IF(Personalize!$E$31=5,VLOOKUP($B30,'ADP-Rank'!$A$2:$AN$750,27,FALSE),(IF(Personalize!$E$31=6,VLOOKUP($B30,'ADP-Rank'!$A$2:$AN$750,31,FALSE),(IF(Personalize!$E$31=7,VLOOKUP($B30,'ADP-Rank'!$A$2:$AN$750,39,FALSE))))))))))))))),"") -> 27.22633745 | H30: =IFERROR(ROUNDDOWN(VLOOKUP($B30,'ADP-Rank'!$A$2:$AN$885,38,FALSE),0),"") -> 2 | I30: =VLOOKUP($B30,'ADP-Rank'!$A$2:$AJ$885,36,FALSE) -> 11 | J30: =IFERROR(RANK($K30,$K$7:$K$661,0),"") -> 43 | K30: =IF((SUM(M30:AC30)=0),"",SUM(M30:AC30)) -> 2.510395781 | L30: =IFERROR(IF(ISTEXT($A30),"",IF((OR($C30="RP",$C30="SP")),ABS(VLOOKUP(C30,'Filtered-P'!$AA$3:$AE$4,5,FALSE))+K30,ABS(VLOOKUP(C30,Filtered!$AG$3:$AK$14,5,FALSE))+K30)),"") -> 2.926024175 | M30: =IFERROR(IF((OR($C30="RP",$C30="SP")),IF(Personalize!$E$10=TRUE,(((VLOOKUP($B30,Pitcher!$A$1:$P$700,2,FALSE))-'Filtered-P'!$AB$8)/'Filtered-P'!$AC$8),""),IF(Personalize!$E$4=TRUE,(((VLOOKUP($B30,Hitter!$A$1:$X$628,21,FALSE))-Filtered!$AH$35)/Filtered!$AI$35),"")),"") -> -0.1993595012 | N30: =IFERROR(IF((OR($C30="RP",$C30="SP")),IF(Personalize!$E$12=TRUE,(((VLOOKUP($B30,Pitcher!$A$1:$P$700,9,FALSE))-'Filtered-P'!$AB$15)/'Filtered-P'!$AC$15),""),IF(Personalize!$E$3=TRUE,(((VLOOKUP($B30,Hitter!$A$1:$AB$628,9,FALSE))-Filtered!$AH$25)/Filtered!$AI$25),"")),"") -> 2.077619712 | O30: =IFERROR(IF((OR($C30="RP",$C30="SP")),IF(Personalize!$E$11=TRUE,(((VLOOKUP($B30,Pitcher!$A$1:$P$700,7,FALSE))-'Filtered-P'!$AB$13)/'Filtered-P'!$AC$13),""),IF(Personalize!$E$2=TRUE,(((VLOOKUP($B30,Hitter!$A$1:$AB$628,4,FALSE))-Filtered!$AH$20)/Filtered!$AI$20),"")),"") -> 0.439264777 | P30: =IFERROR(IF((OR($C30="RP",$C30="SP")),IF(Personalize!$E$13=TRUE,(((VLOOKUP($B30,Pitcher!$A$1:$P$700,13,FALSE))-'Filtered-P'!$AB$19)/'Filtered-P'!$AC$19),""),IF(Personalize!$E$5=TRUE,(((VLOOKUP($B30,Hitter!$A$1:$AB$628,10,FALSE))-Filtered!$AH$26)/Filtered!$AI$26),"")),"") -> 0.947259346 | Q30: =IFERROR(IF((OR($C30="RP",$C30="SP")),IF(Personalize!$E$14=TRUE,(((VLOOKUP($B30,Pitcher!$A$1:$P$700,14,FALSE))-'Filtered-P'!$AB$20)/'Filtered-P'!$AC$20),""),IF(Personalize!$E$6=TRUE,(((VLOOKUP($B30,Hitter!$A$1:$AB$628,11,FALSE))-Filtered!$AH$27)/Filtered!$AI$27),"")),"") -> -0.7543885523 | R30: =IFERROR(IF((OR($C30="RP",$C30="SP")),IF(Personalize!$E$16=TRUE,(((VLOOKUP($B30,Pitcher!$A$1:$P$700,3,FALSE))-'Filtered-P'!$AB$9)/'Filtered-P'!$AC$9),""),IF(Personalize!$E$7=TRUE,(((VLOOKUP($B30,Hitter!$A$1:$AZ$628,23,FALSE))-Filtered!$AH$37)/Filtered!$AI$37),"")),"") ->  | S30: =IFERROR(IF((OR($C30="RP",$C30="SP")),IF(Personalize!$E$15=TRUE,(((VLOOKUP($B30,Pitcher!$A$1:$P$700,15,FALSE))-'Filtered-P'!$AB$21)/'Filtered-P'!$AC$21),""),IF(Personalize!$E$8=TRUE,(((VLOOKUP($B30,Hitter!$A$1:$AZ$628,22,FALSE))-Filtered!$AH$36)/Filtered!$AI$36),"")),"") ->  | T30: =IFERROR(IF((OR($C30="RP",$C30="SP")),IF(Personalize!$E$17=TRUE,(((VLOOKUP($B30,Pitcher!$A$1:$P$700,16,FALSE))-'Filtered-P'!$AB$22)/'Filtered-P'!$AC$22),""),IF(Personalize!$E$9=TRUE,(((VLOOKUP($B30,Hitter!$A$1:$AZ$628,24,FALSE))-Filtered!$AH$38)/Filtered!$AI$38),"")),"") ->  | U30: =IFERROR(IF((OR($C30="RP",$C30="SP")),IF(Personalize!$E$37=TRUE,(((VLOOKUP($B30,Pitcher!$A$1:$Z$700,17,FALSE))-'Filtered-P'!$AB$25)/'Filtered-P'!$AC$25),""),IF(Personalize!$E$39=TRUE,(((VLOOKUP($B30,Hitter!$A$1:$X$628,5,FALSE))-Filtered!$AH$21)/Filtered!$AI$21),"")),"") ->  | V30: =IFERROR(IF((OR($C30="RP",$C30="SP")),IF(Personalize!$E$38=TRUE,(((VLOOKUP($B30,Pitcher!$A$1:$Z$700,18,FALSE))-'Filtered-P'!$AB$26)/'Filtered-P'!$AC$26),""),IF(Personalize!$E$40=TRUE,(((VLOOKUP($B30,Hitter!$A$1:$X$628,13,FALSE))-Filtered!$AH$29)/Filtered!$AI$29),"")),"") ->  | W30: =IFERROR(IF((OR($C30="RP",$C30="SP")),IF(Personalize!$E$45=TRUE,(((VLOOKUP($B30,Pitcher!$A$1:$Z$700,4,FALSE))-'Filtered-P'!$AB$10)/'Filtered-P'!$AC$10),""),IF(Personalize!$E$41=TRUE,(((VLOOKUP($B30,Hitter!$A$1:$AZ$628,19,FALSE))-Filtered!$AH$43)/Filtered!$AI$43),"")),"") ->  | X30: =IFERROR(IF((OR($C30="RP",$C30="SP")),IF(Personalize!$E$46=TRUE,(((VLOOKUP($B30,Pitcher!$A$1:$Z$700,19,FALSE))-'Filtered-P'!$AB$27)/'Filtered-P'!$AC$27),""),IF(Personalize!$E$44=TRUE,(((VLOOKUP($B30,Hitter!$A$1:$AZ$628,20,FALSE))-Filtered!$AH$44)/Filtered!$AI$44),"")),"") ->  | Y30: =IFERROR(IF((OR($C30="RP",$C30="SP")),IF(Personalize!$E$47=TRUE,(((VLOOKUP($B30,Pitcher!$A$1:$Z$700,6,FALSE))-'Filtered-P'!$AB$12)/'Filtered-P'!$AC$12),""),IF(Personalize!$E$42=TRUE,(((VLOOKUP($B30,Hitter!$A$1:$AZ$628,7,FALSE))-Filtered!$AH$23)/Filtered!$AI$23),"")),"") ->  | Z30: =IFERROR(IF((OR($C30="RP",$C30="SP")),IF(Personalize!$E$48=TRUE,(((VLOOKUP($B30,Pitcher!$A$1:$Z$700,5,FALSE))-'Filtered-P'!$AB$11)/'Filtered-P'!$AC$11),""),IF(Personalize!$E$43=TRUE,(((VLOOKUP($B30,Hitter!$A$1:$AZ$628,8,FALSE))-Filtered!$AH$24)/Filtered!$AI$24),"")),"") ->  | AA30: =IFERROR(IF((OR($C30="RP",$C30="SP")),IF(Personalize!$E$52=TRUE,(((VLOOKUP($B30,Pitcher!$A$1:$AA$700,21,FALSE))-'Filtered-P'!$AB$29)/(-1*'Filtered-P'!$AC$29)),""),IF(Personalize!$E$49=TRUE,(((VLOOKUP($B30,Hitter!$A$1:$AF$628,29,FALSE))-Filtered!$AH$45)/Filtered!$AI$45),"")),"") ->  | AB30: =IFERROR(IF((OR($C30="RP",$C30="SP")),IF(Personalize!$E$53=TRUE,(((VLOOKUP($B30,Pitcher!$A$1:$AA$700,23,FALSE))-'Filtered-P'!$AB$31)/(-1*'Filtered-P'!$AC$31)),""),IF(Personalize!$E$50=TRUE,(((VLOOKUP($B30,Hitter!$A$1:$AF$628,30,FALSE))-Filtered!$AH$46)/Filtered!$AI$46),"")),"") ->  | AC30: =IFERROR(IF((OR($C30="RP",$C30="SP")),IF(Personalize!$E$54=TRUE,(((VLOOKUP($B30,Pitcher!$A$1:$AA$700,24,FALSE))-'Filtered-P'!$AB$32)/'Filtered-P'!$AC$32),""),IF(Personalize!$E$51=TRUE,(((VLOOKUP($B30,Hitter!$A$1:$AF$628,14,FALSE))-Filtered!$AH$30)/(-1*Filtered!$AI$30)),"")),"") ->  | AD30: =IFERROR(IF((OR($C30="RP",$C30="SP")),VLOOKUP($B30,Pitcher!$A$1:$P$700,2,FALSE),""),"") ->  | AE30: =IFERROR(IF((OR($C30="RP",$C30="SP")),VLOOKUP($B30,Pitcher!$A$1:$P$700,9,FALSE),""),"") ->  | AF30: =IFERROR(IF((OR($C30="RP",$C30="SP")),VLOOKUP($B30,Pitcher!$A$1:$P$700,7,FALSE),""),"") ->  | AG30: =IFERROR(IF((OR($C30="RP",$C30="SP")),VLOOKUP($B30,Pitcher!$A$1:$P$700,10,FALSE),""),"") ->  | AH30: =IFERROR(IF((OR($C30="RP",$C30="SP")),VLOOKUP($B30,Pitcher!$A$1:$P$700,11,FALSE),""),"") ->  | AI30: =IFERROR(IF((OR($C30="RP",$C30="SP")),"",VLOOKUP($B30,Hitter!$A$1:$X$628,15,FALSE)),"") -> 0.2665223086 | AJ30: =IFERROR(IF((OR($C30="RP",$C30="SP")),"",VLOOKUP($B30,Hitter!$A$1:$X$628,9,FALSE)),"") -> 33.07622479 | AK30: =IFERROR(IF((OR($C30="RP",$C30="SP")),"",VLOOKUP($B30,Hitter!$A$1:$X$628,10,FALSE)),"") -> 82.24315604 | AL30: =IFERROR(IF((OR($C30="RP",$C30="SP")),"",VLOOKUP($B30,Hitter!$A$1:$X$628,4,FALSE)),"") -> 79.54839351 | AM30: =IFERROR(IF((OR($C30="RP",$C30="SP")),"",VLOOKUP($B30,Hitter!$A$1:$X$628,11,FALSE)),"") -> 3.951392017 | AN30: =IFERROR(IF(ISTEXT($A30),"",(1-NORMDIST((COUNTA($A$9:$A$661)),($G30),((AS30-AR30)/6),TRUE))),"") -> 0.9999999993 | AO30: =IFERROR(IF(ISTEXT($A30),"",(1-NORMDIST((COUNTA($A$9:$A$661))+(Personalize!$E$18+1),$G30,((AS30-AR30)/6),TRUE))),"") -> 0.9992149588 | AP30: =IFERROR(IF(ISTEXT($A30),"",(1-NORMDIST((COUNTA($A$9:$A$661))+((Personalize!$E$18+1)*2),$G30,((AS30-AR30)/6),TRUE))),"") -> 0.6073886744 | AR30: =IF(Personalize!$E$31=1,VLOOKUP($B30,'ADP-Rank'!$A$2:$J$609,5,FALSE),(IF(Personalize!$E$31=2,VLOOKUP($B30,'ADP-Rank'!$A$2:$J$609,8,FALSE),(IF(Personalize!$E$31=3,VLOOKUP($B30,'ADP-Rank'!$A$2:$O$609,11,FALSE),(IF(Personalize!$E$31=4,VLOOKUP($B30,'ADP-Rank'!$A$2:$AN$609,25,FALSE),(IF(Personalize!$E$31=5,VLOOKUP($B30,'ADP-Rank'!$A$2:$AN$609,28,FALSE),(IF(Personalize!$E$31=6,VLOOKUP($B30,'ADP-Rank'!$A$2:$AN$609,32,FALSE),(IF(Personalize!$E$31=7,VLOOKUP($B30,'ADP-Rank'!$A$2:$AN$609,40,FALSE),""))))))))))))) -> 19 | AS30: =IF(Personalize!$E$31=1,VLOOKUP($B30,'ADP-Rank'!$A$2:$J$609,6,FALSE),(IF(Personalize!$E$31=2,VLOOKUP($B30,'ADP-Rank'!$A$2:$J$609,9,FALSE),(IF(Personalize!$E$31=3,VLOOKUP($B30,'ADP-Rank'!$A$2:$O$609,12,FALSE),(IF(Personalize!$E$31=4,VLOOKUP($B30,'ADP-Rank'!$A$2:$AN$609,26,FALSE),(IF(Personalize!$E$31=5,VLOOKUP($B30,'ADP-Rank'!$A$2:$AN$609,29,FALSE),(IF(Personalize!$E$31=6,VLOOKUP($B30,'ADP-Rank'!$A$2:$AN$609,33,FALSE),(IF(Personalize!$E$31=7,VLOOKUP($B30,'ADP-Rank'!$A$2:$AP$609,41,FALSE),""))))))))))))) -> 46 | AT30: =IF(ISBLANK(A30),0,1) -> 0 | AU30: =IF(K30="",0,1) -> 1 | AV30: =A30 -> 0 | AW30: =IF(C30="C",1,IF(C30="1B",2,IF(C30="2B",3,IF(C30="3B",4,IF(C30="SS",5,IF(C30="CI",6,IF(C30="MI",7,IF(C30="OF",11,IF(C30="LF",8,IF(C30="CF",9,IF(C30="RF",10,IF(C30="DH",12,IF(C30="SP",13,IF(C30="RP",14,IF(C30="P",15,16))))))))))))))) -> 11 | AX30: =VLOOKUP(B30,'Starter Calc'!$B$2:$BN$700,65,FALSE) -> Bench | AY30: =IFERROR(VLOOKUP($B30,'ADP-Rank'!$A$2:$AH$785,34,FALSE),TRUE) -> TRUE
B31: Carlos Gomez | C31: OF | D31: =IFERROR(IF(VLOOKUP(B31,'Starter Calc'!$B$2:$E$700,4,FALSE)="","",VLOOKUP(B31,'Starter Calc'!$B$2:$E$700,4,FALSE)),"") -> ,,CF | E31: =IFERROR(VLOOKUP($B31,'ADP-Rank'!$A$2:$D$650,3,FALSE),"") -> MIL | F31: =IFERROR(VLOOKUP($B31,'ADP-Rank'!$A$2:$W$650,23,FALSE),"") -> 28 | G31: =IFERROR((IF(Personalize!$E$31=1,VLOOKUP($B31,'ADP-Rank'!$A$2:$J$750,4,FALSE),(IF(Personalize!$E$31=2,VLOOKUP($B31,'ADP-Rank'!$A$2:$J$750,7,FALSE),(IF(Personalize!$E$31=3,VLOOKUP($B31,'ADP-Rank'!$A$2:$J$750,10,FALSE),(IF(Personalize!$E$31=4,VLOOKUP($B31,'ADP-Rank'!$A$2:$AN$750,24,FALSE),(IF(Personalize!$E$31=5,VLOOKUP($B31,'ADP-Rank'!$A$2:$AN$750,27,FALSE),(IF(Personalize!$E$31=6,VLOOKUP($B31,'ADP-Rank'!$A$2:$AN$750,31,FALSE),(IF(Personalize!$E$31=7,VLOOKUP($B31,'ADP-Rank'!$A$2:$AN$750,39,FALSE))))))))))))))),"") -> 28.08847737 | H31: =IFERROR(ROUNDDOWN(VLOOKUP($B31,'ADP-Rank'!$A$2:$AN$885,38,FALSE),0),"") -> 2 | I31: =VLOOKUP($B31,'ADP-Rank'!$A$2:$AJ$885,36,FALSE) -> 36 | J31: =IFERROR(RANK($K31,$K$7:$K$661,0),"") -> 62 | K31: =IF((SUM(M31:AC31)=0),"",SUM(M31:AC31)) -> 1.520856787 | L31: =IFERROR(IF(ISTEXT($A31),"",IF((OR($C31="RP",$C31="SP")),ABS(VLOOKUP(C31,'Filtered-P'!$AA$3:$AE$4,5,FALSE))+K31,ABS(VLOOKUP(C31,Filtered!$AG$3:$AK$14,5,FALSE))+K31)),"") -> 1.936485181 | M31: =IFERROR(IF((OR($C31="RP",$C31="SP")),IF(Personalize!$E$10=TRUE,(((VLOOKUP($B31,Pitcher!$A$1:$P$700,2,FALSE))-'Filtered-P'!$AB$8)/'Filtered-P'!$AC$8),""),IF(Personalize!$E$4=TRUE,(((VLOOKUP($B31,Hitter!$A$1:$X$628,21,FALSE))-Filtered!$AH$35)/Filtered!$AI$35),"")),"") -> -0.9624557211 | N31: =IFERROR(IF((OR($C31="RP",$C31="SP")),IF(Personalize!$E$12=TRUE,(((VLOOKUP($B31,Pitcher!$A$1:$P$700,9,FALSE))-'Filtered-P'!$AB$15)/'Filtered-P'!$AC$15),""),IF(Personalize!$E$3=TRUE,(((VLOOKUP($B31,Hitter!$A$1:$AB$628,9,FALSE))-Filtered!$AH$25)/Filtered!$AI$25),"")),"") -> 0.1598904189 | O31: =IFERROR(IF((OR($C31="RP",$C31="SP")),IF(Personalize!$E$11=TRUE,(((VLOOKUP($B31,Pitcher!$A$1:$P$700,7,FALSE))-'Filtered-P'!$AB$13)/'Filtered-P'!$AC$13),""),IF(Personalize!$E$2=TRUE,(((VLOOKUP($B31,Hitter!$A$1:$AB$628,4,FALSE))-Filtered!$AH$20)/Filtered!$AI$20),"")),"") -> 0.07709483882 | P31: =IFERROR(IF((OR($C31="RP",$C31="SP")),IF(Personalize!$E$13=TRUE,(((VLOOKUP($B31,Pitcher!$A$1:$P$700,13,FALSE))-'Filtered-P'!$AB$19)/'Filtered-P'!$AC$19),""),IF(Personalize!$E$5=TRUE,(((VLOOKUP($B31,Hitter!$A$1:$AB$628,10,FALSE))-Filtered!$AH$26)/Filtered!$AI$26),"")),"") -> -0.2349922665 | Q31: =IFERROR(IF((OR($C31="RP",$C31="SP")),IF(Personalize!$E$14=TRUE,(((VLOOKUP($B31,Pitcher!$A$1:$P$700,14,FALSE))-'Filtered-P'!$AB$20)/'Filtered-P'!$AC$20),""),IF(Personalize!$E$6=TRUE,(((VLOOKUP($B31,Hitter!$A$1:$AB$628,11,FALSE))-Filtered!$AH$27)/Filtered!$AI$27),"")),"") -> 2.481319517 | R31: =IFERROR(IF((OR($C31="RP",$C31="SP")),IF(Personalize!$E$16=TRUE,(((VLOOKUP($B31,Pitcher!$A$1:$P$700,3,FALSE))-'Filtered-P'!$AB$9)/'Filtered-P'!$AC$9),""),IF(Personalize!$E$7=TRUE,(((VLOOKUP($B31,Hitter!$A$1:$AZ$628,23,FALSE))-Filtered!$AH$37)/Filtered!$AI$37),"")),"") ->  | S31: =IFERROR(IF((OR($C31="RP",$C31="SP")),IF(Personalize!$E$15=TRUE,(((VLOOKUP($B31,Pitcher!$A$1:$P$700,15,FALSE))-'Filtered-P'!$AB$21)/'Filtered-P'!$AC$21),""),IF(Personalize!$E$8=TRUE,(((VLOOKUP($B31,Hitter!$A$1:$AZ$628,22,FALSE))-Filtered!$AH$36)/Filtered!$AI$36),"")),"") ->  | T31: =IFERROR(IF((OR($C31="RP",$C31="SP")),IF(Personalize!$E$17=TRUE,(((VLOOKUP($B31,Pitcher!$A$1:$P$700,16,FALSE))-'Filtered-P'!$AB$22)/'Filtered-P'!$AC$22),""),IF(Personalize!$E$9=TRUE,(((VLOOKUP($B31,Hitter!$A$1:$AZ$628,24,FALSE))-Filtered!$AH$38)/Filtered!$AI$38),"")),"") ->  | U31: =IFERROR(IF((OR($C31="RP",$C31="SP")),IF(Personalize!$E$37=TRUE,(((VLOOKUP($B31,Pitcher!$A$1:$Z$700,17,FALSE))-'Filtered-P'!$AB$25)/'Filtered-P'!$AC$25),""),IF(Personalize!$E$39=TRUE,(((VLOOKUP($B31,Hitter!$A$1:$X$628,5,FALSE))-Filtered!$AH$21)/Filtered!$AI$21),"")),"") ->  | V31: =IFERROR(IF((OR($C31="RP",$C31="SP")),IF(Personalize!$E$38=TRUE,(((VLOOKUP($B31,Pitcher!$A$1:$Z$700,18,FALSE))-'Filtered-P'!$AB$26)/'Filtered-P'!$AC$26),""),IF(Personalize!$E$40=TRUE,(((VLOOKUP($B31,Hitter!$A$1:$X$628,13,FALSE))-Filtered!$AH$29)/Filtered!$AI$29),"")),"") ->  | W31: =IFERROR(IF((OR($C31="RP",$C31="SP")),IF(Personalize!$E$45=TRUE,(((VLOOKUP($B31,Pitcher!$A$1:$Z$700,4,FALSE))-'Filtered-P'!$AB$10)/'Filtered-P'!$AC$10),""),IF(Personalize!$E$41=TRUE,(((VLOOKUP($B31,Hitter!$A$1:$AZ$628,19,FALSE))-Filtered!$AH$43)/Filtered!$AI$43),"")),"") ->  | X31: =IFERROR(IF((OR($C31="RP",$C31="SP")),IF(Personalize!$E$46=TRUE,(((VLOOKUP($B31,Pitcher!$A$1:$Z$700,19,FALSE))-'Filtered-P'!$AB$27)/'Filtered-P'!$AC$27),""),IF(Personalize!$E$44=TRUE,(((VLOOKUP($B31,Hitter!$A$1:$AZ$628,20,FALSE))-Filtered!$AH$44)/Filtered!$AI$44),"")),"") ->  | Y31: =IFERROR(IF((OR($C31="RP",$C31="SP")),IF(Personalize!$E$47=TRUE,(((VLOOKUP($B31,Pitcher!$A$1:$Z$700,6,FALSE))-'Filtered-P'!$AB$12)/'Filtered-P'!$AC$12),""),IF(Personalize!$E$42=TRUE,(((VLOOKUP($B31,Hitter!$A$1:$AZ$628,7,FALSE))-Filtered!$AH$23)/Filtered!$AI$23),"")),"") ->  | Z31: =IFERROR(IF((OR($C31="RP",$C31="SP")),IF(Personalize!$E$48=TRUE,(((VLOOKUP($B31,Pitcher!$A$1:$Z$700,5,FALSE))-'Filtered-P'!$AB$11)/'Filtered-P'!$AC$11),""),IF(Personalize!$E$43=TRUE,(((VLOOKUP($B31,Hitter!$A$1:$AZ$628,8,FALSE))-Filtered!$AH$24)/Filtered!$AI$24),"")),"") ->  | AA31: =IFERROR(IF((OR($C31="RP",$C31="SP")),IF(Personalize!$E$52=TRUE,(((VLOOKUP($B31,Pitcher!$A$1:$AA$700,21,FALSE))-'Filtered-P'!$AB$29)/(-1*'Filtered-P'!$AC$29)),""),IF(Personalize!$E$49=TRUE,(((VLOOKUP($B31,Hitter!$A$1:$AF$628,29,FALSE))-Filtered!$AH$45)/Filtered!$AI$45),"")),"") ->  | AB31: =IFERROR(IF((OR($C31="RP",$C31="SP")),IF(Personalize!$E$53=TRUE,(((VLOOKUP($B31,Pitcher!$A$1:$AA$700,23,FALSE))-'Filtered-P'!$AB$31)/(-1*'Filtered-P'!$AC$31)),""),IF(Personalize!$E$50=TRUE,(((VLOOKUP($B31,Hitter!$A$1:$AF$628,30,FALSE))-Filtered!$AH$46)/Filtered!$AI$46),"")),"") ->  | AC31: =IFERROR(IF((OR($C31="RP",$C31="SP")),IF(Personalize!$E$54=TRUE,(((VLOOKUP($B31,Pitcher!$A$1:$AA$700,24,FALSE))-'Filtered-P'!$AB$32)/'Filtered-P'!$AC$32),""),IF(Personalize!$E$51=TRUE,(((VLOOKUP($B31,Hitter!$A$1:$AF$628,14,FALSE))-Filtered!$AH$30)/(-1*Filtered!$AI$30)),"")),"") ->  | AD31: =IFERROR(IF((OR($C31="RP",$C31="SP")),VLOOKUP($B31,Pitcher!$A$1:$P$700,2,FALSE),""),"") ->  | AE31: =IFERROR(IF((OR($C31="RP",$C31="SP")),VLOOKUP($B31,Pitcher!$A$1:$P$700,9,FALSE),""),"") ->  | AF31: =IFERROR(IF((OR($C31="RP",$C31="SP")),VLOOKUP($B31,Pitcher!$A$1:$P$700,7,FALSE),""),"") ->  | AG31: =IFERROR(IF((OR($C31="RP",$C31="SP")),VLOOKUP($B31,Pitcher!$A$1:$P$700,10,FALSE),""),"") ->  | AH31: =IFERROR(IF((OR($C31="RP",$C31="SP")),VLOOKUP($B31,Pitcher!$A$1:$P$700,11,FALSE),""),"") ->  | AI31: =IFERROR(IF((OR($C31="RP",$C31="SP")),"",VLOOKUP($B31,Hitter!$A$1:$X$628,15,FALSE)),"") -> 0.2540532267 | AJ31: =IFERROR(IF((OR($C31="RP",$C31="SP")),"",VLOOKUP($B31,Hitter!$A$1:$X$628,9,FALSE)),"") -> 19.25140708 | AK31: =IFERROR(IF((OR($C31="RP",$C31="SP")),"",VLOOKUP($B31,Hitter!$A$1:$X$628,10,FALSE)),"") -> 65.93584442 | AL31: =IFERROR(IF((OR($C31="RP",$C31="SP")),"",VLOOKUP($B31,Hitter!$A$1:$X$628,4,FALSE)),"") -> 75.6315424 | AM31: =IFERROR(IF((OR($C31="RP",$C31="SP")),"",VLOOKUP($B31,Hitter!$A$1:$X$628,11,FALSE)),"") -> 33.99796681 | AN31: =IFERROR(IF(ISTEXT($A31),"",(1-NORMDIST((COUNTA($A$9:$A$661)),($G31),((AS31-AR31)/6),TRUE))),"") -> 0.9886201407 | AO31: =IFERROR(IF(ISTEXT($A31),"",(1-NORMDIST((COUNTA($A$9:$A$661))+(Personalize!$E$18+1),$G31,((AS31-AR31)/6),TRUE))),"") -> 0.8894087964 | AP31: =IFERROR(IF(ISTEXT($A31),"",(1-NORMDIST((COUNTA($A$9:$A$661))+((Personalize!$E$18+1)*2),$G31,((AS31-AR31)/6),TRUE))),"") -> 0.5672338206 | AR31: =IF(Personalize!$E$31=1,VLOOKUP($B31,'ADP-Rank'!$A$2:$J$609,5,FALSE),(IF(Personalize!$E$31=2,VLOOKUP($B31,'ADP-Rank'!$A$2:$J$609,8,FALSE),(IF(Personalize!$E$31=3,VLOOKUP($B31,'ADP-Rank'!$A$2:$O$609,11,FALSE),(IF(Personalize!$E$31=4,VLOOKUP($B31,'ADP-Rank'!$A$2:$AN$609,25,FALSE),(IF(Personalize!$E$31=5,VLOOKUP($B31,'ADP-Rank'!$A$2:$AN$609,28,FALSE),(IF(Personalize!$E$31=6,VLOOKUP($B31,'ADP-Rank'!$A$2:$AN$609,32,FALSE),(IF(Personalize!$E$31=7,VLOOKUP($B31,'ADP-Rank'!$A$2:$AN$609,40,FALSE),""))))))))))))) -> 17 | AS31: =IF(Personalize!$E$31=1,VLOOKUP($B31,'ADP-Rank'!$A$2:$J$609,6,FALSE),(IF(Personalize!$E$31=2,VLOOKUP($B31,'ADP-Rank'!$A$2:$J$609,9,FALSE),(IF(Personalize!$E$31=3,VLOOKUP($B31,'ADP-Rank'!$A$2:$O$609,12,FALSE),(IF(Personalize!$E$31=4,VLOOKUP($B31,'ADP-Rank'!$A$2:$AN$609,26,FALSE),(IF(Personalize!$E$31=5,VLOOKUP($B31,'ADP-Rank'!$A$2:$AN$609,29,FALSE),(IF(Personalize!$E$31=6,VLOOKUP($B31,'ADP-Rank'!$A$2:$AN$609,33,FALSE),(IF(Personalize!$E$31=7,VLOOKUP($B31,'ADP-Rank'!$A$2:$AP$609,41,FALSE),""))))))))))))) -> 91 | AT31: =IF(ISBLANK(A31),0,1) -> 0 | AU31: =IF(K31="",0,1) -> 1 | AV31: =A31 -> 0 | AW31: =IF(C31="C",1,IF(C31="1B",2,IF(C31="2B",3,IF(C31="3B",4,IF(C31="SS",5,IF(C31="CI",6,IF(C31="MI",7,IF(C31="OF",11,IF(C31="LF",8,IF(C31="CF",9,IF(C31="RF",10,IF(C31="DH",12,IF(C31="SP",13,IF(C31="RP",14,IF(C31="P",15,16))))))))))))))) -> 11 | AX31: =VLOOKUP(B31,'Starter Calc'!$B$2:$BN$700,65,FALSE) -> Bench | AY31: =IFERROR(VLOOKUP($B31,'ADP-Rank'!$A$2:$AH$785,34,FALSE),TRUE) -> TRUE
B32: Freddie Freeman | C32: 1B | D32: =IFERROR(IF(VLOOKUP(B32,'Starter Calc'!$B$2:$E$700,4,FALSE)="","",VLOOKUP(B32,'Starter Calc'!$B$2:$E$700,4,FALSE)),"") -> ,, | E32: =IFERROR(VLOOKUP($B32,'ADP-Rank'!$A$2:$D$650,3,FALSE),"") -> ATL | F32: =IFERROR(VLOOKUP($B32,'ADP-Rank'!$A$2:$W$650,23,FALSE),"") -> 24 | G32: =IFERROR((IF(Personalize!$E$31=1,VLOOKUP($B32,'ADP-Rank'!$A$2:$J$750,4,FALSE),(IF(Personalize!$E$31=2,VLOOKUP($B32,'ADP-Rank'!$A$2:$J$750,7,FALSE),(IF(Personalize!$E$31=3,VLOOKUP($B32,'ADP-Rank'!$A$2:$J$750,10,FALSE),(IF(Personalize!$E$31=4,VLOOKUP($B32,'ADP-Rank'!$A$2:$AN$750,24,FALSE),(IF(Personalize!$E$31=5,VLOOKUP($B32,'ADP-Rank'!$A$2:$AN$750,27,FALSE),(IF(Personalize!$E$31=6,VLOOKUP($B32,'ADP-Rank'!$A$2:$AN$750,31,FALSE),(IF(Personalize!$E$31=7,VLOOKUP($B32,'ADP-Rank'!$A$2:$AN$750,39,FALSE))))))))))))))),"") -> 28.46090535 | H32: =IFERROR(ROUNDDOWN(VLOOKUP($B32,'ADP-Rank'!$A$2:$AN$885,38,FALSE),0),"") -> 3 | I32: =VLOOKUP($B32,'ADP-Rank'!$A$2:$AJ$885,36,FALSE) -> 51 | J32: =IFERROR(RANK($K32,$K$7:$K$661,0),"") -> 44 | K32: =IF((SUM(M32:AC32)=0),"",SUM(M32:AC32)) -> 2.484628928 | L32: =IFERROR(IF(ISTEXT($A32),"",IF((OR($C32="RP",$C32="SP")),ABS(VLOOKUP(C32,'Filtered-P'!$AA$3:$AE$4,5,FALSE))+K32,ABS(VLOOKUP(C32,Filtered!$AG$3:$AK$14,5,FALSE))+K32)),"") -> 3.821352522 | M32: =IFERROR(IF((OR($C32="RP",$C32="SP")),IF(Personalize!$E$10=TRUE,(((VLOOKUP($B32,Pitcher!$A$1:$P$700,2,FALSE))-'Filtered-P'!$AB$8)/'Filtered-P'!$AC$8),""),IF(Personalize!$E$4=TRUE,(((VLOOKUP($B32,Hitter!$A$1:$X$628,21,FALSE))-Filtered!$AH$35)/Filtered!$AI$35),"")),"") -> 0.9927960332 | N32: =IFERROR(IF((OR($C32="RP",$C32="SP")),IF(Personalize!$E$12=TRUE,(((VLOOKUP($B32,Pitcher!$A$1:$P$700,9,FALSE))-'Filtered-P'!$AB$15)/'Filtered-P'!$AC$15),""),IF(Personalize!$E$3=TRUE,(((VLOOKUP($B32,Hitter!$A$1:$AB$628,9,FALSE))-Filtered!$AH$25)/Filtered!$AI$25),"")),"") -> 0.6594258219 | O32: =IFERROR(IF((OR($C32="RP",$C32="SP")),IF(Personalize!$E$11=TRUE,(((VLOOKUP($B32,Pitcher!$A$1:$P$700,7,FALSE))-'Filtered-P'!$AB$13)/'Filtered-P'!$AC$13),""),IF(Personalize!$E$2=TRUE,(((VLOOKUP($B32,Hitter!$A$1:$AB$628,4,FALSE))-Filtered!$AH$20)/Filtered!$AI$20),"")),"") -> 0.5643728372 | P32: =IFERROR(IF((OR($C32="RP",$C32="SP")),IF(Personalize!$E$13=TRUE,(((VLOOKUP($B32,Pitcher!$A$1:$P$700,13,FALSE))-'Filtered-P'!$AB$19)/'Filtered-P'!$AC$19),""),IF(Personalize!$E$5=TRUE,(((VLOOKUP($B32,Hitter!$A$1:$AB$628,10,FALSE))-Filtered!$AH$26)/Filtered!$AI$26),"")),"") -> 1.187647197 | Q32: =IFERROR(IF((OR($C32="RP",$C32="SP")),IF(Personalize!$E$14=TRUE,(((VLOOKUP($B32,Pitcher!$A$1:$P$700,14,FALSE))-'Filtered-P'!$AB$20)/'Filtered-P'!$AC$20),""),IF(Personalize!$E$6=TRUE,(((VLOOKUP($B32,Hitter!$A$1:$AB$628,11,FALSE))-Filtered!$AH$27)/Filtered!$AI$27),"")),"") -> -0.9196129619 | R32: =IFERROR(IF((OR($C32="RP",$C32="SP")),IF(Personalize!$E$16=TRUE,(((VLOOKUP($B32,Pitcher!$A$1:$P$700,3,FALSE))-'Filtered-P'!$AB$9)/'Filtered-P'!$AC$9),""),IF(Personalize!$E$7=TRUE,(((VLOOKUP($B32,Hitter!$A$1:$AZ$628,23,FALSE))-Filtered!$AH$37)/Filtered!$AI$37),"")),"") ->  | S32: =IFERROR(IF((OR($C32="RP",$C32="SP")),IF(Personalize!$E$15=TRUE,(((VLOOKUP($B32,Pitcher!$A$1:$P$700,15,FALSE))-'Filtered-P'!$AB$21)/'Filtered-P'!$AC$21),""),IF(Personalize!$E$8=TRUE,(((VLOOKUP($B32,Hitter!$A$1:$AZ$628,22,FALSE))-Filtered!$AH$36)/Filtered!$AI$36),"")),"") ->  | T32: =IFERROR(IF((OR($C32="RP",$C32="SP")),IF(Personalize!$E$17=TRUE,(((VLOOKUP($B32,Pitcher!$A$1:$P$700,16,FALSE))-'Filtered-P'!$AB$22)/'Filtered-P'!$AC$22),""),IF(Personalize!$E$9=TRUE,(((VLOOKUP($B32,Hitter!$A$1:$AZ$628,24,FALSE))-Filtered!$AH$38)/Filtered!$AI$38),"")),"") ->  | U32: =IFERROR(IF((OR($C32="RP",$C32="SP")),IF(Personalize!$E$37=TRUE,(((VLOOKUP($B32,Pitcher!$A$1:$Z$700,17,FALSE))-'Filtered-P'!$AB$25)/'Filtered-P'!$AC$25),""),IF(Personalize!$E$39=TRUE,(((VLOOKUP($B32,Hitter!$A$1:$X$628,5,FALSE))-Filtered!$AH$21)/Filtered!$AI$21),"")),"") ->  | V32: =IFERROR(IF((OR($C32="RP",$C32="SP")),IF(Personalize!$E$38=TRUE,(((VLOOKUP($B32,Pitcher!$A$1:$Z$700,18,FALSE))-'Filtered-P'!$AB$26)/'Filtered-P'!$AC$26),""),IF(Personalize!$E$40=TRUE,(((VLOOKUP($B32,Hitter!$A$1:$X$628,13,FALSE))-Filtered!$AH$29)/Filtered!$AI$29),"")),"") ->  | W32: =IFERROR(IF((OR($C32="RP",$C32="SP")),IF(Personalize!$E$45=TRUE,(((VLOOKUP($B32,Pitcher!$A$1:$Z$700,4,FALSE))-'Filtered-P'!$AB$10)/'Filtered-P'!$AC$10),""),IF(Personalize!$E$41=TRUE,(((VLOOKUP($B32,Hitter!$A$1:$AZ$628,19,FALSE))-Filtered!$AH$43)/Filtered!$AI$43),"")),"") ->  | X32: =IFERROR(IF((OR($C32="RP",$C32="SP")),IF(Personalize!$E$46=TRUE,(((VLOOKUP($B32,Pitcher!$A$1:$Z$700,19,FALSE))-'Filtered-P'!$AB$27)/'Filtered-P'!$AC$27),""),IF(Personalize!$E$44=TRUE,(((VLOOKUP($B32,Hitter!$A$1:$AZ$628,20,FALSE))-Filtered!$AH$44)/Filtered!$AI$44),"")),"") ->  | Y32: =IFERROR(IF((OR($C32="RP",$C32="SP")),IF(Personalize!$E$47=TRUE,(((VLOOKUP($B32,Pitcher!$A$1:$Z$700,6,FALSE))-'Filtered-P'!$AB$12)/'Filtered-P'!$AC$12),""),IF(Personalize!$E$42=TRUE,(((VLOOKUP($B32,Hitter!$A$1:$AZ$628,7,FALSE))-Filtered!$AH$23)/Filtered!$AI$23),"")),"") ->  | Z32: =IFERROR(IF((OR($C32="RP",$C32="SP")),IF(Personalize!$E$48=TRUE,(((VLOOKUP($B32,Pitcher!$A$1:$Z$700,5,FALSE))-'Filtered-P'!$AB$11)/'Filtered-P'!$AC$11),""),IF(Personalize!$E$43=TRUE,(((VLOOKUP($B32,Hitter!$A$1:$AZ$628,8,FALSE))-Filtered!$AH$24)/Filtered!$AI$24),"")),"") ->  | AA32: =IFERROR(IF((OR($C32="RP",$C32="SP")),IF(Personalize!$E$52=TRUE,(((VLOOKUP($B32,Pitcher!$A$1:$AA$700,21,FALSE))-'Filtered-P'!$AB$29)/(-1*'Filtered-P'!$AC$29)),""),IF(Personalize!$E$49=TRUE,(((VLOOKUP($B32,Hitter!$A$1:$AF$628,29,FALSE))-Filtered!$AH$45)/Filtered!$AI$45),"")),"") ->  | AB32: =IFERROR(IF((OR($C32="RP",$C32="SP")),IF(Personalize!$E$53=TRUE,(((VLOOKUP($B32,Pitcher!$A$1:$AA$700,23,FALSE))-'Filtered-P'!$AB$31)/(-1*'Filtered-P'!$AC$31)),""),IF(Personalize!$E$50=TRUE,(((VLOOKUP($B32,Hitter!$A$1:$AF$628,30,FALSE))-Filtered!$AH$46)/Filtered!$AI$46),"")),"") ->  | AC32: =IFERROR(IF((OR($C32="RP",$C32="SP")),IF(Personalize!$E$54=TRUE,(((VLOOKUP($B32,Pitcher!$A$1:$AA$700,24,FALSE))-'Filtered-P'!$AB$32)/'Filtered-P'!$AC$32),""),IF(Personalize!$E$51=TRUE,(((VLOOKUP($B32,Hitter!$A$1:$AF$628,14,FALSE))-Filtered!$AH$30)/(-1*Filtered!$AI$30)),"")),"") ->  | AD32: =IFERROR(IF((OR($C32="RP",$C32="SP")),VLOOKUP($B32,Pitcher!$A$1:$P$700,2,FALSE),""),"") ->  | AE32: =IFERROR(IF((OR($C32="RP",$C32="SP")),VLOOKUP($B32,Pitcher!$A$1:$P$700,9,FALSE),""),"") ->  | AF32: =IFERROR(IF((OR($C32="RP",$C32="SP")),VLOOKUP($B32,Pitcher!$A$1:$P$700,7,FALSE),""),"") ->  | AG32: =IFERROR(IF((OR($C32="RP",$C32="SP")),VLOOKUP($B32,Pitcher!$A$1:$P$700,10,FALSE),""),"") ->  | AH32: =IFERROR(IF((OR($C32="RP",$C32="SP")),VLOOKUP($B32,Pitcher!$A$1:$P$700,11,FALSE),""),"") ->  | AI32: =IFERROR(IF((OR($C32="RP",$C32="SP")),"",VLOOKUP($B32,Hitter!$A$1:$X$628,15,FALSE)),"") -> 0.2865610959 | AJ32: =IFERROR(IF((OR($C32="RP",$C32="SP")),"",VLOOKUP($B32,Hitter!$A$1:$X$628,9,FALSE)),"") -> 22.85253364 | AK32: =IFERROR(IF((OR($C32="RP",$C32="SP")),"",VLOOKUP($B32,Hitter!$A$1:$X$628,10,FALSE)),"") -> 85.55893041 | AL32: =IFERROR(IF((OR($C32="RP",$C32="SP")),"",VLOOKUP($B32,Hitter!$A$1:$X$628,4,FALSE)),"") -> 80.90143139 | AM32: =IFERROR(IF((OR($C32="RP",$C32="SP")),"",VLOOKUP($B32,Hitter!$A$1:$X$628,11,FALSE)),"") -> 2.417128889 | AN32: =IFERROR(IF(ISTEXT($A32),"",(1-NORMDIST((COUNTA($A$9:$A$661)),($G32),((AS32-AR32)/6),TRUE))),"") -> 1 | AO32: =IFERROR(IF(ISTEXT($A32),"",(1-NORMDIST((COUNTA($A$9:$A$661))+(Personalize!$E$18+1),$G32,((AS32-AR32)/6),TRUE))),"") -> 0.9998966228 | AP32: =IFERROR(IF(ISTEXT($A32),"",(1-NORMDIST((COUNTA($A$9:$A$661))+((Personalize!$E$18+1)*2),$G32,((AS32-AR32)/6),TRUE))),"") -> 0.7226115593 | AR32: =IF(Personalize!$E$31=1,VLOOKUP($B32,'ADP-Rank'!$A$2:$J$609,5,FALSE),(IF(Personalize!$E$31=2,VLOOKUP($B32,'ADP-Rank'!$A$2:$J$609,8,FALSE),(IF(Personalize!$E$31=3,VLOOKUP($B32,'ADP-Rank'!$A$2:$O$609,11,FALSE),(IF(Personalize!$E$31=4,VLOOKUP($B32,'ADP-Rank'!$A$2:$AN$609,25,FALSE),(IF(Personalize!$E$31=5,VLOOKUP($B32,'ADP-Rank'!$A$2:$AN$609,28,FALSE),(IF(Personalize!$E$31=6,VLOOKUP($B32,'ADP-Rank'!$A$2:$AN$609,32,FALSE),(IF(Personalize!$E$31=7,VLOOKUP($B32,'ADP-Rank'!$A$2:$AN$609,40,FALSE),""))))))))))))) -> 16 | AS32: =IF(Personalize!$E$31=1,VLOOKUP($B32,'ADP-Rank'!$A$2:$J$609,6,FALSE),(IF(Personalize!$E$31=2,VLOOKUP($B32,'ADP-Rank'!$A$2:$J$609,9,FALSE),(IF(Personalize!$E$31=3,VLOOKUP($B32,'ADP-Rank'!$A$2:$O$609,12,FALSE),(IF(Personalize!$E$31=4,VLOOKUP($B32,'ADP-Rank'!$A$2:$AN$609,26,FALSE),(IF(Personalize!$E$31=5,VLOOKUP($B32,'ADP-Rank'!$A$2:$AN$609,29,FALSE),(IF(Personalize!$E$31=6,VLOOKUP($B32,'ADP-Rank'!$A$2:$AN$609,33,FALSE),(IF(Personalize!$E$31=7,VLOOKUP($B32,'ADP-Rank'!$A$2:$AP$609,41,FALSE),""))))))))))))) -> 41 | AT32: =IF(ISBLANK(A32),0,1) -> 0 | AU32: =IF(K32="",0,1) -> 1 | AV32: =A32 -> 0 | AW32: =IF(C32="C",1,IF(C32="1B",2,IF(C32="2B",3,IF(C32="3B",4,IF(C32="SS",5,IF(C32="CI",6,IF(C32="MI",7,IF(C32="OF",11,IF(C32="LF",8,IF(C32="CF",9,IF(C32="RF",10,IF(C32="DH",12,IF(C32="SP",13,IF(C32="RP",14,IF(C32="P",15,16))))))))))))))) -> 2 | AX32: =VLOOKUP(B32,'Starter Calc'!$B$2:$BN$700,65,FALSE) -> Bench | AY32: =IFERROR(VLOOKUP($B32,'ADP-Rank'!$A$2:$AH$785,34,FALSE),TRUE) -> TRUE
B33: Dustin Pedroia | C33: 2B | D33: =IFERROR(IF(VLOOKUP(B33,'Starter Calc'!$B$2:$E$700,4,FALSE)="","",VLOOKUP(B33,'Starter Calc'!$B$2:$E$700,4,FALSE)),"") -> ,, | E33: =IFERROR(VLOOKUP($B33,'ADP-Rank'!$A$2:$D$650,3,FALSE),"") -> BOS | F33: =IFERROR(VLOOKUP($B33,'ADP-Rank'!$A$2:$W$650,23,FALSE),"") -> 30 | G33: =IFERROR((IF(Personalize!$E$31=1,VLOOKUP($B33,'ADP-Rank'!$A$2:$J$750,4,FALSE),(IF(Personalize!$E$31=2,VLOOKUP($B33,'ADP-Rank'!$A$2:$J$750,7,FALSE),(IF(Personalize!$E$31=3,VLOOKUP($B33,'ADP-Rank'!$A$2:$J$750,10,FALSE),(IF(Personalize!$E$31=4,VLOOKUP($B33,'ADP-Rank'!$A$2:$AN$750,24,FALSE),(IF(Personalize!$E$31=5,VLOOKUP($B33,'ADP-Rank'!$A$2:$AN$750,27,FALSE),(IF(Personalize!$E$31=6,VLOOKUP($B33,'ADP-Rank'!$A$2:$AN$750,31,FALSE),(IF(Personalize!$E$31=7,VLOOKUP($B33,'ADP-Rank'!$A$2:$AN$750,39,FALSE))))))))))))))),"") -> 29.11934156 | H33: =IFERROR(ROUNDDOWN(VLOOKUP($B33,'ADP-Rank'!$A$2:$AN$885,38,FALSE),0),"") -> 3 | I33: =VLOOKUP($B33,'ADP-Rank'!$A$2:$AJ$885,36,FALSE) -> 44 | J33: =IFERROR(RANK($K33,$K$7:$K$661,0),"") -> 55 | K33: =IF((SUM(M33:AC33)=0),"",SUM(M33:AC33)) -> 2.045427848 | L33: =IFERROR(IF(ISTEXT($A33),"",IF((OR($C33="RP",$C33="SP")),ABS(VLOOKUP(C33,'Filtered-P'!$AA$3:$AE$4,5,FALSE))+K33,ABS(VLOOKUP(C33,Filtered!$AG$3:$AK$14,5,FALSE))+K33)),"") -> 6.921756982 | M33: =IFERROR(IF((OR($C33="RP",$C33="SP")),IF(Personalize!$E$10=TRUE,(((VLOOKUP($B33,Pitcher!$A$1:$P$700,2,FALSE))-'Filtered-P'!$AB$8)/'Filtered-P'!$AC$8),""),IF(Personalize!$E$4=TRUE,(((VLOOKUP($B33,Hitter!$A$1:$X$628,21,FALSE))-Filtered!$AH$35)/Filtered!$AI$35),"")),"") -> 1.220560255 | N33: =IFERROR(IF((OR($C33="RP",$C33="SP")),IF(Personalize!$E$12=TRUE,(((VLOOKUP($B33,Pitcher!$A$1:$P$700,9,FALSE))-'Filtered-P'!$AB$15)/'Filtered-P'!$AC$15),""),IF(Personalize!$E$3=TRUE,(((VLOOKUP($B33,Hitter!$A$1:$AB$628,9,FALSE))-Filtered!$AH$25)/Filtered!$AI$25),"")),"") -> -0.7435685273 | O33: =IFERROR(IF((OR($C33="RP",$C33="SP")),IF(Personalize!$E$11=TRUE,(((VLOOKUP($B33,Pitcher!$A$1:$P$700,7,FALSE))-'Filtered-P'!$AB$13)/'Filtered-P'!$AC$13),""),IF(Personalize!$E$2=TRUE,(((VLOOKUP($B33,Hitter!$A$1:$AB$628,4,FALSE))-Filtered!$AH$20)/Filtered!$AI$20),"")),"") -> 0.7930658458 | P33: =IFERROR(IF((OR($C33="RP",$C33="SP")),IF(Personalize!$E$13=TRUE,(((VLOOKUP($B33,Pitcher!$A$1:$P$700,13,FALSE))-'Filtered-P'!$AB$19)/'Filtered-P'!$AC$19),""),IF(Personalize!$E$5=TRUE,(((VLOOKUP($B33,Hitter!$A$1:$AB$628,10,FALSE))-Filtered!$AH$26)/Filtered!$AI$26),"")),"") -> 0.2323606193 | Q33: =IFERROR(IF((OR($C33="RP",$C33="SP")),IF(Personalize!$E$14=TRUE,(((VLOOKUP($B33,Pitcher!$A$1:$P$700,14,FALSE))-'Filtered-P'!$AB$20)/'Filtered-P'!$AC$20),""),IF(Personalize!$E$6=TRUE,(((VLOOKUP($B33,Hitter!$A$1:$AB$628,11,FALSE))-Filtered!$AH$27)/Filtered!$AI$27),"")),"") -> 0.5430096547 | R33: =IFERROR(IF((OR($C33="RP",$C33="SP")),IF(Personalize!$E$16=TRUE,(((VLOOKUP($B33,Pitcher!$A$1:$P$700,3,FALSE))-'Filtered-P'!$AB$9)/'Filtered-P'!$AC$9),""),IF(Personalize!$E$7=TRUE,(((VLOOKUP($B33,Hitter!$A$1:$AZ$628,23,FALSE))-Filtered!$AH$37)/Filtered!$AI$37),"")),"") ->  | S33: =IFERROR(IF((OR($C33="RP",$C33="SP")),IF(Personalize!$E$15=TRUE,(((VLOOKUP($B33,Pitcher!$A$1:$P$700,15,FALSE))-'Filtered-P'!$AB$21)/'Filtered-P'!$AC$21),""),IF(Personalize!$E$8=TRUE,(((VLOOKUP($B33,Hitter!$A$1:$AZ$628,22,FALSE))-Filtered!$AH$36)/Filtered!$AI$36),"")),"") ->  | T33: =IFERROR(IF((OR($C33="RP",$C33="SP")),IF(Personalize!$E$17=TRUE,(((VLOOKUP($B33,Pitcher!$A$1:$P$700,16,FALSE))-'Filtered-P'!$AB$22)/'Filtered-P'!$AC$22),""),IF(Personalize!$E$9=TRUE,(((VLOOKUP($B33,Hitter!$A$1:$AZ$628,24,FALSE))-Filtered!$AH$38)/Filtered!$AI$38),"")),"") ->  | U33: =IFERROR(IF((OR($C33="RP",$C33="SP")),IF(Personalize!$E$37=TRUE,(((VLOOKUP($B33,Pitcher!$A$1:$Z$700,17,FALSE))-'Filtered-P'!$AB$25)/'Filtered-P'!$AC$25),""),IF(Personalize!$E$39=TRUE,(((VLOOKUP($B33,Hitter!$A$1:$X$628,5,FALSE))-Filtered!$AH$21)/Filtered!$AI$21),"")),"") ->  | V33: =IFERROR(IF((OR($C33="RP",$C33="SP")),IF(Personalize!$E$38=TRUE,(((VLOOKUP($B33,Pitcher!$A$1:$Z$700,18,FALSE))-'Filtered-P'!$AB$26)/'Filtered-P'!$AC$26),""),IF(Personalize!$E$40=TRUE,(((VLOOKUP($B33,Hitter!$A$1:$X$628,13,FALSE))-Filtered!$AH$29)/Filtered!$AI$29),"")),"") ->  | W33: =IFERROR(IF((OR($C33="RP",$C33="SP")),IF(Personalize!$E$45=TRUE,(((VLOOKUP($B33,Pitcher!$A$1:$Z$700,4,FALSE))-'Filtered-P'!$AB$10)/'Filtered-P'!$AC$10),""),IF(Personalize!$E$41=TRUE,(((VLOOKUP($B33,Hitter!$A$1:$AZ$628,19,FALSE))-Filtered!$AH$43)/Filtered!$AI$43),"")),"") ->  | X33: =IFERROR(IF((OR($C33="RP",$C33="SP")),IF(Personalize!$E$46=TRUE,(((VLOOKUP($B33,Pitcher!$A$1:$Z$700,19,FALSE))-'Filtered-P'!$AB$27)/'Filtered-P'!$AC$27),""),IF(Personalize!$E$44=TRUE,(((VLOOKUP($B33,Hitter!$A$1:$AZ$628,20,FALSE))-Filtered!$AH$44)/Filtered!$AI$44),"")),"") ->  | Y33: =IFERROR(IF((OR($C33="RP",$C33="SP")),IF(Personalize!$E$47=TRUE,(((VLOOKUP($B33,Pitcher!$A$1:$Z$700,6,FALSE))-'Filtered-P'!$AB$12)/'Filtered-P'!$AC$12),""),IF(Personalize!$E$42=TRUE,(((VLOOKUP($B33,Hitter!$A$1:$AZ$628,7,FALSE))-Filtered!$AH$23)/Filtered!$AI$23),"")),"") ->  | Z33: =IFERROR(IF((OR($C33="RP",$C33="SP")),IF(Personalize!$E$48=TRUE,(((VLOOKUP($B33,Pitcher!$A$1:$Z$700,5,FALSE))-'Filtered-P'!$AB$11)/'Filtered-P'!$AC$11),""),IF(Personalize!$E$43=TRUE,(((VLOOKUP($B33,Hitter!$A$1:$AZ$628,8,FALSE))-Filtered!$AH$24)/Filtered!$AI$24),"")),"") ->  | AA33: =IFERROR(IF((OR($C33="RP",$C33="SP")),IF(Personalize!$E$52=TRUE,(((VLOOKUP($B33,Pitcher!$A$1:$AA$700,21,FALSE))-'Filtered-P'!$AB$29)/(-1*'Filtered-P'!$AC$29)),""),IF(Personalize!$E$49=TRUE,(((VLOOKUP($B33,Hitter!$A$1:$AF$628,29,FALSE))-Filtered!$AH$45)/Filtered!$AI$45),"")),"") ->  | AB33: =IFERROR(IF((OR($C33="RP",$C33="SP")),IF(Personalize!$E$53=TRUE,(((VLOOKUP($B33,Pitcher!$A$1:$AA$700,23,FALSE))-'Filtered-P'!$AB$31)/(-1*'Filtered-P'!$AC$31)),""),IF(Personalize!$E$50=TRUE,(((VLOOKUP($B33,Hitter!$A$1:$AF$628,30,FALSE))-Filtered!$AH$46)/Filtered!$AI$46),"")),"") ->  | AC33: =IFERROR(IF((OR($C33="RP",$C33="SP")),IF(Personalize!$E$54=TRUE,(((VLOOKUP($B33,Pitcher!$A$1:$AA$700,24,FALSE))-'Filtered-P'!$AB$32)/'Filtered-P'!$AC$32),""),IF(Personalize!$E$51=TRUE,(((VLOOKUP($B33,Hitter!$A$1:$AF$628,14,FALSE))-Filtered!$AH$30)/(-1*Filtered!$AI$30)),"")),"") ->  | AD33: =IFERROR(IF((OR($C33="RP",$C33="SP")),VLOOKUP($B33,Pitcher!$A$1:$P$700,2,FALSE),""),"") ->  | AE33: =IFERROR(IF((OR($C33="RP",$C33="SP")),VLOOKUP($B33,Pitcher!$A$1:$P$700,9,FALSE),""),"") ->  | AF33: =IFERROR(IF((OR($C33="RP",$C33="SP")),VLOOKUP($B33,Pitcher!$A$1:$P$700,7,FALSE),""),"") ->  | AG33: =IFERROR(IF((OR($C33="RP",$C33="SP")),VLOOKUP($B33,Pitcher!$A$1:$P$700,10,FALSE),""),"") ->  | AH33: =IFERROR(IF((OR($C33="RP",$C33="SP")),VLOOKUP($B33,Pitcher!$A$1:$P$700,11,FALSE),""),"") ->  | AI33: =IFERROR(IF((OR($C33="RP",$C33="SP")),"",VLOOKUP($B33,Hitter!$A$1:$X$628,15,FALSE)),"") -> 0.2887107692 | AJ33: =IFERROR(IF((OR($C33="RP",$C33="SP")),"",VLOOKUP($B33,Hitter!$A$1:$X$628,9,FALSE)),"") -> 12.73841523 | AK33: =IFERROR(IF((OR($C33="RP",$C33="SP")),"",VLOOKUP($B33,Hitter!$A$1:$X$628,10,FALSE)),"") -> 72.38224641 | AL33: =IFERROR(IF((OR($C33="RP",$C33="SP")),"",VLOOKUP($B33,Hitter!$A$1:$X$628,4,FALSE)),"") -> 83.3747357 | AM33: =IFERROR(IF((OR($C33="RP",$C33="SP")),"",VLOOKUP($B33,Hitter!$A$1:$X$628,11,FALSE)),"") -> 15.99894743 | AN33: =IFERROR(IF(ISTEXT($A33),"",(1-NORMDIST((COUNTA($A$9:$A$661)),($G33),((AS33-AR33)/6),TRUE))),"") -> 1 | AO33: =IFERROR(IF(ISTEXT($A33),"",(1-NORMDIST((COUNTA($A$9:$A$661))+(Personalize!$E$18+1),$G33,((AS33-AR33)/6),TRUE))),"") -> 0.9999944915 | AP33: =IFERROR(IF(ISTEXT($A33),"",(1-NORMDIST((COUNTA($A$9:$A$661))+((Personalize!$E$18+1)*2),$G33,((AS33-AR33)/6),TRUE))),"") -> 0.8025401888 | AR33: =IF(Personalize!$E$31=1,VLOOKUP($B33,'ADP-Rank'!$A$2:$J$609,5,FALSE),(IF(Personalize!$E$31=2,VLOOKUP($B33,'ADP-Rank'!$A$2:$J$609,8,FALSE),(IF(Personalize!$E$31=3,VLOOKUP($B33,'ADP-Rank'!$A$2:$O$609,11,FALSE),(IF(Personalize!$E$31=4,VLOOKUP($B33,'ADP-Rank'!$A$2:$AN$609,25,FALSE),(IF(Personalize!$E$31=5,VLOOKUP($B33,'ADP-Rank'!$A$2:$AN$609,28,FALSE),(IF(Personalize!$E$31=6,VLOOKUP($B33,'ADP-Rank'!$A$2:$AN$609,32,FALSE),(IF(Personalize!$E$31=7,VLOOKUP($B33,'ADP-Rank'!$A$2:$AN$609,40,FALSE),""))))))))))))) -> 18 | AS33: =IF(Personalize!$E$31=1,VLOOKUP($B33,'ADP-Rank'!$A$2:$J$609,6,FALSE),(IF(Personalize!$E$31=2,VLOOKUP($B33,'ADP-Rank'!$A$2:$J$609,9,FALSE),(IF(Personalize!$E$31=3,VLOOKUP($B33,'ADP-Rank'!$A$2:$O$609,12,FALSE),(IF(Personalize!$E$31=4,VLOOKUP($B33,'ADP-Rank'!$A$2:$AN$609,26,FALSE),(IF(Personalize!$E$31=5,VLOOKUP($B33,'ADP-Rank'!$A$2:$AN$609,29,FALSE),(IF(Personalize!$E$31=6,VLOOKUP($B33,'ADP-Rank'!$A$2:$AN$609,33,FALSE),(IF(Personalize!$E$31=7,VLOOKUP($B33,'ADP-Rank'!$A$2:$AP$609,41,FALSE),""))))))))))))) -> 40 | AT33: =IF(ISBLANK(A33),0,1) -> 0 | AU33: =IF(K33="",0,1) -> 1 | AV33: =A33 -> 0 | AW33: =IF(C33="C",1,IF(C33="1B",2,IF(C33="2B",3,IF(C33="3B",4,IF(C33="SS",5,IF(C33="CI",6,IF(C33="MI",7,IF(C33="OF",11,IF(C33="LF",8,IF(C33="CF",9,IF(C33="RF",10,IF(C33="DH",12,IF(C33="SP",13,IF(C33="RP",14,IF(C33="P",15,16))))))))))))))) -> 3 | AX33: =VLOOKUP(B33,'Starter Calc'!$B$2:$BN$700,65,FALSE) -> Bench | AY33: =IFERROR(VLOOKUP($B33,'ADP-Rank'!$A$2:$AH$785,34,FALSE),TRUE) -> TRUE
B34: Adam Wainwright | C34: SP | D34: =IFERROR(IF(VLOOKUP(B34,'Starter Calc'!$B$2:$E$700,4,FALSE)="","",VLOOKUP(B34,'Starter Calc'!$B$2:$E$700,4,FALSE)),"") -> ,, | E34: =IFERROR(VLOOKUP($B34,'ADP-Rank'!$A$2:$D$650,3,FALSE),"") -> STL | F34: =IFERROR(VLOOKUP($B34,'ADP-Rank'!$A$2:$W$650,23,FALSE),"") -> 32 | G34: =IFERROR((IF(Personalize!$E$31=1,VLOOKUP($B34,'ADP-Rank'!$A$2:$J$750,4,FALSE),(IF(Personalize!$E$31=2,VLOOKUP($B34,'ADP-Rank'!$A$2:$J$750,7,FALSE),(IF(Personalize!$E$31=3,VLOOKUP($B34,'ADP-Rank'!$A$2:$J$750,10,FALSE),(IF(Personalize!$E$31=4,VLOOKUP($B34,'ADP-Rank'!$A$2:$AN$750,24,FALSE),(IF(Personalize!$E$31=5,VLOOKUP($B34,'ADP-Rank'!$A$2:$AN$750,27,FALSE),(IF(Personalize!$E$31=6,VLOOKUP($B34,'ADP-Rank'!$A$2:$AN$750,31,FALSE),(IF(Personalize!$E$31=7,VLOOKUP($B34,'ADP-Rank'!$A$2:$AN$750,39,FALSE))))))))))))))),"") -> 30.81893004 | H34: =IFERROR(ROUNDDOWN(VLOOKUP($B34,'ADP-Rank'!$A$2:$AN$885,38,FALSE),0),"") -> 3 | I34: =VLOOKUP($B34,'ADP-Rank'!$A$2:$AJ$885,36,FALSE) -> 33 | J34: =IFERROR(RANK($K34,$K$7:$K$661,0),"") -> 15 | K34: =IF((SUM(M34:AC34)=0),"",SUM(M34:AC34)) -> 5.000210263 | L34: =IFERROR(IF(ISTEXT($A34),"",IF((OR($C34="RP",$C34="SP")),ABS(VLOOKUP(C34,'Filtered-P'!$AA$3:$AE$4,5,FALSE))+K34,ABS(VLOOKUP(C34,Filtered!$AG$3:$AK$14,5,FALSE))+K34)),"") -> 8.040440636 | M34: =IFERROR(IF((OR($C34="RP",$C34="SP")),IF(Personalize!$E$10=TRUE,(((VLOOKUP($B34,Pitcher!$A$1:$P$700,2,FALSE))-'Filtered-P'!$AB$8)/'Filtered-P'!$AC$8),""),IF(Personalize!$E$4=TRUE,(((VLOOKUP($B34,Hitter!$A$1:$X$628,21,FALSE))-Filtered!$AH$35)/Filtered!$AI$35),"")),"") -> 1.345521379 | N34: =IFERROR(IF((OR($C34="RP",$C34="SP")),IF(Personalize!$E$12=TRUE,(((VLOOKUP($B34,Pitcher!$A$1:$P$700,9,FALSE))-'Filtered-P'!$AB$15)/'Filtered-P'!$AC$15),""),IF(Personalize!$E$3=TRUE,(((VLOOKUP($B34,Hitter!$A$1:$AB$628,9,FALSE))-Filtered!$AH$25)/Filtered!$AI$25),"")),"") -> -0.5466546098 | O34: =IFERROR(IF((OR($C34="RP",$C34="SP")),IF(Personalize!$E$11=TRUE,(((VLOOKUP($B34,Pitcher!$A$1:$P$700,7,FALSE))-'Filtered-P'!$AB$13)/'Filtered-P'!$AC$13),""),IF(Personalize!$E$2=TRUE,(((VLOOKUP($B34,Hitter!$A$1:$AB$628,4,FALSE))-Filtered!$AH$20)/Filtered!$AI$20),"")),"") -> 1.060116703 | P34: =IFERROR(IF((OR($C34="RP",$C34="SP")),IF(Personalize!$E$13=TRUE,(((VLOOKUP($B34,Pitcher!$A$1:$P$700,13,FALSE))-'Filtered-P'!$AB$19)/'Filtered-P'!$AC$19),""),IF(Personalize!$E$5=TRUE,(((VLOOKUP($B34,Hitter!$A$1:$AB$628,10,FALSE))-Filtered!$AH$26)/Filtered!$AI$26),"")),"") -> 1.740836722 | Q34: =IFERROR(IF((OR($C34="RP",$C34="SP")),IF(Personalize!$E$14=TRUE,(((VLOOKUP($B34,Pitcher!$A$1:$P$700,14,FALSE))-'Filtered-P'!$AB$20)/'Filtered-P'!$AC$20),""),IF(Personalize!$E$6=TRUE,(((VLOOKUP($B34,Hitter!$A$1:$AB$628,11,FALSE))-Filtered!$AH$27)/Filtered!$AI$27),"")),"") -> 1.400390068 | R34: =IFERROR(IF((OR($C34="RP",$C34="SP")),IF(Personalize!$E$16=TRUE,(((VLOOKUP($B34,Pitcher!$A$1:$P$700,3,FALSE))-'Filtered-P'!$AB$9)/'Filtered-P'!$AC$9),""),IF(Personalize!$E$7=TRUE,(((VLOOKUP($B34,Hitter!$A$1:$AZ$628,23,FALSE))-Filtered!$AH$37)/Filtered!$AI$37),"")),"") ->  | S34: =IFERROR(IF((OR($C34="RP",$C34="SP")),IF(Personalize!$E$15=TRUE,(((VLOOKUP($B34,Pitcher!$A$1:$P$700,15,FALSE))-'Filtered-P'!$AB$21)/'Filtered-P'!$AC$21),""),IF(Personalize!$E$8=TRUE,(((VLOOKUP($B34,Hitter!$A$1:$AZ$628,22,FALSE))-Filtered!$AH$36)/Filtered!$AI$36),"")),"") ->  | T34: =IFERROR(IF((OR($C34="RP",$C34="SP")),IF(Personalize!$E$17=TRUE,(((VLOOKUP($B34,Pitcher!$A$1:$P$700,16,FALSE))-'Filtered-P'!$AB$22)/'Filtered-P'!$AC$22),""),IF(Personalize!$E$9=TRUE,(((VLOOKUP($B34,Hitter!$A$1:$AZ$628,24,FALSE))-Filtered!$AH$38)/Filtered!$AI$38),"")),"") ->  | U34: =IFERROR(IF((OR($C34="RP",$C34="SP")),IF(Personalize!$E$37=TRUE,(((VLOOKUP($B34,Pitcher!$A$1:$Z$700,17,FALSE))-'Filtered-P'!$AB$25)/'Filtered-P'!$AC$25),""),IF(Personalize!$E$39=TRUE,(((VLOOKUP($B34,Hitter!$A$1:$X$628,5,FALSE))-Filtered!$AH$21)/Filtered!$AI$21),"")),"") ->  | V34: =IFERROR(IF((OR($C34="RP",$C34="SP")),IF(Personalize!$E$38=TRUE,(((VLOOKUP($B34,Pitcher!$A$1:$Z$700,18,FALSE))-'Filtered-P'!$AB$26)/'Filtered-P'!$AC$26),""),IF(Personalize!$E$40=TRUE,(((VLOOKUP($B34,Hitter!$A$1:$X$628,13,FALSE))-Filtered!$AH$29)/Filtered!$AI$29),"")),"") ->  | W34: =IFERROR(IF((OR($C34="RP",$C34="SP")),IF(Personalize!$E$45=TRUE,(((VLOOKUP($B34,Pitcher!$A$1:$Z$700,4,FALSE))-'Filtered-P'!$AB$10)/'Filtered-P'!$AC$10),""),IF(Personalize!$E$41=TRUE,(((VLOOKUP($B34,Hitter!$A$1:$AZ$628,19,FALSE))-Filtered!$AH$43)/Filtered!$AI$43),"")),"") ->  | X34: =IFERROR(IF((OR($C34="RP",$C34="SP")),IF(Personalize!$E$46=TRUE,(((VLOOKUP($B34,Pitcher!$A$1:$Z$700,19,FALSE))-'Filtered-P'!$AB$27)/'Filtered-P'!$AC$27),""),IF(Personalize!$E$44=TRUE,(((VLOOKUP($B34,Hitter!$A$1:$AZ$628,20,FALSE))-Filtered!$AH$44)/Filtered!$AI$44),"")),"") ->  | Y34: =IFERROR(IF((OR($C34="RP",$C34="SP")),IF(Personalize!$E$47=TRUE,(((VLOOKUP($B34,Pitcher!$A$1:$Z$700,6,FALSE))-'Filtered-P'!$AB$12)/'Filtered-P'!$AC$12),""),IF(Personalize!$E$42=TRUE,(((VLOOKUP($B34,Hitter!$A$1:$AZ$628,7,FALSE))-Filtered!$AH$23)/Filtered!$AI$23),"")),"") ->  | Z34: =IFERROR(IF((OR($C34="RP",$C34="SP")),IF(Personalize!$E$48=TRUE,(((VLOOKUP($B34,Pitcher!$A$1:$Z$700,5,FALSE))-'Filtered-P'!$AB$11)/'Filtered-P'!$AC$11),""),IF(Personalize!$E$43=TRUE,(((VLOOKUP($B34,Hitter!$A$1:$AZ$628,8,FALSE))-Filtered!$AH$24)/Filtered!$AI$24),"")),"") ->  | AA34: =IFERROR(IF((OR($C34="RP",$C34="SP")),IF(Personalize!$E$52=TRUE,(((VLOOKUP($B34,Pitcher!$A$1:$AA$700,21,FALSE))-'Filtered-P'!$AB$29)/(-1*'Filtered-P'!$AC$29)),""),IF(Personalize!$E$49=TRUE,(((VLOOKUP($B34,Hitter!$A$1:$AF$628,29,FALSE))-Filtered!$AH$45)/Filtered!$AI$45),"")),"") ->  | AB34: =IFERROR(IF((OR($C34="RP",$C34="SP")),IF(Personalize!$E$53=TRUE,(((VLOOKUP($B34,Pitcher!$A$1:$AA$700,23,FALSE))-'Filtered-P'!$AB$31)/(-1*'Filtered-P'!$AC$31)),""),IF(Personalize!$E$50=TRUE,(((VLOOKUP($B34,Hitter!$A$1:$AF$628,30,FALSE))-Filtered!$AH$46)/Filtered!$AI$46),"")),"") ->  | AC34: =IFERROR(IF((OR($C34="RP",$C34="SP")),IF(Personalize!$E$54=TRUE,(((VLOOKUP($B34,Pitcher!$A$1:$AA$700,24,FALSE))-'Filtered-P'!$AB$32)/'Filtered-P'!$AC$32),""),IF(Personalize!$E$51=TRUE,(((VLOOKUP($B34,Hitter!$A$1:$AF$628,14,FALSE))-Filtered!$AH$30)/(-1*Filtered!$AI$30)),"")),"") ->  | AD34: =IFERROR(IF((OR($C34="RP",$C34="SP")),VLOOKUP($B34,Pitcher!$A$1:$P$700,2,FALSE),""),"") -> 17.19818828 | AE34: =IFERROR(IF((OR($C34="RP",$C34="SP")),VLOOKUP($B34,Pitcher!$A$1:$P$700,9,FALSE),""),"") -> 0 | AF34: =IFERROR(IF((OR($C34="RP",$C34="SP")),VLOOKUP($B34,Pitcher!$A$1:$P$700,7,FALSE),""),"") -> 205.6443186 | AG34: =IFERROR(IF((OR($C34="RP",$C34="SP")),VLOOKUP($B34,Pitcher!$A$1:$P$700,10,FALSE),""),"") -> 3.174378782 | AH34: =IFERROR(IF((OR($C34="RP",$C34="SP")),VLOOKUP($B34,Pitcher!$A$1:$P$700,11,FALSE),""),"") -> 1.125800726 | AI34: =IFERROR(IF((OR($C34="RP",$C34="SP")),"",VLOOKUP($B34,Hitter!$A$1:$X$628,15,FALSE)),"") ->  | AJ34: =IFERROR(IF((OR($C34="RP",$C34="SP")),"",VLOOKUP($B34,Hitter!$A$1:$X$628,9,FALSE)),"") ->  | AK34: =IFERROR(IF((OR($C34="RP",$C34="SP")),"",VLOOKUP($B34,Hitter!$A$1:$X$628,10,FALSE)),"") ->  | AL34: =IFERROR(IF((OR($C34="RP",$C34="SP")),"",VLOOKUP($B34,Hitter!$A$1:$X$628,4,FALSE)),"") ->  | AM34: =IFERROR(IF((OR($C34="RP",$C34="SP")),"",VLOOKUP($B34,Hitter!$A$1:$X$628,11,FALSE)),"") ->  | AN34: =IFERROR(IF(ISTEXT($A34),"",(1-NORMDIST((COUNTA($A$9:$A$661)),($G34),((AS34-AR34)/6),TRUE))),"") -> 0.9995200579 | AO34: =IFERROR(IF(ISTEXT($A34),"",(1-NORMDIST((COUNTA($A$9:$A$661))+(Personalize!$E$18+1),$G34,((AS34-AR34)/6),TRUE))),"") -> 0.9718799869 | AP34: =IFERROR(IF(ISTEXT($A34),"",(1-NORMDIST((COUNTA($A$9:$A$661))+((Personalize!$E$18+1)*2),$G34,((AS34-AR34)/6),TRUE))),"") -> 0.6971824167 | AR34: =IF(Personalize!$E$31=1,VLOOKUP($B34,'ADP-Rank'!$A$2:$J$609,5,FALSE),(IF(Personalize!$E$31=2,VLOOKUP($B34,'ADP-Rank'!$A$2:$J$609,8,FALSE),(IF(Personalize!$E$31=3,VLOOKUP($B34,'ADP-Rank'!$A$2:$O$609,11,FALSE),(IF(Personalize!$E$31=4,VLOOKUP($B34,'ADP-Rank'!$A$2:$AN$609,25,FALSE),(IF(Personalize!$E$31=5,VLOOKUP($B34,'ADP-Rank'!$A$2:$AN$609,28,FALSE),(IF(Personalize!$E$31=6,VLOOKUP($B34,'ADP-Rank'!$A$2:$AN$609,32,FALSE),(IF(Personalize!$E$31=7,VLOOKUP($B34,'ADP-Rank'!$A$2:$AN$609,40,FALSE),""))))))))))))) -> 5 | AS34: =IF(Personalize!$E$31=1,VLOOKUP($B34,'ADP-Rank'!$A$2:$J$609,6,FALSE),(IF(Personalize!$E$31=2,VLOOKUP($B34,'ADP-Rank'!$A$2:$J$609,9,FALSE),(IF(Personalize!$E$31=3,VLOOKUP($B34,'ADP-Rank'!$A$2:$O$609,12,FALSE),(IF(Personalize!$E$31=4,VLOOKUP($B34,'ADP-Rank'!$A$2:$AN$609,26,FALSE),(IF(Personalize!$E$31=5,VLOOKUP($B34,'ADP-Rank'!$A$2:$AN$609,29,FALSE),(IF(Personalize!$E$31=6,VLOOKUP($B34,'ADP-Rank'!$A$2:$AN$609,33,FALSE),(IF(Personalize!$E$31=7,VLOOKUP($B34,'ADP-Rank'!$A$2:$AP$609,41,FALSE),""))))))))))))) -> 61 | AT34: =IF(ISBLANK(A34),0,1) -> 0 | AU34: =IF(K34="",0,1) -> 1 | AV34: =A34 -> 0 | AW34: =IF(C34="C",1,IF(C34="1B",2,IF(C34="2B",3,IF(C34="3B",4,IF(C34="SS",5,IF(C34="CI",6,IF(C34="MI",7,IF(C34="OF",11,IF(C34="LF",8,IF(C34="CF",9,IF(C34="RF",10,IF(C34="DH",12,IF(C34="SP",13,IF(C34="RP",14,IF(C34="P",15,16))))))))))))))) -> 13 | AX34: =VLOOKUP(B34,'Starter Calc'!$B$2:$BN$700,65,FALSE) -> Starter | AY34: =IFERROR(VLOOKUP($B34,'ADP-Rank'!$A$2:$AH$785,34,FALSE),TRUE) -> TRUE
B35: Max Scherzer | C35: SP | D35: =IFERROR(IF(VLOOKUP(B35,'Starter Calc'!$B$2:$E$700,4,FALSE)="","",VLOOKUP(B35,'Starter Calc'!$B$2:$E$700,4,FALSE)),"") -> ,, | E35: =IFERROR(VLOOKUP($B35,'ADP-Rank'!$A$2:$D$650,3,FALSE),"") -> DET | F35: =IFERROR(VLOOKUP($B35,'ADP-Rank'!$A$2:$W$650,23,FALSE),"") -> 29 | G35: =IFERROR((IF(Personalize!$E$31=1,VLOOKUP($B35,'ADP-Rank'!$A$2:$J$750,4,FALSE),(IF(Personalize!$E$31=2,VLOOKUP($B35,'ADP-Rank'!$A$2:$J$750,7,FALSE),(IF(Personalize!$E$31=3,VLOOKUP($B35,'ADP-Rank'!$A$2:$J$750,10,FALSE),(IF(Personalize!$E$31=4,VLOOKUP($B35,'ADP-Rank'!$A$2:$AN$750,24,FALSE),(IF(Personalize!$E$31=5,VLOOKUP($B35,'ADP-Rank'!$A$2:$AN$750,27,FALSE),(IF(Personalize!$E$31=6,VLOOKUP($B35,'ADP-Rank'!$A$2:$AN$750,31,FALSE),(IF(Personalize!$E$31=7,VLOOKUP($B35,'ADP-Rank'!$A$2:$AN$750,39,FALSE))))))))))))))),"") -> 32.98971193 | H35: =IFERROR(ROUNDDOWN(VLOOKUP($B35,'ADP-Rank'!$A$2:$AN$885,38,FALSE),0),"") -> 3 | I35: =VLOOKUP($B35,'ADP-Rank'!$A$2:$AJ$885,36,FALSE) -> 22 | J35: =IFERROR(RANK($K35,$K$7:$K$661,0),"") -> 20 | K35: =IF((SUM(M35:AC35)=0),"",SUM(M35:AC35)) -> 4.504241238 | L35: =IFERROR(IF(ISTEXT($A35),"",IF((OR($C35="RP",$C35="SP")),ABS(VLOOKUP(C35,'Filtered-P'!$AA$3:$AE$4,5,FALSE))+K35,ABS(VLOOKUP(C35,Filtered!$AG$3:$AK$14,5,FALSE))+K35)),"") -> 7.544471611 | M35: =IFERROR(IF((OR($C35="RP",$C35="SP")),IF(Personalize!$E$10=TRUE,(((VLOOKUP($B35,Pitcher!$A$1:$P$700,2,FALSE))-'Filtered-P'!$AB$8)/'Filtered-P'!$AC$8),""),IF(Personalize!$E$4=TRUE,(((VLOOKUP($B35,Hitter!$A$1:$X$628,21,FALSE))-Filtered!$AH$35)/Filtered!$AI$35),"")),"") -> 1.050494983 | N35: =IFERROR(IF((OR($C35="RP",$C35="SP")),IF(Personalize!$E$12=TRUE,(((VLOOKUP($B35,Pitcher!$A$1:$P$700,9,FALSE))-'Filtered-P'!$AB$15)/'Filtered-P'!$AC$15),""),IF(Personalize!$E$3=TRUE,(((VLOOKUP($B35,Hitter!$A$1:$AB$628,9,FALSE))-Filtered!$AH$25)/Filtered!$AI$25),"")),"") -> -0.5466546098 | O35: =IFERROR(IF((OR($C35="RP",$C35="SP")),IF(Personalize!$E$11=TRUE,(((VLOOKUP($B35,Pitcher!$A$1:$P$700,7,FALSE))-'Filtered-P'!$AB$13)/'Filtered-P'!$AC$13),""),IF(Personalize!$E$2=TRUE,(((VLOOKUP($B35,Hitter!$A$1:$AB$628,4,FALSE))-Filtered!$AH$20)/Filtered!$AI$20),"")),"") -> 1.645766073 | P35: =IFERROR(IF((OR($C35="RP",$C35="SP")),IF(Personalize!$E$13=TRUE,(((VLOOKUP($B35,Pitcher!$A$1:$P$700,13,FALSE))-'Filtered-P'!$AB$19)/'Filtered-P'!$AC$19),""),IF(Personalize!$E$5=TRUE,(((VLOOKUP($B35,Hitter!$A$1:$AB$628,10,FALSE))-Filtered!$AH$26)/Filtered!$AI$26),"")),"") -> 1.264634343 | Q35: =IFERROR(IF((OR($C35="RP",$C35="SP")),IF(Personalize!$E$14=TRUE,(((VLOOKUP($B35,Pitcher!$A$1:$P$700,14,FALSE))-'Filtered-P'!$AB$20)/'Filtered-P'!$AC$20),""),IF(Personalize!$E$6=TRUE,(((VLOOKUP($B35,Hitter!$A$1:$AB$628,11,FALSE))-Filtered!$AH$27)/Filtered!$AI$27),"")),"") -> 1.090000448 | R35: =IFERROR(IF((OR($C35="RP",$C35="SP")),IF(Personalize!$E$16=TRUE,(((VLOOKUP($B35,Pitcher!$A$1:$P$700,3,FALSE))-'Filtered-P'!$AB$9)/'Filtered-P'!$AC$9),""),IF(Personalize!$E$7=TRUE,(((VLOOKUP($B35,Hitter!$A$1:$AZ$628,23,FALSE))-Filtered!$AH$37)/Filtered!$AI$37),"")),"") ->  | S35: =IFERROR(IF((OR($C35="RP",$C35="SP")),IF(Personalize!$E$15=TRUE,(((VLOOKUP($B35,Pitcher!$A$1:$P$700,15,FALSE))-'Filtered-P'!$AB$21)/'Filtered-P'!$AC$21),""),IF(Personalize!$E$8=TRUE,(((VLOOKUP($B35,Hitter!$A$1:$AZ$628,22,FALSE))-Filtered!$AH$36)/Filtered!$AI$36),"")),"") ->  | T35: =IFERROR(IF((OR($C35="RP",$C35="SP")),IF(Personalize!$E$17=TRUE,(((VLOOKUP($B35,Pitcher!$A$1:$P$700,16,FALSE))-'Filtered-P'!$AB$22)/'Filtered-P'!$AC$22),""),IF(Personalize!$E$9=TRUE,(((VLOOKUP($B35,Hitter!$A$1:$AZ$628,24,FALSE))-Filtered!$AH$38)/Filtered!$AI$38),"")),"") ->  | U35: =IFERROR(IF((OR($C35="RP",$C35="SP")),IF(Personalize!$E$37=TRUE,(((VLOOKUP($B35,Pitcher!$A$1:$Z$700,17,FALSE))-'Filtered-P'!$AB$25)/'Filtered-P'!$AC$25),""),IF(Personalize!$E$39=TRUE,(((VLOOKUP($B35,Hitter!$A$1:$X$628,5,FALSE))-Filtered!$AH$21)/Filtered!$AI$21),"")),"") ->  | V35: =IFERROR(IF((OR($C35="RP",$C35="SP")),IF(Personalize!$E$38=TRUE,(((VLOOKUP($B35,Pitcher!$A$1:$Z$700,18,FALSE))-'Filtered-P'!$AB$26)/'Filtered-P'!$AC$26),""),IF(Personalize!$E$40=TRUE,(((VLOOKUP($B35,Hitter!$A$1:$X$628,13,FALSE))-Filtered!$AH$29)/Filtered!$AI$29),"")),"") ->  | W35: =IFERROR(IF((OR($C35="RP",$C35="SP")),IF(Personalize!$E$45=TRUE,(((VLOOKUP($B35,Pitcher!$A$1:$Z$700,4,FALSE))-'Filtered-P'!$AB$10)/'Filtered-P'!$AC$10),""),IF(Personalize!$E$41=TRUE,(((VLOOKUP($B35,Hitter!$A$1:$AZ$628,19,FALSE))-Filtered!$AH$43)/Filtered!$AI$43),"")),"") ->  | X35: =IFERROR(IF((OR($C35="RP",$C35="SP")),IF(Personalize!$E$46=TRUE,(((VLOOKUP($B35,Pitcher!$A$1:$Z$700,19,FALSE))-'Filtered-P'!$AB$27)/'Filtered-P'!$AC$27),""),IF(Personalize!$E$44=TRUE,(((VLOOKUP($B35,Hitter!$A$1:$AZ$628,20,FALSE))-Filtered!$AH$44)/Filtered!$AI$44),"")),"") ->  | Y35: =IFERROR(IF((OR($C35="RP",$C35="SP")),IF(Personalize!$E$47=TRUE,(((VLOOKUP($B35,Pitcher!$A$1:$Z$700,6,FALSE))-'Filtered-P'!$AB$12)/'Filtered-P'!$AC$12),""),IF(Personalize!$E$42=TRUE,(((VLOOKUP($B35,Hitter!$A$1:$AZ$628,7,FALSE))-Filtered!$AH$23)/Filtered!$AI$23),"")),"") ->  | Z35: =IFERROR(IF((OR($C35="RP",$C35="SP")),IF(Personalize!$E$48=TRUE,(((VLOOKUP($B35,Pitcher!$A$1:$Z$700,5,FALSE))-'Filtered-P'!$AB$11)/'Filtered-P'!$AC$11),""),IF(Personalize!$E$43=TRUE,(((VLOOKUP($B35,Hitter!$A$1:$AZ$628,8,FALSE))-Filtered!$AH$24)/Filtered!$AI$24),"")),"") ->  | AA35: =IFERROR(IF((OR($C35="RP",$C35="SP")),IF(Personalize!$E$52=TRUE,(((VLOOKUP($B35,Pitcher!$A$1:$AA$700,21,FALSE))-'Filtered-P'!$AB$29)/(-1*'Filtered-P'!$AC$29)),""),IF(Personalize!$E$49=TRUE,(((VLOOKUP($B35,Hitter!$A$1:$AF$628,29,FALSE))-Filtered!$AH$45)/Filtered!$AI$45),"")),"") ->  | AB35: =IFERROR(IF((OR($C35="RP",$C35="SP")),IF(Personalize!$E$53=TRUE,(((VLOOKUP($B35,Pitcher!$A$1:$AA$700,23,FALSE))-'Filtered-P'!$AB$31)/(-1*'Filtered-P'!$AC$31)),""),IF(Personalize!$E$50=TRUE,(((VLOOKUP($B35,Hitter!$A$1:$AF$628,30,FALSE))-Filtered!$AH$46)/Filtered!$AI$46),"")),"") ->  | AC35: =IFERROR(IF((OR($C35="RP",$C35="SP")),IF(Personalize!$E$54=TRUE,(((VLOOKUP($B35,Pitcher!$A$1:$AA$700,24,FALSE))-'Filtered-P'!$AB$32)/'Filtered-P'!$AC$32),""),IF(Personalize!$E$51=TRUE,(((VLOOKUP($B35,Hitter!$A$1:$AF$628,14,FALSE))-Filtered!$AH$30)/(-1*Filtered!$AI$30)),"")),"") ->  | AD35: =IFERROR(IF((OR($C35="RP",$C35="SP")),VLOOKUP($B35,Pitcher!$A$1:$P$700,2,FALSE),""),"") -> 15.89700334 | AE35: =IFERROR(IF((OR($C35="RP",$C35="SP")),VLOOKUP($B35,Pitcher!$A$1:$P$700,9,FALSE),""),"") -> 0 | AF35: =IFERROR(IF((OR($C35="RP",$C35="SP")),VLOOKUP($B35,Pitcher!$A$1:$P$700,7,FALSE),""),"") -> 237.3239765 | AG35: =IFERROR(IF((OR($C35="RP",$C35="SP")),VLOOKUP($B35,Pitcher!$A$1:$P$700,10,FALSE),""),"") -> 3.263169643 | AH35: =IFERROR(IF((OR($C35="RP",$C35="SP")),VLOOKUP($B35,Pitcher!$A$1:$P$700,11,FALSE),""),"") -> 1.138233631 | AI35: =IFERROR(IF((OR($C35="RP",$C35="SP")),"",VLOOKUP($B35,Hitter!$A$1:$X$628,15,FALSE)),"") ->  | AJ35: =IFERROR(IF((OR($C35="RP",$C35="SP")),"",VLOOKUP($B35,Hitter!$A$1:$X$628,9,FALSE)),"") ->  | AK35: =IFERROR(IF((OR($C35="RP",$C35="SP")),"",VLOOKUP($B35,Hitter!$A$1:$X$628,10,FALSE)),"") ->  | AL35: =IFERROR(IF((OR($C35="RP",$C35="SP")),"",VLOOKUP($B35,Hitter!$A$1:$X$628,4,FALSE)),"") ->  | AM35: =IFERROR(IF((OR($C35="RP",$C35="SP")),"",VLOOKUP($B35,Hitter!$A$1:$X$628,11,FALSE)),"") ->  | AN35: =IFERROR(IF(ISTEXT($A35),"",(1-NORMDIST((COUNTA($A$9:$A$661)),($G35),((AS35-AR35)/6),TRUE))),"") -> 0.999999905 | AO35: =IFERROR(IF(ISTEXT($A35),"",(1-NORMDIST((COUNTA($A$9:$A$661))+(Personalize!$E$18+1),$G35,((AS35-AR35)/6),TRUE))),"") -> 0.9992009965 | AP35: =IFERROR(IF(ISTEXT($A35),"",(1-NORMDIST((COUNTA($A$9:$A$661))+((Personalize!$E$18+1)*2),$G35,((AS35-AR35)/6),TRUE))),"") -> 0.8651250575 | AR35: =IF(Personalize!$E$31=1,VLOOKUP($B35,'ADP-Rank'!$A$2:$J$609,5,FALSE),(IF(Personalize!$E$31=2,VLOOKUP($B35,'ADP-Rank'!$A$2:$J$609,8,FALSE),(IF(Personalize!$E$31=3,VLOOKUP($B35,'ADP-Rank'!$A$2:$O$609,11,FALSE),(IF(Personalize!$E$31=4,VLOOKUP($B35,'ADP-Rank'!$A$2:$AN$609,25,FALSE),(IF(Personalize!$E$31=5,VLOOKUP($B35,'ADP-Rank'!$A$2:$AN$609,28,FALSE),(IF(Personalize!$E$31=6,VLOOKUP($B35,'ADP-Rank'!$A$2:$AN$609,32,FALSE),(IF(Personalize!$E$31=7,VLOOKUP($B35,'ADP-Rank'!$A$2:$AN$609,40,FALSE),""))))))))))))) -> 20 | AS35: =IF(Personalize!$E$31=1,VLOOKUP($B35,'ADP-Rank'!$A$2:$J$609,6,FALSE),(IF(Personalize!$E$31=2,VLOOKUP($B35,'ADP-Rank'!$A$2:$J$609,9,FALSE),(IF(Personalize!$E$31=3,VLOOKUP($B35,'ADP-Rank'!$A$2:$O$609,12,FALSE),(IF(Personalize!$E$31=4,VLOOKUP($B35,'ADP-Rank'!$A$2:$AN$609,26,FALSE),(IF(Personalize!$E$31=5,VLOOKUP($B35,'ADP-Rank'!$A$2:$AN$609,29,FALSE),(IF(Personalize!$E$31=6,VLOOKUP($B35,'ADP-Rank'!$A$2:$AN$609,33,FALSE),(IF(Personalize!$E$31=7,VLOOKUP($B35,'ADP-Rank'!$A$2:$AP$609,41,FALSE),""))))))))))))) -> 58 | AT35: =IF(ISBLANK(A35),0,1) -> 0 | AU35: =IF(K35="",0,1) -> 1 | AV35: =A35 -> 0 | AW35: =IF(C35="C",1,IF(C35="1B",2,IF(C35="2B",3,IF(C35="3B",4,IF(C35="SS",5,IF(C35="CI",6,IF(C35="MI",7,IF(C35="OF",11,IF(C35="LF",8,IF(C35="CF",9,IF(C35="RF",10,IF(C35="DH",12,IF(C35="SP",13,IF(C35="RP",14,IF(C35="P",15,16))))))))))))))) -> 13 | AX35: =VLOOKUP(B35,'Starter Calc'!$B$2:$BN$700,65,FALSE) -> Bench | AY35: =IFERROR(VLOOKUP($B35,'ADP-Rank'!$A$2:$AH$785,34,FALSE),TRUE) -> TRUE
B36: Stephen Strasburg | C36: SP | D36: =IFERROR(IF(VLOOKUP(B36,'Starter Calc'!$B$2:$E$700,4,FALSE)="","",VLOOKUP(B36,'Starter Calc'!$B$2:$E$700,4,FALSE)),"") -> ,, | E36: =IFERROR(VLOOKUP($B36,'ADP-Rank'!$A$2:$D$650,3,FALSE),"") -> WAS | F36: =IFERROR(VLOOKUP($B36,'ADP-Rank'!$A$2:$W$650,23,FALSE),"") -> 25 | G36: =IFERROR((IF(Personalize!$E$31=1,VLOOKUP($B36,'ADP-Rank'!$A$2:$J$750,4,FALSE),(IF(Personalize!$E$31=2,VLOOKUP($B36,'ADP-Rank'!$A$2:$J$750,7,FALSE),(IF(Personalize!$E$31=3,VLOOKUP($B36,'ADP-Rank'!$A$2:$J$750,10,FALSE),(IF(Personalize!$E$31=4,VLOOKUP($B36,'ADP-Rank'!$A$2:$AN$750,24,FALSE),(IF(Personalize!$E$31=5,VLOOKUP($B36,'ADP-Rank'!$A$2:$AN$750,27,FALSE),(IF(Personalize!$E$31=6,VLOOKUP($B36,'ADP-Rank'!$A$2:$AN$750,31,FALSE),(IF(Personalize!$E$31=7,VLOOKUP($B36,'ADP-Rank'!$A$2:$AN$750,39,FALSE))))))))))))))),"") -> 33.4218107 | H36: =IFERROR(ROUNDDOWN(VLOOKUP($B36,'ADP-Rank'!$A$2:$AN$885,38,FALSE),0),"") -> 3 | I36: =VLOOKUP($B36,'ADP-Rank'!$A$2:$AJ$885,36,FALSE) -> 18 | J36: =IFERROR(RANK($K36,$K$7:$K$661,0),"") -> 12 | K36: =IF((SUM(M36:AC36)=0),"",SUM(M36:AC36)) -> 5.068265759 | L36: =IFERROR(IF(ISTEXT($A36),"",IF((OR($C36="RP",$C36="SP")),ABS(VLOOKUP(C36,'Filtered-P'!$AA$3:$AE$4,5,FALSE))+K36,ABS(VLOOKUP(C36,Filtered!$AG$3:$AK$14,5,FALSE))+K36)),"") -> 8.108496132 | M36: =IFERROR(IF((OR($C36="RP",$C36="SP")),IF(Personalize!$E$10=TRUE,(((VLOOKUP($B36,Pitcher!$A$1:$P$700,2,FALSE))-'Filtered-P'!$AB$8)/'Filtered-P'!$AC$8),""),IF(Personalize!$E$4=TRUE,(((VLOOKUP($B36,Hitter!$A$1:$X$628,21,FALSE))-Filtered!$AH$35)/Filtered!$AI$35),"")),"") -> 1.14518542 | N36: =IFERROR(IF((OR($C36="RP",$C36="SP")),IF(Personalize!$E$12=TRUE,(((VLOOKUP($B36,Pitcher!$A$1:$P$700,9,FALSE))-'Filtered-P'!$AB$15)/'Filtered-P'!$AC$15),""),IF(Personalize!$E$3=TRUE,(((VLOOKUP($B36,Hitter!$A$1:$AB$628,9,FALSE))-Filtered!$AH$25)/Filtered!$AI$25),"")),"") -> -0.5466546098 | O36: =IFERROR(IF((OR($C36="RP",$C36="SP")),IF(Personalize!$E$11=TRUE,(((VLOOKUP($B36,Pitcher!$A$1:$P$700,7,FALSE))-'Filtered-P'!$AB$13)/'Filtered-P'!$AC$13),""),IF(Personalize!$E$2=TRUE,(((VLOOKUP($B36,Hitter!$A$1:$AB$628,4,FALSE))-Filtered!$AH$20)/Filtered!$AI$20),"")),"") -> 1.468178305 | P36: =IFERROR(IF((OR($C36="RP",$C36="SP")),IF(Personalize!$E$13=TRUE,(((VLOOKUP($B36,Pitcher!$A$1:$P$700,13,FALSE))-'Filtered-P'!$AB$19)/'Filtered-P'!$AC$19),""),IF(Personalize!$E$5=TRUE,(((VLOOKUP($B36,Hitter!$A$1:$AB$628,10,FALSE))-Filtered!$AH$26)/Filtered!$AI$26),"")),"") -> 1.687651901 | Q36: =IFERROR(IF((OR($C36="RP",$C36="SP")),IF(Personalize!$E$14=TRUE,(((VLOOKUP($B36,Pitcher!$A$1:$P$700,14,FALSE))-'Filtered-P'!$AB$20)/'Filtered-P'!$AC$20),""),IF(Personalize!$E$6=TRUE,(((VLOOKUP($B36,Hitter!$A$1:$AB$628,11,FALSE))-Filtered!$AH$27)/Filtered!$AI$27),"")),"") -> 1.313904742 | R36: =IFERROR(IF((OR($C36="RP",$C36="SP")),IF(Personalize!$E$16=TRUE,(((VLOOKUP($B36,Pitcher!$A$1:$P$700,3,FALSE))-'Filtered-P'!$AB$9)/'Filtered-P'!$AC$9),""),IF(Personalize!$E$7=TRUE,(((VLOOKUP($B36,Hitter!$A$1:$AZ$628,23,FALSE))-Filtered!$AH$37)/Filtered!$AI$37),"")),"") ->  | S36: =IFERROR(IF((OR($C36="RP",$C36="SP")),IF(Personalize!$E$15=TRUE,(((VLOOKUP($B36,Pitcher!$A$1:$P$700,15,FALSE))-'Filtered-P'!$AB$21)/'Filtered-P'!$AC$21),""),IF(Personalize!$E$8=TRUE,(((VLOOKUP($B36,Hitter!$A$1:$AZ$628,22,FALSE))-Filtered!$AH$36)/Filtered!$AI$36),"")),"") ->  | T36: =IFERROR(IF((OR($C36="RP",$C36="SP")),IF(Personalize!$E$17=TRUE,(((VLOOKUP($B36,Pitcher!$A$1:$P$700,16,FALSE))-'Filtered-P'!$AB$22)/'Filtered-P'!$AC$22),""),IF(Personalize!$E$9=TRUE,(((VLOOKUP($B36,Hitter!$A$1:$AZ$628,24,FALSE))-Filtered!$AH$38)/Filtered!$AI$38),"")),"") ->  | U36: =IFERROR(IF((OR($C36="RP",$C36="SP")),IF(Personalize!$E$37=TRUE,(((VLOOKUP($B36,Pitcher!$A$1:$Z$700,17,FALSE))-'Filtered-P'!$AB$25)/'Filtered-P'!$AC$25),""),IF(Personalize!$E$39=TRUE,(((VLOOKUP($B36,Hitter!$A$1:$X$628,5,FALSE))-Filtered!$AH$21)/Filtered!$AI$21),"")),"") ->  | V36: =IFERROR(IF((OR($C36="RP",$C36="SP")),IF(Personalize!$E$38=TRUE,(((VLOOKUP($B36,Pitcher!$A$1:$Z$700,18,FALSE))-'Filtered-P'!$AB$26)/'Filtered-P'!$AC$26),""),IF(Personalize!$E$40=TRUE,(((VLOOKUP($B36,Hitter!$A$1:$X$628,13,FALSE))-Filtered!$AH$29)/Filtered!$AI$29),"")),"") ->  | W36: =IFERROR(IF((OR($C36="RP",$C36="SP")),IF(Personalize!$E$45=TRUE,(((VLOOKUP($B36,Pitcher!$A$1:$Z$700,4,FALSE))-'Filtered-P'!$AB$10)/'Filtered-P'!$AC$10),""),IF(Personalize!$E$41=TRUE,(((VLOOKUP($B36,Hitter!$A$1:$AZ$628,19,FALSE))-Filtered!$AH$43)/Filtered!$AI$43),"")),"") ->  | X36: =IFERROR(IF((OR($C36="RP",$C36="SP")),IF(Personalize!$E$46=TRUE,(((VLOOKUP($B36,Pitcher!$A$1:$Z$700,19,FALSE))-'Filtered-P'!$AB$27)/'Filtered-P'!$AC$27),""),IF(Personalize!$E$44=TRUE,(((VLOOKUP($B36,Hitter!$A$1:$AZ$628,20,FALSE))-Filtered!$AH$44)/Filtered!$AI$44),"")),"") ->  | Y36: =IFERROR(IF((OR($C36="RP",$C36="SP")),IF(Personalize!$E$47=TRUE,(((VLOOKUP($B36,Pitcher!$A$1:$Z$700,6,FALSE))-'Filtered-P'!$AB$12)/'Filtered-P'!$AC$12),""),IF(Personalize!$E$42=TRUE,(((VLOOKUP($B36,Hitter!$A$1:$AZ$628,7,FALSE))-Filtered!$AH$23)/Filtered!$AI$23),"")),"") ->  | Z36: =IFERROR(IF((OR($C36="RP",$C36="SP")),IF(Personalize!$E$48=TRUE,(((VLOOKUP($B36,Pitcher!$A$1:$Z$700,5,FALSE))-'Filtered-P'!$AB$11)/'Filtered-P'!$AC$11),""),IF(Personalize!$E$43=TRUE,(((VLOOKUP($B36,Hitter!$A$1:$AZ$628,8,FALSE))-Filtered!$AH$24)/Filtered!$AI$24),"")),"") ->  | AA36: =IFERROR(IF((OR($C36="RP",$C36="SP")),IF(Personalize!$E$52=TRUE,(((VLOOKUP($B36,Pitcher!$A$1:$AA$700,21,FALSE))-'Filtered-P'!$AB$29)/(-1*'Filtered-P'!$AC$29)),""),IF(Personalize!$E$49=TRUE,(((VLOOKUP($B36,Hitter!$A$1:$AF$628,29,FALSE))-Filtered!$AH$45)/Filtered!$AI$45),"")),"") ->  | AB36: =IFERROR(IF((OR($C36="RP",$C36="SP")),IF(Personalize!$E$53=TRUE,(((VLOOKUP($B36,Pitcher!$A$1:$AA$700,23,FALSE))-'Filtered-P'!$AB$31)/(-1*'Filtered-P'!$AC$31)),""),IF(Personalize!$E$50=TRUE,(((VLOOKUP($B36,Hitter!$A$1:$AF$628,30,FALSE))-Filtered!$AH$46)/Filtered!$AI$46),"")),"") ->  | AC36: =IFERROR(IF((OR($C36="RP",$C36="SP")),IF(Personalize!$E$54=TRUE,(((VLOOKUP($B36,Pitcher!$A$1:$AA$700,24,FALSE))-'Filtered-P'!$AB$32)/'Filtered-P'!$AC$32),""),IF(Personalize!$E$51=TRUE,(((VLOOKUP($B36,Hitter!$A$1:$AF$628,14,FALSE))-Filtered!$AH$30)/(-1*Filtered!$AI$30)),"")),"") ->  | AD36: =IFERROR(IF((OR($C36="RP",$C36="SP")),VLOOKUP($B36,Pitcher!$A$1:$P$700,2,FALSE),""),"") -> 16.31462621 | AE36: =IFERROR(IF((OR($C36="RP",$C36="SP")),VLOOKUP($B36,Pitcher!$A$1:$P$700,9,FALSE),""),"") -> 0 | AF36: =IFERROR(IF((OR($C36="RP",$C36="SP")),VLOOKUP($B36,Pitcher!$A$1:$P$700,7,FALSE),""),"") -> 227.717683 | AG36: =IFERROR(IF((OR($C36="RP",$C36="SP")),VLOOKUP($B36,Pitcher!$A$1:$P$700,10,FALSE),""),"") -> 3.127202124 | AH36: =IFERROR(IF((OR($C36="RP",$C36="SP")),VLOOKUP($B36,Pitcher!$A$1:$P$700,11,FALSE),""),"") -> 1.123913434 | AI36: =IFERROR(IF((OR($C36="RP",$C36="SP")),"",VLOOKUP($B36,Hitter!$A$1:$X$628,15,FALSE)),"") ->  | AJ36: =IFERROR(IF((OR($C36="RP",$C36="SP")),"",VLOOKUP($B36,Hitter!$A$1:$X$628,9,FALSE)),"") ->  | AK36: =IFERROR(IF((OR($C36="RP",$C36="SP")),"",VLOOKUP($B36,Hitter!$A$1:$X$628,10,FALSE)),"") ->  | AL36: =IFERROR(IF((OR($C36="RP",$C36="SP")),"",VLOOKUP($B36,Hitter!$A$1:$X$628,4,FALSE)),"") ->  | AM36: =IFERROR(IF((OR($C36="RP",$C36="SP")),"",VLOOKUP($B36,Hitter!$A$1:$X$628,11,FALSE)),"") ->  | AN36: =IFERROR(IF(ISTEXT($A36),"",(1-NORMDIST((COUNTA($A$9:$A$661)),($G36),((AS36-AR36)/6),TRUE))),"") -> 0.9999990994 | AO36: =IFERROR(IF(ISTEXT($A36),"",(1-NORMDIST((COUNTA($A$9:$A$661))+(Personalize!$E$18+1),$G36,((AS36-AR36)/6),TRUE))),"") -> 0.9982351946 | AP36: =IFERROR(IF(ISTEXT($A36),"",(1-NORMDIST((COUNTA($A$9:$A$661))+((Personalize!$E$18+1)*2),$G36,((AS36-AR36)/6),TRUE))),"") -> 0.8554865322 | AR36: =IF(Personalize!$E$31=1,VLOOKUP($B36,'ADP-Rank'!$A$2:$J$609,5,FALSE),(IF(Personalize!$E$31=2,VLOOKUP($B36,'ADP-Rank'!$A$2:$J$609,8,FALSE),(IF(Personalize!$E$31=3,VLOOKUP($B36,'ADP-Rank'!$A$2:$O$609,11,FALSE),(IF(Personalize!$E$31=4,VLOOKUP($B36,'ADP-Rank'!$A$2:$AN$609,25,FALSE),(IF(Personalize!$E$31=5,VLOOKUP($B36,'ADP-Rank'!$A$2:$AN$609,28,FALSE),(IF(Personalize!$E$31=6,VLOOKUP($B36,'ADP-Rank'!$A$2:$AN$609,32,FALSE),(IF(Personalize!$E$31=7,VLOOKUP($B36,'ADP-Rank'!$A$2:$AN$609,40,FALSE),""))))))))))))) -> 16 | AS36: =IF(Personalize!$E$31=1,VLOOKUP($B36,'ADP-Rank'!$A$2:$J$609,6,FALSE),(IF(Personalize!$E$31=2,VLOOKUP($B36,'ADP-Rank'!$A$2:$J$609,9,FALSE),(IF(Personalize!$E$31=3,VLOOKUP($B36,'ADP-Rank'!$A$2:$O$609,12,FALSE),(IF(Personalize!$E$31=4,VLOOKUP($B36,'ADP-Rank'!$A$2:$AN$609,26,FALSE),(IF(Personalize!$E$31=5,VLOOKUP($B36,'ADP-Rank'!$A$2:$AN$609,29,FALSE),(IF(Personalize!$E$31=6,VLOOKUP($B36,'ADP-Rank'!$A$2:$AN$609,33,FALSE),(IF(Personalize!$E$31=7,VLOOKUP($B36,'ADP-Rank'!$A$2:$AP$609,41,FALSE),""))))))))))))) -> 58 | AT36: =IF(ISBLANK(A36),0,1) -> 0 | AU36: =IF(K36="",0,1) -> 1 | AV36: =A36 -> 0 | AW36: =IF(C36="C",1,IF(C36="1B",2,IF(C36="2B",3,IF(C36="3B",4,IF(C36="SS",5,IF(C36="CI",6,IF(C36="MI",7,IF(C36="OF",11,IF(C36="LF",8,IF(C36="CF",9,IF(C36="RF",10,IF(C36="DH",12,IF(C36="SP",13,IF(C36="RP",14,IF(C36="P",15,16))))))))))))))) -> 13 | AX36: =VLOOKUP(B36,'Starter Calc'!$B$2:$BN$700,65,FALSE) -> Starter | AY36: =IFERROR(VLOOKUP($B36,'ADP-Rank'!$A$2:$AH$785,34,FALSE),TRUE) -> TRUE
B37: Jay Bruce | C37: OF | D37: =IFERROR(IF(VLOOKUP(B37,'Starter Calc'!$B$2:$E$700,4,FALSE)="","",VLOOKUP(B37,'Starter Calc'!$B$2:$E$700,4,FALSE)),"") -> ,RF, | E37: =IFERROR(VLOOKUP($B37,'ADP-Rank'!$A$2:$D$650,3,FALSE),"") -> CIN | F37: =IFERROR(VLOOKUP($B37,'ADP-Rank'!$A$2:$W$650,23,FALSE),"") -> 27 | G37: =IFERROR((IF(Personalize!$E$31=1,VLOOKUP($B37,'ADP-Rank'!$A$2:$J$750,4,FALSE),(IF(Personalize!$E$31=2,VLOOKUP($B37,'ADP-Rank'!$A$2:$J$750,7,FALSE),(IF(Personalize!$E$31=3,VLOOKUP($B37,'ADP-Rank'!$A$2:$J$750,10,FALSE),(IF(Personalize!$E$31=4,VLOOKUP($B37,'ADP-Rank'!$A$2:$AN$750,24,FALSE),(IF(Personalize!$E$31=5,VLOOKUP($B37,'ADP-Rank'!$A$2:$AN$750,27,FALSE),(IF(Personalize!$E$31=6,VLOOKUP($B37,'ADP-Rank'!$A$2:$AN$750,31,FALSE),(IF(Personalize!$E$31=7,VLOOKUP($B37,'ADP-Rank'!$A$2:$AN$750,39,FALSE))))))))))))))),"") -> 34.57407407 | H37: =IFERROR(ROUNDDOWN(VLOOKUP($B37,'ADP-Rank'!$A$2:$AN$885,38,FALSE),0),"") -> 3 | I37: =VLOOKUP($B37,'ADP-Rank'!$A$2:$AJ$885,36,FALSE) -> 30 | J37: =IFERROR(RANK($K37,$K$7:$K$661,0),"") -> 50 | K37: =IF((SUM(M37:AC37)=0),"",SUM(M37:AC37)) -> 2.218388529 | L37: =IFERROR(IF(ISTEXT($A37),"",IF((OR($C37="RP",$C37="SP")),ABS(VLOOKUP(C37,'Filtered-P'!$AA$3:$AE$4,5,FALSE))+K37,ABS(VLOOKUP(C37,Filtered!$AG$3:$AK$14,5,FALSE))+K37)),"") -> 2.634016923 | M37: =IFERROR(IF((OR($C37="RP",$C37="SP")),IF(Personalize!$E$10=TRUE,(((VLOOKUP($B37,Pitcher!$A$1:$P$700,2,FALSE))-'Filtered-P'!$AB$8)/'Filtered-P'!$AC$8),""),IF(Personalize!$E$4=TRUE,(((VLOOKUP($B37,Hitter!$A$1:$X$628,21,FALSE))-Filtered!$AH$35)/Filtered!$AI$35),"")),"") -> -0.9856375612 | N37: =IFERROR(IF((OR($C37="RP",$C37="SP")),IF(Personalize!$E$12=TRUE,(((VLOOKUP($B37,Pitcher!$A$1:$P$700,9,FALSE))-'Filtered-P'!$AB$15)/'Filtered-P'!$AC$15),""),IF(Personalize!$E$3=TRUE,(((VLOOKUP($B37,Hitter!$A$1:$AB$628,9,FALSE))-Filtered!$AH$25)/Filtered!$AI$25),"")),"") -> 1.686769148 | O37: =IFERROR(IF((OR($C37="RP",$C37="SP")),IF(Personalize!$E$11=TRUE,(((VLOOKUP($B37,Pitcher!$A$1:$P$700,7,FALSE))-'Filtered-P'!$AB$13)/'Filtered-P'!$AC$13),""),IF(Personalize!$E$2=TRUE,(((VLOOKUP($B37,Hitter!$A$1:$AB$628,4,FALSE))-Filtered!$AH$20)/Filtered!$AI$20),"")),"") -> 0.5468322706 | P37: =IFERROR(IF((OR($C37="RP",$C37="SP")),IF(Personalize!$E$13=TRUE,(((VLOOKUP($B37,Pitcher!$A$1:$P$700,13,FALSE))-'Filtered-P'!$AB$19)/'Filtered-P'!$AC$19),""),IF(Personalize!$E$5=TRUE,(((VLOOKUP($B37,Hitter!$A$1:$AB$628,10,FALSE))-Filtered!$AH$26)/Filtered!$AI$26),"")),"") -> 1.44437618 | Q37: =IFERROR(IF((OR($C37="RP",$C37="SP")),IF(Personalize!$E$14=TRUE,(((VLOOKUP($B37,Pitcher!$A$1:$P$700,14,FALSE))-'Filtered-P'!$AB$20)/'Filtered-P'!$AC$20),""),IF(Personalize!$E$6=TRUE,(((VLOOKUP($B37,Hitter!$A$1:$AB$628,11,FALSE))-Filtered!$AH$27)/Filtered!$AI$27),"")),"") -> -0.4739515085 | R37: =IFERROR(IF((OR($C37="RP",$C37="SP")),IF(Personalize!$E$16=TRUE,(((VLOOKUP($B37,Pitcher!$A$1:$P$700,3,FALSE))-'Filtered-P'!$AB$9)/'Filtered-P'!$AC$9),""),IF(Personalize!$E$7=TRUE,(((VLOOKUP($B37,Hitter!$A$1:$AZ$628,23,FALSE))-Filtered!$AH$37)/Filtered!$AI$37),"")),"") ->  | S37: =IFERROR(IF((OR($C37="RP",$C37="SP")),IF(Personalize!$E$15=TRUE,(((VLOOKUP($B37,Pitcher!$A$1:$P$700,15,FALSE))-'Filtered-P'!$AB$21)/'Filtered-P'!$AC$21),""),IF(Personalize!$E$8=TRUE,(((VLOOKUP($B37,Hitter!$A$1:$AZ$628,22,FALSE))-Filtered!$AH$36)/Filtered!$AI$36),"")),"") ->  | T37: =IFERROR(IF((OR($C37="RP",$C37="SP")),IF(Personalize!$E$17=TRUE,(((VLOOKUP($B37,Pitcher!$A$1:$P$700,16,FALSE))-'Filtered-P'!$AB$22)/'Filtered-P'!$AC$22),""),IF(Personalize!$E$9=TRUE,(((VLOOKUP($B37,Hitter!$A$1:$AZ$628,24,FALSE))-Filtered!$AH$38)/Filtered!$AI$38),"")),"") ->  | U37: =IFERROR(IF((OR($C37="RP",$C37="SP")),IF(Personalize!$E$37=TRUE,(((VLOOKUP($B37,Pitcher!$A$1:$Z$700,17,FALSE))-'Filtered-P'!$AB$25)/'Filtered-P'!$AC$25),""),IF(Personalize!$E$39=TRUE,(((VLOOKUP($B37,Hitter!$A$1:$X$628,5,FALSE))-Filtered!$AH$21)/Filtered!$AI$21),"")),"") ->  | V37: =IFERROR(IF((OR($C37="RP",$C37="SP")),IF(Personalize!$E$38=TRUE,(((VLOOKUP($B37,Pitcher!$A$1:$Z$700,18,FALSE))-'Filtered-P'!$AB$26)/'Filtered-P'!$AC$26),""),IF(Personalize!$E$40=TRUE,(((VLOOKUP($B37,Hitter!$A$1:$X$628,13,FALSE))-Filtered!$AH$29)/Filtered!$AI$29),"")),"") ->  | W37: =IFERROR(IF((OR($C37="RP",$C37="SP")),IF(Personalize!$E$45=TRUE,(((VLOOKUP($B37,Pitcher!$A$1:$Z$700,4,FALSE))-'Filtered-P'!$AB$10)/'Filtered-P'!$AC$10),""),IF(Personalize!$E$41=TRUE,(((VLOOKUP($B37,Hitter!$A$1:$AZ$628,19,FALSE))-Filtered!$AH$43)/Filtered!$AI$43),"")),"") ->  | X37: =IFERROR(IF((OR($C37="RP",$C37="SP")),IF(Personalize!$E$46=TRUE,(((VLOOKUP($B37,Pitcher!$A$1:$Z$700,19,FALSE))-'Filtered-P'!$AB$27)/'Filtered-P'!$AC$27),""),IF(Personalize!$E$44=TRUE,(((VLOOKUP($B37,Hitter!$A$1:$AZ$628,20,FALSE))-Filtered!$AH$44)/Filtered!$AI$44),"")),"") ->  | Y37: =IFERROR(IF((OR($C37="RP",$C37="SP")),IF(Personalize!$E$47=TRUE,(((VLOOKUP($B37,Pitcher!$A$1:$Z$700,6,FALSE))-'Filtered-P'!$AB$12)/'Filtered-P'!$AC$12),""),IF(Personalize!$E$42=TRUE,(((VLOOKUP($B37,Hitter!$A$1:$AZ$628,7,FALSE))-Filtered!$AH$23)/Filtered!$AI$23),"")),"") ->  | Z37: =IFERROR(IF((OR($C37="RP",$C37="SP")),IF(Personalize!$E$48=TRUE,(((VLOOKUP($B37,Pitcher!$A$1:$Z$700,5,FALSE))-'Filtered-P'!$AB$11)/'Filtered-P'!$AC$11),""),IF(Personalize!$E$43=TRUE,(((VLOOKUP($B37,Hitter!$A$1:$AZ$628,8,FALSE))-Filtered!$AH$24)/Filtered!$AI$24),"")),"") ->  | AA37: =IFERROR(IF((OR($C37="RP",$C37="SP")),IF(Personalize!$E$52=TRUE,(((VLOOKUP($B37,Pitcher!$A$1:$AA$700,21,FALSE))-'Filtered-P'!$AB$29)/(-1*'Filtered-P'!$AC$29)),""),IF(Personalize!$E$49=TRUE,(((VLOOKUP($B37,Hitter!$A$1:$AF$628,29,FALSE))-Filtered!$AH$45)/Filtered!$AI$45),"")),"") ->  | AB37: =IFERROR(IF((OR($C37="RP",$C37="SP")),IF(Personalize!$E$53=TRUE,(((VLOOKUP($B37,Pitcher!$A$1:$AA$700,23,FALSE))-'Filtered-P'!$AB$31)/(-1*'Filtered-P'!$AC$31)),""),IF(Personalize!$E$50=TRUE,(((VLOOKUP($B37,Hitter!$A$1:$AF$628,30,FALSE))-Filtered!$AH$46)/Filtered!$AI$46),"")),"") ->  | AC37: =IFERROR(IF((OR($C37="RP",$C37="SP")),IF(Personalize!$E$54=TRUE,(((VLOOKUP($B37,Pitcher!$A$1:$AA$700,24,FALSE))-'Filtered-P'!$AB$32)/'Filtered-P'!$AC$32),""),IF(Personalize!$E$51=TRUE,(((VLOOKUP($B37,Hitter!$A$1:$AF$628,14,FALSE))-Filtered!$AH$30)/(-1*Filtered!$AI$30)),"")),"") ->  | AD37: =IFERROR(IF((OR($C37="RP",$C37="SP")),VLOOKUP($B37,Pitcher!$A$1:$P$700,2,FALSE),""),"") ->  | AE37: =IFERROR(IF((OR($C37="RP",$C37="SP")),VLOOKUP($B37,Pitcher!$A$1:$P$700,9,FALSE),""),"") ->  | AF37: =IFERROR(IF((OR($C37="RP",$C37="SP")),VLOOKUP($B37,Pitcher!$A$1:$P$700,7,FALSE),""),"") ->  | AG37: =IFERROR(IF((OR($C37="RP",$C37="SP")),VLOOKUP($B37,Pitcher!$A$1:$P$700,10,FALSE),""),"") ->  | AH37: =IFERROR(IF((OR($C37="RP",$C37="SP")),VLOOKUP($B37,Pitcher!$A$1:$P$700,11,FALSE),""),"") ->  | AI37: =IFERROR(IF((OR($C37="RP",$C37="SP")),"",VLOOKUP($B37,Hitter!$A$1:$X$628,15,FALSE)),"") -> 0.2542311535 | AJ37: =IFERROR(IF((OR($C37="RP",$C37="SP")),"",VLOOKUP($B37,Hitter!$A$1:$X$628,9,FALSE)),"") -> 30.25860199 | AK37: =IFERROR(IF((OR($C37="RP",$C37="SP")),"",VLOOKUP($B37,Hitter!$A$1:$X$628,10,FALSE)),"") -> 89.10010512 | AL37: =IFERROR(IF((OR($C37="RP",$C37="SP")),"",VLOOKUP($B37,Hitter!$A$1:$X$628,4,FALSE)),"") -> 80.71173098 | AM37: =IFERROR(IF((OR($C37="RP",$C37="SP")),"",VLOOKUP($B37,Hitter!$A$1:$X$628,11,FALSE)),"") -> 6.555512175 | AN37: =IFERROR(IF(ISTEXT($A37),"",(1-NORMDIST((COUNTA($A$9:$A$661)),($G37),((AS37-AR37)/6),TRUE))),"") -> 0.9999949193 | AO37: =IFERROR(IF(ISTEXT($A37),"",(1-NORMDIST((COUNTA($A$9:$A$661))+(Personalize!$E$18+1),$G37,((AS37-AR37)/6),TRUE))),"") -> 0.9970576446 | AP37: =IFERROR(IF(ISTEXT($A37),"",(1-NORMDIST((COUNTA($A$9:$A$661))+((Personalize!$E$18+1)*2),$G37,((AS37-AR37)/6),TRUE))),"") -> 0.8631458564 | AR37: =IF(Personalize!$E$31=1,VLOOKUP($B37,'ADP-Rank'!$A$2:$J$609,5,FALSE),(IF(Personalize!$E$31=2,VLOOKUP($B37,'ADP-Rank'!$A$2:$J$609,8,FALSE),(IF(Personalize!$E$31=3,VLOOKUP($B37,'ADP-Rank'!$A$2:$O$609,11,FALSE),(IF(Personalize!$E$31=4,VLOOKUP($B37,'ADP-Rank'!$A$2:$AN$609,25,FALSE),(IF(Personalize!$E$31=5,VLOOKUP($B37,'ADP-Rank'!$A$2:$AN$609,28,FALSE),(IF(Personalize!$E$31=6,VLOOKUP($B37,'ADP-Rank'!$A$2:$AN$609,32,FALSE),(IF(Personalize!$E$31=7,VLOOKUP($B37,'ADP-Rank'!$A$2:$AN$609,40,FALSE),""))))))))))))) -> 15 | AS37: =IF(Personalize!$E$31=1,VLOOKUP($B37,'ADP-Rank'!$A$2:$J$609,6,FALSE),(IF(Personalize!$E$31=2,VLOOKUP($B37,'ADP-Rank'!$A$2:$J$609,9,FALSE),(IF(Personalize!$E$31=3,VLOOKUP($B37,'ADP-Rank'!$A$2:$O$609,12,FALSE),(IF(Personalize!$E$31=4,VLOOKUP($B37,'ADP-Rank'!$A$2:$AN$609,26,FALSE),(IF(Personalize!$E$31=5,VLOOKUP($B37,'ADP-Rank'!$A$2:$AN$609,29,FALSE),(IF(Personalize!$E$31=6,VLOOKUP($B37,'ADP-Rank'!$A$2:$AN$609,33,FALSE),(IF(Personalize!$E$31=7,VLOOKUP($B37,'ADP-Rank'!$A$2:$AP$609,41,FALSE),""))))))))))))) -> 62 | AT37: =IF(ISBLANK(A37),0,1) -> 0 | AU37: =IF(K37="",0,1) -> 1 | AV37: =A37 -> 0 | AW37: =IF(C37="C",1,IF(C37="1B",2,IF(C37="2B",3,IF(C37="3B",4,IF(C37="SS",5,IF(C37="CI",6,IF(C37="MI",7,IF(C37="OF",11,IF(C37="LF",8,IF(C37="CF",9,IF(C37="RF",10,IF(C37="DH",12,IF(C37="SP",13,IF(C37="RP",14,IF(C37="P",15,16))))))))))))))) -> 11 | AX37: =VLOOKUP(B37,'Starter Calc'!$B$2:$BN$700,65,FALSE) -> Bench | AY37: =IFERROR(VLOOKUP($B37,'ADP-Rank'!$A$2:$AH$785,34,FALSE),TRUE) -> TRUE
